Workbook

Sheet Measured metabolites level
C1: Number of unmeasured samples | K1: Total (n) | L1: Total (%) | M1: Group | N1: LM1 L | O1: LM2 L | P1: LM2 L | Q1: LM2 L | R1: LM2 L | S1: LM2 L | T1: LM2 L | U1: LM2 L | V1: LM2 L | W1: LM2 L | X1: LM2 L | Y1: LM1 V | Z1: LM1 V | AA1: LM1 V | AB1: LM1 V | AC1: LM1 V | AD1: LM1 V | AE1: LM1 V | AF1: LM1 V | AG1: LM1 V | AH1: LM1 V | AI1: LM1 V | AJ1: LM1 V | AK1: LM1 V | AL1: LM1 V | AM1: LM1 V | AN1: LM1 V | AO1: LM1 V | AP1: LM1 V | AQ1: LM1 V | AR1: LM1 V | AS1: LM1 V | AT1: LM1 V | AU1: LM1 V | AV1: LM1 V | AW1: LM1 V | AX1: LM1 V | AY1: LM1 V | AZ1: LM1 V | BA1: LM2 V | BB1: LM2 V | BC1: LM2 V | BD1: LM2 V | BE1: LM2 V | BF1: LM2 V | BG1: LM2 V | BH1: LM2 V | BI1: LM2 V | BJ1: LM2 V | BK1: HC | BL1: HC | BM1: HC | BN1: HC | BO1: HC | BP1: HC | BQ1: HC | BR1: HC | BS1: HC | BT1: HC | BU1: BM | BV1: BM | BW1: BM | BX1: BM | BY1: BM | BZ1: BM | CA1: BM | CB1: BM | CC1: BM | CD1: BM | CE1: BM | CF1: BM | CG1: BM | CH1: BM | CI1: BM | CJ1: BT EA | CK1: BT EA | CL1: BT EA | CM1: BT EA | CN1: BT EA | CO1: BT EA | CP1: BT EA | CQ1: BT EA | CR1: BT EA | CS1: BT EA | CT1: BT GL | CU1: BT GL | CV1: BT GL | CW1: BT GL | CX1: BT GL | CY1: BT GL | CZ1: BT GL | DA1: BT GL | DB1: BT GL | DC1: BT GL | DD1: BT NG | DE1: BT NG | DF1: BT NG | DG1: BT NG | DH1: BT NG | DI1: BT NG | DJ1: BT NG | DK1: BT NG | DL1: BT NG | DM1: BT NG | DN1: G5 | DO1: G5 | DP1: G5 | DQ1: G5 | DR1: G5 | DS1: G5 | DT1: G5 | DU1: G5 | DV1: G5 | DW1: G5 | DX1: G5 | DY1: G5 | DZ1: G5
C2: LM L (n=11) | D2: LM V (n=38) | E2: HC (n=10) | F2: BM (n=15) | G2: BT EA (n=10) | H2: BT GL (n=10) | I2: BT NG (n=10) | J2: G5 (n=13) | M2: Sample ID | N2: 2076 | O2: 2272 | P2: 2339 | Q2: 2341 | R2: 2602 | S2: 2749 | T2: 2827 | U2: 20216 | V2: 20233 | W2: 20268 | X2: 20325 | Y2: 2005 | Z2: 2009 | AA2: 2012 | AB2: 2013 | AC2: 2015 | AD2: 2017 | AE2: 2019 | AF2: 2022 | AG2: 2023 | AH2: 2026 | AI2: 2030 | AJ2: 2037 | AK2: 2039 | AL2: 2048 | AM2: 2051 | AN2: 2058 | AO2: 2060 | AP2: 2063 | AQ2: 2073 | AR2: 2074 | AS2: 2078 | AT2: 2079 | AU2: 2080 | AV2: 2099 | AW2: 2100 | AX2: 2105 | AY2: 2189 | AZ2: 2252 | BA2: 2004 | BB2: 2006 | BC2: 2007 | BD2: 2010 | BE2: 2016 | BF2: 2069 | BG2: 2091 | BH2: 2098 | BI2: 2378 | BJ2: 2601 | BK2: 1080 | BL2: 1418 | BM2: 1422 | BN2: 1423 | BO2: 1425 | BP2: 1426 | BQ2: 1430 | BR2: 1435 | BS2: 1437 | BT2: 1443 | BU2: 1193 | BV2: 2063 | BW2: 3011 | BX2: 3012 | BY2: 3014 | BZ2: 3016 | CA2: 3021 | CB2: 3034 | CC2: 3097 | CD2: 3112 | CE2: 3116 | CF2: 3125 | CG2: 3161 | CH2: 3166 | CI2: 20287 | CJ2: 4008 | CK2: 4019 | CL2: 4037 | CM2: 4075 | CN2: 4084 | CO2: 4113 | CP2: 4144 | CQ2: 4182 | CR2: 4265 | CS2: 4382 | CT2: 4040 | CU2: 4119 | CV2: 4156 | CW2: 4175 | CX2: 4227 | CY2: 4276 | CZ2: 4288 | DA2: 4342 | DB2: 4376 | DC2: 4378 | DD2: 3071 | DE2: 4016 | DF2: 4042 | DG2: 4067 | DH2: 4074 | DI2: 4081 | DJ2: 4150 | DK2: 4181 | DL2: 4264 | DM2: 4387 | DN2: 1420 | DO2: 4086 | DP2: 4121 | DQ2: 5003 | DR2: 5106 | DS2: 5111 | DT2: 5113 | DU2: 5116 | DV2: 5105 | DW2: 5103 | DX2: 5095 | DY2: 5087 | DZ2: 5082
M3: Sampling site | N3: Lumbar | O3: Lumbar | P3: Lumbar | Q3: Lumbar | R3: Lumbar | S3: Lumbar | T3: Lumbar | U3: Lumbar | V3: Lumbar | W3: Lumbar | X3: Lumbar | Y3: Ventricular | Z3: Ventricular | AA3: Ventricular | AB3: Ventricular | AC3: Ventricular | AD3: Ventricular | AE3: Ventricular | AF3: Ventricular | AG3: Ventricular | AH3: Ventricular | AI3: Ventricular | AJ3: Ventricular | AK3: Ventricular | AL3: Ventricular | AM3: Ventricular | AN3: Ventricular | AO3: Ventricular | AP3: Ventricular | AQ3: Ventricular | AR3: Ventricular | AS3: Ventricular | AT3: Ventricular | AU3: Ventricular | AV3: Ventricular | AW3: Ventricular | AX3: Ventricular | AY3: Ventricular | AZ3: Ventricular | BA3: Ventricular | BB3: Ventricular | BC3: Ventricular | BD3: Ventricular | BE3: Ventricular | BF3: Ventricular | BG3: Ventricular | BH3: Ventricular | BI3: Ventricular | BJ3: Ventricular | BK3: Ventricular | BL3: Cisternal | BM3: Cisternal | BN3: Ventricular | BO3: Ventricular | BP3: Cisternal | BQ3: Cisternal | BR3: Cisternal | BS3: Cisternal | BT3: Cisternal | BU3: Lumbar | BV3: Ventricular | BW3: Lumbar | BX3: Lumbar | BY3: Lumbar | BZ3: Lumbar | CA3: Lumbar | CB3: Cisternal | CC3: Ventricular | CD3: Ventricular | CE3: Ventricular | CF3: Lumbar | CG3: Lumbar | CH3: Ventricular | CI3: Cisternal | CJ3: Lumbar | CK3: Lumbar | CL3: Lumbar | CM3: Lumbar | CN3: Cisternal | CO3: Cisternal | CP3: Lumbar | CQ3: Lumbar | CR3: Lumbar | CS3: Lumbar | CT3: Lumbar | CU3: Lumbar | CV3: Lumbar | CW3: Ventricular | CX3: Ventricular | CY3: Ventricular | CZ3: Lumbar | DA3: Cisternal | DB3: Lumbar | DC3: Lumbar | DD3: Lumbar | DE3: Lumbar | DF3: Lumbar | DG3: Lumbar | DH3: Lumbar | DI3: Lumbar | DJ3: Lumbar | DK3: Lumbar | DL3: Lumbar | DM3: Cisternal | DN3: Cisternal | DO3: Lumbar | DP3: Intraventricular(evd) | DQ3: Lumbar | DR3: Lumbar | DS3: Lumbar | DT3: Lumbar | DU3: Lumbar | DV3: Lumbar | DW3: Lumbar | DX3: Lumbar | DY3: Lumbar | DZ3: Lumbar
A4: Aminoacids | B4: Ala | C4: =COUNTIF(N4:X4,0) -> 0 | D4: =COUNTIF(Y4:BJ4,0) -> 0 | E4: =COUNTIF(BK4:BT4,0) -> 0 | F4: =COUNTIF(BU4:CI4,0) -> 0 | G4: =COUNTIF(CJ4:CS4,"0") -> 0 | H4: =COUNTIF(CT4:DC4,0) -> 0 | I4: =COUNTIF(DD4:DM4,0) -> 0 | J4: =COUNTIF(DN4:DZ4,0) -> 0 | K4: =SUM(C4:J4) -> 0 | L4: =K4/117*100 -> 0.0 | N4: 68 | O4: 178 | P4: 97.2 | Q4: 251 | R4: 171 | S4: 198 | T4: 48.2 | U4: 34.6 | V4: 70.6 | W4: 102 | X4: 199 | Y4: 55.7 | Z4: 82.1 | AA4: 59.2 | AB4: 62.3 | AC4: 43.1 | AD4: 47.7 | AE4: 35.4 | AF4: 34.7 | AG4: 37.4 | AH4: 58.2 | AI4: 16.6 | AJ4: 57.2 | AK4: 24.2 | AL4: 79.1 | AM4: 37.4 | AN4: 65.7 | AO4: 29.8 | AP4: 10.6 | AQ4: 35.6 | AR4: 52.9 | AS4: 29.5 | AT4: 72 | AU4: 84.6 | AV4: 43.8 | AW4: 31.8 | AX4: 63.3 | AY4: 33.9 | AZ4: 22.4 | BA4: 57.8 | BB4: 61.4 | BC4: 30.4 | BD4: 71.2 | BE4: 139 | BF4: 98.8 | BG4: 113 | BH4: 102 | BI4: 63.9 | BJ4: 95.3 | BK4: 46.7 | BL4: 17.8 | BM4: 31.9 | BN4: 22.8 | BO4: 19.4 | BP4: 15.5 | BQ4: 15.8 | BR4: 17.2 | BS4: 18.7 | BT4: 21.5 | BU4: 21.6 | BV4: 15.1 | BW4: 58.5 | BX4: 47.9 | BY4: 64.9 | BZ4: 98.3 | CA4: 37.7 | CB4: 95.1 | CC4: 36.2 | CD4: 32.6 | CE4: 61 | CF4: 57.9 | CG4: 66.5 | CH4: 29 | CI4: 44 | CJ4: 69 | CK4: 67.2 | CL4: 33.4 | CM4: 109 | CN4: 43 | CO4: 52.5 | CP4: 57 | CQ4: 49.1 | CR4: 56.2 | CS4: 57.7 | CT4: 21.3 | CU4: 84.5 | CV4: 46.5 | CW4: 52.3 | CX4: 42 | CY4: 27.7 | CZ4: 31.3 | DA4: 65.5 | DB4: 28.5 | DC4: 71.2 | DD4: 71.9 | DE4: 40.4 | DF4: 33.2 | DG4: 24.2 | DH4: 27.7 | DI4: 26.2 | DJ4: 28.4 | DK4: 28.2 | DL4: 24.2 | DM4: 54.4 | DN4: 57.9 | DO4: 83.7 | DP4: 52.6 | DQ4: 24.9 | DR4: 51.9 | DS4: 171 | DT4: 95 | DU4: 44.9 | DV4: 22.1 | DW4: 33.1 | DX4: 29.7 | DY4: 30.5 | DZ4: 37.4
A5: Aminoacids | B5: Arg | C5: =COUNTIF(N5:X5,0) -> 0 | D5: =COUNTIF(Y5:BJ5,0) -> 0 | E5: =COUNTIF(BK5:BT5,0) -> 0 | F5: =COUNTIF(BU5:CI5,0) -> 0 | G5: =COUNTIF(CJ5:CS5,"0") -> 0 | H5: =COUNTIF(CT5:DC5,0) -> 0 | I5: =COUNTIF(DD5:DM5,0) -> 0 | J5: =COUNTIF(DN5:DZ5,0) -> 0 | K5: 0 | L5: 0.0 | N5: 23.5 | O5: 42.4 | P5: 33.5 | Q5: 62 | R5: 29.1 | S5: 20.8 | T5: 23.5 | U5: 24.8 | V5: 25.2 | W5: 48.8 | X5: 27.7 | Y5: 21.3 | Z5: 30.4 | AA5: 17.3 | AB5: 15.4 | AC5: 21.3 | AD5: 19 | AE5: 21.7 | AF5: 21.5 | AG5: 24 | AH5: 18.1 | AI5: 14.6 | AJ5: 16.3 | AK5: 9.33 | AL5: 17.2 | AM5: 29.8 | AN5: 25 | AO5: 13.6 | AP5: 15 | AQ5: 15.2 | AR5: 16.9 | AS5: 21 | AT5: 21.4 | AU5: 21.6 | AV5: 21.7 | AW5: 8.91 | AX5: 28.1 | AY5: 12.1 | AZ5: 8.79 | BA5: 21.3 | BB5: 27.7 | BC5: 25 | BD5: 41.5 | BE5: 68.7 | BF5: 32 | BG5: 56.4 | BH5: 17.4 | BI5: 24.9 | BJ5: 37.7 | BK5: 15.9 | BL5: 12 | BM5: 19.4 | BN5: 17.9 | BO5: 15.4 | BP5: 14.3 | BQ5: 12.4 | BR5: 15.1 | BS5: 10.2 | BT5: 16.2 | BU5: 15.3 | BV5: 25.7 | BW5: 34.6 | BX5: 17.6 | BY5: 31 | BZ5: 35.9 | CA5: 33.7 | CB5: 29 | CC5: 28.1 | CD5: 17.9 | CE5: 28.4 | CF5: 39.2 | CG5: 26.1 | CH5: 26.5 | CI5: 21.5 | CJ5: 37.8 | CK5: 38.3 | CL5: 17.6 | CM5: 46.4 | CN5: 31.8 | CO5: 31.8 | CP5: 21.8 | CQ5: 25.7 | CR5: 31.7 | CS5: 29.2 | CT5: 13.3 | CU5: 41.7 | CV5: 31.8 | CW5: 19.3 | CX5: 29.4 | CY5: 32.8 | CZ5: 23.4 | DA5: 47.9 | DB5: 20.7 | DC5: 27 | DD5: 32.7 | DE5: 24.6 | DF5: 29.1 | DG5: 21.7 | DH5: 22.8 | DI5: 24.1 | DJ5: 26.6 | DK5: 28.1 | DL5: 17.6 | DM5: 35.2 | DN5: 38.2 | DO5: 27 | DP5: 18.9 | DQ5: 27 | DR5: 21.8 | DS5: 48.8 | DT5: 45.1 | DU5: 25.7 | DV5: 24.8 | DW5: 22.3 | DX5: 19.2 | DY5: 27.9 | DZ5: 23.8
A6: Aminoacids | B6: Asn | C6: 0 | D6: 0 | E6: 0 | F6: 0 | G6: 0 | H6: 0 | I6: 0 | J6: 0 | K6: 0 | L6: 0.0 | N6: 9.74 | O6: 16.4 | P6: 13.2 | Q6: 16.3 | R6: 19.3 | S6: 21 | T6: 6.09 | U6: 4.55 | V6: 7.41 | W6: 14.6 | X6: 9.1 | Y6: 4.52 | Z6: 5.54 | AA6: 5.88 | AB6: 5.67 | AC6: 4.68 | AD6: 5.31 | AE6: 4.34 | AF6: 3.59 | AG6: 4.21 | AH6: 8.72 | AI6: 2.32 | AJ6: 4.58 | AK6: 2.2 | AL6: 9.76 | AM6: 5.69 | AN6: 5.23 | AO6: 3.98 | AP6: 3.71 | AQ6: 3.74 | AR6: 7.94 | AS6: 4.27 | AT6: 6.56 | AU6: 6.1 | AV6: 4.44 | AW6: 3.73 | AX6: 4.64 | AY6: 3.7 | AZ6: 2.33 | BA6: 4.26 | BB6: 5.53 | BC6: 3.36 | BD6: 9.33 | BE6: 22.7 | BF6: 6.86 | BG6: 18.6 | BH6: 4.2 | BI6: 4.14 | BJ6: 4.84 | BK6: 5.5 | BL6: 4.31 | BM6: 5.24 | BN6: 5.2 | BO6: 4.51 | BP6: 4.9 | BQ6: 3.85 | BR6: 3.86 | BS6: 4.25 | BT6: 4.58 | BU6: 4.58 | BV6: 3.51 | BW6: 12 | BX6: 5.87 | BY6: 8.53 | BZ6: 12.6 | CA6: 7 | CB6: 4.34 | CC6: 3.19 | CD6: 5.5 | CE6: 6.47 | CF6: 10.5 | CG6: 8.09 | CH6: 6.1 | CI6: 5.27 | CJ6: 10.1 | CK6: 10.8 | CL6: 6.94 | CM6: 16.2 | CN6: 3.22 | CO6: 6.73 | CP6: 7.02 | CQ6: 8.62 | CR6: 7.25 | CS6: 5.54 | CT6: 3.89 | CU6: 12.9 | CV6: 7.38 | CW6: 3.8 | CX6: 3.61 | CY6: 4.91 | CZ6: 6.83 | DA6: 7.53 | DB6: 6.19 | DC6: 10.3 | DD6: 8.77 | DE6: 6.71 | DF6: 5.36 | DG6: 6.03 | DH6: 5 | DI6: 5.62 | DJ6: 5.94 | DK6: 7 | DL6: 6.78 | DM6: 11 | DN6: 7.58 | DO6: 11.1 | DP6: 3.5 | DQ6: 4.72 | DR6: 8.1 | DS6: 38.7 | DT6: 25.9 | DU6: 7.02 | DV6: 3.62 | DW6: 5.63 | DX6: 4.16 | DY6: 5.88 | DZ6: 4.89
A7: Aminoacids | B7: Asp | C7: 0 | D7: 7 | E7: 2 | F7: 0 | G7: 0 | H7: 0 | I7: 0 | J7: 0 | K7: 9 | L7: =K7/117*100 -> 7.7 | N7: 3.67 | O7: 3.62 | P7: 2.91 | Q7: 8.9 | R7: 5.95 | S7: 3.83 | T7: 3.59 | U7: 2.58 | V7: 2.41 | W7: 5.09 | X7: 3.2 | Y7: 2.36 | Z7: 2.58 | AA7: 2.32 | AB7: 2.48 | AC7: 0 | AD7: 0 | AE7: 2.47 | AF7: 0 | AG7: 2.32 | AH7: 3.65 | AI7: 2.38 | AJ7: 2.93 | AK7: 2.53 | AL7: 2.33 | AM7: 2.68 | AN7: 2.49 | AO7: 2.33 | AP7: 2.33 | AQ7: 2.32 | AR7: 2.33 | AS7: 0 | AT7: 0 | AU7: 2.68 | AV7: 2.7 | AW7: 0 | AX7: 2.34 | AY7: 2.47 | AZ7: 3.19 | BA7: 1.68 | BB7: 0 | BC7: 1.56 | BD7: 3.11 | BE7: 4.94 | BF7: 2.39 | BG7: 4.65 | BH7: 2.23 | BI7: 2.62 | BJ7: 1.67 | BK7: 0 | BL7: 2.36 | BM7: 0 | BN7: 3.23 | BO7: 2.71 | BP7: 2.61 | BQ7: 2.58 | BR7: 2.6 | BS7: 2.92 | BT7: 2.62 | BU7: 2.25 | BV7: 1.58 | BW7: 2.83 | BX7: 1.66 | BY7: 2.27 | BZ7: 3.26 | CA7: 1.53 | CB7: 2.24 | CC7: 1.58 | CD7: 1.57 | CE7: 1.79 | CF7: 2.92 | CG7: 1.66 | CH7: 1.67 | CI7: 2.73 | CJ7: 3.7 | CK7: 3.71 | CL7: 3.52 | CM7: 2.19 | CN7: 1.49 | CO7: 1.83 | CP7: 2.34 | CQ7: 2.53 | CR7: 2.26 | CS7: 1.59 | CT7: 1.52 | CU7: 3.32 | CV7: 3.01 | CW7: 3.7 | CX7: 1.74 | CY7: 1.6 | CZ7: 2.74 | DA7: 1.8 | DB7: 1.67 | DC7: 2.95 | DD7: 1.7 | DE7: 2.39 | DF7: 3.05 | DG7: 2.46 | DH7: 2.57 | DI7: 2.56 | DJ7: 2.32 | DK7: 1.66 | DL7: 1.63 | DM7: 1.7 | DN7: 3.53 | DO7: 3.81 | DP7: 2.28 | DQ7: 2.54 | DR7: 3.42 | DS7: 6.97 | DT7: 3.27 | DU7: 2.38 | DV7: 3.51 | DW7: 2.56 | DX7: 3.46 | DY7: 2.96 | DZ7: 2.87
A8: Aminoacids | B8: Cit | C8: 0 | D8: 0 | E8: 0 | F8: 0 | G8: 0 | H8: 0 | I8: 0 | J8: 0 | K8: 0 | L8: =K8/117*100 -> 0.0 | N8: 3.35 | O8: 3.51 | P8: 2.86 | Q8: 7.08 | R8: 2.49 | S8: 2.41 | T8: 1.61 | U8: 1.52 | V8: 0.759 | W8: 7.12 | X8: 1.45 | Y8: 1.47 | Z8: 1.87 | AA8: 1.11 | AB8: 1.3 | AC8: 1.14 | AD8: 1.78 | AE8: 1.38 | AF8: 1.98 | AG8: 1.54 | AH8: 2.93 | AI8: 1.29 | AJ8: 2.28 | AK8: 0.887 | AL8: 1.27 | AM8: 1.66 | AN8: 1.28 | AO8: 1.39 | AP8: 1.31 | AQ8: 1.04 | AR8: 1.01 | AS8: 1.78 | AT8: 1.48 | AU8: 1.16 | AV8: 2.2 | AW8: 0.889 | AX8: 1.19 | AY8: 1.23 | AZ8: 1.22 | BA8: 0.792 | BB8: 1.56 | BC8: 1.77 | BD8: 4.03 | BE8: 8.37 | BF8: 1.86 | BG8: 16.8 | BH8: 0.937 | BI8: 1.4 | BJ8: 2 | BK8: 3.48 | BL8: 1.03 | BM8: 1.66 | BN8: 1.8 | BO8: 1.13 | BP8: 0.958 | BQ8: 1.03 | BR8: 1.29 | BS8: 1.09 | BT8: 1.36 | BU8: 1.11 | BV8: 1.5 | BW8: 3.67 | BX8: 1.35 | BY8: 2.01 | BZ8: 3.86 | CA8: 3.08 | CB8: 1.39 | CC8: 1.58 | CD8: 1.09 | CE8: 1.82 | CF8: 2.45 | CG8: 1.31 | CH8: 1.33 | CI8: 1.09 | CJ8: 5.41 | CK8: 4.59 | CL8: 2.11 | CM8: 9.56 | CN8: 1.31 | CO8: 1.61 | CP8: 2.02 | CQ8: 3.01 | CR8: 3.8 | CS8: 1.89 | CT8: 1.01 | CU8: 3.26 | CV8: 2.54 | CW8: 1.14 | CX8: 1.65 | CY8: 3.48 | CZ8: 1.97 | DA8: 1.95 | DB8: 3.35 | DC8: 2.15 | DD8: 2.19 | DE8: 2.09 | DF8: 2.03 | DG8: 3.62 | DH8: 1.91 | DI8: 1.9 | DJ8: 2.76 | DK8: 3.02 | DL8: 1.47 | DM8: 4.57 | DN8: 2.41 | DO8: 5.14 | DP8: 3.41 | DQ8: 1.42 | DR8: 4.7 | DS8: 4.11 | DT8: 3.84 | DU8: 3.52 | DV8: 1.73 | DW8: 1.73 | DX8: 1.46 | DY8: 1.88 | DZ8: 1.07
A9: Aminoacids | B9: Gln | C9: 0 | D9: 0 | E9: 0 | F9: 0 | G9: 0 | H9: 0 | I9: 0 | J9: 0 | K9: 0 | L9: 0.0 | N9: 885 | O9: 560 | P9: 550 | Q9: 779 | R9: 508 | S9: 498 | T9: 334 | U9: 568 | V9: 562 | W9: 813 | X9: 61.2 | Y9: 631 | Z9: 647 | AA9: 399 | AB9: 585 | AC9: 635 | AD9: 535 | AE9: 613 | AF9: 415 | AG9: 504 | AH9: 657 | AI9: 205 | AJ9: 400 | AK9: 244 | AL9: 372 | AM9: 599 | AN9: 748 | AO9: 407 | AP9: 418 | AQ9: 461 | AR9: 309 | AS9: 612 | AT9: 727 | AU9: 550 | AV9: 394 | AW9: 228 | AX9: 531 | AY9: 383 | AZ9: 455 | BA9: 492 | BB9: 910 | BC9: 480 | BD9: 830 | BE9: 962 | BF9: 551 | BG9: 1195 | BH9: 369 | BI9: 572 | BJ9: 781 | BK9: 533 | BL9: 520 | BM9: 975 | BN9: 591 | BO9: 663 | BP9: 1071 | BQ9: 627 | BR9: 777 | BS9: 682 | BT9: 938 | BU9: 470 | BV9: 590 | BW9: 727 | BX9: 541 | BY9: 652 | BZ9: 719 | CA9: 564 | CB9: 557 | CC9: 767 | CD9: 475 | CE9: 644 | CF9: 852 | CG9: 646 | CH9: 699 | CI9: 549 | CJ9: 553 | CK9: 663 | CL9: 547 | CM9: 916 | CN9: 464 | CO9: 576 | CP9: 730 | CQ9: 636 | CR9: 640 | CS9: 762 | CT9: 392 | CU9: 817 | CV9: 717 | CW9: 513 | CX9: 510 | CY9: 705 | CZ9: 676 | DA9: 602 | DB9: 505 | DC9: 669 | DD9: 723 | DE9: 695 | DF9: 491 | DG9: 566 | DH9: 649 | DI9: 517 | DJ9: 495 | DK9: 486 | DL9: 496 | DM9: 956 | DN9: 987 | DO9: 668 | DP9: 571 | DQ9: 514 | DR9: 705 | DS9: 574 | DT9: 765 | DU9: 667 | DV9: 391 | DW9: 405 | DX9: 366 | DY9: 442 | DZ9: 389
A10: Aminoacids | B10: Glu | C10: 0 | D10: 0 | E10: 0 | F10: 0 | G10: 0 | H10: 0 | I10: 0 | J10: 0 | K10: 0 | L10: 0.0 | N10: 4.51 | O10: 10.5 | P10: 7.1 | Q10: 17.9 | R10: 80.3 | S10: 9.36 | T10: 8.73 | U10: 2.02 | V10: 8.31 | W10: 6.67 | X10: 5.98 | Y10: 2.37 | Z10: 3.51 | AA10: 5.95 | AB10: 4.57 | AC10: 3.1 | AD10: 3.37 | AE10: 3.42 | AF10: 2.78 | AG10: 2.47 | AH10: 6.47 | AI10: 17.2 | AJ10: 10.6 | AK10: 3.2 | AL10: 4.65 | AM10: 3.42 | AN10: 3.76 | AO10: 2.84 | AP10: 3.48 | AQ10: 2.16 | AR10: 4.81 | AS10: 7.66 | AT10: 3.43 | AU10: 5.22 | AV10: 10.9 | AW10: 2.2 | AX10: 2.26 | AY10: 2.98 | AZ10: 1.73 | BA10: 3.24 | BB10: 2.18 | BC10: 2.88 | BD10: 5.04 | BE10: 7.22 | BF10: 6.28 | BG10: 5.31 | BH10: 3.49 | BI10: 2.74 | BJ10: 12.3 | BK10: 6.53 | BL10: 2.4 | BM10: 2.61 | BN10: 4.91 | BO10: 2.4 | BP10: 3.11 | BQ10: 2.44 | BR10: 3.36 | BS10: 3.4 | BT10: 3.04 | BU10: 2.38 | BV10: 3.53 | BW10: 2.21 | BX10: 2.48 | BY10: 2.87 | BZ10: 2.91 | CA10: 1.88 | CB10: 3.13 | CC10: 2.43 | CD10: 2.89 | CE10: 3.16 | CF10: 2.52 | CG10: 2.41 | CH10: 2.41 | CI10: 4.55 | CJ10: 4.55 | CK10: 5.03 | CL10: 7.68 | CM10: 5.98 | CN10: 2.25 | CO10: 4.87 | CP10: 3.52 | CQ10: 2.34 | CR10: 2.72 | CS10: 3.7 | CT10: 2.98 | CU10: 2.44 | CV10: 2.21 | CW10: 7.96 | CX10: 2.1 | CY10: 2.21 | CZ10: 1.96 | DA10: 2.45 | DB10: 2.38 | DC10: 2.03 | DD10: 2.8 | DE10: 3.35 | DF10: 6.61 | DG10: 6.45 | DH10: 3.14 | DI10: 2.94 | DJ10: 3.58 | DK10: 2.23 | DL10: 2.23 | DM10: 3.49 | DN10: 5.45 | DO10: 7.32 | DP10: 5.34 | DQ10: 2.4 | DR10: 3.2 | DS10: 7.89 | DT10: 5.13 | DU10: 3.65 | DV10: 8.3 | DW10: 6.3 | DX10: 15.4 | DY10: 6.65 | DZ10: 5.96
A11: Aminoacids | B11: Gly | C11: 0 | D11: 0 | E11: 0 | F11: 0 | G11: 0 | H11: 0 | I11: 0 | J11: 0 | K11: 0 | L11: 0.0 | N11: 20.4 | O11: 62.2 | P11: 24.6 | Q11: 146 | R11: 106 | S11: 66.4 | T11: 11.6 | U11: 6.19 | V11: 18.9 | W11: 69.4 | X11: 92.9 | Y11: 4.64 | Z11: 10.1 | AA11: 10.7 | AB11: 9.39 | AC11: 9.95 | AD11: 5.77 | AE11: 4.46 | AF11: 4.76 | AG11: 5.49 | AH11: 16.8 | AI11: 3.24 | AJ11: 6.08 | AK11: 2.49 | AL11: 11.8 | AM11: 7.42 | AN11: 11.9 | AO11: 5.99 | AP11: 3.48 | AQ11: 4.61 | AR11: 11.7 | AS11: 5.57 | AT11: 7.86 | AU11: 7.25 | AV11: 10.9 | AW11: 5.47 | AX11: 7.16 | AY11: 6.87 | AZ11: 9.71 | BA11: 9.75 | BB11: 7.37 | BC11: 5.47 | BD11: 15.4 | BE11: 152 | BF11: 11.4 | BG11: 56.4 | BH11: 18.7 | BI11: 9.7 | BJ11: 16.1 | BK11: 8.49 | BL11: 7.49 | BM11: 5.78 | BN11: 7.58 | BO11: 8.25 | BP11: 10.3 | BQ11: 6 | BR11: 7.55 | BS11: 6.76 | BT11: 6.21 | BU11: 4.44 | BV11: 5.16 | BW11: 9.01 | BX11: 4.42 | BY11: 7.07 | BZ11: 14.5 | CA11: 7.22 | CB11: 8.72 | CC11: 5.43 | CD11: 3.71 | CE11: 8.29 | CF11: 7.43 | CG11: 8.31 | CH11: 7.65 | CI11: 5.94 | CJ11: 28.8 | CK11: 17 | CL11: 9.17 | CM11: 38.3 | CN11: 7.9 | CO11: 9.37 | CP11: 4.6 | CQ11: 8.42 | CR11: 6.77 | CS11: 5.19 | CT11: 3.35 | CU11: 12.1 | CV11: 10.3 | CW11: 9.61 | CX11: 6.32 | CY11: 7.78 | CZ11: 6.4 | DA11: 15 | DB11: 15.5 | DC11: 9.61 | DD11: 11.5 | DE11: 6.68 | DF11: 4.62 | DG11: 4.71 | DH11: 4.15 | DI11: 4.71 | DJ11: 5.3 | DK11: 7.69 | DL11: 5.45 | DM11: 11.3 | DN11: 9.8 | DO11: 26.4 | DP11: 12.1 | DQ11: 7.39 | DR11: 27.3 | DS11: 76.6 | DT11: 40.1 | DU11: 11.3 | DV11: 5.49 | DW11: 3.61 | DX11: 2.65 | DY11: 4 | DZ11: 3.85
A12: Aminoacids | B12: His | C12: 0 | D12: 0 | E12: 0 | F12: 0 | G12: 0 | H12: 0 | I12: 0 | J12: 0 | K12: 0 | L12: 0.0 | N12: 18.6 | O12: 19.9 | P12: 19.6 | Q12: 45.9 | R12: 28.3 | S12: 22.3 | T12: 10.7 | U12: 15.5 | V12: 17.6 | W12: 37.2 | X12: 10.2 | Y12: 10.8 | Z12: 13.8 | AA12: 10 | AB12: 10.9 | AC12: 11.2 | AD12: 10.8 | AE12: 14.5 | AF12: 10.6 | AG12: 14.4 | AH12: 14.9 | AI12: 6.87 | AJ12: 10.6 | AK12: 3.01 | AL12: 9.46 | AM12: 11.8 | AN12: 13.2 | AO12: 8.73 | AP12: 7.28 | AQ12: 8.29 | AR12: 6.39 | AS12: 11.6 | AT12: 11.2 | AU12: 10.4 | AV12: 10.5 | AW12: 7.21 | AX12: 10.5 | AY12: 6.47 | AZ12: 6.8 | BA12: 9.97 | BB12: 18.4 | BC12: 11.7 | BD12: 21.6 | BE12: 43.4 | BF12: 16.2 | BG12: 32.5 | BH12: 8.51 | BI12: 14.4 | BJ12: 7.12 | BK12: 11.3 | BL12: 9.93 | BM12: 11.8 | BN12: 12.1 | BO12: 10.7 | BP12: 19 | BQ12: 11.4 | BR12: 9.79 | BS12: 11.4 | BT12: 12 | BU12: 14.6 | BV12: 12.1 | BW12: 21.6 | BX12: 13.1 | BY12: 15.7 | BZ12: 19.2 | CA12: 11.3 | CB12: 11 | CC12: 13.9 | CD12: 13.9 | CE12: 13.4 | CF12: 27.2 | CG12: 14.5 | CH12: 12.8 | CI12: 13 | CJ12: 21.1 | CK12: 28.9 | CL12: 16.3 | CM12: 25.2 | CN12: 10.2 | CO12: 15.8 | CP12: 16.1 | CQ12: 14 | CR12: 15.8 | CS12: 18 | CT12: 7.02 | CU12: 19.6 | CV12: 20.7 | CW12: 10.6 | CX12: 15.5 | CY12: 21.4 | CZ12: 17 | DA12: 17.8 | DB12: 14 | DC12: 19.7 | DD12: 15.8 | DE12: 17.5 | DF12: 12 | DG12: 19.3 | DH12: 12 | DI12: 15.9 | DJ12: 15.1 | DK12: 15.3 | DL12: 13.4 | DM12: 21.7 | DN12: 21.4 | DO12: 23.7 | DP12: 13.7 | DQ12: 12.9 | DR12: 20.6 | DS12: 42.5 | DT12: 36.2 | DU12: 16.2 | DV12: 12.2 | DW12: 11.1 | DX12: 12.1 | DY12: 11.4 | DZ12: 10.7
A13: Aminoacids | B13: Ile | C13: 0 | D13: 9 | E13: 0 | F13: 0 | G13: 0 | H13: 0 | I13: 0 | J13: 0 | K13: 9 | L13: 7.7 | N13: 8.19 | O13: 25.2 | P13: 14.4 | Q13: 34.7 | R13: 22.1 | S13: 5.69 | T13: 4.75 | U13: 4.02 | V13: 5.75 | W13: 21.1 | X13: 1.32 | Y13: 1.12 | Z13: 2.08 | AA13: 0 | AB13: 2.56 | AC13: 1.9 | AD13: 1.58 | AE13: 0 | AF13: 1.22 | AG13: 0.805 | AH13: 6.09 | AI13: 0 | AJ13: 2.17 | AK13: 0 | AL13: 1.51 | AM13: 0.55 | AN13: 0.347 | AO13: 0.513 | AP13: 3.29 | AQ13: 0 | AR13: 0 | AS13: 2.88 | AT13: 3.64 | AU13: 2.53 | AV13: 2.18 | AW13: 0 | AX13: 1.01 | AY13: 0 | AZ13: 0 | BA13: 4.25 | BB13: 3.81 | BC13: 2.18 | BD13: 6.43 | BE13: 23.7 | BF13: 7.19 | BG13: 15.4 | BH13: 4.12 | BI13: 4.35 | BJ13: 7.3 | BK13: 3.68 | BL13: 1.35 | BM13: 4.43 | BN13: 1.54 | BO13: 3.28 | BP13: 3.07 | BQ13: 1.59 | BR13: 2.49 | BS13: 0.602 | BT13: 1.74 | BU13: 5.25 | BV13: 5.61 | BW13: 7.49 | BX13: 6.72 | BY13: 9.86 | BZ13: 14.2 | CA13: 7.78 | CB13: 3.94 | CC13: 3.11 | CD13: 2.49 | CE13: 9.29 | CF13: 11.5 | CG13: 12.2 | CH13: 6.36 | CI13: 4.22 | CJ13: 11.7 | CK13: 14 | CL13: 3.93 | CM13: 13 | CN13: 3.35 | CO13: 5.43 | CP13: 6.47 | CQ13: 5.8 | CR13: 9.95 | CS13: 2.46 | CT13: 2.78 | CU13: 14.6 | CV13: 7.22 | CW13: 4.67 | CX13: 3.73 | CY13: 5.17 | CZ13: 4.8 | DA13: 6.19 | DB13: 3.7 | DC13: 7.33 | DD13: 10.4 | DE13: 5.72 | DF13: 3.63 | DG13: 5.51 | DH13: 3.75 | DI13: 5.4 | DJ13: 5.68 | DK13: 4.65 | DL13: 9.47 | DM13: 7.97 | DN13: 4.98 | DO13: 9.49 | DP13: 1.55 | DQ13: 3.9 | DR13: 10.6 | DS13: 36.2 | DT13: 25.5 | DU13: 6.99 | DV13: 9.48 | DW13: 5.17 | DX13: 4.53 | DY13: 4.53 | DZ13: 5.31
A14: Aminoacids | B14: Lys | C14: 0 | D14: 0 | E14: 0 | F14: 0 | G14: 0 | H14: 0 | I14: 0 | J14: 0 | K14: 0 | L14: 0.0 | N14: 22.5 | O14: 61.9 | P14: 45.7 | Q14: 99 | R14: 61.7 | S14: 33.6 | T14: 25.9 | U14: 27.9 | V14: 36.2 | W14: 51 | X14: 33 | Y14: 22.7 | Z14: 36.3 | AA14: 21.3 | AB14: 21.6 | AC14: 18.4 | AD14: 20.3 | AE14: 20.7 | AF14: 21.7 | AG14: 19.7 | AH14: 18.2 | AI14: 11 | AJ14: 20.6 | AK14: 10.8 | AL14: 23.1 | AM14: 20 | AN14: 28.3 | AO14: 20.8 | AP14: 13.6 | AQ14: 22.8 | AR14: 16.4 | AS14: 18.4 | AT14: 28.5 | AU14: 27.5 | AV14: 15.9 | AW14: 13.3 | AX14: 19.8 | AY14: 14 | AZ14: 12.1 | BA14: 20.9 | BB14: 30.2 | BC14: 26 | BD14: 31.9 | BE14: 114 | BF14: 39 | BG14: 25.4 | BH14: 28.7 | BI14: 23 | BJ14: 42.1 | BK14: 20.5 | BL14: 18.9 | BM14: 20.3 | BN14: 17.3 | BO14: 19.7 | BP14: 23.1 | BQ14: 16.7 | BR14: 19.8 | BS14: 18.3 | BT14: 17 | BU14: 29.4 | BV14: 18.2 | BW14: 25.5 | BX14: 29.1 | BY14: 43.4 | BZ14: 46.1 | CA14: 31.9 | CB14: 32.7 | CC14: 30.1 | CD14: 22.1 | CE14: 31.1 | CF14: 64 | CG14: 35.1 | CH14: 22.6 | CI14: 33.8 | CJ14: 39.1 | CK14: 44.3 | CL14: 33 | CM14: 44.3 | CN14: 24.2 | CO14: 35.6 | CP14: 30.6 | CQ14: 28.7 | CR14: 30.7 | CS14: 32.6 | CT14: 17.4 | CU14: 51.6 | CV14: 32.8 | CW14: 35.3 | CX14: 26.8 | CY14: 27.6 | CZ14: 21.2 | DA14: 39.7 | DB14: 25 | DC14: 30.6 | DD14: 36.2 | DE14: 21.5 | DF14: 20.5 | DG14: 18.9 | DH14: 32.8 | DI14: 23.2 | DJ14: 21.2 | DK14: 24.4 | DL14: 20.6 | DM14: 44.5 | DN14: 38.1 | DO14: 53.9 | DP14: 29.1 | DQ14: 15.9 | DR14: 31.7 | DS14: 86 | DT14: 54.4 | DU14: 29.8 | DV14: 30.3 | DW14: 26.8 | DX14: 20.6 | DY14: 22.5 | DZ14: 31.7
A15: Aminoacids | B15: Met | C15: 0 | D15: 0 | E15: 0 | F15: 0 | G15: 0 | H15: 0 | I15: 0 | J15: 0 | K15: 0 | L15: 0.0 | N15: 4.28 | O15: 10.4 | P15: 6.99 | Q15: 20.4 | R15: 13.6 | S15: 13.3 | T15: 2.71 | U15: 2.59 | V15: 3.46 | W15: 13.3 | X15: 4.9 | Y15: 4.61 | Z15: 5.53 | AA15: 2.99 | AB15: 2.36 | AC15: 3.54 | AD15: 2.99 | AE15: 3.09 | AF15: 2.77 | AG15: 3.31 | AH15: 3.45 | AI15: 1.05 | AJ15: 2.93 | AK15: 1.02 | AL15: 3.18 | AM15: 2.74 | AN15: 6 | AO15: 1.84 | AP15: 2.57 | AQ15: 2.39 | AR15: 2.45 | AS15: 2.5 | AT15: 5.65 | AU15: 2.89 | AV15: 2.72 | AW15: 2.03 | AX15: 3.65 | AY15: 1.77 | AZ15: 1.73 | BA15: 3.28 | BB15: 9.26 | BC15: 3.41 | BD15: 6.75 | BE15: 16.7 | BF15: 7.07 | BG15: 16.3 | BH15: 2.62 | BI15: 6.29 | BJ15: 5.57 | BK15: 2.34 | BL15: 2.36 | BM15: 2.38 | BN15: 2.55 | BO15: 2.71 | BP15: 4.4 | BQ15: 2.11 | BR15: 2.41 | BS15: 2.59 | BT15: 2.93 | BU15: 2.35 | BV15: 4.31 | BW15: 7.03 | BX15: 2.26 | BY15: 3.03 | BZ15: 13.9 | CA15: 6.11 | CB15: 4.11 | CC15: 5.77 | CD15: 2.85 | CE15: 3.99 | CF15: 6.19 | CG15: 4.6 | CH15: 4.84 | CI15: 4.07 | CJ15: 5.51 | CK15: 5.82 | CL15: 3.71 | CM15: 9.16 | CN15: 3.65 | CO15: 6.05 | CP15: 5.92 | CQ15: 5.23 | CR15: 5.67 | CS15: 6.08 | CT15: 1.93 | CU15: 8.96 | CV15: 4.21 | CW15: 4.3 | CX15: 3.2 | CY15: 6.26 | CZ15: 5.01 | DA15: 6.36 | DB15: 3.2 | DC15: 7.66 | DD15: 6.6 | DE15: 3.09 | DF15: 1.18 | DG15: 2.19 | DH15: 2.28 | DI15: 2.53 | DJ15: 2.2 | DK15: 2.7 | DL15: 2.45 | DM15: 9.19 | DN15: 6.34 | DO15: 0.326 | DP15: 1.81 | DQ15: 2.49 | DR15: 5.56 | DS15: 7.87 | DT15: 12.9 | DU15: 4.9 | DV15: 1.54 | DW15: 2.23 | DX15: 1.32 | DY15: 1.62 | DZ15: 1.95
A16: Aminoacids | B16: Orn | C16: 0 | D16: 0 | E16: 0 | F16: 0 | G16: 0 | H16: 0 | I16: 0 | J16: 0 | K16: 0 | L16: 0.0 | N16: 7.56 | O16: 13.2 | P16: 8.38 | Q16: 10.1 | R16: 11.6 | S16: 6.88 | T16: 6.34 | U16: 6.3 | V16: 6.71 | W16: 14.3 | X16: 2.34 | Y16: 5.5 | Z16: 8.6 | AA16: 5.77 | AB16: 5.93 | AC16: 7.6 | AD16: 5.46 | AE16: 12.3 | AF16: 5.63 | AG16: 4.23 | AH16: 6.65 | AI16: 3.45 | AJ16: 8.7 | AK16: 2.61 | AL16: 5.92 | AM16: 5.74 | AN16: 7.95 | AO16: 4.26 | AP16: 16.9 | AQ16: 5 | AR16: 4.42 | AS16: 6.13 | AT16: 8.11 | AU16: 5.11 | AV16: 10.4 | AW16: 3.08 | AX16: 4.31 | AY16: 4.18 | AZ16: 5.35 | BA16: 3.29 | BB16: 4.26 | BC16: 4.06 | BD16: 10.6 | BE16: 19.6 | BF16: 5.78 | BG16: 14 | BH16: 4.74 | BI16: 6.74 | BJ16: 20.1 | BK16: 5.58 | BL16: 4.58 | BM16: 5.91 | BN16: 6.08 | BO16: 4.73 | BP16: 4.8 | BQ16: 3.72 | BR16: 5.03 | BS16: 3.45 | BT16: 3.92 | BU16: 4.12 | BV16: 24.4 | BW16: 4.49 | BX16: 6.14 | BY16: 8.32 | BZ16: 7.34 | CA16: 8.58 | CB16: 4.72 | CC16: 4.41 | CD16: 2.7 | CE16: 8.49 | CF16: 13.7 | CG16: 7.89 | CH16: 4.54 | CI16: 4.17 | CJ16: 8.09 | CK16: 8.03 | CL16: 6.12 | CM16: 8.36 | CN16: 6.43 | CO16: 6.6 | CP16: 3.47 | CQ16: 11.8 | CR16: 7.75 | CS16: 4.36 | CT16: 2.4 | CU16: 9.99 | CV16: 7.48 | CW16: 3.73 | CX16: 5.28 | CY16: 6.37 | CZ16: 3.32 | DA16: 8.92 | DB16: 8.37 | DC16: 6.46 | DD16: 6.23 | DE16: 4.73 | DF16: 4.64 | DG16: 3.72 | DH16: 4.1 | DI16: 5.08 | DJ16: 4.67 | DK16: 6.74 | DL16: 5.04 | DM16: 11.1 | DN16: 6.05 | DO16: 14.5 | DP16: 7.29 | DQ16: 5.18 | DR16: 5.46 | DS16: 24.1 | DT16: 12.4 | DU16: 5.75 | DV16: 6.8 | DW16: 4.68 | DX16: 4.58 | DY16: 4.19 | DZ16: 4.26
A17: Aminoacids | B17: Phe | C17: 0 | D17: 0 | E17: 0 | F17: 0 | G17: 0 | H17: 0 | I17: 0 | J17: 0 | K17: 0 | L17: 0.0 | N17: 19.5 | O17: 22.8 | P17: 23.8 | Q17: 56.6 | R17: 29.2 | S17: 20.5 | T17: 7.81 | U17: 6.95 | V17: 28.3 | W17: 29.1 | X17: 8.97 | Y17: 9.66 | Z17: 17.3 | AA17: 8.42 | AB17: 8.76 | AC17: 21.8 | AD17: 8.55 | AE17: 21.4 | AF17: 9.07 | AG17: 10.8 | AH17: 16.5 | AI17: 3.79 | AJ17: 10.3 | AK17: 4.89 | AL17: 5.82 | AM17: 7.74 | AN17: 15.6 | AO17: 7.43 | AP17: 11.9 | AQ17: 7.18 | AR17: 7.06 | AS17: 10.8 | AT17: 12 | AU17: 10.7 | AV17: 13 | AW17: 5.56 | AX17: 8.82 | AY17: 5.49 | AZ17: 12.2 | BA17: 10.7 | BB17: 20.6 | BC17: 10.9 | BD17: 21.9 | BE17: 37 | BF17: 15.5 | BG17: 37.3 | BH17: 6.95 | BI17: 16.8 | BJ17: 21.8 | BK17: 10.6 | BL17: 4.52 | BM17: 8.99 | BN17: 6.36 | BO17: 5.63 | BP17: 9.04 | BQ17: 5.16 | BR17: 6.42 | BS17: 6.64 | BT17: 7.7 | BU17: 8.02 | BV17: 18.5 | BW17: 20.5 | BX17: 9.47 | BY17: 13.2 | BZ17: 24.7 | CA17: 13.7 | CB17: 11.5 | CC17: 14.3 | CD17: 11.5 | CE17: 10.7 | CF17: 17.9 | CG17: 12.1 | CH17: 9.88 | CI17: 8.92 | CJ17: 17.2 | CK17: 18.9 | CL17: 15.7 | CM17: 25.7 | CN17: 9.58 | CO17: 13.3 | CP17: 15.1 | CQ17: 10.9 | CR17: 12.8 | CS17: 12.1 | CT17: 6.12 | CU17: 20.7 | CV17: 12 | CW17: 11.2 | CX17: 11.4 | CY17: 13.2 | CZ17: 12.2 | DA17: 21.5 | DB17: 11.2 | DC17: 16.1 | DD17: 16.6 | DE17: 12.4 | DF17: 9.8 | DG17: 15.9 | DH17: 8.38 | DI17: 8.77 | DJ17: 9.5 | DK17: 11.2 | DL17: 8.58 | DM17: 18.1 | DN17: 13.2 | DO17: 19.5 | DP17: 13.5 | DQ17: 14.3 | DR17: 17.2 | DS17: 38.6 | DT17: 34.7 | DU17: 12.9 | DV17: 8.49 | DW17: 8.76 | DX17: 7.98 | DY17: 8.22 | DZ17: 9.23
A18: Aminoacids | B18: Pro | C18: 0 | D18: 0 | E18: 0 | F18: 0 | G18: 0 | H18: 0 | I18: 0 | J18: 0 | K18: 0 | L18: 0.0 | N18: 7.22 | O18: 38.2 | P18: 6.11 | Q18: 110 | R18: 52.5 | S18: 51 | T18: 4.66 | U18: 1.45 | V18: 17.2 | W18: 18 | X18: 55.4 | Y18: 0.804 | Z18: 0.659 | AA18: 1.12 | AB18: 1.5 | AC18: 0.927 | AD18: 2.08 | AE18: 0.84 | AF18: 0.883 | AG18: 0.671 | AH18: 5.81 | AI18: 0.852 | AJ18: 1.52 | AK18: 0.613 | AL18: 2.44 | AM18: 0.762 | AN18: 0.901 | AO18: 0.649 | AP18: 0.551 | AQ18: 0.659 | AR18: 2.16 | AS18: 0.915 | AT18: 1.86 | AU18: 0.71 | AV18: 4.68 | AW18: 0.749 | AX18: 0.876 | AY18: 0.58 | AZ18: 0.878 | BA18: 1.05 | BB18: 0.853 | BC18: 0.834 | BD18: 2.81 | BE18: 72.2 | BF18: 7.69 | BG18: 19 | BH18: 8.08 | BI18: 2.47 | BJ18: 2.46 | BK18: 2.83 | BL18: 0.865 | BM18: 1.41 | BN18: 1.77 | BO18: 1.34 | BP18: 0.999 | BQ18: 0.784 | BR18: 0.854 | BS18: 0.91 | BT18: 0.859 | BU18: 0.518 | BV18: 0.577 | BW18: 1.1 | BX18: 0.78 | BY18: 0.758 | BZ18: 1.86 | CA18: 1.16 | CB18: 0.819 | CC18: 0.599 | CD18: 0.475 | CE18: 1.23 | CF18: 0.916 | CG18: 0.871 | CH18: 0.889 | CI18: 0.834 | CJ18: 30.9 | CK18: 3.23 | CL18: 1.94 | CM18: 7.37 | CN18: 0.515 | CO18: 2.06 | CP18: 0.723 | CQ18: 0.975 | CR18: 3.09 | CS18: 0.685 | CT18: 0.562 | CU18: 1.41 | CV18: 2.12 | CW18: 0.611 | CX18: 1.82 | CY18: 2.58 | CZ18: 0.819 | DA18: 0.899 | DB18: 0.813 | DC18: 0.868 | DD18: 0.989 | DE18: 0.827 | DF18: 1.01 | DG18: 0.907 | DH18: 0.509 | DI18: 0.862 | DJ18: 1.36 | DK18: 1.98 | DL18: 0.907 | DM18: 3.22 | DN18: 1.14 | DO18: 6.61 | DP18: 6.13 | DQ18: 0.521 | DR18: 1.41 | DS18: 29.5 | DT18: 8.29 | DU18: 2.29 | DV18: 0.624 | DW18: 0.831 | DX18: 0.501 | DY18: 0.547 | DZ18: 0.511
A19: Aminoacids | B19: Ser | C19: 0 | D19: 0 | E19: 0 | F19: 0 | G19: 0 | H19: 0 | I19: 0 | J19: 0 | K19: 0 | L19: 0.0 | N19: 22.3 | O19: 47.3 | P19: 26.2 | Q19: 65.9 | R19: 23.4 | S19: 44.3 | T19: 23.3 | U19: 36.6 | V19: 39.3 | W19: 58.5 | X19: 21.6 | Y19: 56.6 | Z19: 101 | AA19: 37.2 | AB19: 52.3 | AC19: 43 | AD19: 27.5 | AE19: 55.1 | AF19: 44.7 | AG19: 65.3 | AH19: 18.8 | AI19: 23.9 | AJ19: 47.7 | AK19: 32.4 | AL19: 41.4 | AM19: 71.3 | AN19: 79.6 | AO19: 37.6 | AP19: 31.1 | AQ19: 58.4 | AR19: 34.2 | AS19: 42 | AT19: 42.7 | AU19: 70.7 | AV19: 47.5 | AW19: 27.3 | AX19: 63.7 | AY19: 33.7 | AZ19: 34.1 | BA19: 60.9 | BB19: 77 | BC19: 40.7 | BD19: 91.8 | BE19: 106 | BF19: 65.4 | BG19: 48.9 | BH19: 41.7 | BI19: 95.9 | BJ19: 87.4 | BK19: 36.5 | BL19: 24.2 | BM19: 34.3 | BN19: 25.1 | BO19: 24.1 | BP19: 36.7 | BQ19: 25 | BR19: 27.4 | BS19: 22.9 | BT19: 30.8 | BU19: 31.2 | BV19: 46.2 | BW19: 33.3 | BX19: 26.2 | BY19: 27.6 | BZ19: 31.7 | CA19: 23.5 | CB19: 83.8 | CC19: 73 | CD19: 22.8 | CE19: 40.5 | CF19: 44.4 | CG19: 33.5 | CH19: 45.4 | CI19: 35 | CJ19: 31.6 | CK19: 48.7 | CL19: 28.3 | CM19: 40.2 | CN19: 70.2 | CO19: 34.3 | CP19: 35.5 | CQ19: 41 | CR19: 31.4 | CS19: 74.3 | CT19: 19.6 | CU19: 35.5 | CV19: 39.1 | CW19: 67.2 | CX19: 80.4 | CY19: 68.8 | CZ19: 32.3 | DA19: 106 | DB19: 24.4 | DC19: 37.1 | DD19: 29.6 | DE19: 27.6 | DF19: 29.3 | DG19: 31.6 | DH19: 33.7 | DI19: 35.9 | DJ19: 37.9 | DK19: 37 | DL19: 29.1 | DM19: 36.4 | DN19: 49.8 | DO19: 42.5 | DP19: 24.3 | DQ19: 23.2 | DR19: 41.2 | DS19: 41.2 | DT19: 35.3 | DU19: 37.8 | DV19: 19.1 | DW19: 22.6 | DX19: 16.8 | DY19: 18.4 | DZ19: 14.7
A20: Aminoacids | B20: Thr | C20: 0 | D20: 0 | E20: 0 | F20: 0 | G20: 0 | H20: 0 | I20: 0 | J20: 0 | K20: 0 | L20: 0.0 | N20: 20.3 | O20: 54.7 | P20: 47.3 | Q20: 79.4 | R20: 53.5 | S20: 72.1 | T20: 24.5 | U20: 20.5 | V20: 24.9 | W20: 80.3 | X20: 17.8 | Y20: 19 | Z20: 18.8 | AA20: 18.1 | AB20: 14.3 | AC20: 30.6 | AD20: 21.7 | AE20: 18 | AF20: 13.1 | AG20: 24 | AH20: 15.3 | AI20: 10.4 | AJ20: 30.3 | AK20: 15.4 | AL20: 20.5 | AM20: 20.7 | AN20: 21.7 | AO20: 15.5 | AP20: 18.4 | AQ20: 12.5 | AR20: 14.4 | AS20: 20.1 | AT20: 16.4 | AU20: 21.4 | AV20: 13.6 | AW20: 13.6 | AX20: 16 | AY20: 23.4 | AZ20: 14.5 | BA20: 17.7 | BB20: 25.8 | BC20: 16.7 | BD20: 53.2 | BE20: 111 | BF20: 26 | BG20: 72.4 | BH20: 17.1 | BI20: 31 | BJ20: 23.5 | BK20: 14.7 | BL20: 19.4 | BM20: 21.8 | BN20: 21.3 | BO20: 19.2 | BP20: 38.6 | BQ20: 11.5 | BR20: 13.5 | BS20: 21.9 | BT20: 23.7 | BU20: 19 | BV20: 25.5 | BW20: 50.3 | BX20: 41 | BY20: 41.9 | BZ20: 46.5 | CA20: 33.7 | CB20: 26.6 | CC20: 26.2 | CD20: 20.7 | CE20: 28.4 | CF20: 59.6 | CG20: 39 | CH20: 29.8 | CI20: 24 | CJ20: 45.3 | CK20: 68.3 | CL20: 31.3 | CM20: 44.3 | CN20: 25.7 | CO20: 34.5 | CP20: 32.6 | CQ20: 45.6 | CR20: 34.6 | CS20: 36.2 | CT20: 23 | CU20: 48 | CV20: 35.3 | CW20: 27.4 | CX20: 31.5 | CY20: 46.9 | CZ20: 32 | DA20: 33.9 | DB20: 54.8 | DC20: 43.5 | DD20: 47.4 | DE20: 30.9 | DF20: 29.3 | DG20: 29.4 | DH20: 28.4 | DI20: 29.7 | DJ20: 35.3 | DK20: 42.3 | DL20: 21.5 | DM20: 59.5 | DN20: 39.7 | DO20: 51.5 | DP20: 31.9 | DQ20: 21.9 | DR20: 38.9 | DS20: 69 | DT20: 43.8 | DU20: 29.6 | DV20: 32.4 | DW20: 38.5 | DX20: 19.2 | DY20: 26.4 | DZ20: 22.8
A21: Aminoacids | B21: Trp | C21: 0 | D21: 0 | E21: 0 | F21: 0 | G21: 0 | H21: 0 | I21: 0 | J21: 0 | K21: 0 | L21: 0.0 | N21: 3.74 | O21: 4.15 | P21: 5.19 | Q21: 10.2 | R21: 6.24 | S21: 3.06 | T21: 1.82 | U21: 1.44 | V21: 4.34 | W21: 7.26 | X21: 0.867 | Y21: 3.03 | Z21: 6.36 | AA21: 3.4 | AB21: 4.35 | AC21: 4.44 | AD21: 2.96 | AE21: 5.26 | AF21: 3.09 | AG21: 3.45 | AH21: 2.59 | AI21: 2.48 | AJ21: 3.45 | AK21: 1.76 | AL21: 2.07 | AM21: 3.22 | AN21: 4.7 | AO21: 3.14 | AP21: 4 | AQ21: 2.13 | AR21: 2.05 | AS21: 3.56 | AT21: 3.3 | AU21: 4.7 | AV21: 0.895 | AW21: 1.87 | AX21: 3.19 | AY21: 0.735 | AZ21: 2.7 | BA21: 4.5 | BB21: 7.59 | BC21: 5.12 | BD21: 7.44 | BE21: 12.4 | BF21: 5.63 | BG21: 5.13 | BH21: 3.63 | BI21: 6.27 | BJ21: 8.23 | BK21: 3.14 | BL21: 1.28 | BM21: 1.61 | BN21: 1.63 | BO21: 1.96 | BP21: 2.63 | BQ21: 1.33 | BR21: 1.54 | BS21: 1.65 | BT21: 2.02 | BU21: 2.64 | BV21: 6.96 | BW21: 3.1 | BX21: 1.97 | BY21: 2.78 | BZ21: 4.91 | CA21: 2.44 | CB21: 4.47 | CC21: 4.95 | CD21: 1.8 | CE21: 2.51 | CF21: 4.61 | CG21: 1.99 | CH21: 2.63 | CI21: 2.33 | CJ21: 2.16 | CK21: 3.39 | CL21: 2.42 | CM21: 2.63 | CN21: 4.42 | CO21: 3.66 | CP21: 3.48 | CQ21: 2.89 | CR21: 2.07 | CS21: 4.04 | CT21: 0.894 | CU21: 3.33 | CV21: 2.96 | CW21: 6.05 | CX21: 4.64 | CY21: 6.81 | CZ21: 2.66 | DA21: 4.37 | DB21: 1.67 | DC21: 3.56 | DD21: 3.12 | DE21: 2.74 | DF21: 1.81 | DG21: 3.62 | DH21: 1.99 | DI21: 2.76 | DJ21: 2.37 | DK21: 2.31 | DL21: 1.59 | DM21: 5.6 | DN21: 3.82 | DO21: 3.6 | DP21: 1.09 | DQ21: 0.617 | DR21: 3.33 | DS21: 4.04 | DT21: 4.99 | DU21: 3.15 | DV21: 1.69 | DW21: 1.89 | DX21: 1.04 | DY21: 1.52 | DZ21: 1.06
A22: Aminoacids | B22: Tyr | C22: 0 | D22: 0 | E22: 0 | F22: 0 | G22: 0 | H22: 0 | I22: 0 | J22: 0 | K22: 0 | L22: 0.0 | N22: 18.9 | O22: 18.2 | P22: 21.8 | Q22: 37.1 | R22: 22.5 | S22: 12.2 | T22: 7.01 | U22: 7.21 | V22: 15.8 | W22: 26.9 | X22: 5.53 | Y22: 13.8 | Z22: 24.4 | AA22: 13.7 | AB22: 14.4 | AC22: 11.8 | AD22: 10.6 | AE22: 17.6 | AF22: 8.7 | AG22: 15.8 | AH22: 15.4 | AI22: 5.94 | AJ22: 14.5 | AK22: 6.71 | AL22: 9.71 | AM22: 11.2 | AN22: 18.8 | AO22: 8.5 | AP22: 12.2 | AQ22: 7.96 | AR22: 7.41 | AS22: 15.5 | AT22: 14.2 | AU22: 14 | AV22: 7.63 | AW22: 6.94 | AX22: 12.5 | AY22: 7.19 | AZ22: 9.81 | BA22: 15.4 | BB22: 33.4 | BC22: 15 | BD22: 29.4 | BE22: 45 | BF22: 22.9 | BG22: 50.5 | BH22: 11 | BI22: 25.4 | BJ22: 21.3 | BK22: 10.1 | BL22: 5.16 | BM22: 7.27 | BN22: 9.42 | BO22: 6.36 | BP22: 10.8 | BQ22: 5.67 | BR22: 7.18 | BS22: 7.27 | BT22: 6.68 | BU22: 8.23 | BV22: 21.2 | BW22: 17 | BX22: 12.5 | BY22: 12.6 | BZ22: 25.9 | CA22: 14.8 | CB22: 11.3 | CC22: 16.9 | CD22: 7.97 | CE22: 9.39 | CF22: 23.4 | CG22: 9.57 | CH22: 9.9 | CI22: 8.69 | CJ22: 14.3 | CK22: 15.5 | CL22: 15 | CM22: 15.5 | CN22: 12.3 | CO22: 14.3 | CP22: 12.9 | CQ22: 11.1 | CR22: 11.9 | CS22: 16.2 | CT22: 4.84 | CU22: 16.1 | CV22: 12.4 | CW22: 17.5 | CX22: 12 | CY22: 21.3 | CZ22: 9.76 | DA22: 16.8 | DB22: 8.81 | DC22: 15.5 | DD22: 14.5 | DE22: 11.1 | DF22: 9.32 | DG22: 11.6 | DH22: 8.38 | DI22: 11.9 | DJ22: 10.5 | DK22: 11.3 | DL22: 7.93 | DM22: 25.5 | DN22: 15.8 | DO22: 14 | DP22: 9.53 | DQ22: 5.49 | DR22: 15.5 | DS22: 36.1 | DT22: 28.7 | DU22: 10.2 | DV22: 8.72 | DW22: 9.82 | DX22: 9.2 | DY22: 8.2 | DZ22: 6.47
A23: Aminoacids | B23: Val | C23: 0 | D23: 0 | E23: 0 | F23: 0 | G23: 0 | H23: 0 | I23: 0 | J23: 0 | K23: 0 | L23: 0.0 | N23: 32.3 | O23: 57 | P23: 33 | Q23: 93.3 | R23: 89.7 | S23: 35.8 | T23: 15.4 | U23: 13.8 | V23: 19.6 | W23: 61.3 | X23: 13 | Y23: 9.77 | Z23: 11.3 | AA23: 6.54 | AB23: 10.8 | AC23: 12.1 | AD23: 11 | AE23: 10.3 | AF23: 9.47 | AG23: 9.43 | AH23: 26.6 | AI23: 7.64 | AJ23: 12.6 | AK23: 4.64 | AL23: 12 | AM23: 9.17 | AN23: 11.3 | AO23: 9.78 | AP23: 12.9 | AQ23: 7.36 | AR23: 7.91 | AS23: 14.6 | AT23: 20.6 | AU23: 11.4 | AV23: 13.1 | AW23: 4.9 | AX23: 10 | AY23: 4.78 | AZ23: 5.59 | BA23: 10.8 | BB23: 10.9 | BC23: 10.2 | BD23: 19.9 | BE23: 79.5 | BF23: 19.2 | BG23: 36.8 | BH23: 11.7 | BI23: 12.4 | BJ23: 22.8 | BK23: 15.8 | BL23: 9.44 | BM23: 14.5 | BN23: 9.7 | BO23: 12 | BP23: 12.8 | BQ23: 11.1 | BR23: 12.7 | BS23: 8.34 | BT23: 9.48 | BU23: 12.5 | BV23: 21.1 | BW23: 21 | BX23: 19 | BY23: 19.9 | BZ23: 32.5 | CA23: 22.2 | CB23: 11.8 | CC23: 9.47 | CD23: 11.8 | CE23: 20.6 | CF23: 31.4 | CG23: 27.4 | CH23: 18.5 | CI23: 12.3 | CJ23: 35.3 | CK23: 32.3 | CL23: 20.7 | CM23: 38.2 | CN23: 12.4 | CO23: 15 | CP23: 21.8 | CQ23: 16.8 | CR23: 22.2 | CS23: 13.5 | CT23: 8.39 | CU23: 31.2 | CV23: 21.3 | CW23: 13.8 | CX23: 16 | CY23: 16.4 | CZ23: 13.7 | DA23: 18.7 | DB23: 14.4 | DC23: 17.5 | DD23: 26.5 | DE23: 18.1 | DF23: 14.9 | DG23: 19.4 | DH23: 12.6 | DI23: 17.4 | DJ23: 19.4 | DK23: 16.1 | DL23: 20.6 | DM23: 24.8 | DN23: 21 | DO23: 41.3 | DP23: 13.2 | DQ23: 10.9 | DR23: 32.7 | DS23: 55.7 | DT23: 54.4 | DU23: 19.5 | DV23: 18.3 | DW23: 16 | DX23: 14.6 | DY23: 9.96 | DZ23: 19.3
A24: Aminoacids | B24: xLeu | C24: 0 | D24: 0 | E24: 0 | F24: 0 | G24: 0 | H24: 0 | I24: 0 | J24: 0 | K24: 0 | L24: 0.0 | N24: 22.7 | O24: 44.2 | P24: 30.6 | Q24: 64.1 | R24: 49.4 | S24: 13.5 | T24: 11.8 | U24: 10.6 | V24: 15.2 | W24: 44.9 | X24: 4.1 | Y24: 9.29 | Z24: 13.8 | AA24: 7.78 | AB24: 10.5 | AC24: 9.9 | AD24: 9.64 | AE24: 8.74 | AF24: 8.48 | AG24: 9.06 | AH24: 18.6 | AI24: 5.41 | AJ24: 10.3 | AK24: 4.5 | AL24: 10.3 | AM24: 8.25 | AN24: 9.86 | AO24: 8.94 | AP24: 15.4 | AQ24: 6.63 | AR24: 6.36 | AS24: 11.1 | AT24: 17 | AU24: 10.9 | AV24: 8.2 | AW24: 4.79 | AX24: 9.37 | AY24: 6.42 | AZ24: 4.07 | BA24: 10 | BB24: 10.9 | BC24: 8.28 | BD24: 17.8 | BE24: 56.9 | BF24: 18.4 | BG24: 31.8 | BH24: 11.4 | BI24: 13 | BJ24: 18.2 | BK24: 12.2 | BL24: 9.65 | BM24: 13 | BN24: 8.37 | BO24: 11.2 | BP24: 11.1 | BQ24: 8.49 | BR24: 11.1 | BS24: 9.33 | BT24: 8.65 | BU24: 13 | BV24: 20.5 | BW24: 20.4 | BX24: 18.1 | BY24: 23.1 | BZ24: 35.4 | CA24: 25.2 | CB24: 13.1 | CC24: 7.79 | CD24: 13.6 | CE24: 22.2 | CF24: 32.3 | CG24: 25.1 | CH24: 19.6 | CI24: 13.9 | CJ24: 27.7 | CK24: 28.8 | CL24: 17.4 | CM24: 33.2 | CN24: 12 | CO24: 19.4 | CP24: 22.4 | CQ24: 15.2 | CR24: 20.9 | CS24: 11.8 | CT24: 8.3 | CU24: 30.8 | CV24: 19.7 | CW24: 12.8 | CX24: 13.4 | CY24: 15.3 | CZ24: 15.6 | DA24: 17.1 | DB24: 11.5 | DC24: 18.5 | DD24: 26.9 | DE24: 14.8 | DF24: 14.1 | DG24: 15.2 | DH24: 11.7 | DI24: 14.4 | DJ24: 17.7 | DK24: 15.6 | DL24: 20.7 | DM24: 21.6 | DN24: 20.3 | DO24: 33.7 | DP24: 4.29 | DQ24: 11.9 | DR24: 22.7 | DS24: 74.5 | DT24: 51.7 | DU24: 18.8 | DV24: 21.9 | DW24: 15.2 | DX24: 13 | DY24: 12.3 | DZ24: 17.8
A25: Biogenic Amines | B25: Ac-Orn | C25: 11 | D25: 38 | E25: 10 | F25: 14 | G25: 10 | H25: 10 | I25: 10 | J25: 12 | K25: 115 | L25: 98.3 | N25: 0 | O25: 0 | P25: 0 | Q25: 0 | R25: 0 | S25: 0 | T25: 0 | U25: 0 | V25: 0 | W25: 0 | X25: 0 | Y25: 0 | Z25: 0 | AA25: 0 | AB25: 0 | AC25: 0 | AD25: 0 | AE25: 0 | AF25: 0 | AG25: 0 | AH25: 0 | AI25: 0 | AJ25: 0 | AK25: 0 | AL25: 0 | AM25: 0 | AN25: 0 | AO25: 0 | AP25: 0 | AQ25: 0 | AR25: 0 | AS25: 0 | AT25: 0 | AU25: 0 | AV25: 0 | AW25: 0 | AX25: 0 | AY25: 0 | AZ25: 0 | BA25: 0 | BB25: 0 | BC25: 0 | BD25: 0 | BE25: 0 | BF25: 0 | BG25: 0 | BH25: 0 | BI25: 0 | BJ25: 0 | BK25: 0 | BL25: 0 | BM25: 0 | BN25: 0 | BO25: 0 | BP25: 0 | BQ25: 0 | BR25: 0 | BS25: 0 | BT25: 0 | BU25: 0 | BV25: 0 | BW25: 0 | BX25: 0 | BY25: 0 | BZ25: 0 | CA25: 0 | CB25: 0 | CC25: 0 | CD25: 0 | CE25: 0 | CF25: 0.194 | CG25: 0 | CH25: 0 | CI25: 0 | CJ25: 0 | CK25: 0 | CL25: 0 | CM25: 0 | CN25: 0 | CO25: 0 | CP25: 0 | CQ25: 0 | CR25: 0 | CS25: 0 | CT25: 0 | CU25: 0 | CV25: 0 | CW25: 0 | CX25: 0 | CY25: 0 | CZ25: 0 | DA25: 0 | DB25: 0 | DC25: 0 | DD25: 0 | DE25: 0 | DF25: 0 | DG25: 0 | DH25: 0 | DI25: 0 | DJ25: 0 | DK25: 0 | DL25: 0 | DM25: 0 | DN25: 0 | DO25: 0 | DP25: 0 | DQ25: 0 | DR25: 0 | DS25: 0 | DT25: 0 | DU25: 0 | DV25: 0 | DW25: 0 | DX25: 0 | DY25: 0.214 | DZ25: 0
A26: Biogenic Amines | B26: ADMA | C26: 0 | D26: 6 | E26: 3 | F26: 0 | G26: 2 | H26: 0 | I26: 0 | J26: 1 | K26: 12 | L26: 10.3 | N26: 0.178 | O26: 0.202 | P26: 0.195 | Q26: 0.668 | R26: 0.607 | S26: 0.221 | T26: 0.143 | U26: 0.12 | V26: 0.176 | W26: 0.251 | X26: 0.296 | Y26: 0 | Z26: 0.095 | AA26: 0.103 | AB26: 0.116 | AC26: 0.12 | AD26: 0.108 | AE26: 0.099 | AF26: 0.106 | AG26: 0.099 | AH26: 0.148 | AI26: 0.078 | AJ26: 0.115 | AK26: 0.078 | AL26: 0.141 | AM26: 0.089 | AN26: 0 | AO26: 0 | AP26: 0.083 | AQ26: 0.09 | AR26: 0.145 | AS26: 0.117 | AT26: 0.106 | AU26: 0.093 | AV26: 0.177 | AW26: 0 | AX26: 0.086 | AY26: 0.087 | AZ26: 0.08 | BA26: 0.077 | BB26: 0.073 | BC26: 0 | BD26: 0.111 | BE26: 0.632 | BF26: 0.193 | BG26: 0.221 | BH26: 0.171 | BI26: 0.048 | BJ26: 0 | BK26: 0.136 | BL26: 0.1 | BM26: 0.094 | BN26: 0 | BO26: 0.083 | BP26: 0 | BQ26: 0.082 | BR26: 0 | BS26: 0.087 | BT26: 0.086 | BU26: 0.074 | BV26: 0.074 | BW26: 0.099 | BX26: 0.079 | BY26: 0.107 | BZ26: 0.128 | CA26: 0.1 | CB26: 0.089 | CC26: 0.038 | CD26: 0.058 | CE26: 0.084 | CF26: 0.114 | CG26: 0.1 | CH26: 0.07 | CI26: 0.058 | CJ26: 0.165 | CK26: 0.149 | CL26: 0.139 | CM26: 0 | CN26: 0.063 | CO26: 0.082 | CP26: 0.08 | CQ26: 0 | CR26: 0.072 | CS26: 0.048 | CT26: 0.044 | CU26: 0.119 | CV26: 0.093 | CW26: 0.063 | CX26: 0.07 | CY26: 0.059 | CZ26: 0.093 | DA26: 0.162 | DB26: 0.064 | DC26: 0.086 | DD26: 0.094 | DE26: 0.093 | DF26: 0.094 | DG26: 0.074 | DH26: 0.061 | DI26: 0.079 | DJ26: 0.102 | DK26: 0.132 | DL26: 0.073 | DM26: 0.098 | DN26: 0.101 | DO26: 0.178 | DP26: 0 | DQ26: 0.091 | DR26: 0.088 | DS26: 0.377 | DT26: 0.277 | DU26: 0.112 | DV26: 0.081 | DW26: 0.065 | DX26: 0.074 | DY26: 0.074 | DZ26: 0.069
A27: Biogenic Amines | B27: alpha-AAA | C27: 10 | D27: 9 | E27: 6 | F27: 14 | G27: 10 | H27: 10 | I27: 10 | J27: 13 | K27: 82 | L27: 70.1 | N27: 2.36 | O27: 0 | P27: 0 | Q27: 0 | R27: 0 | S27: 0 | T27: 0 | U27: 0 | V27: 0 | W27: 0 | X27: 0 | Y27: 3.89 | Z27: 7.04 | AA27: 4.03 | AB27: 4.71 | AC27: 3.96 | AD27: 3 | AE27: 3.74 | AF27: 4.57 | AG27: 4.43 | AH27: 2.34 | AI27: 3.4 | AJ27: 3.14 | AK27: 3.02 | AL27: 3.57 | AM27: 4.4 | AN27: 4.62 | AO27: 3.04 | AP27: 6.87 | AQ27: 4.15 | AR27: 3.08 | AS27: 4.07 | AT27: 2.96 | AU27: 4.43 | AV27: 3.44 | AW27: 3.34 | AX27: 3.96 | AY27: 3.61 | AZ27: 3 | BA27: 0.793 | BB27: 0 | BC27: 0 | BD27: 0 | BE27: 0 | BF27: 0 | BG27: 0 | BH27: 0 | BI27: 0 | BJ27: 0 | BK27: 2.6 | BL27: 0 | BM27: 0 | BN27: 0 | BO27: 0 | BP27: 2.52 | BQ27: 2.42 | BR27: 0 | BS27: 2.41 | BT27: 0 | BU27: 0 | BV27: 5.78 | BW27: 0 | BX27: 0 | BY27: 0 | BZ27: 0 | CA27: 0 | CB27: 0 | CC27: 0 | CD27: 0 | CE27: 0 | CF27: 0 | CG27: 0 | CH27: 0 | CI27: 0 | CJ27: 0 | CK27: 0 | CL27: 0 | CM27: 0 | CN27: 0 | CO27: 0 | CP27: 0 | CQ27: 0 | CR27: 0 | CS27: 0 | CT27: 0 | CU27: 0 | CV27: 0 | CW27: 0 | CX27: 0 | CY27: 0 | CZ27: 0 | DA27: 0 | DB27: 0 | DC27: 0 | DD27: 0 | DE27: 0 | DF27: 0 | DG27: 0 | DH27: 0 | DI27: 0 | DJ27: 0 | DK27: 0 | DL27: 0 | DM27: 0 | DN27: 0 | DO27: 0 | DP27: 0 | DQ27: 0 | DR27: 0 | DS27: 0 | DT27: 0 | DU27: 0 | DV27: 0 | DW27: 0 | DX27: 0 | DY27: 0 | DZ27: 0
A28: Biogenic Amines | B28: c4-OH-Pro | C28: 10 | D28: 37 | E28: 9 | F28: 15 | G28: 10 | H28: 10 | I28: 10 | J28: 12 | K28: 113 | L28: 96.6 | N28: 0 | O28: 0.122 | P28: 0 | Q28: 0 | R28: 0 | S28: 0 | T28: 0 | U28: 0 | V28: 0 | W28: 0 | X28: 0 | Y28: 0 | Z28: 0 | AA28: 0 | AB28: 0 | AC28: 0 | AD28: 0 | AE28: 0 | AF28: 0 | AG28: 0 | AH28: 0 | AI28: 0 | AJ28: 0 | AK28: 0 | AL28: 0 | AM28: 0 | AN28: 0 | AO28: 0 | AP28: 0 | AQ28: 0 | AR28: 0 | AS28: 0 | AT28: 0 | AU28: 0 | AV28: 0 | AW28: 0 | AX28: 0 | AY28: 0 | AZ28: 0 | BA28: 0 | BB28: 0 | BC28: 0 | BD28: 0 | BE28: 0 | BF28: 0 | BG28: 0 | BH28: 0 | BI28: 0.118 | BJ28: 0 | BK28: 0 | BL28: 0 | BM28: 0.172 | BN28: 0 | BO28: 0 | BP28: 0 | BQ28: 0 | BR28: 0 | BS28: 0 | BT28: 0 | BU28: 0 | BV28: 0 | BW28: 0 | BX28: 0 | BY28: 0 | BZ28: 0 | CA28: 0 | CB28: 0 | CC28: 0 | CD28: 0 | CE28: 0 | CF28: 0 | CG28: 0 | CH28: 0 | CI28: 0 | CJ28: 0 | CK28: 0 | CL28: 0 | CM28: 0 | CN28: 0 | CO28: 0 | CP28: 0 | CQ28: 0 | CR28: 0 | CS28: 0 | CT28: 0 | CU28: 0 | CV28: 0 | CW28: 0 | CX28: 0 | CY28: 0 | CZ28: 0 | DA28: 0 | DB28: 0 | DC28: 0 | DD28: 0 | DE28: 0 | DF28: 0 | DG28: 0 | DH28: 0 | DI28: 0 | DJ28: 0 | DK28: 0 | DL28: 0 | DM28: 0 | DN28: 0 | DO28: 0 | DP28: 0 | DQ28: 0 | DR28: 0 | DS28: 0 | DT28: 0 | DU28: 0 | DV28: 0 | DW28: 0 | DX28: 0.116 | DY28: 0 | DZ28: 0
A29: Biogenic Amines | B29: Carnosine | C29: 11 | D29: 38 | E29: 10 | F29: 15 | G29: 10 | H29: 9 | I29: 10 | J29: 13 | K29: 116 | L29: 99.1 | N29: 0 | O29: 0 | P29: 0 | Q29: 0 | R29: 0 | S29: 0 | T29: 0 | U29: 0 | V29: 0 | W29: 0 | X29: 0 | Y29: 0 | Z29: 0 | AA29: 0 | AB29: 0 | AC29: 0 | AD29: 0 | AE29: 0 | AF29: 0 | AG29: 0 | AH29: 0 | AI29: 0 | AJ29: 0 | AK29: 0 | AL29: 0 | AM29: 0 | AN29: 0 | AO29: 0 | AP29: 0 | AQ29: 0 | AR29: 0 | AS29: 0 | AT29: 0 | AU29: 0 | AV29: 0 | AW29: 0 | AX29: 0 | AY29: 0 | AZ29: 0 | BA29: 0 | BB29: 0 | BC29: 0 | BD29: 0 | BE29: 0 | BF29: 0 | BG29: 0 | BH29: 0 | BI29: 0 | BJ29: 0 | BK29: 0 | BL29: 0 | BM29: 0 | BN29: 0 | BO29: 0 | BP29: 0 | BQ29: 0 | BR29: 0 | BS29: 0 | BT29: 0 | BU29: 0 | BV29: 0 | BW29: 0 | BX29: 0 | BY29: 0 | BZ29: 0 | CA29: 0 | CB29: 0 | CC29: 0 | CD29: 0 | CE29: 0 | CF29: 0 | CG29: 0 | CH29: 0 | CI29: 0 | CJ29: 0 | CK29: 0 | CL29: 0 | CM29: 0 | CN29: 0 | CO29: 0 | CP29: 0 | CQ29: 0 | CR29: 0 | CS29: 0 | CT29: 0 | CU29: 0 | CV29: 0 | CW29: 0 | CX29: 0 | CY29: 0 | CZ29: 0 | DA29: 0.064 | DB29: 0 | DC29: 0 | DD29: 0 | DE29: 0 | DF29: 0 | DG29: 0 | DH29: 0 | DI29: 0 | DJ29: 0 | DK29: 0 | DL29: 0 | DM29: 0 | DN29: 0 | DO29: 0 | DP29: 0 | DQ29: 0 | DR29: 0 | DS29: 0 | DT29: 0 | DU29: 0 | DV29: 0 | DW29: 0 | DX29: 0 | DY29: 0 | DZ29: 0
A30: Biogenic Amines | B30: Creatinine | C30: 0 | D30: 0 | E30: 0 | F30: 0 | G30: 0 | H30: 0 | I30: 0 | J30: 0 | K30: 0 | L30: 0.0 | N30: 78.9 | O30: 68.8 | P30: 44.5 | Q30: 47.3 | R30: 46.6 | S30: 70.7 | T30: 76.7 | U30: 71 | V30: 88.4 | W30: 74.6 | X30: 80.2 | Y30: 68.1 | Z30: 38 | AA30: 60.1 | AB30: 43.4 | AC30: 78.2 | AD30: 53.5 | AE30: 78.7 | AF30: 89.3 | AG30: 57.8 | AH30: 68.4 | AI30: 43.4 | AJ30: 51.2 | AK30: 25.8 | AL30: 57.3 | AM30: 34.9 | AN30: 47.2 | AO30: 54.1 | AP30: 33.7 | AQ30: 46.7 | AR30: 55.5 | AS30: 55.8 | AT30: 56.9 | AU30: 50.9 | AV30: 49.4 | AW30: 34.1 | AX30: 37.2 | AY30: 32.4 | AZ30: 36.3 | BA30: 45.5 | BB30: 68 | BC30: 82.6 | BD30: 78.8 | BE30: 60.5 | BF30: 87.2 | BG30: 125 | BH30: 76 | BI30: 34 | BJ30: 68.8 | BK30: 58.1 | BL30: 81 | BM30: 79.2 | BN30: 82.3 | BO30: 72.9 | BP30: 63.9 | BQ30: 65.5 | BR30: 88.8 | BS30: 63.8 | BT30: 105 | BU30: 45.5 | BV30: 41.7 | BW30: 54.3 | BX30: 50.9 | BY30: 49.9 | BZ30: 67 | CA30: 67.2 | CB30: 66.9 | CC30: 80.1 | CD30: 40.8 | CE30: 87.2 | CF30: 64.2 | CG30: 55.8 | CH30: 59.7 | CI30: 77.9 | CJ30: 112 | CK30: 52.7 | CL30: 95.8 | CM30: 165 | CN30: 55.8 | CO30: 60.8 | CP30: 71.9 | CQ30: 68.8 | CR30: 90.3 | CS30: 87.3 | CT30: 32.3 | CU30: 116 | CV30: 64.3 | CW30: 45.7 | CX30: 47.7 | CY30: 64.4 | CZ30: 55.1 | DA30: 34.8 | DB30: 82.7 | DC30: 58.7 | DD30: 60.9 | DE30: 41.6 | DF30: 63.4 | DG30: 58.3 | DH30: 66.6 | DI30: 43.3 | DJ30: 41.2 | DK30: 40.9 | DL30: 52.7 | DM30: 79.2 | DN30: 170 | DO30: 57.5 | DP30: 57.4 | DQ30: 53.7 | DR30: 55.5 | DS30: 84.7 | DT30: 71 | DU30: 67.6 | DV30: 50.9 | DW30: 52.4 | DX30: 52.6 | DY30: 61 | DZ30: 38.6
A31: Biogenic Amines | B31: DOPA | C31: 9 | D31: 36 | E31: 10 | F31: 11 | G31: 10 | H31: 10 | I31: 9 | J31: 13 | K31: 108 | L31: 92.3 | N31: 0 | O31: 0 | P31: 0 | Q31: 0.36 | R31: 0 | S31: 0.23 | T31: 0 | U31: 0 | V31: 0 | W31: 0 | X31: 0 | Y31: 0 | Z31: 0 | AA31: 0 | AB31: 0 | AC31: 0 | AD31: 0 | AE31: 0 | AF31: 0 | AG31: 0 | AH31: 0 | AI31: 0 | AJ31: 0 | AK31: 0 | AL31: 0 | AM31: 0 | AN31: 0 | AO31: 0 | AP31: 0 | AQ31: 0 | AR31: 0 | AS31: 0 | AT31: 0 | AU31: 0 | AV31: 0 | AW31: 0 | AX31: 1.88 | AY31: 0 | AZ31: 0 | BA31: 0 | BB31: 0 | BC31: 0 | BD31: 0 | BE31: 0 | BF31: 0.119 | BG31: 0 | BH31: 0 | BI31: 0 | BJ31: 0 | BK31: 0 | BL31: 0 | BM31: 0 | BN31: 0 | BO31: 0 | BP31: 0 | BQ31: 0 | BR31: 0 | BS31: 0 | BT31: 0 | BU31: 0 | BV31: 0.124 | BW31: 0 | BX31: 0.146 | BY31: 0 | BZ31: 0 | CA31: 0.115 | CB31: 0 | CC31: 0 | CD31: 0.135 | CE31: 0 | CF31: 0 | CG31: 0 | CH31: 0 | CI31: 0 | CJ31: 0 | CK31: 0 | CL31: 0 | CM31: 0 | CN31: 0 | CO31: 0 | CP31: 0 | CQ31: 0 | CR31: 0 | CS31: 0 | CT31: 0 | CU31: 0 | CV31: 0 | CW31: 0 | CX31: 0 | CY31: 0 | CZ31: 0 | DA31: 0 | DB31: 0 | DC31: 0 | DD31: 0 | DE31: 0 | DF31: 0 | DG31: 0 | DH31: 0 | DI31: 0 | DJ31: 0 | DK31: 0 | DL31: 0 | DM31: 0.142 | DN31: 0 | DO31: 0 | DP31: 0 | DQ31: 0 | DR31: 0 | DS31: 0 | DT31: 0 | DU31: 0 | DV31: 0 | DW31: 0 | DX31: 0 | DY31: 0 | DZ31: 0
A32: Biogenic Amines | B32: Dopamine | C32: 11 | D32: 37 | E32: 9 | F32: 15 | G32: 10 | H32: 9 | I32: 10 | J32: 13 | K32: 114 | L32: 97.4 | N32: 0 | O32: 0 | P32: 0 | Q32: 0 | R32: 0 | S32: 0 | T32: 0 | U32: 0 | V32: 0 | W32: 0 | X32: 0 | Y32: 0 | Z32: 0 | AA32: 0.163 | AB32: 0 | AC32: 0 | AD32: 0 | AE32: 0 | AF32: 0 | AG32: 0 | AH32: 0 | AI32: 0 | AJ32: 0 | AK32: 0 | AL32: 0 | AM32: 0 | AN32: 0 | AO32: 0 | AP32: 0 | AQ32: 0 | AR32: 0 | AS32: 0 | AT32: 0 | AU32: 0 | AV32: 0 | AW32: 0 | AX32: 0 | AY32: 0 | AZ32: 0 | BA32: 0 | BB32: 0 | BC32: 0 | BD32: 0 | BE32: 0 | BF32: 0 | BG32: 0 | BH32: 0 | BI32: 0 | BJ32: 0 | BK32: 0 | BL32: 0 | BM32: 0.28 | BN32: 0 | BO32: 0 | BP32: 0 | BQ32: 0 | BR32: 0 | BS32: 0 | BT32: 0 | BU32: 0 | BV32: 0 | BW32: 0 | BX32: 0 | BY32: 0 | BZ32: 0 | CA32: 0 | CB32: 0 | CC32: 0 | CD32: 0 | CE32: 0 | CF32: 0 | CG32: 0 | CH32: 0 | CI32: 0 | CJ32: 0 | CK32: 0 | CL32: 0 | CM32: 0 | CN32: 0 | CO32: 0 | CP32: 0 | CQ32: 0 | CR32: 0 | CS32: 0 | CT32: 0 | CU32: 0 | CV32: 0.051 | CW32: 0 | CX32: 0 | CY32: 0 | CZ32: 0 | DA32: 0 | DB32: 0 | DC32: 0 | DD32: 0 | DE32: 0 | DF32: 0 | DG32: 0 | DH32: 0 | DI32: 0 | DJ32: 0 | DK32: 0 | DL32: 0 | DM32: 0 | DN32: 0 | DO32: 0 | DP32: 0 | DQ32: 0 | DR32: 0 | DS32: 0 | DT32: 0 | DU32: 0 | DV32: 0 | DW32: 0 | DX32: 0 | DY32: 0 | DZ32: 0
A33: Biogenic Amines | B33: Histamine | C33: 11 | D33: 34 | E33: 9 | F33: 15 | G33: 9 | H33: 8 | I33: 7 | J33: 11 | K33: 104 | L33: 88.9 | N33: 0 | O33: 0 | P33: 0 | Q33: 0 | R33: 0 | S33: 0 | T33: 0 | U33: 0 | V33: 0 | W33: 0 | X33: 0 | Y33: 0.135 | Z33: 0 | AA33: 0.132 | AB33: 0 | AC33: 0 | AD33: 0 | AE33: 0 | AF33: 0 | AG33: 0 | AH33: 0 | AI33: 0 | AJ33: 0 | AK33: 0 | AL33: 0 | AM33: 0 | AN33: 0 | AO33: 0 | AP33: 0 | AQ33: 0 | AR33: 0 | AS33: 0 | AT33: 0 | AU33: 0 | AV33: 0 | AW33: 0.131 | AX33: 0 | AY33: 0 | AZ33: 0 | BA33: 0 | BB33: 0 | BC33: 0 | BD33: 0 | BE33: 0 | BF33: 0 | BG33: 0 | BH33: 0 | BI33: 0.166 | BJ33: 0 | BK33: 0 | BL33: 0 | BM33: 0.344 | BN33: 0 | BO33: 0 | BP33: 0 | BQ33: 0 | BR33: 0 | BS33: 0 | BT33: 0 | BU33: 0 | BV33: 0 | BW33: 0 | BX33: 0 | BY33: 0 | BZ33: 0 | CA33: 0 | CB33: 0 | CC33: 0 | CD33: 0 | CE33: 0 | CF33: 0 | CG33: 0 | CH33: 0 | CI33: 0 | CJ33: 0 | CK33: 0.104 | CL33: 0 | CM33: 0 | CN33: 0 | CO33: 0 | CP33: 0 | CQ33: 0 | CR33: 0 | CS33: 0 | CT33: 0 | CU33: 0 | CV33: 0.113 | CW33: 0 | CX33: 0.12 | CY33: 0 | CZ33: 0 | DA33: 0 | DB33: 0 | DC33: 0 | DD33: 0 | DE33: 0.122 | DF33: 0.108 | DG33: 0 | DH33: 0 | DI33: 0 | DJ33: 0 | DK33: 0 | DL33: 0 | DM33: 0.105 | DN33: 0 | DO33: 0.112 | DP33: 0.104 | DQ33: 0 | DR33: 0 | DS33: 0 | DT33: 0 | DU33: 0 | DV33: 0 | DW33: 0 | DX33: 0 | DY33: 0 | DZ33: 0
A34: Biogenic Amines | B34: Kynurenine | C34: 0 | D34: 7 | E34: 7 | F34: 3 | G34: 0 | H34: 2 | I34: 1 | J34: 3 | K34: 23 | L34: 19.7 | N34: 0.803 | O34: 0.117 | P34: 0.157 | Q34: 0.209 | R34: 0.13 | S34: 0.205 | T34: 0.207 | U34: 0.05 | V34: 0.153 | W34: 0.324 | X34: 0.043 | Y34: 0 | Z34: 0 | AA34: 0.155 | AB34: 0.393 | AC34: 0.263 | AD34: 0 | AE34: 0.279 | AF34: 0.25 | AG34: 0.221 | AH34: 0.719 | AI34: 0.153 | AJ34: 0.294 | AK34: 0.153 | AL34: 0.663 | AM34: 0 | AN34: 0 | AO34: 0.163 | AP34: 0.234 | AQ34: 0.24 | AR34: 0.233 | AS34: 0.233 | AT34: 0 | AU34: 0.207 | AV34: 0.227 | AW34: 0.157 | AX34: 0 | AY34: 0.518 | AZ34: 0.209 | BA34: 0.127 | BB34: 0.068 | BC34: 0.211 | BD34: 0.173 | BE34: 0.227 | BF34: 0.052 | BG34: 0.852 | BH34: 0.04 | BI34: 0.059 | BJ34: 0.294 | BK34: 0.243 | BL34: 0 | BM34: 0 | BN34: 0.173 | BO34: 0 | BP34: 0 | BQ34: 0 | BR34: 0.183 | BS34: 0 | BT34: 0 | BU34: 0.032 | BV34: 0.16 | BW34: 0 | BX34: 0.031 | BY34: 0 | BZ34: 0.138 | CA34: 0.124 | CB34: 0.066 | CC34: 0.063 | CD34: 0 | CE34: 0.046 | CF34: 0.044 | CG34: 0.043 | CH34: 0.071 | CI34: 0.035 | CJ34: 0.209 | CK34: 0.16 | CL34: 0.274 | CM34: 0.668 | CN34: 0.061 | CO34: 0.102 | CP34: 0.032 | CQ34: 0.072 | CR34: 0.052 | CS34: 0.031 | CT34: 0 | CU34: 0.029 | CV34: 0.076 | CW34: 0.044 | CX34: 0.069 | CY34: 0.071 | CZ34: 0.032 | DA34: 0.082 | DB34: 0.128 | DC34: 0 | DD34: 0.029 | DE34: 0.149 | DF34: 0.036 | DG34: 0.034 | DH34: 0 | DI34: 0.031 | DJ34: 0.045 | DK34: 0.09 | DL34: 0.068 | DM34: 0.109 | DN34: 0.099 | DO34: 0.311 | DP34: 2.46 | DQ34: 0.091 | DR34: 0.14 | DS34: 4.61 | DT34: 1.06 | DU34: 0.226 | DV34: 0 | DW34: 0.028 | DX34: 0.028 | DY34: 0 | DZ34: 0
A35: Biogenic Amines | B35: Met-SO | C35: 1 | D35: 15 | E35: 1 | F35: 6 | G35: 1 | H35: 3 | I35: 0 | J35: 1 | K35: 28 | L35: 23.9 | N35: 0.681 | O35: 1.09 | P35: 1.91 | Q35: 1.13 | R35: 1.06 | S35: 0.291 | T35: 0.489 | U35: 0 | V35: 0.205 | W35: 0.55 | X35: 0.156 | Y35: 0 | Z35: 0 | AA35: 0.618 | AB35: 0 | AC35: 0 | AD35: 0 | AE35: 0.687 | AF35: 0.628 | AG35: 0 | AH35: 0.629 | AI35: 1.2 | AJ35: 1.58 | AK35: 1.29 | AL35: 0.667 | AM35: 0 | AN35: 0 | AO35: 0.767 | AP35: 0 | AQ35: 0 | AR35: 0 | AS35: 0.625 | AT35: 0.624 | AU35: 0.626 | AV35: 0.639 | AW35: 0.622 | AX35: 0 | AY35: 0.619 | AZ35: 0 | BA35: 0.159 | BB35: 0.248 | BC35: 0.179 | BD35: 0 | BE35: 0.229 | BF35: 0.164 | BG35: 3.77 | BH35: 0 | BI35: 0.159 | BJ35: 0.171 | BK35: 0 | BL35: 0.675 | BM35: 1.71 | BN35: 1.11 | BO35: 0.827 | BP35: 0.732 | BQ35: 0.671 | BR35: 0.699 | BS35: 0.983 | BT35: 0.767 | BU35: 0 | BV35: 0 | BW35: 0.157 | BX35: 1.17 | BY35: 1.8 | BZ35: 0.511 | CA35: 0.26 | CB35: 0 | CC35: 0 | CD35: 0.155 | CE35: 0.991 | CF35: 0.619 | CG35: 1.25 | CH35: 0 | CI35: 0 | CJ35: 1.45 | CK35: 2.91 | CL35: 1.26 | CM35: 1.15 | CN35: 0 | CO35: 0.326 | CP35: 0.304 | CQ35: 0.146 | CR35: 0.651 | CS35: 0.194 | CT35: 0.329 | CU35: 0.214 | CV35: 0.15 | CW35: 0 | CX35: 0 | CY35: 0.269 | CZ35: 0.145 | DA35: 0.149 | DB35: 0.208 | DC35: 0 | DD35: 1.45 | DE35: 1.86 | DF35: 1.92 | DG35: 2.41 | DH35: 1.55 | DI35: 1.11 | DJ35: 1.59 | DK35: 1.41 | DL35: 1.3 | DM35: 0.173 | DN35: 0.19 | DO35: 6.68 | DP35: 0.965 | DQ35: 0.153 | DR35: 0 | DS35: 10.9 | DT35: 3.64 | DU35: 0.155 | DV35: 2.33 | DW35: 1.76 | DX35: 2.18 | DY35: 2.22 | DZ35: 1.7
A36: Biogenic Amines | B36: Nitro-Tyr | C36: 9 | D36: 38 | E36: 10 | F36: 15 | G36: 10 | H36: 10 | I36: 10 | J36: 12 | K36: 114 | L36: 97.4 | N36: 0 | O36: 0 | P36: 0 | Q36: 0 | R36: 0.199 | S36: 0 | T36: 0 | U36: 0 | V36: 0 | W36: 0.098 | X36: 0 | Y36: 0 | Z36: 0 | AA36: 0 | AB36: 0 | AC36: 0 | AD36: 0 | AE36: 0 | AF36: 0 | AG36: 0 | AH36: 0 | AI36: 0 | AJ36: 0 | AK36: 0 | AL36: 0 | AM36: 0 | AN36: 0 | AO36: 0 | AP36: 0 | AQ36: 0 | AR36: 0 | AS36: 0 | AT36: 0 | AU36: 0 | AV36: 0 | AW36: 0 | AX36: 0 | AY36: 0 | AZ36: 0 | BA36: 0 | BB36: 0 | BC36: 0 | BD36: 0 | BE36: 0 | BF36: 0 | BG36: 0 | BH36: 0 | BI36: 0 | BJ36: 0 | BK36: 0 | BL36: 0 | BM36: 0 | BN36: 0 | BO36: 0 | BP36: 0 | BQ36: 0 | BR36: 0 | BS36: 0 | BT36: 0 | BU36: 0 | BV36: 0 | BW36: 0 | BX36: 0 | BY36: 0 | BZ36: 0 | CA36: 0 | CB36: 0 | CC36: 0 | CD36: 0 | CE36: 0 | CF36: 0 | CG36: 0 | CH36: 0 | CI36: 0 | CJ36: 0 | CK36: 0 | CL36: 0 | CM36: 0 | CN36: 0 | CO36: 0 | CP36: 0 | CQ36: 0 | CR36: 0 | CS36: 0 | CT36: 0 | CU36: 0 | CV36: 0 | CW36: 0 | CX36: 0 | CY36: 0 | CZ36: 0 | DA36: 0 | DB36: 0 | DC36: 0 | DD36: 0 | DE36: 0 | DF36: 0 | DG36: 0 | DH36: 0 | DI36: 0 | DJ36: 0 | DK36: 0 | DL36: 0 | DM36: 0 | DN36: 0 | DO36: 0 | DP36: 0 | DQ36: 0 | DR36: 0 | DS36: 0 | DT36: 0 | DU36: 0 | DV36: 0 | DW36: 0 | DX36: 0.394 | DY36: 0 | DZ36: 0
A37: Biogenic Amines | B37: PEA | C37: 11 | D37: 34 | E37: 10 | F37: 13 | G37: 10 | H37: 10 | I37: 10 | J37: 12 | K37: 110 | L37: 94.0 | N37: 0 | O37: 0 | P37: 0 | Q37: 0 | R37: 0 | S37: 0 | T37: 0 | U37: 0 | V37: 0 | W37: 0 | X37: 0 | Y37: 0 | Z37: 0 | AA37: 0 | AB37: 0 | AC37: 0 | AD37: 0 | AE37: 0 | AF37: 0 | AG37: 0 | AH37: 0 | AI37: 0 | AJ37: 0 | AK37: 0 | AL37: 0.008 | AM37: 0 | AN37: 0 | AO37: 0 | AP37: 0 | AQ37: 0 | AR37: 0 | AS37: 0 | AT37: 0 | AU37: 0 | AV37: 0 | AW37: 0 | AX37: 0 | AY37: 0 | AZ37: 0 | BA37: 0.028 | BB37: 0 | BC37: 0 | BD37: 0.001 | BE37: 0.032 | BF37: 0 | BG37: 0 | BH37: 0 | BI37: 0 | BJ37: 0 | BK37: 0 | BL37: 0 | BM37: 0 | BN37: 0 | BO37: 0 | BP37: 0 | BQ37: 0 | BR37: 0 | BS37: 0 | BT37: 0 | BU37: 0 | BV37: 0.026 | BW37: 0 | BX37: 0 | BY37: 0 | BZ37: 0 | CA37: 0 | CB37: 0 | CC37: 0 | CD37: 0 | CE37: 0 | CF37: 0 | CG37: 0.001 | CH37: 0 | CI37: 0 | CJ37: 0 | CK37: 0 | CL37: 0 | CM37: 0 | CN37: 0 | CO37: 0 | CP37: 0 | CQ37: 0 | CR37: 0 | CS37: 0 | CT37: 0 | CU37: 0 | CV37: 0 | CW37: 0 | CX37: 0 | CY37: 0 | CZ37: 0 | DA37: 0 | DB37: 0 | DC37: 0 | DD37: 0 | DE37: 0 | DF37: 0 | DG37: 0 | DH37: 0 | DI37: 0 | DJ37: 0 | DK37: 0 | DL37: 0 | DM37: 0 | DN37: 0 | DO37: 0 | DP37: 0 | DQ37: 0 | DR37: 0 | DS37: 0 | DT37: 0 | DU37: 0 | DV37: 0 | DW37: 0 | DX37: 0 | DY37: 0.013 | DZ37: 0
A38: Biogenic Amines | B38: Putrescine | C38: 2 | D38: 21 | E38: 9 | F38: 0 | G38: 0 | H38: 0 | I38: 0 | J38: 0 | K38: 32 | L38: 27.4 | N38: 0 | O38: 0.075 | P38: 0.071 | Q38: 0 | R38: 0.053 | S38: 0.084 | T38: 0.075 | U38: 0.108 | V38: 0.138 | W38: 0.235 | X38: 0.239 | Y38: 0 | Z38: 0 | AA38: 0 | AB38: 0 | AC38: 0 | AD38: 0 | AE38: 0 | AF38: 0 | AG38: 0 | AH38: 0 | AI38: 0 | AJ38: 0 | AK38: 0 | AL38: 0 | AM38: 0.012 | AN38: 0 | AO38: 0.038 | AP38: 0 | AQ38: 0 | AR38: 0.055 | AS38: 0.003 | AT38: 0 | AU38: 0 | AV38: 0.006 | AW38: 0.004 | AX38: 0 | AY38: 0 | AZ38: 0.036 | BA38: 0.049 | BB38: 0.067 | BC38: 0.122 | BD38: 0.078 | BE38: 0.088 | BF38: 0.152 | BG38: 0.223 | BH38: 0.226 | BI38: 0.07 | BJ38: 0.157 | BK38: 0 | BL38: 0.053 | BM38: 0 | BN38: 0 | BO38: 0 | BP38: 0 | BQ38: 0 | BR38: 0 | BS38: 0 | BT38: 0 | BU38: 0.038 | BV38: 0.066 | BW38: 0.095 | BX38: 0.145 | BY38: 0.174 | BZ38: 0.105 | CA38: 0.12 | CB38: 0.043 | CC38: 0.085 | CD38: 0.076 | CE38: 0.057 | CF38: 0.114 | CG38: 0.17 | CH38: 0.075 | CI38: 0.038 | CJ38: 0.537 | CK38: 0.14 | CL38: 0.257 | CM38: 0.252 | CN38: 0.051 | CO38: 0.085 | CP38: 0.118 | CQ38: 0.149 | CR38: 0.104 | CS38: 0.073 | CT38: 0.042 | CU38: 0.263 | CV38: 0.123 | CW38: 0.058 | CX38: 0.111 | CY38: 0.078 | CZ38: 0.129 | DA38: 0.123 | DB38: 0.05 | DC38: 0.096 | DD38: 0.1 | DE38: 0.058 | DF38: 0.134 | DG38: 0.265 | DH38: 0.074 | DI38: 0.091 | DJ38: 0.08 | DK38: 0.087 | DL38: 0.138 | DM38: 0.082 | DN38: 0.144 | DO38: 0.094 | DP38: 0.173 | DQ38: 0.082 | DR38: 0.114 | DS38: 0.107 | DT38: 0.113 | DU38: 0.127 | DV38: 0.134 | DW38: 0.13 | DX38: 0.217 | DY38: 0.118 | DZ38: 0.082
A39: Biogenic Amines | B39: Sarcosine | C39: 8 | D39: 36 | E39: 10 | F39: 14 | G39: 8 | H39: 10 | I39: 10 | J39: 12 | K39: 108 | L39: 92.3 | N39: 0 | O39: 0.71 | P39: 0 | Q39: 0.743 | R39: 0.599 | S39: 0 | T39: 0 | U39: 0 | V39: 0 | W39: 0 | X39: 0 | Y39: 0 | Z39: 0 | AA39: 0 | AB39: 0 | AC39: 0 | AD39: 0 | AE39: 0 | AF39: 0 | AG39: 0 | AH39: 0 | AI39: 0 | AJ39: 0 | AK39: 0 | AL39: 0 | AM39: 0 | AN39: 0 | AO39: 0 | AP39: 0 | AQ39: 0 | AR39: 0 | AS39: 0 | AT39: 0.183 | AU39: 0 | AV39: 0 | AW39: 0 | AX39: 0 | AY39: 0 | AZ39: 0 | BA39: 0 | BB39: 0 | BC39: 0 | BD39: 0 | BE39: 0 | BF39: 0 | BG39: 0.451 | BH39: 0 | BI39: 0 | BJ39: 0 | BK39: 0 | BL39: 0 | BM39: 0 | BN39: 0 | BO39: 0 | BP39: 0 | BQ39: 0 | BR39: 0 | BS39: 0 | BT39: 0 | BU39: 0 | BV39: 0 | BW39: 0 | BX39: 0 | BY39: 0 | BZ39: 0 | CA39: 0 | CB39: 0 | CC39: 0 | CD39: 0.03 | CE39: 0 | CF39: 0 | CG39: 0 | CH39: 0 | CI39: 0 | CJ39: 0.088 | CK39: 0 | CL39: 0 | CM39: 0 | CN39: 0 | CO39: 0 | CP39: 0 | CQ39: 0 | CR39: 0.051 | CS39: 0 | CT39: 0 | CU39: 0 | CV39: 0 | CW39: 0 | CX39: 0 | CY39: 0 | CZ39: 0 | DA39: 0 | DB39: 0 | DC39: 0 | DD39: 0 | DE39: 0 | DF39: 0 | DG39: 0 | DH39: 0 | DI39: 0 | DJ39: 0 | DK39: 0 | DL39: 0 | DM39: 0 | DN39: 0 | DO39: 0 | DP39: 0 | DQ39: 0 | DR39: 0 | DS39: 0 | DT39: 0.036 | DU39: 0 | DV39: 0 | DW39: 0 | DX39: 0 | DY39: 0 | DZ39: 0
A40: Biogenic Amines | B40: SDMA | C40: 0 | D40: 0 | E40: 0 | F40: 0 | G40: 0 | H40: 0 | I40: 0 | J40: 0 | K40: 0 | L40: 0.0 | N40: 0.157 | O40: 0.16 | P40: 0.175 | Q40: 0.394 | R40: 0.316 | S40: 0.222 | T40: 0.103 | U40: 0.164 | V40: 0.191 | W40: 0.254 | X40: 0.221 | Y40: 0.095 | Z40: 0.108 | AA40: 0.107 | AB40: 0.154 | AC40: 0.092 | AD40: 0.093 | AE40: 0.144 | AF40: 0.233 | AG40: 0.137 | AH40: 0.108 | AI40: 0.058 | AJ40: 0.149 | AK40: 0.053 | AL40: 0.096 | AM40: 0.112 | AN40: 0.103 | AO40: 0.097 | AP40: 0.075 | AQ40: 0.14 | AR40: 0.086 | AS40: 0.151 | AT40: 0.081 | AU40: 0.131 | AV40: 0.364 | AW40: 0.068 | AX40: 0.081 | AY40: 0.151 | AZ40: 0.133 | BA40: 0.108 | BB40: 0.186 | BC40: 0.232 | BD40: 0.237 | BE40: 0.504 | BF40: 0.211 | BG40: 0.358 | BH40: 0.188 | BI40: 0.11 | BJ40: 0.367 | BK40: 0.197 | BL40: 0.083 | BM40: 0.108 | BN40: 0.096 | BO40: 0.078 | BP40: 0.027 | BQ40: 0.061 | BR40: 0.076 | BS40: 0.057 | BT40: 0.097 | BU40: 0.106 | BV40: 0.131 | BW40: 0.152 | BX40: 0.096 | BY40: 0.114 | BZ40: 0.123 | CA40: 0.113 | CB40: 0.2 | CC40: 0.129 | CD40: 0.07 | CE40: 0.113 | CF40: 0.126 | CG40: 0.092 | CH40: 0.104 | CI40: 0.123 | CJ40: 0.176 | CK40: 0.148 | CL40: 0.206 | CM40: 1.49 | CN40: 0.102 | CO40: 0.125 | CP40: 0.119 | CQ40: 0.165 | CR40: 0.198 | CS40: 0.189 | CT40: 0.054 | CU40: 0.162 | CV40: 0.104 | CW40: 0.141 | CX40: 0.118 | CY40: 0.149 | CZ40: 0.122 | DA40: 0.326 | DB40: 0.13 | DC40: 0.109 | DD40: 0.09 | DE40: 0.1 | DF40: 0.13 | DG40: 0.175 | DH40: 0.108 | DI40: 0.099 | DJ40: 0.148 | DK40: 0.131 | DL40: 0.101 | DM40: 0.152 | DN40: 0.247 | DO40: 0.217 | DP40: 0.291 | DQ40: 0.121 | DR40: 0.119 | DS40: 0.248 | DT40: 0.283 | DU40: 0.185 | DV40: 0.089 | DW40: 0.079 | DX40: 0.099 | DY40: 0.099 | DZ40: 0.083
A41: Biogenic Amines | B41: Serotonin | C41: 11 | D41: 38 | E41: 10 | F41: 15 | G41: 9 | H41: 10 | I41: 10 | J41: 12 | K41: 115 | L41: 98.3 | N41: 0 | O41: 0 | P41: 0 | Q41: 0 | R41: 0 | S41: 0 | T41: 0 | U41: 0 | V41: 0 | W41: 0 | X41: 0 | Y41: 0 | Z41: 0 | AA41: 0 | AB41: 0 | AC41: 0 | AD41: 0 | AE41: 0 | AF41: 0 | AG41: 0 | AH41: 0 | AI41: 0 | AJ41: 0 | AK41: 0 | AL41: 0 | AM41: 0 | AN41: 0 | AO41: 0 | AP41: 0 | AQ41: 0 | AR41: 0 | AS41: 0 | AT41: 0 | AU41: 0 | AV41: 0 | AW41: 0 | AX41: 0 | AY41: 0 | AZ41: 0 | BA41: 0 | BB41: 0 | BC41: 0 | BD41: 0 | BE41: 0 | BF41: 0 | BG41: 0 | BH41: 0 | BI41: 0 | BJ41: 0 | BK41: 0 | BL41: 0 | BM41: 0 | BN41: 0 | BO41: 0 | BP41: 0 | BQ41: 0 | BR41: 0 | BS41: 0 | BT41: 0 | BU41: 0 | BV41: 0 | BW41: 0 | BX41: 0 | BY41: 0 | BZ41: 0 | CA41: 0 | CB41: 0 | CC41: 0 | CD41: 0 | CE41: 0 | CF41: 0 | CG41: 0 | CH41: 0 | CI41: 0 | CJ41: 0 | CK41: 0 | CL41: 0 | CM41: 0.004 | CN41: 0 | CO41: 0 | CP41: 0 | CQ41: 0 | CR41: 0 | CS41: 0 | CT41: 0 | CU41: 0 | CV41: 0 | CW41: 0 | CX41: 0 | CY41: 0 | CZ41: 0 | DA41: 0 | DB41: 0 | DC41: 0 | DD41: 0 | DE41: 0 | DF41: 0 | DG41: 0 | DH41: 0 | DI41: 0 | DJ41: 0 | DK41: 0 | DL41: 0 | DM41: 0 | DN41: 0 | DO41: 0 | DP41: 0 | DQ41: 0 | DR41: 0 | DS41: 0 | DT41: 0 | DU41: 0 | DV41: 0 | DW41: 0.005 | DX41: 0 | DY41: 0 | DZ41: 0
A42: Biogenic Amines | B42: Spermidine | C42: 9 | D42: 8 | E42: 10 | F42: 8 | G42: 6 | H42: 3 | I42: 3 | J42: 6 | K42: 53 | L42: 45.3 | N42: 0 | O42: 0 | P42: 0 | Q42: 0 | R42: 0 | S42: 0.089 | T42: 0 | U42: 0 | V42: 0 | W42: 0 | X42: 0.159 | Y42: 0 | Z42: 0.179 | AA42: 0.035 | AB42: 0.058 | AC42: 0.081 | AD42: 0.03 | AE42: 0.091 | AF42: 0.095 | AG42: 0.059 | AH42: 0 | AI42: 0.043 | AJ42: 0.093 | AK42: 0 | AL42: 0.068 | AM42: 0.163 | AN42: 0.107 | AO42: 0.048 | AP42: 0 | AQ42: 0.023 | AR42: 0 | AS42: 0.041 | AT42: 0 | AU42: 0.153 | AV42: 0 | AW42: 0 | AX42: 0.123 | AY42: 0.06 | AZ42: 0.036 | BA42: 0.154 | BB42: 0.102 | BC42: 0.202 | BD42: 0.206 | BE42: 0.094 | BF42: 0.117 | BG42: 0.094 | BH42: 0.12 | BI42: 0.154 | BJ42: 0.312 | BK42: 0 | BL42: 0 | BM42: 0 | BN42: 0 | BO42: 0 | BP42: 0 | BQ42: 0 | BR42: 0 | BS42: 0 | BT42: 0 | BU42: 0 | BV42: 0.125 | BW42: 0 | BX42: 0.092 | BY42: 0.095 | BZ42: 0 | CA42: 0.096 | CB42: 0.168 | CC42: 0.229 | CD42: 0 | CE42: 0 | CF42: 0.089 | CG42: 0 | CH42: 0 | CI42: 0 | CJ42: 0.119 | CK42: 0 | CL42: 0 | CM42: 0 | CN42: 0.087 | CO42: 0 | CP42: 0 | CQ42: 0.083 | CR42: 0 | CS42: 0.205 | CT42: 0 | CU42: 0.083 | CV42: 0.083 | CW42: 0.116 | CX42: 0.195 | CY42: 0.177 | CZ42: 0 | DA42: 0.179 | DB42: 0 | DC42: 0.082 | DD42: 0.097 | DE42: 0 | DF42: 0.088 | DG42: 0.084 | DH42: 0 | DI42: 0.087 | DJ42: 0 | DK42: 0.08 | DL42: 0.081 | DM42: 0.095 | DN42: 0.114 | DO42: 0.134 | DP42: 0 | DQ42: 0 | DR42: 0 | DS42: 0.084 | DT42: 0.088 | DU42: 0.226 | DV42: 0 | DW42: 0 | DX42: 0.087 | DY42: 0.084 | DZ42: 0
A43: Biogenic Amines | B43: t4-OH-Pro | C43: 0 | D43: 0 | E43: 0 | F43: 0 | G43: 0 | H43: 0 | I43: 0 | J43: 0 | K43: 0 | L43: 0.0 | N43: 0.999 | O43: 5.26 | P43: 1.41 | Q43: 11.4 | R43: 6.63 | S43: 4.77 | T43: 0.968 | U43: 0.671 | V43: 1.46 | W43: 2.57 | X43: 3.13 | Y43: 0.498 | Z43: 0.353 | AA43: 0.665 | AB43: 0.758 | AC43: 0.533 | AD43: 1.12 | AE43: 0.79 | AF43: 0.572 | AG43: 0.484 | AH43: 1.04 | AI43: 0.486 | AJ43: 0.607 | AK43: 0.36 | AL43: 0.808 | AM43: 0.716 | AN43: 0.374 | AO43: 0.368 | AP43: 0.679 | AQ43: 0.468 | AR43: 0.269 | AS43: 0.793 | AT43: 0.866 | AU43: 0.508 | AV43: 2.95 | AW43: 0.292 | AX43: 0.457 | AY43: 0.938 | AZ43: 0.563 | BA43: 0.326 | BB43: 0.607 | BC43: 0.869 | BD43: 2.18 | BE43: 4.22 | BF43: 0.856 | BG43: 9.99 | BH43: 1.04 | BI43: 1.12 | BJ43: 1.4 | BK43: 2 | BL43: 0.68 | BM43: 0.627 | BN43: 0.465 | BO43: 0.461 | BP43: 0.608 | BQ43: 0.536 | BR43: 0.526 | BS43: 0.658 | BT43: 0.491 | BU43: 0.575 | BV43: 0.973 | BW43: 1.71 | BX43: 0.524 | BY43: 0.455 | BZ43: 0.89 | CA43: 0.793 | CB43: 0.644 | CC43: 0.495 | CD43: 0.291 | CE43: 1.13 | CF43: 0.416 | CG43: 1.02 | CH43: 0.429 | CI43: 0.289 | CJ43: 3.91 | CK43: 0.941 | CL43: 0.811 | CM43: 3.64 | CN43: 0.215 | CO43: 0.391 | CP43: 0.416 | CQ43: 0.706 | CR43: 2.17 | CS43: 0.636 | CT43: 0.276 | CU43: 0.948 | CV43: 0.707 | CW43: 0.33 | CX43: 0.619 | CY43: 0.671 | CZ43: 0.451 | DA43: 0.456 | DB43: 1.2 | DC43: 0.509 | DD43: 0.634 | DE43: 0.868 | DF43: 1.11 | DG43: 0.541 | DH43: 0.32 | DI43: 1.16 | DJ43: 1.1 | DK43: 2.34 | DL43: 0.788 | DM43: 0.901 | DN43: 1 | DO43: 1.45 | DP43: 2.52 | DQ43: 0.442 | DR43: 1.16 | DS43: 2.24 | DT43: 1.64 | DU43: 0.833 | DV43: 0.618 | DW43: 0.576 | DX43: 0.202 | DY43: 0.463 | DZ43: 0.354
A44: Biogenic Amines | B44: Taurine | C44: 0 | D44: 0 | E44: 0 | F44: 0 | G44: 0 | H44: 0 | I44: 0 | J44: 0 | K44: 0 | L44: 0.0 | N44: 4.93 | O44: 8.7 | P44: 8.91 | Q44: 9.11 | R44: 11.2 | S44: 10.4 | T44: 4.26 | U44: 9.62 | V44: 5.99 | W44: 17.3 | X44: 6.16 | Y44: 4.61 | Z44: 5.79 | AA44: 6.27 | AB44: 4.26 | AC44: 4.55 | AD44: 6.74 | AE44: 5.62 | AF44: 5.39 | AG44: 5.71 | AH44: 4.9 | AI44: 3.95 | AJ44: 6.03 | AK44: 2.45 | AL44: 3.8 | AM44: 5.17 | AN44: 3.08 | AO44: 4.44 | AP44: 3.11 | AQ44: 5.35 | AR44: 2.57 | AS44: 4.85 | AT44: 3.93 | AU44: 5.87 | AV44: 5.5 | AW44: 2.44 | AX44: 5.59 | AY44: 5.74 | AZ44: 3.53 | BA44: 6.03 | BB44: 7.26 | BC44: 5.31 | BD44: 8.07 | BE44: 17.2 | BF44: 7.32 | BG44: 19.8 | BH44: 7.88 | BI44: 5.56 | BJ44: 7.25 | BK44: 6.9 | BL44: 6.85 | BM44: 7.1 | BN44: 9.33 | BO44: 5.83 | BP44: 8.96 | BQ44: 6.62 | BR44: 8.41 | BS44: 7.9 | BT44: 6.75 | BU44: 7.95 | BV44: 3.9 | BW44: 8.8 | BX44: 6.85 | BY44: 7.3 | BZ44: 5.04 | CA44: 5.72 | CB44: 5.86 | CC44: 5.53 | CD44: 8.2 | CE44: 6.82 | CF44: 14.7 | CG44: 9.4 | CH44: 8.66 | CI44: 7.95 | CJ44: 15.6 | CK44: 9.12 | CL44: 7.1 | CM44: 21.3 | CN44: 5.35 | CO44: 6.44 | CP44: 7.16 | CQ44: 8.8 | CR44: 9.27 | CS44: 8.22 | CT44: 2.15 | CU44: 8.12 | CV44: 10.9 | CW44: 6.6 | CX44: 7.29 | CY44: 8.83 | CZ44: 6.73 | DA44: 7.13 | DB44: 6.89 | DC44: 7.76 | DD44: 5.67 | DE44: 6.25 | DF44: 7.33 | DG44: 5.63 | DH44: 3.88 | DI44: 7.98 | DJ44: 7.38 | DK44: 7.76 | DL44: 4.84 | DM44: 11.1 | DN44: 12.1 | DO44: 17.1 | DP44: 18.1 | DQ44: 4.57 | DR44: 10.6 | DS44: 44 | DT44: 11 | DU44: 10.4 | DV44: 5.41 | DW44: 6.88 | DX44: 6.21 | DY44: 5.06 | DZ44: 8.51
A45: Acylcarnitines | B45: AC(0:0) | C45: 0 | D45: 0 | E45: 0 | F45: 0 | G45: 0 | H45: 0 | I45: 0 | J45: 0 | K45: 0 | L45: 0.0 | N45: 4.7 | O45: 9.85 | P45: 3.72 | Q45: 26.3 | R45: 13.8 | S45: 12.7 | T45: 1.85 | U45: 2.89 | V45: 3.75 | W45: 9.63 | X45: 5.46 | Y45: 0.671 | Z45: 0.884 | AA45: 1.65 | AB45: 1.53 | AC45: 1.18 | AD45: 3.14 | AE45: 0.604 | AF45: 1.3 | AG45: 0.987 | AH45: 3.99 | AI45: 0.89 | AJ45: 2.06 | AK45: 0.408 | AL45: 2.6 | AM45: 1.23 | AN45: 2.58 | AO45: 1.12 | AP45: 1.13 | AQ45: 0.917 | AR45: 0.974 | AS45: 1.85 | AT45: 3.77 | AU45: 1.24 | AV45: 2.73 | AW45: 0.518 | AX45: 0.765 | AY45: 1 | AZ45: 2.16 | BA45: 1.79 | BB45: 1.82 | BC45: 1.09 | BD45: 3.35 | BE45: 22.3 | BF45: 2.24 | BG45: 5.53 | BH45: 1.81 | BI45: 3.05 | BJ45: 2.93 | BK45: 6.05 | BL45: 0.876 | BM45: 1.02 | BN45: 1.58 | BO45: 1.13 | BP45: 1.04 | BQ45: 1.04 | BR45: 1.06 | BS45: 0.86 | BT45: 1.24 | BU45: 1.48 | BV45: 1.57 | BW45: 3.11 | BX45: 1.39 | BY45: 1.84 | BZ45: 3.38 | CA45: 2.24 | CB45: 1.42 | CC45: 1.25 | CD45: 1.16 | CE45: 1.42 | CF45: 2.58 | CG45: 2.12 | CH45: 1.15 | CI45: 0.886 | CJ45: 5.57 | CK45: 3.56 | CL45: 2.73 | CM45: 7.79 | CN45: 0.857 | CO45: 1.52 | CP45: 2.08 | CQ45: 1.76 | CR45: 2.35 | CS45: 1.87 | CT45: 0.942 | CU45: 5.06 | CV45: 2.56 | CW45: 1.53 | CX45: 0.929 | CY45: 1.31 | CZ45: 1.48 | DA45: 0.995 | DB45: 1.84 | DC45: 2.88 | DD45: 4.6 | DE45: 2.03 | DF45: 1.95 | DG45: 2.78 | DH45: 1.18 | DI45: 1.5 | DJ45: 1.81 | DK45: 1.76 | DL45: 1.81 | DM45: 2.93 | DN45: 1.5 | DO45: 2.38 | DP45: 5.88 | DQ45: 1.44 | DR45: 6.96 | DS45: 5.54 | DT45: 4.17 | DU45: 2.11 | DV45: 1.93 | DW45: 1.58 | DX45: 1.51 | DY45: 2 | DZ45: 1.39
A46: Acylcarnitines | B46: AC(2:0) | C46: 0 | D46: 0 | E46: 0 | F46: 0 | G46: 0 | H46: 0 | I46: 0 | J46: 0 | K46: 0 | L46: 0.0 | N46: 1.45 | O46: 1.67 | P46: 1.96 | Q46: 4.97 | R46: 2.8 | S46: 3.21 | T46: 0.536 | U46: 1.29 | V46: 1.61 | W46: 3.88 | X46: 1.32 | Y46: 0.102 | Z46: 0.103 | AA46: 0.446 | AB46: 0.425 | AC46: 0.117 | AD46: 1.2 | AE46: 0.131 | AF46: 0.124 | AG46: 0.119 | AH46: 1.23 | AI46: 0.096 | AJ46: 0.107 | AK46: 0.049 | AL46: 0.768 | AM46: 0.11 | AN46: 0.823 | AO46: 0.204 | AP46: 0.103 | AQ46: 0.08 | AR46: 0.095 | AS46: 0.369 | AT46: 1.31 | AU46: 0.126 | AV46: 0.358 | AW46: 0.058 | AX46: 0.083 | AY46: 0.145 | AZ46: 0.231 | BA46: 0.403 | BB46: 0.421 | BC46: 0.283 | BD46: 1.98 | BE46: 5.59 | BF46: 1.3 | BG46: 1.72 | BH46: 1.5 | BI46: 1.15 | BJ46: 0.521 | BK46: 1.36 | BL46: 0.106 | BM46: 0.128 | BN46: 0.105 | BO46: 0.344 | BP46: 0.109 | BQ46: 0.1 | BR46: 0.145 | BS46: 0.087 | BT46: 0.221 | BU46: 0.311 | BV46: 0.657 | BW46: 0.861 | BX46: 0.391 | BY46: 0.664 | BZ46: 1.43 | CA46: 1.3 | CB46: 1.08 | CC46: 0.175 | CD46: 0.534 | CE46: 0.6 | CF46: 1.51 | CG46: 1.14 | CH46: 0.389 | CI46: 0.584 | CJ46: 1.7 | CK46: 1.22 | CL46: 0.749 | CM46: 5.21 | CN46: 0.009 | CO46: 0.445 | CP46: 1.14 | CQ46: 0.794 | CR46: 1.53 | CS46: 0.397 | CT46: 0.406 | CU46: 1.67 | CV46: 1.52 | CW46: 0.104 | CX46: 0.17 | CY46: 0.557 | CZ46: 0.929 | DA46: 0.304 | DB46: 0.807 | DC46: 1.88 | DD46: 1.13 | DE46: 0.794 | DF46: 0.579 | DG46: 0.8 | DH46: 0.703 | DI46: 0.298 | DJ46: 1 | DK46: 0.687 | DL46: 1.78 | DM46: 1.24 | DN46: 0.432 | DO46: 1.7 | DP46: 3.1 | DQ46: 0.589 | DR46: 2.34 | DS46: 1.47 | DT46: 1.73 | DU46: 1.09 | DV46: 0.168 | DW46: 0.108 | DX46: 0.008 | DY46: 0.008 | DZ46: 0.009
A47: Acylcarnitines | B47: AC(3:0) | C47: 0 | D47: 0 | E47: 0 | F47: 0 | G47: 0 | H47: 0 | I47: 0 | J47: 0 | K47: 0 | L47: 0.0 | N47: 0.06 | O47: 0.14 | P47: 0.086 | Q47: 0.198 | R47: 0.492 | S47: 0.208 | T47: 0.007 | U47: 0.008 | V47: 0.066 | W47: 0.168 | X47: 0.069 | Y47: 0.066 | Z47: 0.052 | AA47: 0.085 | AB47: 0.08 | AC47: 0.063 | AD47: 0.056 | AE47: 0.098 | AF47: 0.063 | AG47: 0.07 | AH47: 0.088 | AI47: 0.041 | AJ47: 0.061 | AK47: 0.039 | AL47: 0.063 | AM47: 0.069 | AN47: 0.064 | AO47: 0.087 | AP47: 0.045 | AQ47: 0.047 | AR47: 0.051 | AS47: 0.053 | AT47: 0.106 | AU47: 0.051 | AV47: 0.049 | AW47: 0.033 | AX47: 0.056 | AY47: 0.055 | AZ47: 0.138 | BA47: 0.01 | BB47: 0.098 | BC47: 0.007 | BD47: 0.071 | BE47: 1.33 | BF47: 0.07 | BG47: 0.123 | BH47: 0.088 | BI47: 0.092 | BJ47: 0.094 | BK47: 0.139 | BL47: 0.031 | BM47: 0.073 | BN47: 0.06 | BO47: 0.059 | BP47: 0.057 | BQ47: 0.055 | BR47: 0.06 | BS47: 0.057 | BT47: 0.064 | BU47: 0.006 | BV47: 0.046 | BW47: 0.032 | BX47: 0.007 | BY47: 0.01 | BZ47: 0.094 | CA47: 0.042 | CB47: 0.008 | CC47: 0.064 | CD47: 0.006 | CE47: 0.008 | CF47: 0.052 | CG47: 0.039 | CH47: 0.031 | CI47: 0.036 | CJ47: 0.096 | CK47: 0.057 | CL47: 0.032 | CM47: 0.176 | CN47: 0.005 | CO47: 0.007 | CP47: 0.011 | CQ47: 0.009 | CR47: 0.068 | CS47: 0.057 | CT47: 0.004 | CU47: 0.179 | CV47: 0.008 | CW47: 0.005 | CX47: 0.006 | CY47: 0.007 | CZ47: 0.055 | DA47: 0.034 | DB47: 0.033 | DC47: 0.124 | DD47: 0.071 | DE47: 0.033 | DF47: 0.007 | DG47: 0.007 | DH47: 0.005 | DI47: 0.007 | DJ47: 0.037 | DK47: 0.021 | DL47: 0.057 | DM47: 0.096 | DN47: 0.008 | DO47: 0.061 | DP47: 0.085 | DQ47: 0.005 | DR47: 0.178 | DS47: 0.077 | DT47: 0.11 | DU47: 0.006 | DV47: 0.006 | DW47: 0.004 | DX47: 0.005 | DY47: 0.022 | DZ47: 0.006
A48: Acylcarnitines | B48: AC(3:0-DC) | C48: 5 | D48: 5 | E48: 0 | F48: 13 | G48: 6 | H48: 9 | I48: 3 | J48: 3 | K48: 44 | L48: 37.6 | N48: 0.013 | O48: 0.006 | P48: 0.002 | Q48: 0.004 | R48: 0 | S48: 0 | T48: 0 | U48: 0 | V48: 0.005 | W48: 0 | X48: 0.002 | Y48: 0.01 | Z48: 0.011 | AA48: 0.01 | AB48: 0.01 | AC48: 0.01 | AD48: 0.011 | AE48: 0.014 | AF48: 0.009 | AG48: 0.011 | AH48: 0.013 | AI48: 0.011 | AJ48: 0.009 | AK48: 0.006 | AL48: 0.01 | AM48: 0.011 | AN48: 0.012 | AO48: 0.014 | AP48: 0.009 | AQ48: 0.008 | AR48: 0.009 | AS48: 0.01 | AT48: 0.01 | AU48: 0.01 | AV48: 0.011 | AW48: 0.007 | AX48: 0.01 | AY48: 0.01 | AZ48: 0.012 | BA48: 0 | BB48: 0 | BC48: 0.003 | BD48: 0 | BE48: 0 | BF48: 0.007 | BG48: 0.013 | BH48: 0.003 | BI48: 0.001 | BJ48: 0 | BK48: 0.011 | BL48: 0.009 | BM48: 0.013 | BN48: 0.01 | BO48: 0.011 | BP48: 0.008 | BQ48: 0.009 | BR48: 0.012 | BS48: 0.009 | BT48: 0.012 | BU48: 0 | BV48: 0 | BW48: 0 | BX48: 0 | BY48: 0 | BZ48: 0.003 | CA48: 0 | CB48: 0 | CC48: 0 | CD48: 0.003 | CE48: 0 | CF48: 0 | CG48: 0 | CH48: 0 | CI48: 0 | CJ48: 0.003 | CK48: 0 | CL48: 0 | CM48: 0.022 | CN48: 0 | CO48: 0 | CP48: 0.009 | CQ48: 0 | CR48: 0 | CS48: 0.004 | CT48: 0 | CU48: 0.015 | CV48: 0 | CW48: 0 | CX48: 0 | CY48: 0 | CZ48: 0 | DA48: 0 | DB48: 0 | DC48: 0 | DD48: 0 | DE48: 0 | DF48: 0.002 | DG48: 0.002 | DH48: 0.001 | DI48: 0 | DJ48: 0.002 | DK48: 0.001 | DL48: 0.001 | DM48: 0.002 | DN48: 0 | DO48: 0.002 | DP48: 0.001 | DQ48: 0.001 | DR48: 0 | DS48: 0.002 | DT48: 0.001 | DU48: 0 | DV48: 0.001 | DW48: 0.001 | DX48: 0.001 | DY48: 0.001 | DZ48: 0.001
A49: Acylcarnitines | B49: AC(3:0-OH) | C49: 0 | D49: 0 | E49: 0 | F49: 0 | G49: 0 | H49: 0 | I49: 0 | J49: 0 | K49: 0 | L49: 0.0 | N49: 0.083 | O49: 0.014 | P49: 0.01 | Q49: 0.013 | R49: 0.012 | S49: 0.009 | T49: 0.011 | U49: 0.011 | V49: 0.011 | W49: 0.016 | X49: 0.009 | Y49: 0.112 | Z49: 0.091 | AA49: 0.144 | AB49: 0.138 | AC49: 0.111 | AD49: 0.078 | AE49: 0.15 | AF49: 0.115 | AG49: 0.112 | AH49: 0.117 | AI49: 0.063 | AJ49: 0.086 | AK49: 0.061 | AL49: 0.11 | AM49: 0.109 | AN49: 0.078 | AO49: 0.128 | AP49: 0.075 | AQ49: 0.076 | AR49: 0.078 | AS49: 0.088 | AT49: 0.106 | AU49: 0.086 | AV49: 0.097 | AW49: 0.066 | AX49: 0.102 | AY49: 0.089 | AZ49: 0.133 | BA49: 0.011 | BB49: 0.009 | BC49: 0.01 | BD49: 0.014 | BE49: 0.02 | BF49: 0.012 | BG49: 0.012 | BH49: 0.009 | BI49: 0.01 | BJ49: 0.009 | BK49: 0.191 | BL49: 0.061 | BM49: 0.149 | BN49: 0.115 | BO49: 0.11 | BP49: 0.108 | BQ49: 0.099 | BR49: 0.112 | BS49: 0.107 | BT49: 0.115 | BU49: 0.011 | BV49: 0.012 | BW49: 0.01 | BX49: 0.01 | BY49: 0.014 | BZ49: 0.013 | CA49: 0.01 | CB49: 0.011 | CC49: 0.01 | CD49: 0.009 | CE49: 0.013 | CF49: 0.012 | CG49: 0.01 | CH49: 0.01 | CI49: 0.012 | CJ49: 0.011 | CK49: 0.01 | CL49: 0.014 | CM49: 0.012 | CN49: 0.009 | CO49: 0.011 | CP49: 0.01 | CQ49: 0.009 | CR49: 0.014 | CS49: 0.01 | CT49: 0.008 | CU49: 0.01 | CV49: 0.01 | CW49: 0.007 | CX49: 0.008 | CY49: 0.009 | CZ49: 0.008 | DA49: 0.008 | DB49: 0.009 | DC49: 0.012 | DD49: 0.008 | DE49: 0.007 | DF49: 0.012 | DG49: 0.011 | DH49: 0.009 | DI49: 0.009 | DJ49: 0.012 | DK49: 0.007 | DL49: 0.008 | DM49: 0.009 | DN49: 0.011 | DO49: 0.014 | DP49: 0.009 | DQ49: 0.006 | DR49: 0.014 | DS49: 0.008 | DT49: 0.011 | DU49: 0.008 | DV49: 0.009 | DW49: 0.007 | DX49: 0.008 | DY49: 0.007 | DZ49: 0.008
A50: Acylcarnitines | B50: AC(3:1) | C50: 0 | D50: 0 | E50: 0 | F50: 0 | G50: 0 | H50: 0 | I50: 0 | J50: 0 | K50: 0 | L50: 0.0 | N50: 0.198 | O50: 0.003 | P50: 0.003 | Q50: 0.004 | R50: 0.004 | S50: 0.003 | T50: 0.003 | U50: 0.004 | V50: 0.003 | W50: 0.004 | X50: 0.003 | Y50: 0.305 | Z50: 0.226 | AA50: 0.388 | AB50: 0.364 | AC50: 0.282 | AD50: 0.222 | AE50: 0.405 | AF50: 0.304 | AG50: 0.334 | AH50: 0.317 | AI50: 0.196 | AJ50: 0.25 | AK50: 0.196 | AL50: 0.286 | AM50: 0.317 | AN50: 0.218 | AO50: 0.379 | AP50: 0.216 | AQ50: 0.215 | AR50: 0.221 | AS50: 0.259 | AT50: 0.265 | AU50: 0.258 | AV50: 0.245 | AW50: 0.163 | AX50: 0.278 | AY50: 0.233 | AZ50: 0.368 | BA50: 0.004 | BB50: 0.003 | BC50: 0.003 | BD50: 0.004 | BE50: 0.005 | BF50: 0.004 | BG50: 0.003 | BH50: 0.003 | BI50: 0.003 | BJ50: 0.003 | BK50: 0.441 | BL50: 0.137 | BM50: 0.314 | BN50: 0.27 | BO50: 0.274 | BP50: 0.261 | BQ50: 0.245 | BR50: 0.272 | BS50: 0.261 | BT50: 0.286 | BU50: 0.003 | BV50: 0.004 | BW50: 0.003 | BX50: 0.003 | BY50: 0.003 | BZ50: 0.003 | CA50: 0.003 | CB50: 0.004 | CC50: 0.003 | CD50: 0.003 | CE50: 0.004 | CF50: 0.004 | CG50: 0.003 | CH50: 0.003 | CI50: 0.003 | CJ50: 0.003 | CK50: 0.003 | CL50: 0.004 | CM50: 0.004 | CN50: 0.002 | CO50: 0.003 | CP50: 0.003 | CQ50: 0.003 | CR50: 0.003 | CS50: 0.003 | CT50: 0.002 | CU50: 0.003 | CV50: 0.003 | CW50: 0.002 | CX50: 0.002 | CY50: 0.003 | CZ50: 0.002 | DA50: 0.002 | DB50: 0.002 | DC50: 0.003 | DD50: 0.002 | DE50: 0.002 | DF50: 0.003 | DG50: 0.003 | DH50: 0.002 | DI50: 0.002 | DJ50: 0.003 | DK50: 0.002 | DL50: 0.003 | DM50: 0.002 | DN50: 0.003 | DO50: 0.003 | DP50: 0.002 | DQ50: 0.002 | DR50: 0.004 | DS50: 0.003 | DT50: 0.002 | DU50: 0.003 | DV50: 0.003 | DW50: 0.002 | DX50: 0.002 | DY50: 0.002 | DZ50: 0.002
A51: Acylcarnitines | B51: AC(4:0) | C51: 0 | D51: 0 | E51: 0 | F51: 0 | G51: 0 | H51: 0 | I51: 0 | J51: 0 | K51: 0 | L51: 0.0 | N51: 0.107 | O51: 0.12 | P51: 0.258 | Q51: 0.594 | R51: 0.365 | S51: 0.331 | T51: 0.007 | U51: 0.009 | V51: 0.102 | W51: 0.204 | X51: 0.076 | Y51: 0.046 | Z51: 0.059 | AA51: 0.071 | AB51: 0.055 | AC51: 0.045 | AD51: 0.049 | AE51: 0.044 | AF51: 0.042 | AG51: 0.038 | AH51: 0.094 | AI51: 0.038 | AJ51: 0.067 | AK51: 0.031 | AL51: 0.055 | AM51: 0.047 | AN51: 0.043 | AO51: 0.042 | AP51: 0.058 | AQ51: 0.053 | AR51: 0.049 | AS51: 0.039 | AT51: 0.093 | AU51: 0.044 | AV51: 0.066 | AW51: 0.034 | AX51: 0.122 | AY51: 0.06 | AZ51: 0.059 | BA51: 0.004 | BB51: 0.025 | BC51: 0.01 | BD51: 0.054 | BE51: 0.106 | BF51: 0.044 | BG51: 0.069 | BH51: 0.063 | BI51: 0.055 | BJ51: 0.11 | BK51: 0.078 | BL51: 0.055 | BM51: 0.076 | BN51: 0.061 | BO51: 0.062 | BP51: 0.054 | BQ51: 0.053 | BR51: 0.079 | BS51: 0.049 | BT51: 0.057 | BU51: 0.007 | BV51: 0.056 | BW51: 0.057 | BX51: 0.007 | BY51: 0.011 | BZ51: 0.104 | CA51: 0.06 | CB51: 0.055 | CC51: 0.042 | CD51: 0.048 | CE51: 0.044 | CF51: 0.06 | CG51: 0.077 | CH51: 0.059 | CI51: 0.042 | CJ51: 0.109 | CK51: 0.054 | CL51: 0.064 | CM51: 0.103 | CN51: 0.004 | CO51: 0.061 | CP51: 0.076 | CQ51: 0.028 | CR51: 0.069 | CS51: 0.049 | CT51: 0.046 | CU51: 0.189 | CV51: 0.012 | CW51: 0.043 | CX51: 0.008 | CY51: 0.055 | CZ51: 0.042 | DA51: 0.005 | DB51: 0.066 | DC51: 0.07 | DD51: 0.056 | DE51: 0.081 | DF51: 0.006 | DG51: 0.047 | DH51: 0.049 | DI51: 0.004 | DJ51: 0.047 | DK51: 0.05 | DL51: 0.072 | DM51: 0.091 | DN51: 0.016 | DO51: 0.07 | DP51: 0.097 | DQ51: 0.005 | DR51: 0.098 | DS51: 0.072 | DT51: 0.11 | DU51: 0.038 | DV51: 0.006 | DW51: 0.005 | DX51: 0.005 | DY51: 0.005 | DZ51: 0.053
A52: Acylcarnitines | B52: AC(4:0-DC) | C52: 0 | D52: 0 | E52: 0 | F52: 0 | G52: 0 | H52: 0 | I52: 0 | J52: 0 | K52: 0 | L52: 0.0 | N52: 0.074 | O52: 0.1 | P52: 0.155 | Q52: 0.064 | R52: 0.038 | S52: 0.043 | T52: 0.093 | U52: 0.118 | V52: 0.158 | W52: 0.102 | X52: 0.117 | Y52: 0.02 | Z52: 0.019 | AA52: 0.018 | AB52: 0.019 | AC52: 0.021 | AD52: 0.025 | AE52: 0.025 | AF52: 0.022 | AG52: 0.022 | AH52: 0.077 | AI52: 0.017 | AJ52: 0.019 | AK52: 0.008 | AL52: 0.018 | AM52: 0.021 | AN52: 0.024 | AO52: 0.028 | AP52: 0.018 | AQ52: 0.016 | AR52: 0.018 | AS52: 0.018 | AT52: 0.021 | AU52: 0.022 | AV52: 0.019 | AW52: 0.009 | AX52: 0.016 | AY52: 0.017 | AZ52: 0.014 | BA52: 0.048 | BB52: 0.102 | BC52: 0.093 | BD52: 0.083 | BE52: 0.104 | BF52: 0.153 | BG52: 0.142 | BH52: 0.1 | BI52: 0.057 | BJ52: 0.057 | BK52: 0.018 | BL52: 0.023 | BM52: 0.027 | BN52: 0.021 | BO52: 0.022 | BP52: 0.017 | BQ52: 0.017 | BR52: 0.032 | BS52: 0.019 | BT52: 0.024 | BU52: 0.09 | BV52: 0.039 | BW52: 0.171 | BX52: 0.047 | BY52: 0.108 | BZ52: 0.112 | CA52: 0.079 | CB52: 0.044 | CC52: 0.048 | CD52: 0.043 | CE52: 0.163 | CF52: 0.137 | CG52: 0.118 | CH52: 0.085 | CI52: 0.066 | CJ52: 0.134 | CK52: 0.069 | CL52: 0.147 | CM52: 0.213 | CN52: 0.036 | CO52: 0.084 | CP52: 0.232 | CQ52: 0.041 | CR52: 0.097 | CS52: 0.091 | CT52: 0.034 | CU52: 0.239 | CV52: 0.076 | CW52: 0.027 | CX52: 0.022 | CY52: 0.048 | CZ52: 0.043 | DA52: 0.025 | DB52: 0.06 | DC52: 0.082 | DD52: 0.106 | DE52: 0.052 | DF52: 0.076 | DG52: 0.05 | DH52: 0.044 | DI52: 0.043 | DJ52: 0.043 | DK52: 0.042 | DL52: 0.062 | DM52: 0.137 | DN52: 0.205 | DO52: 0.039 | DP52: 0.024 | DQ52: 0.064 | DR52: 0.065 | DS52: 0.049 | DT52: 0.03 | DU52: 0.055 | DV52: 0.059 | DW52: 0.039 | DX52: 0.027 | DY52: 0.045 | DZ52: 0.023
A53: Acylcarnitines | B53: AC(4:0-OH) | C53: 0 | D53: 0 | E53: 0 | F53: 0 | G53: 0 | H53: 0 | I53: 0 | J53: 0 | K53: 0 | L53: 0.0 | N53: 0.076 | O53: 0.006 | P53: 0.022 | Q53: 0.041 | R53: 0.024 | S53: 0.013 | T53: 0.005 | U53: 0.006 | V53: 0.006 | W53: 0.017 | X53: 0.008 | Y53: 0.053 | Z53: 0.057 | AA53: 0.054 | AB53: 0.064 | AC53: 0.056 | AD53: 0.062 | AE53: 0.087 | AF53: 0.049 | AG53: 0.059 | AH53: 0.07 | AI53: 0.059 | AJ53: 0.054 | AK53: 0.031 | AL53: 0.056 | AM53: 0.064 | AN53: 0.072 | AO53: 0.075 | AP53: 0.048 | AQ53: 0.047 | AR53: 0.053 | AS53: 0.056 | AT53: 0.058 | AU53: 0.054 | AV53: 0.057 | AW53: 0.041 | AX53: 0.052 | AY53: 0.055 | AZ53: 0.061 | BA53: 0.004 | BB53: 0.005 | BC53: 0.005 | BD53: 0.006 | BE53: 0.126 | BF53: 0.005 | BG53: 0.006 | BH53: 0.005 | BI53: 0.004 | BJ53: 0.009 | BK53: 0.054 | BL53: 0.059 | BM53: 0.068 | BN53: 0.05 | BO53: 0.058 | BP53: 0.047 | BQ53: 0.05 | BR53: 0.061 | BS53: 0.048 | BT53: 0.069 | BU53: 0.005 | BV53: 0.005 | BW53: 0.004 | BX53: 0.004 | BY53: 0.005 | BZ53: 0.005 | CA53: 0.005 | CB53: 0.004 | CC53: 0.005 | CD53: 0.004 | CE53: 0.004 | CF53: 0.006 | CG53: 0.005 | CH53: 0.004 | CI53: 0.005 | CJ53: 0.004 | CK53: 0.004 | CL53: 0.005 | CM53: 0.046 | CN53: 0.003 | CO53: 0.005 | CP53: 0.005 | CQ53: 0.004 | CR53: 0.005 | CS53: 0.006 | CT53: 0.003 | CU53: 0.007 | CV53: 0.004 | CW53: 0.004 | CX53: 0.003 | CY53: 0.004 | CZ53: 0.004 | DA53: 0.003 | DB53: 0.004 | DC53: 0.005 | DD53: 0.004 | DE53: 0.003 | DF53: 0.004 | DG53: 0.005 | DH53: 0.004 | DI53: 0.004 | DJ53: 0.004 | DK53: 0.003 | DL53: 0.003 | DM53: 0.004 | DN53: 0.005 | DO53: 0.005 | DP53: 0.004 | DQ53: 0.004 | DR53: 0.02 | DS53: 0.003 | DT53: 0.016 | DU53: 0.004 | DV53: 0.004 | DW53: 0.003 | DX53: 0.003 | DY53: 0.003 | DZ53: 0.004
A54: Acylcarnitines | B54: AC(4:1) | C54: 0 | D54: 0 | E54: 0 | F54: 0 | G54: 0 | H54: 0 | I54: 0 | J54: 0 | K54: 0 | L54: 0.0 | N54: 0.05 | O54: 0.009 | P54: 0.007 | Q54: 0.011 | R54: 0.008 | S54: 0.007 | T54: 0.007 | U54: 0.009 | V54: 0.008 | W54: 0.009 | X54: 0.007 | Y54: 0.029 | Z54: 0.042 | AA54: 0.048 | AB54: 0.032 | AC54: 0.029 | AD54: 0.022 | AE54: 0.029 | AF54: 0.028 | AG54: 0.026 | AH54: 0.042 | AI54: 0.025 | AJ54: 0.041 | AK54: 0.022 | AL54: 0.036 | AM54: 0.032 | AN54: 0.026 | AO54: 0.029 | AP54: 0.041 | AQ54: 0.032 | AR54: 0.032 | AS54: 0.026 | AT54: 0.039 | AU54: 0.03 | AV54: 0.042 | AW54: 0.025 | AX54: 0.082 | AY54: 0.039 | AZ54: 0.039 | BA54: 0.003 | BB54: 0.003 | BC54: 0.006 | BD54: 0.003 | BE54: 0.005 | BF54: 0.003 | BG54: 0.008 | BH54: 0.004 | BI54: 0.006 | BJ54: 0.009 | BK54: 0.037 | BL54: 0.032 | BM54: 0.052 | BN54: 0.033 | BO54: 0.038 | BP54: 0.034 | BQ54: 0.032 | BR54: 0.052 | BS54: 0.03 | BT54: 0.04 | BU54: 0.007 | BV54: 0.005 | BW54: 0.008 | BX54: 0.008 | BY54: 0.009 | BZ54: 0.008 | CA54: 0.007 | CB54: 0.007 | CC54: 0.008 | CD54: 0.006 | CE54: 0.01 | CF54: 0.013 | CG54: 0.008 | CH54: 0.007 | CI54: 0.007 | CJ54: 0.006 | CK54: 0.008 | CL54: 0.01 | CM54: 0.005 | CN54: 0.005 | CO54: 0.007 | CP54: 0.007 | CQ54: 0.007 | CR54: 0.009 | CS54: 0.007 | CT54: 0.005 | CU54: 0.005 | CV54: 0.008 | CW54: 0.006 | CX54: 0.006 | CY54: 0.007 | CZ54: 0.006 | DA54: 0.005 | DB54: 0.006 | DC54: 0.008 | DD54: 0.007 | DE54: 0.007 | DF54: 0.007 | DG54: 0.007 | DH54: 0.006 | DI54: 0.004 | DJ54: 0.007 | DK54: 0.005 | DL54: 0.006 | DM54: 0.008 | DN54: 0.01 | DO54: 0.007 | DP54: 0.007 | DQ54: 0.006 | DR54: 0.007 | DS54: 0.006 | DT54: 0.006 | DU54: 0.006 | DV54: 0.006 | DW54: 0.006 | DX54: 0.005 | DY54: 0.005 | DZ54: 0.006
A55: Acylcarnitines | B55: AC(4:1-DC) | C55: 2 | D55: 0 | E55: 0 | F55: 4 | G55: 1 | H55: 4 | I55: 4 | J55: 5 | K55: 20 | L55: 17.1 | N55: 0.007 | O55: 0.001 | P55: 0.001 | Q55: 0 | R55: 0.001 | S55: 0.001 | T55: 0 | U55: 0.001 | V55: 0.001 | W55: 0.001 | X55: 0.001 | Y55: 0.004 | Z55: 0.005 | AA55: 0.005 | AB55: 0.006 | AC55: 0.005 | AD55: 0.005 | AE55: 0.007 | AF55: 0.004 | AG55: 0.006 | AH55: 0.006 | AI55: 0.006 | AJ55: 0.004 | AK55: 0.002 | AL55: 0.004 | AM55: 0.006 | AN55: 0.007 | AO55: 0.006 | AP55: 0.005 | AQ55: 0.004 | AR55: 0.004 | AS55: 0.006 | AT55: 0.005 | AU55: 0.006 | AV55: 0.005 | AW55: 0.003 | AX55: 0.005 | AY55: 0.005 | AZ55: 0.004 | BA55: 0.001 | BB55: 0.001 | BC55: 0.001 | BD55: 0.001 | BE55: 0.001 | BF55: 0.001 | BG55: 0.001 | BH55: 0.001 | BI55: 0.001 | BJ55: 0.002 | BK55: 0.004 | BL55: 0.005 | BM55: 0.007 | BN55: 0.004 | BO55: 0.006 | BP55: 0.004 | BQ55: 0.004 | BR55: 0.006 | BS55: 0.004 | BT55: 0.005 | BU55: 0 | BV55: 0.001 | BW55: 0 | BX55: 0.001 | BY55: 0.002 | BZ55: 0.001 | CA55: 0.001 | CB55: 0.001 | CC55: 0.001 | CD55: 0.001 | CE55: 0 | CF55: 0 | CG55: 0.001 | CH55: 0.001 | CI55: 0.001 | CJ55: 0.001 | CK55: 0.001 | CL55: 0.001 | CM55: 0.001 | CN55: 0.001 | CO55: 0.001 | CP55: 0.001 | CQ55: 0 | CR55: 0.001 | CS55: 0.001 | CT55: 0 | CU55: 0.001 | CV55: 0.002 | CW55: 0.001 | CX55: 0.001 | CY55: 0 | CZ55: 0 | DA55: 0 | DB55: 0.001 | DC55: 0.001 | DD55: 0.001 | DE55: 0.001 | DF55: 0.001 | DG55: 0 | DH55: 0.001 | DI55: 0.001 | DJ55: 0 | DK55: 0 | DL55: 0.001 | DM55: 0 | DN55: 0.004 | DO55: 0.001 | DP55: 0.001 | DQ55: 0.001 | DR55: 0.001 | DS55: 0.001 | DT55: 0 | DU55: 0 | DV55: 0.001 | DW55: 0 | DX55: 0 | DY55: 0.001 | DZ55: 0
A56: Acylcarnitines | B56: AC(5:0) | C56: 0 | D56: 0 | E56: 0 | F56: 0 | G56: 0 | H56: 0 | I56: 0 | J56: 0 | K56: 0 | L56: 0.0 | N56: 0.088 | O56: 0.072 | P56: 0.056 | Q56: 0.142 | R56: 0.344 | S56: 0.149 | T56: 0.02 | U56: 0.022 | V56: 0.058 | W56: 0.1 | X56: 0.038 | Y56: 0.069 | Z56: 0.077 | AA56: 0.058 | AB56: 0.065 | AC56: 0.067 | AD56: 0.075 | AE56: 0.095 | AF56: 0.061 | AG56: 0.07 | AH56: 0.082 | AI56: 0.067 | AJ56: 0.062 | AK56: 0.035 | AL56: 0.064 | AM56: 0.081 | AN56: 0.091 | AO56: 0.087 | AP56: 0.058 | AQ56: 0.059 | AR56: 0.061 | AS56: 0.068 | AT56: 0.084 | AU56: 0.075 | AV56: 0.068 | AW56: 0.041 | AX56: 0.062 | AY56: 0.07 | AZ56: 0.063 | BA56: 0.017 | BB56: 0.037 | BC56: 0.034 | BD56: 0.057 | BE56: 0.21 | BF56: 0.059 | BG56: 0.049 | BH56: 0.046 | BI56: 0.051 | BJ56: 0.143 | BK56: 0.069 | BL56: 0.068 | BM56: 0.09 | BN56: 0.058 | BO56: 0.067 | BP56: 0.056 | BQ56: 0.056 | BR56: 0.077 | BS56: 0.059 | BT56: 0.069 | BU56: 0.016 | BV56: 0.049 | BW56: 0.04 | BX56: 0.015 | BY56: 0.018 | BZ56: 0.059 | CA56: 0.041 | CB56: 0.041 | CC56: 0.018 | CD56: 0.014 | CE56: 0.028 | CF56: 0.057 | CG56: 0.031 | CH56: 0.042 | CI56: 0.017 | CJ56: 0.053 | CK56: 0.026 | CL56: 0.019 | CM56: 0.094 | CN56: 0.012 | CO56: 0.042 | CP56: 0.062 | CQ56: 0.019 | CR56: 0.058 | CS56: 0.049 | CT56: 0.01 | CU56: 0.099 | CV56: 0.017 | CW56: 0.015 | CX56: 0.011 | CY56: 0.015 | CZ56: 0.034 | DA56: 0.035 | DB56: 0.013 | DC56: 0.05 | DD56: 0.043 | DE56: 0.015 | DF56: 0.016 | DG56: 0.021 | DH56: 0.015 | DI56: 0.025 | DJ56: 0.032 | DK56: 0.015 | DL56: 0.029 | DM56: 0.051 | DN56: 0.018 | DO56: 0.05 | DP56: 0.068 | DQ56: 0.013 | DR56: 0.063 | DS56: 0.065 | DT56: 0.08 | DU56: 0.037 | DV56: 0.029 | DW56: 0.029 | DX56: 0.022 | DY56: 0.011 | DZ56: 0.011
A57: Acylcarnitines | B57: AC(5:0-DC) | C57: 0 | D57: 0 | E57: 0 | F57: 0 | G57: 0 | H57: 0 | I57: 0 | J57: 0 | K57: 0 | L57: 0.0 | N57: 0.059 | O57: 0.087 | P57: 0.067 | Q57: 0.043 | R57: 0.009 | S57: 0.004 | T57: 0.019 | U57: 0.005 | V57: 0.069 | W57: 0.015 | X57: 0.004 | Y57: 0.042 | Z57: 0.05 | AA57: 0.04 | AB57: 0.044 | AC57: 0.053 | AD57: 0.047 | AE57: 0.062 | AF57: 0.036 | AG57: 0.061 | AH57: 0.056 | AI57: 0.055 | AJ57: 0.042 | AK57: 0.021 | AL57: 0.036 | AM57: 0.052 | AN57: 0.063 | AO57: 0.066 | AP57: 0.045 | AQ57: 0.038 | AR57: 0.038 | AS57: 0.045 | AT57: 0.041 | AU57: 0.056 | AV57: 0.051 | AW57: 0.021 | AX57: 0.04 | AY57: 0.044 | AZ57: 0.035 | BA57: 0.005 | BB57: 0.008 | BC57: 0.005 | BD57: 0.01 | BE57: 0.089 | BF57: 0.004 | BG57: 0.158 | BH57: 0.007 | BI57: 0.006 | BJ57: 0.012 | BK57: 0.039 | BL57: 0.043 | BM57: 0.059 | BN57: 0.038 | BO57: 0.045 | BP57: 0.037 | BQ57: 0.035 | BR57: 0.067 | BS57: 0.038 | BT57: 0.044 | BU57: 0.014 | BV57: 0.004 | BW57: 0.104 | BX57: 0.003 | BY57: 0.056 | BZ57: 0.003 | CA57: 0.018 | CB57: 0.06 | CC57: 0.046 | CD57: 0.004 | CE57: 0.083 | CF57: 0.061 | CG57: 0.01 | CH57: 0.104 | CI57: 0.004 | CJ57: 0.13 | CK57: 0.051 | CL57: 0.004 | CM57: 0.215 | CN57: 0.003 | CO57: 0.003 | CP57: 0.132 | CQ57: 0.003 | CR57: 0.057 | CS57: 0.051 | CT57: 0.002 | CU57: 0.22 | CV57: 0.005 | CW57: 0.003 | CX57: 0.004 | CY57: 0.004 | CZ57: 0.002 | DA57: 0.003 | DB57: 0.019 | DC57: 0.003 | DD57: 0.003 | DE57: 0.004 | DF57: 0.003 | DG57: 0.008 | DH57: 0.056 | DI57: 0.013 | DJ57: 0.004 | DK57: 0.004 | DL57: 0.018 | DM57: 0.004 | DN57: 0.008 | DO57: 0.004 | DP57: 0.003 | DQ57: 0.005 | DR57: 0.018 | DS57: 0.003 | DT57: 0.004 | DU57: 0.016 | DV57: 0.017 | DW57: 0.002 | DX57: 0.004 | DY57: 0.003 | DZ57: 0.002
A58: Acylcarnitines | B58: AC(5:0-OH) | C58: 0 | D58: 0 | E58: 0 | F58: 0 | G58: 0 | H58: 0 | I58: 0 | J58: 0 | K58: 0 | L58: 0.0 | N58: 0.133 | O58: 0.013 | P58: 0.011 | Q58: 0.015 | R58: 0.017 | S58: 0.014 | T58: 0.009 | U58: 0.013 | V58: 0.017 | W58: 0.016 | X58: 0.013 | Y58: 0.093 | Z58: 0.117 | AA58: 0.089 | AB58: 0.104 | AC58: 0.112 | AD58: 0.108 | AE58: 0.128 | AF58: 0.089 | AG58: 0.085 | AH58: 0.085 | AI58: 0.085 | AJ58: 0.063 | AK58: 0.037 | AL58: 0.063 | AM58: 0.098 | AN58: 0.125 | AO58: 0.105 | AP58: 0.073 | AQ58: 0.087 | AR58: 0.057 | AS58: 0.092 | AT58: 0.071 | AU58: 0.109 | AV58: 0.102 | AW58: 0.039 | AX58: 0.111 | AY58: 0.079 | AZ58: 0.068 | BA58: 0.011 | BB58: 0.014 | BC58: 0.012 | BD58: 0.014 | BE58: 0.022 | BF58: 0.014 | BG58: 0.016 | BH58: 0.013 | BI58: 0.014 | BJ58: 0.016 | BK58: 0.087 | BL58: 0.115 | BM58: 0.13 | BN58: 0.083 | BO58: 0.124 | BP58: 0.085 | BQ58: 0.06 | BR58: 0.113 | BS58: 0.098 | BT58: 0.082 | BU58: 0.009 | BV58: 0.018 | BW58: 0.014 | BX58: 0.013 | BY58: 0.013 | BZ58: 0.016 | CA58: 0.011 | CB58: 0.008 | CC58: 0.013 | CD58: 0.008 | CE58: 0.016 | CF58: 0.028 | CG58: 0.012 | CH58: 0.011 | CI58: 0.012 | CJ58: 0.015 | CK58: 0.012 | CL58: 0.016 | CM58: 0.02 | CN58: 0.01 | CO58: 0.011 | CP58: 0.015 | CQ58: 0.01 | CR58: 0.014 | CS58: 0.014 | CT58: 0.008 | CU58: 0.021 | CV58: 0.019 | CW58: 0.011 | CX58: 0.013 | CY58: 0.013 | CZ58: 0.011 | DA58: 0.012 | DB58: 0.01 | DC58: 0.017 | DD58: 0.017 | DE58: 0.015 | DF58: 0.016 | DG58: 0.017 | DH58: 0.018 | DI58: 0.014 | DJ58: 0.019 | DK58: 0.013 | DL58: 0.014 | DM58: 0.028 | DN58: 0.021 | DO58: 0.018 | DP58: 0.018 | DQ58: 0.021 | DR58: 0.021 | DS58: 0.018 | DT58: 0.023 | DU58: 0.018 | DV58: 0.017 | DW58: 0.017 | DX58: 0.018 | DY58: 0.018 | DZ58: 0.015
A59: Acylcarnitines | B59: AC(5:1) | C59: 0 | D59: 0 | E59: 0 | F59: 0 | G59: 0 | H59: 0 | I59: 0 | J59: 0 | K59: 0 | L59: 0.0 | N59: 0.08 | O59: 0.018 | P59: 0.013 | Q59: 0.025 | R59: 0.02 | S59: 0.027 | T59: 0.018 | U59: 0.022 | V59: 0.02 | W59: 0.025 | X59: 0.015 | Y59: 0.062 | Z59: 0.069 | AA59: 0.052 | AB59: 0.065 | AC59: 0.059 | AD59: 0.059 | AE59: 0.085 | AF59: 0.051 | AG59: 0.064 | AH59: 0.069 | AI59: 0.059 | AJ59: 0.05 | AK59: 0.031 | AL59: 0.059 | AM59: 0.071 | AN59: 0.07 | AO59: 0.081 | AP59: 0.056 | AQ59: 0.05 | AR59: 0.056 | AS59: 0.063 | AT59: 0.057 | AU59: 0.063 | AV59: 0.064 | AW59: 0.04 | AX59: 0.058 | AY59: 0.063 | AZ59: 0.058 | BA59: 0.016 | BB59: 0.018 | BC59: 0.017 | BD59: 0.02 | BE59: 0.022 | BF59: 0.039 | BG59: 0.031 | BH59: 0.017 | BI59: 0.024 | BJ59: 0.032 | BK59: 0.062 | BL59: 0.054 | BM59: 0.081 | BN59: 0.058 | BO59: 0.057 | BP59: 0.047 | BQ59: 0.056 | BR59: 0.071 | BS59: 0.053 | BT59: 0.06 | BU59: 0.018 | BV59: 0.016 | BW59: 0.016 | BX59: 0.017 | BY59: 0.019 | BZ59: 0.05 | CA59: 0.018 | CB59: 0.014 | CC59: 0.018 | CD59: 0.015 | CE59: 0.017 | CF59: 0.021 | CG59: 0.017 | CH59: 0.016 | CI59: 0.016 | CJ59: 0.015 | CK59: 0.014 | CL59: 0.019 | CM59: 0.039 | CN59: 0.013 | CO59: 0.016 | CP59: 0.017 | CQ59: 0.015 | CR59: 0.042 | CS59: 0.015 | CT59: 0.01 | CU59: 0.028 | CV59: 0.016 | CW59: 0.015 | CX59: 0.012 | CY59: 0.016 | CZ59: 0.015 | DA59: 0.012 | DB59: 0.014 | DC59: 0.018 | DD59: 0.014 | DE59: 0.013 | DF59: 0.017 | DG59: 0.017 | DH59: 0.015 | DI59: 0.015 | DJ59: 0.017 | DK59: 0.012 | DL59: 0.011 | DM59: 0.04 | DN59: 0.019 | DO59: 0.017 | DP59: 0.016 | DQ59: 0.013 | DR59: 0.014 | DS59: 0.012 | DT59: 0.015 | DU59: 0.013 | DV59: 0.013 | DW59: 0.01 | DX59: 0.012 | DY59: 0.011 | DZ59: 0.012
A60: Acylcarnitines | B60: AC(5:1-DC) | C60: 0 | D60: 0 | E60: 0 | F60: 0 | G60: 0 | H60: 0 | I60: 0 | J60: 0 | K60: 0 | L60: 0.0 | N60: 0.023 | O60: 0.001 | P60: 0.001 | Q60: 0.002 | R60: 0.001 | S60: 0.001 | T60: 0.001 | U60: 0.002 | V60: 0.002 | W60: 0.001 | X60: 0.001 | Y60: 0.015 | Z60: 0.019 | AA60: 0.015 | AB60: 0.016 | AC60: 0.015 | AD60: 0.017 | AE60: 0.021 | AF60: 0.014 | AG60: 0.02 | AH60: 0.019 | AI60: 0.016 | AJ60: 0.016 | AK60: 0.008 | AL60: 0.014 | AM60: 0.02 | AN60: 0.023 | AO60: 0.025 | AP60: 0.015 | AQ60: 0.015 | AR60: 0.013 | AS60: 0.016 | AT60: 0.014 | AU60: 0.018 | AV60: 0.017 | AW60: 0.009 | AX60: 0.016 | AY60: 0.015 | AZ60: 0.013 | BA60: 0.001 | BB60: 0.002 | BC60: 0.002 | BD60: 0.001 | BE60: 0.002 | BF60: 0.001 | BG60: 0.001 | BH60: 0.002 | BI60: 0.001 | BJ60: 0.002 | BK60: 0.012 | BL60: 0.017 | BM60: 0.022 | BN60: 0.014 | BO60: 0.016 | BP60: 0.015 | BQ60: 0.015 | BR60: 0.02 | BS60: 0.014 | BT60: 0.017 | BU60: 0.001 | BV60: 0.001 | BW60: 0.002 | BX60: 0.001 | BY60: 0.001 | BZ60: 0.001 | CA60: 0.001 | CB60: 0.001 | CC60: 0.001 | CD60: 0.001 | CE60: 0.002 | CF60: 0.003 | CG60: 0.001 | CH60: 0.001 | CI60: 0.001 | CJ60: 0.001 | CK60: 0.001 | CL60: 0.002 | CM60: 0.001 | CN60: 0.001 | CO60: 0.001 | CP60: 0.001 | CQ60: 0.001 | CR60: 0.001 | CS60: 0.004 | CT60: 0.001 | CU60: 0.002 | CV60: 0.002 | CW60: 0.001 | CX60: 0.001 | CY60: 0.001 | CZ60: 0.001 | DA60: 0.001 | DB60: 0.001 | DC60: 0.001 | DD60: 0.001 | DE60: 0.001 | DF60: 0.001 | DG60: 0.001 | DH60: 0.001 | DI60: 0.001 | DJ60: 0.001 | DK60: 0.001 | DL60: 0.001 | DM60: 0.002 | DN60: 0.003 | DO60: 0.003 | DP60: 0.001 | DQ60: 0.002 | DR60: 0.001 | DS60: 0.001 | DT60: 0.002 | DU60: 0.001 | DV60: 0.001 | DW60: 0.001 | DX60: 0.001 | DY60: 0.001 | DZ60: 0.001
A61: Acylcarnitines | B61: AC(6:0) | C61: 0 | D61: 0 | E61: 0 | F61: 0 | G61: 0 | H61: 0 | I61: 0 | J61: 0 | K61: 0 | L61: 0.0 | N61: 0.019 | O61: 0.01 | P61: 0.015 | Q61: 0.051 | R61: 0.033 | S61: 0.013 | T61: 0.001 | U61: 0.006 | V61: 0.01 | W61: 0.023 | X61: 0.007 | Y61: 0.014 | Z61: 0.016 | AA61: 0.012 | AB61: 0.014 | AC61: 0.013 | AD61: 0.015 | AE61: 0.019 | AF61: 0.011 | AG61: 0.018 | AH61: 0.018 | AI61: 0.013 | AJ61: 0.014 | AK61: 0.006 | AL61: 0.012 | AM61: 0.017 | AN61: 0.02 | AO61: 0.022 | AP61: 0.014 | AQ61: 0.012 | AR61: 0.011 | AS61: 0.013 | AT61: 0.011 | AU61: 0.016 | AV61: 0.014 | AW61: 0.009 | AX61: 0.013 | AY61: 0.012 | AZ61: 0.013 | BA61: 0.002 | BB61: 0.002 | BC61: 0.002 | BD61: 0.002 | BE61: 0.061 | BF61: 0.002 | BG61: 0.001 | BH61: 0.009 | BI61: 0.002 | BJ61: 0.003 | BK61: 0.012 | BL61: 0.016 | BM61: 0.021 | BN61: 0.012 | BO61: 0.017 | BP61: 0.014 | BQ61: 0.011 | BR61: 0.018 | BS61: 0.012 | BT61: 0.015 | BU61: 0.002 | BV61: 0.004 | BW61: 0.013 | BX61: 0.001 | BY61: 0.002 | BZ61: 0.009 | CA61: 0.002 | CB61: 0.001 | CC61: 0.001 | CD61: 0.001 | CE61: 0.002 | CF61: 0.003 | CG61: 0.001 | CH61: 0.002 | CI61: 0.002 | CJ61: 0.004 | CK61: 0.002 | CL61: 0.002 | CM61: 0.019 | CN61: 0.001 | CO61: 0.002 | CP61: 0.002 | CQ61: 0.001 | CR61: 0.002 | CS61: 0.041 | CT61: 0.001 | CU61: 0.011 | CV61: 0.003 | CW61: 0.001 | CX61: 0.002 | CY61: 0.002 | CZ61: 0.001 | DA61: 0.001 | DB61: 0.002 | DC61: 0.004 | DD61: 0.002 | DE61: 0.002 | DF61: 0.002 | DG61: 0.002 | DH61: 0.002 | DI61: 0.002 | DJ61: 0.012 | DK61: 0.001 | DL61: 0.008 | DM61: 0.003 | DN61: 0.004 | DO61: 0.002 | DP61: 0.003 | DQ61: 0.002 | DR61: 0.005 | DS61: 0.014 | DT61: 0.007 | DU61: 0.001 | DV61: 0.002 | DW61: 0.001 | DX61: 0.001 | DY61: 0.002 | DZ61: 0.001
A62: Acylcarnitines | B62: AC(6:0-DC) | C62: 0 | D62: 0 | E62: 0 | F62: 0 | G62: 0 | H62: 0 | I62: 0 | J62: 0 | K62: 0 | L62: 0.0 | N62: 0.129 | O62: 0.009 | P62: 0.018 | Q62: 0.015 | R62: 0.013 | S62: 0.01 | T62: 0.008 | U62: 0.012 | V62: 0.013 | W62: 0.014 | X62: 0.01 | Y62: 0.082 | Z62: 0.103 | AA62: 0.082 | AB62: 0.092 | AC62: 0.093 | AD62: 0.09 | AE62: 0.117 | AF62: 0.076 | AG62: 0.103 | AH62: 0.108 | AI62: 0.094 | AJ62: 0.085 | AK62: 0.047 | AL62: 0.081 | AM62: 0.105 | AN62: 0.129 | AO62: 0.128 | AP62: 0.09 | AQ62: 0.077 | AR62: 0.072 | AS62: 0.094 | AT62: 0.08 | AU62: 0.113 | AV62: 0.101 | AW62: 0.053 | AX62: 0.096 | AY62: 0.08 | AZ62: 0.078 | BA62: 0.012 | BB62: 0.02 | BC62: 0.015 | BD62: 0.01 | BE62: 0.048 | BF62: 0.011 | BG62: 0.021 | BH62: 0.01 | BI62: 0.012 | BJ62: 0.013 | BK62: 0.074 | BL62: 0.099 | BM62: 0.118 | BN62: 0.081 | BO62: 0.097 | BP62: 0.082 | BQ62: 0.085 | BR62: 0.131 | BS62: 0.083 | BT62: 0.101 | BU62: 0.009 | BV62: 0.013 | BW62: 0.014 | BX62: 0.011 | BY62: 0.012 | BZ62: 0.009 | CA62: 0.01 | CB62: 0.008 | CC62: 0.011 | CD62: 0.008 | CE62: 0.016 | CF62: 0.02 | CG62: 0.011 | CH62: 0.012 | CI62: 0.012 | CJ62: 0.01 | CK62: 0.011 | CL62: 0.014 | CM62: 0.084 | CN62: 0.009 | CO62: 0.01 | CP62: 0.014 | CQ62: 0.011 | CR62: 0.012 | CS62: 0.01 | CT62: 0.006 | CU62: 0.016 | CV62: 0.017 | CW62: 0.008 | CX62: 0.011 | CY62: 0.011 | CZ62: 0.009 | DA62: 0.009 | DB62: 0.012 | DC62: 0.012 | DD62: 0.011 | DE62: 0.012 | DF62: 0.012 | DG62: 0.012 | DH62: 0.01 | DI62: 0.012 | DJ62: 0.011 | DK62: 0.01 | DL62: 0.009 | DM62: 0.015 | DN62: 0.026 | DO62: 0.015 | DP62: 0.012 | DQ62: 0.014 | DR62: 0.012 | DS62: 0.011 | DT62: 0.012 | DU62: 0.01 | DV62: 0.01 | DW62: 0.009 | DX62: 0.016 | DY62: 0.01 | DZ62: 0.008
A63: Acylcarnitines | B63: AC(6:0-OH) | C63: 0 | D63: 0 | E63: 0 | F63: 0 | G63: 0 | H63: 0 | I63: 0 | J63: 0 | K63: 0 | L63: 0.0 | N63: 0.037 | O63: 0.003 | P63: 0.004 | Q63: 0.014 | R63: 0.013 | S63: 0.013 | T63: 0.003 | U63: 0.004 | V63: 0.004 | W63: 0.004 | X63: 0.004 | Y63: 0.025 | Z63: 0.028 | AA63: 0.026 | AB63: 0.028 | AC63: 0.027 | AD63: 0.026 | AE63: 0.043 | AF63: 0.02 | AG63: 0.028 | AH63: 0.032 | AI63: 0.033 | AJ63: 0.023 | AK63: 0.012 | AL63: 0.02 | AM63: 0.03 | AN63: 0.038 | AO63: 0.044 | AP63: 0.025 | AQ63: 0.024 | AR63: 0.021 | AS63: 0.024 | AT63: 0.025 | AU63: 0.031 | AV63: 0.03 | AW63: 0.014 | AX63: 0.026 | AY63: 0.025 | AZ63: 0.02 | BA63: 0.004 | BB63: 0.004 | BC63: 0.004 | BD63: 0.006 | BE63: 0.022 | BF63: 0.003 | BG63: 0.003 | BH63: 0.003 | BI63: 0.003 | BJ63: 0.007 | BK63: 0.023 | BL63: 0.026 | BM63: 0.049 | BN63: 0.022 | BO63: 0.031 | BP63: 0.024 | BQ63: 0.022 | BR63: 0.04 | BS63: 0.023 | BT63: 0.025 | BU63: 0.003 | BV63: 0.004 | BW63: 0.004 | BX63: 0.003 | BY63: 0.004 | BZ63: 0.003 | CA63: 0.003 | CB63: 0.003 | CC63: 0.003 | CD63: 0.003 | CE63: 0.004 | CF63: 0.006 | CG63: 0.004 | CH63: 0.004 | CI63: 0.004 | CJ63: 0.003 | CK63: 0.003 | CL63: 0.004 | CM63: 0.005 | CN63: 0.003 | CO63: 0.003 | CP63: 0.003 | CQ63: 0.003 | CR63: 0.004 | CS63: 0.003 | CT63: 0.002 | CU63: 0.005 | CV63: 0.005 | CW63: 0.003 | CX63: 0.003 | CY63: 0.004 | CZ63: 0.003 | DA63: 0.002 | DB63: 0.003 | DC63: 0.004 | DD63: 0.003 | DE63: 0.004 | DF63: 0.003 | DG63: 0.004 | DH63: 0.003 | DI63: 0.004 | DJ63: 0.003 | DK63: 0.003 | DL63: 0.003 | DM63: 0.004 | DN63: 0.007 | DO63: 0.004 | DP63: 0.003 | DQ63: 0.004 | DR63: 0.003 | DS63: 0.003 | DT63: 0.004 | DU63: 0.003 | DV63: 0.003 | DW63: 0.003 | DX63: 0.003 | DY63: 0.003 | DZ63: 0.003
A64: Acylcarnitines | B64: AC(6:1) | C64: 0 | D64: 0 | E64: 0 | F64: 0 | G64: 0 | H64: 0 | I64: 0 | J64: 0 | K64: 0 | L64: 0.0 | N64: 0.034 | O64: 0.007 | P64: 0.012 | Q64: 0.014 | R64: 0.008 | S64: 0.013 | T64: 0.013 | U64: 0.015 | V64: 0.018 | W64: 0.008 | X64: 0.011 | Y64: 0.024 | Z64: 0.027 | AA64: 0.024 | AB64: 0.025 | AC64: 0.029 | AD64: 0.028 | AE64: 0.036 | AF64: 0.022 | AG64: 0.035 | AH64: 0.03 | AI64: 0.029 | AJ64: 0.025 | AK64: 0.016 | AL64: 0.024 | AM64: 0.031 | AN64: 0.04 | AO64: 0.042 | AP64: 0.028 | AQ64: 0.022 | AR64: 0.022 | AS64: 0.029 | AT64: 0.022 | AU64: 0.031 | AV64: 0.024 | AW64: 0.017 | AX64: 0.029 | AY64: 0.025 | AZ64: 0.026 | BA64: 0.016 | BB64: 0.014 | BC64: 0.016 | BD64: 0.019 | BE64: 0.024 | BF64: 0.005 | BG64: 0.015 | BH64: 0.011 | BI64: 0.017 | BJ64: 0.009 | BK64: 0.019 | BL64: 0.026 | BM64: 0.031 | BN64: 0.022 | BO64: 0.029 | BP64: 0.026 | BQ64: 0.023 | BR64: 0.031 | BS64: 0.021 | BT64: 0.027 | BU64: 0.013 | BV64: 0.021 | BW64: 0.009 | BX64: 0.013 | BY64: 0.015 | BZ64: 0.008 | CA64: 0.009 | CB64: 0.006 | CC64: 0.007 | CD64: 0.013 | CE64: 0.022 | CF64: 0.013 | CG64: 0.013 | CH64: 0.009 | CI64: 0.016 | CJ64: 0.007 | CK64: 0.016 | CL64: 0.02 | CM64: 0.016 | CN64: 0.007 | CO64: 0.013 | CP64: 0.012 | CQ64: 0.013 | CR64: 0.009 | CS64: 0.011 | CT64: 0.012 | CU64: 0.01 | CV64: 0.011 | CW64: 0.013 | CX64: 0.008 | CY64: 0.008 | CZ64: 0.012 | DA64: 0.015 | DB64: 0.017 | DC64: 0.017 | DD64: 0.016 | DE64: 0.019 | DF64: 0.007 | DG64: 0.013 | DH64: 0.008 | DI64: 0.011 | DJ64: 0.012 | DK64: 0.015 | DL64: 0.008 | DM64: 0.01 | DN64: 0.016 | DO64: 0.01 | DP64: 0.01 | DQ64: 0.009 | DR64: 0.012 | DS64: 0.009 | DT64: 0.017 | DU64: 0.008 | DV64: 0.008 | DW64: 0.009 | DX64: 0.009 | DY64: 0.008 | DZ64: 0.006
A65: Acylcarnitines | B65: AC(7:0) | C65: 0 | D65: 0 | E65: 0 | F65: 0 | G65: 0 | H65: 0 | I65: 0 | J65: 0 | K65: 0 | L65: 0.0 | N65: 0.025 | O65: 0.025 | P65: 0.018 | Q65: 0.028 | R65: 0.027 | S65: 0.034 | T65: 0.03 | U65: 0.025 | V65: 0.026 | W65: 0.025 | X65: 0.027 | Y65: 0.015 | Z65: 0.016 | AA65: 0.015 | AB65: 0.019 | AC65: 0.016 | AD65: 0.015 | AE65: 0.025 | AF65: 0.015 | AG65: 0.019 | AH65: 0.018 | AI65: 0.015 | AJ65: 0.013 | AK65: 0.007 | AL65: 0.015 | AM65: 0.022 | AN65: 0.02 | AO65: 0.022 | AP65: 0.016 | AQ65: 0.012 | AR65: 0.013 | AS65: 0.016 | AT65: 0.013 | AU65: 0.017 | AV65: 0.019 | AW65: 0.011 | AX65: 0.015 | AY65: 0.013 | AZ65: 0.014 | BA65: 0.028 | BB65: 0.017 | BC65: 0.029 | BD65: 0.014 | BE65: 0.037 | BF65: 0.022 | BG65: 0.018 | BH65: 0.022 | BI65: 0.025 | BJ65: 0.017 | BK65: 0.018 | BL65: 0.023 | BM65: 0.032 | BN65: 0.014 | BO65: 0.023 | BP65: 0.019 | BQ65: 0.016 | BR65: 0.025 | BS65: 0.015 | BT65: 0.019 | BU65: 0.037 | BV65: 0.028 | BW65: 0.024 | BX65: 0.023 | BY65: 0.027 | BZ65: 0.023 | CA65: 0.028 | CB65: 0.023 | CC65: 0.03 | CD65: 0.023 | CE65: 0.019 | CF65: 0.022 | CG65: 0.028 | CH65: 0.029 | CI65: 0.023 | CJ65: 0.024 | CK65: 0.034 | CL65: 0.023 | CM65: 0.027 | CN65: 0.02 | CO65: 0.024 | CP65: 0.022 | CQ65: 0.021 | CR65: 0.031 | CS65: 0.023 | CT65: 0.02 | CU65: 0.03 | CV65: 0.026 | CW65: 0.028 | CX65: 0.032 | CY65: 0.031 | CZ65: 0.022 | DA65: 0.022 | DB65: 0.02 | DC65: 0.028 | DD65: 0.034 | DE65: 0.027 | DF65: 0.031 | DG65: 0.031 | DH65: 0.032 | DI65: 0.041 | DJ65: 0.034 | DK65: 0.033 | DL65: 0.025 | DM65: 0.028 | DN65: 0.022 | DO65: 0.031 | DP65: 0.032 | DQ65: 0.027 | DR65: 0.034 | DS65: 0.027 | DT65: 0.04 | DU65: 0.033 | DV65: 0.033 | DW65: 0.032 | DX65: 0.038 | DY65: 0.037 | DZ65: 0.023
A66: Acylcarnitines | B66: AC(7:0-DC) | C66: 0 | D66: 0 | E66: 0 | F66: 0 | G66: 0 | H66: 0 | I66: 0 | J66: 0 | K66: 0 | L66: 0.0 | N66: 0.077 | O66: 0.004 | P66: 0.005 | Q66: 0.006 | R66: 0.005 | S66: 0.005 | T66: 0.003 | U66: 0.005 | V66: 0.007 | W66: 0.004 | X66: 0.005 | Y66: 0.05 | Z66: 0.059 | AA66: 0.051 | AB66: 0.058 | AC66: 0.063 | AD66: 0.05 | AE66: 0.084 | AF66: 0.045 | AG66: 0.063 | AH66: 0.067 | AI66: 0.068 | AJ66: 0.054 | AK66: 0.03 | AL66: 0.044 | AM66: 0.063 | AN66: 0.07 | AO66: 0.087 | AP66: 0.054 | AQ66: 0.051 | AR66: 0.041 | AS66: 0.05 | AT66: 0.052 | AU66: 0.069 | AV66: 0.068 | AW66: 0.036 | AX66: 0.057 | AY66: 0.054 | AZ66: 0.047 | BA66: 0.005 | BB66: 0.005 | BC66: 0.004 | BD66: 0.006 | BE66: 0.006 | BF66: 0.005 | BG66: 0.004 | BH66: 0.005 | BI66: 0.005 | BJ66: 0.008 | BK66: 0.045 | BL66: 0.057 | BM66: 0.081 | BN66: 0.053 | BO66: 0.062 | BP66: 0.053 | BQ66: 0.055 | BR66: 0.076 | BS66: 0.051 | BT66: 0.06 | BU66: 0.004 | BV66: 0.005 | BW66: 0.005 | BX66: 0.004 | BY66: 0.005 | BZ66: 0.004 | CA66: 0.004 | CB66: 0.004 | CC66: 0.004 | CD66: 0.004 | CE66: 0.005 | CF66: 0.008 | CG66: 0.005 | CH66: 0.004 | CI66: 0.005 | CJ66: 0.004 | CK66: 0.004 | CL66: 0.005 | CM66: 0.012 | CN66: 0.004 | CO66: 0.004 | CP66: 0.004 | CQ66: 0.004 | CR66: 0.005 | CS66: 0.004 | CT66: 0.003 | CU66: 0.006 | CV66: 0.007 | CW66: 0.004 | CX66: 0.005 | CY66: 0.004 | CZ66: 0.004 | DA66: 0.004 | DB66: 0.004 | DC66: 0.005 | DD66: 0.004 | DE66: 0.005 | DF66: 0.005 | DG66: 0.006 | DH66: 0.004 | DI66: 0.004 | DJ66: 0.005 | DK66: 0.004 | DL66: 0.004 | DM66: 0.005 | DN66: 0.01 | DO66: 0.006 | DP66: 0.006 | DQ66: 0.006 | DR66: 0.005 | DS66: 0.005 | DT66: 0.005 | DU66: 0.004 | DV66: 0.004 | DW66: 0.004 | DX66: 0.004 | DY66: 0.004 | DZ66: 0.004
A67: Acylcarnitines | B67: AC(8:0) | C67: 0 | D67: 0 | E67: 0 | F67: 0 | G67: 0 | H67: 0 | I67: 0 | J67: 0 | K67: 0 | L67: 0.0 | N67: 0.019 | O67: 0.01 | P67: 0.021 | Q67: 0.076 | R67: 0.067 | S67: 0.024 | T67: 0.007 | U67: 0.007 | V67: 0.011 | W67: 0.029 | X67: 0.013 | Y67: 0.012 | Z67: 0.014 | AA67: 0.012 | AB67: 0.015 | AC67: 0.013 | AD67: 0.013 | AE67: 0.017 | AF67: 0.01 | AG67: 0.013 | AH67: 0.016 | AI67: 0.014 | AJ67: 0.011 | AK67: 0.006 | AL67: 0.01 | AM67: 0.016 | AN67: 0.015 | AO67: 0.022 | AP67: 0.012 | AQ67: 0.011 | AR67: 0.009 | AS67: 0.011 | AT67: 0.011 | AU67: 0.013 | AV67: 0.015 | AW67: 0.008 | AX67: 0.013 | AY67: 0.011 | AZ67: 0.011 | BA67: 0.004 | BB67: 0.005 | BC67: 0.005 | BD67: 0.009 | BE67: 0.048 | BF67: 0.007 | BG67: 0.013 | BH67: 0.007 | BI67: 0.007 | BJ67: 0.01 | BK67: 0.011 | BL67: 0.014 | BM67: 0.02 | BN67: 0.011 | BO67: 0.015 | BP67: 0.012 | BQ67: 0.013 | BR67: 0.016 | BS67: 0.012 | BT67: 0.014 | BU67: 0.005 | BV67: 0.005 | BW67: 0.018 | BX67: 0.005 | BY67: 0.003 | BZ67: 0.006 | CA67: 0.005 | CB67: 0.005 | CC67: 0.004 | CD67: 0.005 | CE67: 0.005 | CF67: 0.006 | CG67: 0.005 | CH67: 0.005 | CI67: 0.005 | CJ67: 0.008 | CK67: 0.007 | CL67: 0.006 | CM67: 0.02 | CN67: 0.004 | CO67: 0.005 | CP67: 0.006 | CQ67: 0.005 | CR67: 0.003 | CS67: 0.018 | CT67: 0.004 | CU67: 0.006 | CV67: 0.004 | CW67: 0.004 | CX67: 0.004 | CY67: 0.004 | CZ67: 0.006 | DA67: 0.005 | DB67: 0.005 | DC67: 0.006 | DD67: 0.004 | DE67: 0.005 | DF67: 0.003 | DG67: 0.004 | DH67: 0.003 | DI67: 0.003 | DJ67: 0.006 | DK67: 0.004 | DL67: 0.006 | DM67: 0.008 | DN67: 0.006 | DO67: 0.006 | DP67: 0.011 | DQ67: 0.004 | DR67: 0.007 | DS67: 0.012 | DT67: 0.011 | DU67: 0.004 | DV67: 0.003 | DW67: 0.003 | DX67: 0.003 | DY67: 0.004 | DZ67: 0.003
A68: Acylcarnitines | B68: AC(8:1) | C68: 0 | D68: 0 | E68: 0 | F68: 0 | G68: 0 | H68: 0 | I68: 0 | J68: 0 | K68: =SUM(C68:J68) -> 0 | L68: 0.0 | N68: 0.019 | O68: 0.007 | P68: 0.007 | Q68: 0.026 | R68: 0.015 | S68: 0.018 | T68: 0.004 | U68: 0.006 | V68: 0.007 | W68: 0.019 | X68: 0.004 | Y68: 0.012 | Z68: 0.014 | AA68: 0.012 | AB68: 0.015 | AC68: 0.013 | AD68: 0.017 | AE68: 0.018 | AF68: 0.013 | AG68: 0.013 | AH68: 0.014 | AI68: 0.019 | AJ68: 0.014 | AK68: 0.007 | AL68: 0.011 | AM68: 0.014 | AN68: 0.016 | AO68: 0.021 | AP68: 0.012 | AQ68: 0.012 | AR68: 0.01 | AS68: 0.012 | AT68: 0.011 | AU68: 0.016 | AV68: 0.017 | AW68: 0.009 | AX68: 0.015 | AY68: 0.012 | AZ68: 0.013 | BA68: 0.005 | BB68: 0.006 | BC68: 0.005 | BD68: 0.008 | BE68: 0.032 | BF68: 0.004 | BG68: 0.004 | BH68: 0.005 | BI68: 0.004 | BJ68: 0.007 | BK68: 0.014 | BL68: 0.014 | BM68: 0.021 | BN68: 0.013 | BO68: 0.016 | BP68: 0.013 | BQ68: 0.013 | BR68: 0.018 | BS68: 0.013 | BT68: 0.014 | BU68: 0.003 | BV68: 0.006 | BW68: 0.004 | BX68: 0.005 | BY68: 0.004 | BZ68: 0.005 | CA68: 0.004 | CB68: 0.004 | CC68: 0.004 | CD68: 0.003 | CE68: 0.004 | CF68: 0.01 | CG68: 0.004 | CH68: 0.004 | CI68: 0.004 | CJ68: 0.007 | CK68: 0.005 | CL68: 0.006 | CM68: 0.026 | CN68: 0.003 | CO68: 0.004 | CP68: 0.004 | CQ68: 0.005 | CR68: 0.004 | CS68: 0.003 | CT68: 0.004 | CU68: 0.006 | CV68: 0.008 | CW68: 0.004 | CX68: 0.004 | CY68: 0.004 | CZ68: 0.004 | DA68: 0.005 | DB68: 0.007 | DC68: 0.006 | DD68: 0.004 | DE68: 0.005 | DF68: 0.004 | DG68: 0.007 | DH68: 0.004 | DI68: 0.005 | DJ68: 0.006 | DK68: 0.004 | DL68: 0.004 | DM68: 0.005 | DN68: 0.007 | DO68: 0.005 | DP68: 0.013 | DQ68: 0.005 | DR68: 0.008 | DS68: 0.01 | DT68: 0.007 | DU68: 0.005 | DV68: 0.004 | DW68: 0.004 | DX68: 0.003 | DY68: 0.004 | DZ68: 0.004
A69: Acylcarnitines | B69: AC(8:1-OH) | C69: =COUNTIF(N69:X69,0) -> 0 | D69: =COUNTIF(Y69:BJ69,0) -> 0 | E69: =COUNTIF(BK69:BT69,0) -> 0 | F69: =COUNTIF(BU69:CI69,0) -> 0 | G69: =COUNTIF(CJ69:CS69,"0") -> 0 | H69: =COUNTIF(CT69:DC69,0) -> 0 | I69: =COUNTIF(DD69:DM69,0) -> 0 | J69: =COUNTIF(DN69:DZ69,0) -> 0 | K69: 0 | L69: 0.0 | N69: 0.094 | O69: 0.057 | P69: 0.058 | Q69: 0.061 | R69: 0.052 | S69: 0.062 | T69: 0.058 | U69: 0.06 | V69: 0.077 | W69: 0.052 | X69: 0.068 | Y69: 0.058 | Z69: 0.068 | AA69: 0.065 | AB69: 0.068 | AC69: 0.071 | AD69: 0.06 | AE69: 0.1 | AF69: 0.052 | AG69: 0.07 | AH69: 0.073 | AI69: 0.071 | AJ69: 0.057 | AK69: 0.033 | AL69: 0.054 | AM69: 0.074 | AN69: 0.081 | AO69: 0.106 | AP69: 0.056 | AQ69: 0.055 | AR69: 0.047 | AS69: 0.059 | AT69: 0.059 | AU69: 0.078 | AV69: 0.086 | AW69: 0.042 | AX69: 0.066 | AY69: 0.063 | AZ69: 0.055 | BA69: 0.07 | BB69: 0.072 | BC69: 0.059 | BD69: 0.063 | BE69: 0.069 | BF69: 0.071 | BG69: 0.067 | BH69: 0.058 | BI69: 0.072 | BJ69: 0.062 | BK69: 0.057 | BL69: 0.064 | BM69: 0.097 | BN69: 0.065 | BO69: 0.082 | BP69: 0.064 | BQ69: 0.064 | BR69: 0.09 | BS69: 0.062 | BT69: 0.066 | BU69: 0.061 | BV69: 0.074 | BW69: 0.067 | BX69: 0.058 | BY69: 0.053 | BZ69: 0.062 | CA69: 0.063 | CB69: 0.055 | CC69: 0.06 | CD69: 0.052 | CE69: 0.069 | CF69: 0.061 | CG69: 0.065 | CH69: 0.072 | CI69: 0.055 | CJ69: 0.061 | CK69: 0.065 | CL69: 0.065 | CM69: 0.059 | CN69: 0.065 | CO69: 0.062 | CP69: 0.069 | CQ69: 0.06 | CR69: 0.068 | CS69: 0.07 | CT69: 0.052 | CU69: 0.076 | CV69: 0.081 | CW69: 0.066 | CX69: 0.071 | CY69: 0.063 | CZ69: 0.064 | DA69: 0.065 | DB69: 0.074 | DC69: 0.076 | DD69: 0.075 | DE69: 0.085 | DF69: 0.065 | DG69: 0.076 | DH69: 0.063 | DI69: 0.068 | DJ69: 0.068 | DK69: 0.066 | DL69: 0.065 | DM69: 0.077 | DN69: 0.074 | DO69: 0.065 | DP69: 0.061 | DQ69: 0.083 | DR69: 0.071 | DS69: 0.069 | DT69: 0.075 | DU69: 0.066 | DV69: 0.068 | DW69: 0.069 | DX69: 0.068 | DY69: 0.064 | DZ69: 0.069
A70: Acylcarnitines | B70: AC(9:0) | C70: 0 | D70: 0 | E70: 0 | F70: 0 | G70: 0 | H70: 0 | I70: 0 | J70: 0 | K70: 0 | L70: 0.0 | N70: 0.013 | O70: 0.003 | P70: 0.003 | Q70: 0.006 | R70: 0.007 | S70: 0.003 | T70: 0.003 | U70: 0.003 | V70: 0.004 | W70: 0.003 | X70: 0.003 | Y70: 0.007 | Z70: 0.008 | AA70: 0.008 | AB70: 0.009 | AC70: 0.008 | AD70: 0.007 | AE70: 0.013 | AF70: 0.007 | AG70: 0.009 | AH70: 0.009 | AI70: 0.011 | AJ70: 0.008 | AK70: 0.004 | AL70: 0.007 | AM70: 0.01 | AN70: 0.011 | AO70: 0.013 | AP70: 0.008 | AQ70: 0.007 | AR70: 0.007 | AS70: 0.007 | AT70: 0.008 | AU70: 0.01 | AV70: 0.011 | AW70: 0.005 | AX70: 0.008 | AY70: 0.008 | AZ70: 0.008 | BA70: 0.003 | BB70: 0.003 | BC70: 0.003 | BD70: 0.003 | BE70: 0.017 | BF70: 0.003 | BG70: 0.003 | BH70: 0.003 | BI70: 0.003 | BJ70: 0.004 | BK70: 0.009 | BL70: 0.009 | BM70: 0.014 | BN70: 0.009 | BO70: 0.012 | BP70: 0.009 | BQ70: 0.008 | BR70: 0.012 | BS70: 0.008 | BT70: 0.011 | BU70: 0.003 | BV70: 0.003 | BW70: 0.003 | BX70: 0.003 | BY70: 0.003 | BZ70: 0.002 | CA70: 0.003 | CB70: 0.002 | CC70: 0.003 | CD70: 0.002 | CE70: 0.003 | CF70: 0.004 | CG70: 0.003 | CH70: 0.003 | CI70: 0.003 | CJ70: 0.003 | CK70: 0.003 | CL70: 0.003 | CM70: 0.003 | CN70: 0.002 | CO70: 0.003 | CP70: 0.003 | CQ70: 0.003 | CR70: 0.003 | CS70: 0.003 | CT70: 0.002 | CU70: 0.003 | CV70: 0.004 | CW70: 0.003 | CX70: 0.003 | CY70: 0.003 | CZ70: 0.003 | DA70: 0.002 | DB70: 0.003 | DC70: 0.003 | DD70: 0.003 | DE70: 0.004 | DF70: 0.003 | DG70: 0.004 | DH70: 0.003 | DI70: 0.003 | DJ70: 0.003 | DK70: 0.003 | DL70: 0.003 | DM70: 0.003 | DN70: 0.005 | DO70: 0.004 | DP70: 0.003 | DQ70: 0.003 | DR70: 0.003 | DS70: 0.003 | DT70: 0.003 | DU70: 0.003 | DV70: 0.003 | DW70: 0.003 | DX70: 0.003 | DY70: 0.003 | DZ70: 0.003
A71: Acylcarnitines | B71: AC(10:0) | C71: 0 | D71: 0 | E71: 0 | F71: 0 | G71: 0 | H71: 0 | I71: 0 | J71: 0 | K71: 0 | L71: 0.0 | N71: 0.008 | O71: 0.011 | P71: 0.013 | Q71: 0.104 | R71: 0.061 | S71: 0.015 | T71: 0.001 | U71: 0.002 | V71: 0.007 | W71: 0.025 | X71: 0.01 | Y71: 0.004 | Z71: 0.006 | AA71: 0.005 | AB71: 0.005 | AC71: 0.005 | AD71: 0.007 | AE71: 0.009 | AF71: 0.004 | AG71: 0.006 | AH71: 0.007 | AI71: 0.005 | AJ71: 0.005 | AK71: 0.003 | AL71: 0.004 | AM71: 0.006 | AN71: 0.006 | AO71: 0.008 | AP71: 0.006 | AQ71: 0.005 | AR71: 0.005 | AS71: 0.006 | AT71: 0.005 | AU71: 0.006 | AV71: 0.007 | AW71: 0.004 | AX71: 0.006 | AY71: 0.004 | AZ71: 0.006 | BA71: 0.002 | BB71: 0.002 | BC71: 0.002 | BD71: 0.005 | BE71: 0.042 | BF71: 0.001 | BG71: 0.002 | BH71: 0.002 | BI71: 0.002 | BJ71: 0.009 | BK71: 0.006 | BL71: 0.007 | BM71: 0.009 | BN71: 0.005 | BO71: 0.007 | BP71: 0.006 | BQ71: 0.005 | BR71: 0.008 | BS71: 0.005 | BT71: 0.006 | BU71: 0.001 | BV71: 0.002 | BW71: 0.018 | BX71: 0.001 | BY71: 0.002 | BZ71: 0.001 | CA71: 0.002 | CB71: 0.007 | CC71: 0.001 | CD71: 0.001 | CE71: 0.003 | CF71: 0.003 | CG71: 0.002 | CH71: 0.005 | CI71: 0.002 | CJ71: 0.002 | CK71: 0.002 | CL71: 0.002 | CM71: 0.012 | CN71: 0.001 | CO71: 0.001 | CP71: 0.009 | CQ71: 0.001 | CR71: 0.002 | CS71: 0.023 | CT71: 0.001 | CU71: 0.002 | CV71: 0.002 | CW71: 0.001 | CX71: 0.001 | CY71: 0.002 | CZ71: 0.001 | DA71: 0.001 | DB71: 0.001 | DC71: 0.002 | DD71: 0.002 | DE71: 0.002 | DF71: 0.002 | DG71: 0.001 | DH71: 0.001 | DI71: 0.001 | DJ71: 0.001 | DK71: 0.002 | DL71: 0.001 | DM71: 0.002 | DN71: 0.003 | DO71: 0.002 | DP71: 0.002 | DQ71: 0.002 | DR71: 0.002 | DS71: 0.009 | DT71: 0.011 | DU71: 0.001 | DV71: 0.001 | DW71: 0.001 | DX71: 0.001 | DY71: 0.001 | DZ71: 0.002
A72: Acylcarnitines | B72: AC(10:1) | C72: 6 | D72: 9 | E72: 0 | F72: 15 | G72: 10 | H72: 10 | I72: 9 | J72: 11 | K72: 70 | L72: =K72/117*100 -> 59.8 | N72: 0.005 | O72: 0 | P72: 0 | Q72: 0.025 | R72: 0.015 | S72: 0.016 | T72: 0 | U72: 0 | V72: 0 | W72: 0.04 | X72: 0 | Y72: 0.003 | Z72: 0.004 | AA72: 0.004 | AB72: 0.004 | AC72: 0.003 | AD72: 0.003 | AE72: 0.006 | AF72: 0.003 | AG72: 0.005 | AH72: 0.005 | AI72: 0.003 | AJ72: 0.003 | AK72: 0.002 | AL72: 0.003 | AM72: 0.004 | AN72: 0.005 | AO72: 0.007 | AP72: 0.003 | AQ72: 0.003 | AR72: 0.003 | AS72: 0.004 | AT72: 0.003 | AU72: 0.004 | AV72: 0.005 | AW72: 0.002 | AX72: 0.003 | AY72: 0.003 | AZ72: 0.003 | BA72: 0 | BB72: 0 | BC72: 0 | BD72: 0 | BE72: 0.044 | BF72: 0 | BG72: 0 | BH72: 0 | BI72: 0 | BJ72: 0 | BK72: 0.004 | BL72: 0.005 | BM72: 0.006 | BN72: 0.004 | BO72: 0.005 | BP72: 0.004 | BQ72: 0.004 | BR72: 0.005 | BS72: 0.004 | BT72: 0.004 | BU72: 0 | BV72: 0 | BW72: 0 | BX72: 0 | BY72: 0 | BZ72: 0 | CA72: 0 | CB72: 0 | CC72: 0 | CD72: 0 | CE72: 0 | CF72: 0 | CG72: 0 | CH72: 0 | CI72: 0 | CJ72: 0 | CK72: 0 | CL72: 0 | CM72: 0 | CN72: 0 | CO72: 0 | CP72: 0 | CQ72: 0 | CR72: 0 | CS72: 0 | CT72: 0 | CU72: 0 | CV72: 0 | CW72: 0 | CX72: 0 | CY72: 0 | CZ72: 0 | DA72: 0 | DB72: 0 | DC72: 0 | DD72: 0.001 | DE72: 0 | DF72: 0 | DG72: 0 | DH72: 0 | DI72: 0 | DJ72: 0 | DK72: 0 | DL72: 0 | DM72: 0 | DN72: 0 | DO72: 0 | DP72: 0 | DQ72: 0 | DR72: 0 | DS72: 0 | DT72: 0 | DU72: 0 | DV72: 0.001 | DW72: 0 | DX72: 0 | DY72: 0 | DZ72: 0.001
A73: Acylcarnitines | B73: AC(10:2) | C73: 1 | D73: 28 | E73: 10 | F73: 0 | G73: 0 | H73: 0 | I73: 0 | J73: 0 | K73: 39 | L73: 33.3 | N73: 0 | O73: 0.001 | P73: 0.003 | Q73: 0.006 | R73: 0.001 | S73: 0.004 | T73: 0.001 | U73: 0.001 | V73: 0.001 | W73: 0.006 | X73: 0.001 | Y73: 0 | Z73: 0 | AA73: 0 | AB73: 0 | AC73: 0 | AD73: 0 | AE73: 0 | AF73: 0 | AG73: 0 | AH73: 0 | AI73: 0 | AJ73: 0 | AK73: 0 | AL73: 0 | AM73: 0 | AN73: 0 | AO73: 0 | AP73: 0 | AQ73: 0 | AR73: 0 | AS73: 0 | AT73: 0 | AU73: 0 | AV73: 0 | AW73: 0 | AX73: 0 | AY73: 0 | AZ73: 0 | BA73: 0.001 | BB73: 0.001 | BC73: 0.001 | BD73: 0.002 | BE73: 0.006 | BF73: 0.001 | BG73: 0.001 | BH73: 0.001 | BI73: 0.001 | BJ73: 0.003 | BK73: 0 | BL73: 0 | BM73: 0 | BN73: 0 | BO73: 0 | BP73: 0 | BQ73: 0 | BR73: 0 | BS73: 0 | BT73: 0 | BU73: 0.001 | BV73: 0.001 | BW73: 0.001 | BX73: 0.001 | BY73: 0.001 | BZ73: 0.001 | CA73: 0.001 | CB73: 0.001 | CC73: 0.001 | CD73: 0.001 | CE73: 0.001 | CF73: 0.002 | CG73: 0.001 | CH73: 0.001 | CI73: 0.001 | CJ73: 0.001 | CK73: 0.001 | CL73: 0.001 | CM73: 0.003 | CN73: 0.001 | CO73: 0.001 | CP73: 0.001 | CQ73: 0.001 | CR73: 0.001 | CS73: 0.001 | CT73: 0.001 | CU73: 0.001 | CV73: 0.001 | CW73: 0.001 | CX73: 0.001 | CY73: 0.001 | CZ73: 0.001 | DA73: 0.001 | DB73: 0.001 | DC73: 0.002 | DD73: 0.001 | DE73: 0.002 | DF73: 0.001 | DG73: 0.001 | DH73: 0.001 | DI73: 0.001 | DJ73: 0.001 | DK73: 0.001 | DL73: 0.001 | DM73: 0.001 | DN73: 0.002 | DO73: 0.001 | DP73: 0.001 | DQ73: 0.001 | DR73: 0.001 | DS73: 0.001 | DT73: 0.001 | DU73: 0.001 | DV73: 0.001 | DW73: 0.001 | DX73: 0.001 | DY73: 0.001 | DZ73: 0.001
A74: Acylcarnitines | B74: AC(10:3) | C74: 0 | D74: 0 | E74: 0 | F74: 0 | G74: 0 | H74: 0 | I74: 0 | J74: 0 | K74: 0 | L74: 0.0 | N74: 0.008 | O74: 0.002 | P74: 0.003 | Q74: 0.005 | R74: 0.003 | S74: 0.004 | T74: 0.002 | U74: 0.004 | V74: 0.005 | W74: 0.007 | X74: 0.003 | Y74: 0.006 | Z74: 0.006 | AA74: 0.006 | AB74: 0.006 | AC74: 0.009 | AD74: 0.007 | AE74: 0.01 | AF74: 0.007 | AG74: 0.009 | AH74: 0.009 | AI74: 0.007 | AJ74: 0.006 | AK74: 0.003 | AL74: 0.005 | AM74: 0.006 | AN74: 0.009 | AO74: 0.012 | AP74: 0.006 | AQ74: 0.007 | AR74: 0.005 | AS74: 0.006 | AT74: 0.006 | AU74: 0.007 | AV74: 0.007 | AW74: 0.004 | AX74: 0.006 | AY74: 0.006 | AZ74: 0.007 | BA74: 0.003 | BB74: 0.003 | BC74: 0.003 | BD74: 0.005 | BE74: 0.004 | BF74: 0.002 | BG74: 0.003 | BH74: 0.003 | BI74: 0.003 | BJ74: 0.006 | BK74: 0.006 | BL74: 0.006 | BM74: 0.007 | BN74: 0.006 | BO74: 0.007 | BP74: 0.005 | BQ74: 0.006 | BR74: 0.008 | BS74: 0.006 | BT74: 0.006 | BU74: 0.002 | BV74: 0.003 | BW74: 0.003 | BX74: 0.003 | BY74: 0.003 | BZ74: 0.002 | CA74: 0.003 | CB74: 0.003 | CC74: 0.002 | CD74: 0.002 | CE74: 0.005 | CF74: 0.005 | CG74: 0.003 | CH74: 0.002 | CI74: 0.003 | CJ74: 0.003 | CK74: 0.003 | CL74: 0.004 | CM74: 0.007 | CN74: 0.002 | CO74: 0.003 | CP74: 0.003 | CQ74: 0.003 | CR74: 0.003 | CS74: 0.003 | CT74: 0.002 | CU74: 0.004 | CV74: 0.004 | CW74: 0.003 | CX74: 0.003 | CY74: 0.004 | CZ74: 0.003 | DA74: 0.002 | DB74: 0.003 | DC74: 0.004 | DD74: 0.004 | DE74: 0.004 | DF74: 0.003 | DG74: 0.004 | DH74: 0.003 | DI74: 0.003 | DJ74: 0.003 | DK74: 0.003 | DL74: 0.003 | DM74: 0.005 | DN74: 0.003 | DO74: 0.004 | DP74: 0.004 | DQ74: 0.005 | DR74: 0.004 | DS74: 0.004 | DT74: 0.004 | DU74: 0.003 | DV74: 0.004 | DW74: 0.003 | DX74: 0.003 | DY74: 0.003 | DZ74: 0.004
A75: Acylcarnitines | B75: AC(11:0) | C75: 0 | D75: 0 | E75: 0 | F75: 0 | G75: 0 | H75: 0 | I75: 0 | J75: 0 | K75: 0 | L75: 0.0 | N75: 0.015 | O75: 0.01 | P75: 0.005 | Q75: 0.006 | R75: 0.005 | S75: 0.004 | T75: 0.004 | U75: 0.005 | V75: 0.008 | W75: 0.004 | X75: 0.004 | Y75: 0.009 | Z75: 0.01 | AA75: 0.01 | AB75: 0.01 | AC75: 0.011 | AD75: 0.01 | AE75: 0.016 | AF75: 0.009 | AG75: 0.014 | AH75: 0.014 | AI75: 0.011 | AJ75: 0.009 | AK75: 0.005 | AL75: 0.009 | AM75: 0.011 | AN75: 0.014 | AO75: 0.018 | AP75: 0.011 | AQ75: 0.009 | AR75: 0.008 | AS75: 0.01 | AT75: 0.009 | AU75: 0.01 | AV75: 0.014 | AW75: 0.014 | AX75: 0.01 | AY75: 0.009 | AZ75: 0.011 | BA75: 0.004 | BB75: 0.005 | BC75: 0.005 | BD75: 0.005 | BE75: 0.021 | BF75: 0.004 | BG75: 0.004 | BH75: 0.004 | BI75: 0.004 | BJ75: 0.008 | BK75: 0.007 | BL75: 0.01 | BM75: 0.014 | BN75: 0.009 | BO75: 0.01 | BP75: 0.009 | BQ75: 0.009 | BR75: 0.014 | BS75: 0.01 | BT75: 0.009 | BU75: 0.003 | BV75: 0.004 | BW75: 0.005 | BX75: 0.004 | BY75: 0.004 | BZ75: 0.003 | CA75: 0.004 | CB75: 0.003 | CC75: 0.003 | CD75: 0.004 | CE75: 0.006 | CF75: 0.007 | CG75: 0.004 | CH75: 0.004 | CI75: 0.004 | CJ75: 0.005 | CK75: 0.004 | CL75: 0.005 | CM75: 0.004 | CN75: 0.003 | CO75: 0.004 | CP75: 0.004 | CQ75: 0.004 | CR75: 0.01 | CS75: 0.004 | CT75: 0.003 | CU75: 0.005 | CV75: 0.005 | CW75: 0.004 | CX75: 0.004 | CY75: 0.005 | CZ75: 0.004 | DA75: 0.003 | DB75: 0.004 | DC75: 0.005 | DD75: 0.004 | DE75: 0.005 | DF75: 0.004 | DG75: 0.005 | DH75: 0.004 | DI75: 0.004 | DJ75: 0.004 | DK75: 0.004 | DL75: 0.003 | DM75: 0.005 | DN75: 0.008 | DO75: 0.005 | DP75: 0.015 | DQ75: 0.005 | DR75: 0.004 | DS75: 0.004 | DT75: 0.006 | DU75: 0.003 | DV75: 0.004 | DW75: 0.003 | DX75: 0.004 | DY75: 0.003 | DZ75: 0.004
A76: Acylcarnitines | B76: AC(12:0) | C76: 0 | D76: 0 | E76: 0 | F76: 0 | G76: 0 | H76: 0 | I76: 0 | J76: 0 | K76: 0 | L76: 0.0 | N76: 0.006 | O76: 0.004 | P76: 0.021 | Q76: 0.049 | R76: 0.024 | S76: 0.004 | T76: 0.003 | U76: 0.006 | V76: 0.006 | W76: 0.008 | X76: 0.005 | Y76: 0.004 | Z76: 0.005 | AA76: 0.004 | AB76: 0.005 | AC76: 0.005 | AD76: 0.007 | AE76: 0.008 | AF76: 0.006 | AG76: 0.006 | AH76: 0.006 | AI76: 0.006 | AJ76: 0.005 | AK76: 0.003 | AL76: 0.005 | AM76: 0.005 | AN76: 0.007 | AO76: 0.008 | AP76: 0.005 | AQ76: 0.006 | AR76: 0.004 | AS76: 0.005 | AT76: 0.004 | AU76: 0.005 | AV76: 0.006 | AW76: 0.004 | AX76: 0.006 | AY76: 0.004 | AZ76: 0.012 | BA76: 0.004 | BB76: 0.006 | BC76: 0.005 | BD76: 0.007 | BE76: 0.027 | BF76: 0.004 | BG76: 0.003 | BH76: 0.004 | BI76: 0.007 | BJ76: 0.008 | BK76: 0.006 | BL76: 0.006 | BM76: 0.008 | BN76: 0.004 | BO76: 0.005 | BP76: 0.006 | BQ76: 0.004 | BR76: 0.006 | BS76: 0.004 | BT76: 0.006 | BU76: 0.004 | BV76: 0.005 | BW76: 0.009 | BX76: 0.003 | BY76: 0.005 | BZ76: 0.004 | CA76: 0.005 | CB76: 0.004 | CC76: 0.003 | CD76: 0.003 | CE76: 0.005 | CF76: 0.007 | CG76: 0.005 | CH76: 0.004 | CI76: 0.004 | CJ76: 0.004 | CK76: 0.004 | CL76: 0.005 | CM76: 0.006 | CN76: 0.003 | CO76: 0.004 | CP76: 0.003 | CQ76: 0.004 | CR76: 0.005 | CS76: 0.011 | CT76: 0.003 | CU76: 0.006 | CV76: 0.005 | CW76: 0.004 | CX76: 0.004 | CY76: 0.004 | CZ76: 0.004 | DA76: 0.004 | DB76: 0.003 | DC76: 0.005 | DD76: 0.005 | DE76: 0.005 | DF76: 0.006 | DG76: 0.005 | DH76: 0.003 | DI76: 0.004 | DJ76: 0.004 | DK76: 0.004 | DL76: 0.003 | DM76: 0.006 | DN76: 0.008 | DO76: 0.006 | DP76: 0.003 | DQ76: 0.007 | DR76: 0.004 | DS76: 0.005 | DT76: 0.005 | DU76: 0.003 | DV76: 0.005 | DW76: 0.004 | DX76: 0.004 | DY76: 0.004 | DZ76: 0.005
A77: Acylcarnitines | B77: AC(12:0-DC) | C77: 0 | D77: 0 | E77: 0 | F77: 0 | G77: 0 | H77: 0 | I77: 0 | J77: 0 | K77: 0 | L77: 0.0 | N77: 0.019 | O77: 0.006 | P77: 0.001 | Q77: 0.004 | R77: 0.007 | S77: 0.006 | T77: 0.004 | U77: 0.007 | V77: 0.003 | W77: 0.002 | X77: 0.001 | Y77: 0.012 | Z77: 0.014 | AA77: 0.014 | AB77: 0.015 | AC77: 0.015 | AD77: 0.013 | AE77: 0.022 | AF77: 0.013 | AG77: 0.019 | AH77: 0.016 | AI77: 0.014 | AJ77: 0.013 | AK77: 0.007 | AL77: 0.013 | AM77: 0.019 | AN77: 0.02 | AO77: 0.022 | AP77: 0.014 | AQ77: 0.013 | AR77: 0.011 | AS77: 0.012 | AT77: 0.013 | AU77: 0.016 | AV77: 0.017 | AW77: 0.008 | AX77: 0.016 | AY77: 0.012 | AZ77: 0.014 | BA77: 0.002 | BB77: 0.002 | BC77: 0.002 | BD77: 0.003 | BE77: 0.002 | BF77: 0.002 | BG77: 0.005 | BH77: 0.002 | BI77: 0.009 | BJ77: 0.003 | BK77: 0.012 | BL77: 0.016 | BM77: 0.023 | BN77: 0.013 | BO77: 0.018 | BP77: 0.016 | BQ77: 0.013 | BR77: 0.024 | BS77: 0.015 | BT77: 0.016 | BU77: 0.001 | BV77: 0.005 | BW77: 0.002 | BX77: 0.003 | BY77: 0.002 | BZ77: 0.003 | CA77: 0.002 | CB77: 0.005 | CC77: 0.007 | CD77: 0.001 | CE77: 0.004 | CF77: 0.003 | CG77: 0.002 | CH77: 0.001 | CI77: 0.002 | CJ77: 0.002 | CK77: 0.004 | CL77: 0.008 | CM77: 0.002 | CN77: 0.002 | CO77: 0.005 | CP77: 0.002 | CQ77: 0.001 | CR77: 0.002 | CS77: 0.001 | CT77: 0.004 | CU77: 0.002 | CV77: 0.002 | CW77: 0.001 | CX77: 0.001 | CY77: 0.002 | CZ77: 0.001 | DA77: 0.001 | DB77: 0.002 | DC77: 0.002 | DD77: 0.002 | DE77: 0.002 | DF77: 0.001 | DG77: 0.002 | DH77: 0.001 | DI77: 0.001 | DJ77: 0.001 | DK77: 0.001 | DL77: 0.002 | DM77: 0.003 | DN77: 0.003 | DO77: 0.002 | DP77: 0.002 | DQ77: 0.002 | DR77: 0.002 | DS77: 0.001 | DT77: 0.002 | DU77: 0.001 | DV77: 0.001 | DW77: 0.001 | DX77: 0.001 | DY77: 0.002 | DZ77: 0.001
A78: Acylcarnitines | B78: AC(12:1) | C78: 4 | D78: 29 | E78: 7 | F78: 6 | G78: 5 | H78: 7 | I78: 6 | J78: 9 | K78: 73 | L78: 62.4 | N78: 0 | O78: 0.022 | P78: 0.008 | Q78: 0.04 | R78: 0.024 | S78: 0.001 | T78: 0 | U78: 0 | V78: 0.001 | W78: 0.015 | X78: 0 | Y78: 0 | Z78: 0 | AA78: 0 | AB78: 0 | AC78: 0 | AD78: 0 | AE78: 0 | AF78: 0 | AG78: 0 | AH78: 0 | AI78: 0 | AJ78: 0 | AK78: 0 | AL78: 0 | AM78: 0 | AN78: 0 | AO78: 0.002 | AP78: 0 | AQ78: 0 | AR78: 0 | AS78: 0 | AT78: 0 | AU78: 0 | AV78: 0 | AW78: 0 | AX78: 0 | AY78: 0 | AZ78: 0.017 | BA78: 0 | BB78: 0.001 | BC78: 0 | BD78: 0.018 | BE78: 0.027 | BF78: 0.013 | BG78: 0.001 | BH78: 0 | BI78: 0.001 | BJ78: 0.002 | BK78: 0 | BL78: 0 | BM78: 0.004 | BN78: 0 | BO78: 0 | BP78: 0.002 | BQ78: 0 | BR78: 0 | BS78: 0 | BT78: 0.002 | BU78: 0 | BV78: 0.001 | BW78: 0.001 | BX78: 0.014 | BY78: 0 | BZ78: 0 | CA78: 0.001 | CB78: 0.001 | CC78: 0.001 | CD78: 0 | CE78: 0.001 | CF78: 0.001 | CG78: 0 | CH78: 0 | CI78: 0.001 | CJ78: 0 | CK78: 0.004 | CL78: 0 | CM78: 0.012 | CN78: 0 | CO78: 0 | CP78: 0 | CQ78: 0.001 | CR78: 0.001 | CS78: 0.001 | CT78: 0 | CU78: 0 | CV78: 0 | CW78: 0 | CX78: 0 | CY78: 0 | CZ78: 0.001 | DA78: 0 | DB78: 0.001 | DC78: 0.001 | DD78: 0 | DE78: 0 | DF78: 0 | DG78: 0.001 | DH78: 0 | DI78: 0 | DJ78: 0.001 | DK78: 0 | DL78: 0.001 | DM78: 0.001 | DN78: 0 | DO78: 0.001 | DP78: 0 | DQ78: 0.001 | DR78: 0 | DS78: 0 | DT78: 0 | DU78: 0 | DV78: 0.001 | DW78: 0 | DX78: 0.001 | DY78: 0 | DZ78: 0
A79: Acylcarnitines | B79: AC(13:0) | C79: 0 | D79: 0 | E79: 0 | F79: 0 | G79: 0 | H79: 0 | I79: 0 | J79: 0 | K79: 0 | L79: 0.0 | N79: 0.008 | O79: 0.001 | P79: 0.001 | Q79: 0.001 | R79: 0.001 | S79: 0.001 | T79: 0.001 | U79: 0.001 | V79: 0.002 | W79: 0.001 | X79: 0.001 | Y79: 0.004 | Z79: 0.005 | AA79: 0.005 | AB79: 0.007 | AC79: 0.005 | AD79: 0.005 | AE79: 0.009 | AF79: 0.004 | AG79: 0.006 | AH79: 0.007 | AI79: 0.007 | AJ79: 0.005 | AK79: 0.003 | AL79: 0.005 | AM79: 0.008 | AN79: 0.006 | AO79: 0.008 | AP79: 0.006 | AQ79: 0.005 | AR79: 0.005 | AS79: 0.007 | AT79: 0.004 | AU79: 0.005 | AV79: 0.007 | AW79: 0.004 | AX79: 0.005 | AY79: 0.004 | AZ79: 0.004 | BA79: 0.001 | BB79: 0.001 | BC79: 0.001 | BD79: 0.002 | BE79: 0.026 | BF79: 0.001 | BG79: 0.001 | BH79: 0.001 | BI79: 0.001 | BJ79: 0.003 | BK79: 0.005 | BL79: 0.008 | BM79: 0.01 | BN79: 0.005 | BO79: 0.007 | BP79: 0.006 | BQ79: 0.005 | BR79: 0.007 | BS79: 0.005 | BT79: 0.008 | BU79: 0.001 | BV79: 0.001 | BW79: 0.001 | BX79: 0.001 | BY79: 0.001 | BZ79: 0.001 | CA79: 0.001 | CB79: 0.001 | CC79: 0.001 | CD79: 0.001 | CE79: 0.002 | CF79: 0.002 | CG79: 0.001 | CH79: 0.001 | CI79: 0.001 | CJ79: 0.001 | CK79: 0.001 | CL79: 0.001 | CM79: 0.001 | CN79: 0.001 | CO79: 0.001 | CP79: 0.001 | CQ79: 0.001 | CR79: 0.001 | CS79: 0.001 | CT79: 0.006 | CU79: 0.002 | CV79: 0.002 | CW79: 0.001 | CX79: 0.001 | CY79: 0.001 | CZ79: 0.001 | DA79: 0.001 | DB79: 0.001 | DC79: 0.001 | DD79: 0.001 | DE79: 0.002 | DF79: 0.001 | DG79: 0.001 | DH79: 0.001 | DI79: 0.001 | DJ79: 0.001 | DK79: 0.001 | DL79: 0.001 | DM79: 0.002 | DN79: 0.003 | DO79: 0.002 | DP79: 0.001 | DQ79: 0.002 | DR79: 0.001 | DS79: 0.001 | DT79: 0.001 | DU79: 0.001 | DV79: 0.001 | DW79: 0.001 | DX79: 0.001 | DY79: 0.001 | DZ79: 0.001
A80: Acylcarnitines | B80: AC(14:0) | C80: 0 | D80: 12 | E80: 3 | F80: 0 | G80: 0 | H80: 0 | I80: 0 | J80: 0 | K80: 15 | L80: 12.8 | N80: 0.008 | O80: 0.001 | P80: 0.004 | Q80: 0.012 | R80: 0.005 | S80: 0.001 | T80: 0.001 | U80: 0.001 | V80: 0.002 | W80: 0.003 | X80: 0.001 | Y80: 0.005 | Z80: 0.006 | AA80: 0 | AB80: 0.007 | AC80: 0.012 | AD80: 0 | AE80: 0.004 | AF80: 0 | AG80: 0.009 | AH80: 0.002 | AI80: 0 | AJ80: 0.007 | AK80: 0 | AL80: 0.009 | AM80: 0.008 | AN80: 0 | AO80: 0.012 | AP80: 0 | AQ80: 0.005 | AR80: 0 | AS80: 0.007 | AT80: 0.004 | AU80: 0 | AV80: 0 | AW80: 0 | AX80: 0.008 | AY80: 0 | AZ80: 0.016 | BA80: 0.002 | BB80: 0.002 | BC80: 0.002 | BD80: 0.002 | BE80: 0.003 | BF80: 0.002 | BG80: 0.001 | BH80: 0.002 | BI80: 0.003 | BJ80: 0.003 | BK80: 0.005 | BL80: 0.004 | BM80: 0.006 | BN80: 0.006 | BO80: 0 | BP80: 0.009 | BQ80: 0.005 | BR80: 0.005 | BS80: 0 | BT80: 0 | BU80: 0.001 | BV80: 0.002 | BW80: 0.027 | BX80: 0.001 | BY80: 0.001 | BZ80: 0.001 | CA80: 0.001 | CB80: 0.001 | CC80: 0.001 | CD80: 0.001 | CE80: 0.002 | CF80: 0.003 | CG80: 0.001 | CH80: 0.001 | CI80: 0.002 | CJ80: 0.001 | CK80: 0.001 | CL80: 0.002 | CM80: 0.001 | CN80: 0.001 | CO80: 0.001 | CP80: 0.001 | CQ80: 0.001 | CR80: 0.002 | CS80: 0.001 | CT80: 0.001 | CU80: 0.002 | CV80: 0.001 | CW80: 0.001 | CX80: 0.001 | CY80: 0.001 | CZ80: 0.001 | DA80: 0.001 | DB80: 0.001 | DC80: 0.001 | DD80: 0.001 | DE80: 0.001 | DF80: 0.001 | DG80: 0.001 | DH80: 0.001 | DI80: 0.142 | DJ80: 0.001 | DK80: 0.001 | DL80: 0.001 | DM80: 0.001 | DN80: 0.002 | DO80: 0.001 | DP80: 0.001 | DQ80: 0.001 | DR80: 0.001 | DS80: 0.001 | DT80: 0.001 | DU80: 0.001 | DV80: 0.001 | DW80: 0.001 | DX80: 0.001 | DY80: 0.001 | DZ80: 0.001
A81: Acylcarnitines | B81: AC(14:0-OH) | C81: 0 | D81: 0 | E81: 0 | F81: 0 | G81: 0 | H81: 0 | I81: 0 | J81: 0 | K81: 0 | L81: 0.0 | N81: 0.006 | O81: 0.001 | P81: 0.001 | Q81: 0.001 | R81: 0.001 | S81: 0.002 | T81: 0.001 | U81: 0.001 | V81: 0.002 | W81: 0.001 | X81: 0.001 | Y81: 0.004 | Z81: 0.004 | AA81: 0.006 | AB81: 0.005 | AC81: 0.005 | AD81: 0.004 | AE81: 0.008 | AF81: 0.004 | AG81: 0.006 | AH81: 0.005 | AI81: 0.004 | AJ81: 0.004 | AK81: 0.003 | AL81: 0.004 | AM81: 0.006 | AN81: 0.006 | AO81: 0.007 | AP81: 0.004 | AQ81: 0.004 | AR81: 0.004 | AS81: 0.004 | AT81: 0.004 | AU81: 0.004 | AV81: 0.006 | AW81: 0.003 | AX81: 0.005 | AY81: 0.004 | AZ81: 0.005 | BA81: 0.001 | BB81: 0.002 | BC81: 0.001 | BD81: 0.002 | BE81: 0.002 | BF81: 0.001 | BG81: 0.001 | BH81: 0.001 | BI81: 0.001 | BJ81: 0.002 | BK81: 0.004 | BL81: 0.005 | BM81: 0.007 | BN81: 0.004 | BO81: 0.005 | BP81: 0.005 | BQ81: 0.004 | BR81: 0.006 | BS81: 0.005 | BT81: 0.006 | BU81: 0.001 | BV81: 0.001 | BW81: 0.001 | BX81: 0.001 | BY81: 0.001 | BZ81: 0.001 | CA81: 0.001 | CB81: 0.001 | CC81: 0.001 | CD81: 0.001 | CE81: 0.002 | CF81: 0.002 | CG81: 0.001 | CH81: 0.001 | CI81: 0.001 | CJ81: 0.001 | CK81: 0.001 | CL81: 0.002 | CM81: 0.001 | CN81: 0.001 | CO81: 0.001 | CP81: 0.001 | CQ81: 0.001 | CR81: 0.001 | CS81: 0.001 | CT81: 0.001 | CU81: 0.001 | CV81: 0.002 | CW81: 0.001 | CX81: 0.001 | CY81: 0.001 | CZ81: 0.001 | DA81: 0.001 | DB81: 0.001 | DC81: 0.001 | DD81: 0.001 | DE81: 0.001 | DF81: 0.001 | DG81: 0.001 | DH81: 0.001 | DI81: 0.001 | DJ81: 0.001 | DK81: 0.001 | DL81: 0.001 | DM81: 0.001 | DN81: 0.002 | DO81: 0.001 | DP81: 0.001 | DQ81: 0.001 | DR81: 0.001 | DS81: 0.001 | DT81: 0.001 | DU81: 0.001 | DV81: 0.001 | DW81: 0.001 | DX81: 0.001 | DY81: 0.001 | DZ81: 0.001
A82: Acylcarnitines | B82: AC(14:1) | C82: 0 | D82: 0 | E82: 0 | F82: 0 | G82: 0 | H82: 0 | I82: 0 | J82: 0 | K82: 0 | L82: 0.0 | N82: 0.008 | O82: 0.004 | P82: 0.005 | Q82: 0.025 | R82: 0.008 | S82: 0.004 | T82: 0.004 | U82: 0.005 | V82: 0.008 | W82: 0.012 | X82: 0.004 | Y82: 0.007 | Z82: 0.008 | AA82: 0.024 | AB82: 0.007 | AC82: 0.007 | AD82: 0.007 | AE82: 0.007 | AF82: 0.005 | AG82: 0.006 | AH82: 0.004 | AI82: 0.005 | AJ82: 0.004 | AK82: 0.005 | AL82: 0.004 | AM82: 0.007 | AN82: 0.105 | AO82: 0.005 | AP82: 0.004 | AQ82: 0.006 | AR82: 0.004 | AS82: 0.004 | AT82: 0.009 | AU82: 0.009 | AV82: 0.007 | AW82: 0.017 | AX82: 0.005 | AY82: 0.007 | AZ82: 0.033 | BA82: 0.005 | BB82: 0.006 | BC82: 0.005 | BD82: 0.007 | BE82: 0.017 | BF82: 0.005 | BG82: 0.004 | BH82: 0.004 | BI82: 0.006 | BJ82: 0.008 | BK82: 0.01 | BL82: 0.007 | BM82: 0.01 | BN82: 0.007 | BO82: 0.009 | BP82: 0.009 | BQ82: 0.006 | BR82: 0.007 | BS82: 0.012 | BT82: 0.007 | BU82: 0.003 | BV82: 0.006 | BW82: 0.005 | BX82: 0.004 | BY82: 0.005 | BZ82: 0.004 | CA82: 0.004 | CB82: 0.003 | CC82: 0.005 | CD82: 0.003 | CE82: 0.009 | CF82: 0.008 | CG82: 0.004 | CH82: 0.004 | CI82: 0.005 | CJ82: 0.004 | CK82: 0.004 | CL82: 0.007 | CM82: 0.004 | CN82: 0.008 | CO82: 0.004 | CP82: 0.004 | CQ82: 0.004 | CR82: 0.004 | CS82: 0.004 | CT82: 0.004 | CU82: 0.005 | CV82: 0.006 | CW82: 0.004 | CX82: 0.004 | CY82: 0.004 | CZ82: 0.004 | DA82: 0.003 | DB82: 0.004 | DC82: 0.007 | DD82: 0.005 | DE82: 0.005 | DF82: 0.004 | DG82: 0.004 | DH82: 0.003 | DI82: 0.004 | DJ82: 0.004 | DK82: 0.004 | DL82: 0.004 | DM82: 0.005 | DN82: 0.008 | DO82: 0.004 | DP82: 0.004 | DQ82: 0.005 | DR82: 0.004 | DS82: 0.004 | DT82: 0.004 | DU82: 0.004 | DV82: 0.004 | DW82: 0.003 | DX82: 0.003 | DY82: 0.004 | DZ82: 0.004
A83: Acylcarnitines | B83: AC(14:1-DC) | C83: 0 | D83: 0 | E83: 0 | F83: 0 | G83: 0 | H83: 0 | I83: 0 | J83: 0 | K83: 0 | L83: 0.0 | N83: 0.049 | O83: 0.038 | P83: 0.031 | Q83: 0.046 | R83: 0.038 | S83: 0.031 | T83: 0.03 | U83: 0.043 | V83: 0.054 | W83: 0.044 | X83: 0.032 | Y83: 0.018 | Z83: 0.025 | AA83: 0.026 | AB83: 0.029 | AC83: 0.033 | AD83: 0.032 | AE83: 0.056 | AF83: 0.024 | AG83: 0.054 | AH83: 0.035 | AI83: 0.027 | AJ83: 0.024 | AK83: 0.011 | AL83: 0.025 | AM83: 0.036 | AN83: 0.029 | AO83: 0.057 | AP83: 0.024 | AQ83: 0.026 | AR83: 0.017 | AS83: 0.026 | AT83: 0.02 | AU83: 0.027 | AV83: 0.031 | AW83: 0.016 | AX83: 0.027 | AY83: 0.026 | AZ83: 0.062 | BA83: 0.039 | BB83: 0.042 | BC83: 0.03 | BD83: 0.051 | BE83: 0.046 | BF83: 0.042 | BG83: 0.036 | BH83: 0.032 | BI83: 0.036 | BJ83: 0.063 | BK83: 0.018 | BL83: 0.028 | BM83: 0.046 | BN83: 0.026 | BO83: 0.036 | BP83: 0.03 | BQ83: 0.026 | BR83: 0.057 | BS83: 0.031 | BT83: 0.031 | BU83: 0.035 | BV83: 0.037 | BW83: 0.049 | BX83: 0.032 | BY83: 0.033 | BZ83: 0.034 | CA83: 0.04 | CB83: 0.024 | CC83: 0.025 | CD83: 0.035 | CE83: 0.048 | CF83: 0.07 | CG83: 0.039 | CH83: 0.039 | CI83: 0.044 | CJ83: 0.034 | CK83: 0.032 | CL83: 0.036 | CM83: 0.035 | CN83: 0.015 | CO83: 0.032 | CP83: 0.028 | CQ83: 0.039 | CR83: 0.036 | CS83: 0.041 | CT83: 0.015 | CU83: 0.066 | CV83: 0.068 | CW83: 0.035 | CX83: 0.032 | CY83: 0.054 | CZ83: 0.035 | DA83: 0.037 | DB83: 0.028 | DC83: 0.038 | DD83: 0.037 | DE83: 0.05 | DF83: 0.044 | DG83: 0.044 | DH83: 0.04 | DI83: 0.045 | DJ83: 0.042 | DK83: 0.043 | DL83: 0.033 | DM83: 0.041 | DN83: 0.073 | DO83: 0.042 | DP83: 0.039 | DQ83: 0.056 | DR83: 0.038 | DS83: 0.037 | DT83: 0.038 | DU83: 0.033 | DV83: 0.046 | DW83: 0.037 | DX83: 0.039 | DY83: 0.042 | DZ83: 0.044
A84: Acylcarnitines | B84: AC(14:1-OH) | C84: 1 | D84: 3 | E84: 0 | F84: 4 | G84: 4 | H84: 5 | I84: 4 | J84: 1 | K84: 22 | L84: 18.8 | N84: 0.008 | O84: 0.002 | P84: 0.002 | Q84: 0.002 | R84: 0.003 | S84: 0.002 | T84: 0.002 | U84: 0.003 | V84: 0.002 | W84: 0.005 | X84: 0 | Y84: 0.007 | Z84: 0.007 | AA84: 0.007 | AB84: 0.008 | AC84: 0.007 | AD84: 0.006 | AE84: 0.012 | AF84: 0.006 | AG84: 0.008 | AH84: 0.009 | AI84: 0.005 | AJ84: 0.007 | AK84: 0.003 | AL84: 0.007 | AM84: 0.007 | AN84: 0.009 | AO84: 0.01 | AP84: 0.007 | AQ84: 0.007 | AR84: 0.006 | AS84: 0.005 | AT84: 0.006 | AU84: 0.007 | AV84: 0.009 | AW84: 0.004 | AX84: 0.007 | AY84: 0.006 | AZ84: 0.006 | BA84: 0.001 | BB84: 0.002 | BC84: 0.002 | BD84: 0.003 | BE84: 0.002 | BF84: 0.002 | BG84: 0 | BH84: 0 | BI84: 0.003 | BJ84: 0 | BK84: 0.007 | BL84: 0.007 | BM84: 0.011 | BN84: 0.007 | BO84: 0.009 | BP84: 0.008 | BQ84: 0.007 | BR84: 0.011 | BS84: 0.006 | BT84: 0.008 | BU84: 0.003 | BV84: 0.003 | BW84: 0.003 | BX84: 0.001 | BY84: 0.002 | BZ84: 0.002 | CA84: 0.003 | CB84: 0.001 | CC84: 0 | CD84: 0 | CE84: 0 | CF84: 0.004 | CG84: 0.001 | CH84: 0 | CI84: 0.002 | CJ84: 0 | CK84: 0.002 | CL84: 0.003 | CM84: 0 | CN84: 0.002 | CO84: 0 | CP84: 0.002 | CQ84: 0.001 | CR84: 0 | CS84: 0.002 | CT84: 0.002 | CU84: 0.002 | CV84: 0 | CW84: 0.001 | CX84: 0 | CY84: 0 | CZ84: 0 | DA84: 0.011 | DB84: 0 | DC84: 0.011 | DD84: 0.002 | DE84: 0 | DF84: 0.002 | DG84: 0.001 | DH84: 0 | DI84: 0 | DJ84: 0 | DK84: 0.001 | DL84: 0.001 | DM84: 0.002 | DN84: 0.002 | DO84: 0.003 | DP84: 0.001 | DQ84: 0.002 | DR84: 0.001 | DS84: 0.001 | DT84: 0 | DU84: 0.002 | DV84: 0.002 | DW84: 0.001 | DX84: 0.001 | DY84: 0.002 | DZ84: 0.002
A85: Acylcarnitines | B85: AC(14:2) | C85: 10 | D85: 16 | E85: 1 | F85: 15 | G85: 9 | H85: 10 | I85: 10 | J85: 12 | K85: 83 | L85: 70.9 | N85: 0.002 | O85: 0 | P85: 0 | Q85: 0 | R85: 0 | S85: 0 | T85: 0 | U85: 0 | V85: 0 | W85: 0 | X85: 0 | Y85: 0 | Z85: 0.001 | AA85: 0 | AB85: 0.002 | AC85: 0.001 | AD85: 0.002 | AE85: 0 | AF85: 0.001 | AG85: 0 | AH85: 0.002 | AI85: 0.001 | AJ85: 0.001 | AK85: 0.001 | AL85: 0.002 | AM85: 0.001 | AN85: 0.002 | AO85: 0.002 | AP85: 0 | AQ85: 0.001 | AR85: 0.001 | AS85: 0 | AT85: 0.001 | AU85: 0.001 | AV85: 0.002 | AW85: 0.001 | AX85: 0.002 | AY85: 0.002 | AZ85: 0.001 | BA85: 0 | BB85: 0 | BC85: 0 | BD85: 0 | BE85: 0 | BF85: 0 | BG85: 0 | BH85: 0 | BI85: 0 | BJ85: 0 | BK85: 0.001 | BL85: 0.001 | BM85: 0.003 | BN85: 0.002 | BO85: 0.002 | BP85: 0.002 | BQ85: 0.001 | BR85: 0.003 | BS85: 0.001 | BT85: 0 | BU85: 0 | BV85: 0 | BW85: 0 | BX85: 0 | BY85: 0 | BZ85: 0 | CA85: 0 | CB85: 0 | CC85: 0 | CD85: 0 | CE85: 0 | CF85: 0 | CG85: 0 | CH85: 0 | CI85: 0 | CJ85: 0 | CK85: 0 | CL85: 0.001 | CM85: 0 | CN85: 0 | CO85: 0 | CP85: 0 | CQ85: 0 | CR85: 0 | CS85: 0 | CT85: 0 | CU85: 0 | CV85: 0 | CW85: 0 | CX85: 0 | CY85: 0 | CZ85: 0 | DA85: 0 | DB85: 0 | DC85: 0 | DD85: 0 | DE85: 0 | DF85: 0 | DG85: 0 | DH85: 0 | DI85: 0 | DJ85: 0 | DK85: 0 | DL85: 0 | DM85: 0 | DN85: 0 | DO85: 0 | DP85: 0 | DQ85: 0 | DR85: 0 | DS85: 0.001 | DT85: 0 | DU85: 0 | DV85: 0 | DW85: 0 | DX85: 0 | DY85: 0 | DZ85: 0
A86: Acylcarnitines | B86: AC(14:2-OH) | C86: 0 | D86: 0 | E86: 0 | F86: 0 | G86: 0 | H86: 0 | I86: 0 | J86: 0 | K86: 0 | L86: 0.0 | N86: 0.005 | O86: 0.001 | P86: 0.002 | Q86: 0.004 | R86: 0.001 | S86: 0.003 | T86: 0.002 | U86: 0.003 | V86: 0.002 | W86: 0.001 | X86: 0.001 | Y86: 0.003 | Z86: 0.004 | AA86: 0.005 | AB86: 0.004 | AC86: 0.004 | AD86: 0.004 | AE86: 0.005 | AF86: 0.004 | AG86: 0.005 | AH86: 0.003 | AI86: 0.004 | AJ86: 0.004 | AK86: 0.004 | AL86: 0.003 | AM86: 0.005 | AN86: 0.006 | AO86: 0.007 | AP86: 0.004 | AQ86: 0.004 | AR86: 0.005 | AS86: 0.006 | AT86: 0.003 | AU86: 0.004 | AV86: 0.005 | AW86: 0.002 | AX86: 0.004 | AY86: 0.003 | AZ86: 0.01 | BA86: 0.002 | BB86: 0.002 | BC86: 0.002 | BD86: 0.002 | BE86: 0.005 | BF86: 0.002 | BG86: 0.001 | BH86: 0.004 | BI86: 0.006 | BJ86: 0.005 | BK86: 0.004 | BL86: 0.003 | BM86: 0.007 | BN86: 0.004 | BO86: 0.004 | BP86: 0.004 | BQ86: 0.002 | BR86: 0.005 | BS86: 0.004 | BT86: 0.005 | BU86: 0.001 | BV86: 0.002 | BW86: 0.002 | BX86: 0.001 | BY86: 0.004 | BZ86: 0.001 | CA86: 0.002 | CB86: 0.001 | CC86: 0.001 | CD86: 0.001 | CE86: 0.002 | CF86: 0.003 | CG86: 0.001 | CH86: 0.001 | CI86: 0.002 | CJ86: 0.001 | CK86: 0.001 | CL86: 0.002 | CM86: 0.001 | CN86: 0.002 | CO86: 0.001 | CP86: 0.003 | CQ86: 0.001 | CR86: 0.001 | CS86: 0.001 | CT86: 0.006 | CU86: 0.002 | CV86: 0.002 | CW86: 0.001 | CX86: 0.001 | CY86: 0.002 | CZ86: 0.001 | DA86: 0.003 | DB86: 0.006 | DC86: 0.011 | DD86: 0.002 | DE86: 0.005 | DF86: 0.001 | DG86: 0.002 | DH86: 0.001 | DI86: 0.002 | DJ86: 0.002 | DK86: 0.001 | DL86: 0.001 | DM86: 0.002 | DN86: 0.002 | DO86: 0.002 | DP86: 0.001 | DQ86: 0.002 | DR86: 0.001 | DS86: 0.002 | DT86: 0.001 | DU86: 0.001 | DV86: 0.001 | DW86: 0.001 | DX86: 0.001 | DY86: 0.001 | DZ86: 0.001
A87: Acylcarnitines | B87: AC(15:0) | C87: 0 | D87: 12 | E87: 4 | F87: 0 | G87: 0 | H87: 0 | I87: 0 | J87: 0 | K87: 16 | L87: 13.7 | N87: 0.006 | O87: 0.001 | P87: 0.001 | Q87: 0.001 | R87: 0.001 | S87: 0.001 | T87: 0.001 | U87: 0.001 | V87: 0.002 | W87: 0.001 | X87: 0.001 | Y87: 0 | Z87: 0.003 | AA87: 0.003 | AB87: 0.004 | AC87: 0.002 | AD87: 0.003 | AE87: 0 | AF87: 0 | AG87: 0 | AH87: 0.003 | AI87: 0.002 | AJ87: 0.003 | AK87: 0 | AL87: 0 | AM87: 0.003 | AN87: 0 | AO87: 0.005 | AP87: 0.003 | AQ87: 0.004 | AR87: 0.001 | AS87: 0.003 | AT87: 0 | AU87: 0.003 | AV87: 0 | AW87: 0.002 | AX87: 0 | AY87: 0 | AZ87: 0 | BA87: 0.001 | BB87: 0.002 | BC87: 0.001 | BD87: 0.002 | BE87: 0.019 | BF87: 0.001 | BG87: 0.001 | BH87: 0.001 | BI87: 0.001 | BJ87: 0.002 | BK87: 0 | BL87: 0.004 | BM87: 0.007 | BN87: 0.003 | BO87: 0 | BP87: 0.005 | BQ87: 0.002 | BR87: 0 | BS87: 0 | BT87: 0.005 | BU87: 0.001 | BV87: 0.001 | BW87: 0.001 | BX87: 0.001 | BY87: 0.001 | BZ87: 0.001 | CA87: 0.001 | CB87: 0.001 | CC87: 0.001 | CD87: 0.001 | CE87: 0.002 | CF87: 0.002 | CG87: 0.001 | CH87: 0.001 | CI87: 0.001 | CJ87: 0.001 | CK87: 0.001 | CL87: 0.004 | CM87: 0.001 | CN87: 0.001 | CO87: 0.001 | CP87: 0.001 | CQ87: 0.001 | CR87: 0.001 | CS87: 0.001 | CT87: 0.001 | CU87: 0.001 | CV87: 0.001 | CW87: 0.001 | CX87: 0.001 | CY87: 0.001 | CZ87: 0.001 | DA87: 0.001 | DB87: 0.001 | DC87: 0.001 | DD87: 0.001 | DE87: 0.001 | DF87: 0.001 | DG87: 0.001 | DH87: 0.001 | DI87: 0.001 | DJ87: 0.001 | DK87: 0.001 | DL87: 0.001 | DM87: 0.001 | DN87: 0.002 | DO87: 0.001 | DP87: 0.001 | DQ87: 0.001 | DR87: 0.001 | DS87: 0.001 | DT87: 0.001 | DU87: 0.001 | DV87: 0.001 | DW87: 0.001 | DX87: 0.001 | DY87: 0.001 | DZ87: 0.001
A88: Acylcarnitines | B88: AC(16:0) | C88: 2 | D88: 27 | E88: 0 | F88: 8 | G88: 8 | H88: 6 | I88: 5 | J88: 11 | K88: 67 | L88: 57.3 | N88: 0.004 | O88: 0 | P88: 0.01 | Q88: 0.013 | R88: 0.003 | S88: 0.002 | T88: 0.002 | U88: 0 | V88: 0.009 | W88: 0.01 | X88: 0.002 | Y88: 0 | Z88: 0 | AA88: 0.002 | AB88: 0 | AC88: 0 | AD88: 0.006 | AE88: 0 | AF88: 0 | AG88: 0 | AH88: 0 | AI88: 0 | AJ88: 0 | AK88: 0 | AL88: 0 | AM88: 0 | AN88: 0 | AO88: 0 | AP88: 0 | AQ88: 0 | AR88: 0.002 | AS88: 0 | AT88: 0 | AU88: 0 | AV88: 0.002 | AW88: 0.001 | AX88: 0 | AY88: 0 | AZ88: 0.006 | BA88: 0 | BB88: 0.003 | BC88: 0.004 | BD88: 0.003 | BE88: 0.013 | BF88: 0 | BG88: 0 | BH88: 0 | BI88: 0.008 | BJ88: 0 | BK88: 0.003 | BL88: 0.003 | BM88: 0.004 | BN88: 0.002 | BO88: 0.002 | BP88: 0.005 | BQ88: 0.005 | BR88: 0.002 | BS88: 0.002 | BT88: 0.003 | BU88: 0 | BV88: 0 | BW88: 0.035 | BX88: 0.002 | BY88: 0 | BZ88: 0.002 | CA88: 0.006 | CB88: 0.001 | CC88: 0 | CD88: 0.001 | CE88: 0 | CF88: 0 | CG88: 0 | CH88: 0 | CI88: 0.005 | CJ88: 0 | CK88: 0 | CL88: 0.004 | CM88: 0 | CN88: 0 | CO88: 0 | CP88: 0 | CQ88: 0 | CR88: 0 | CS88: 0.003 | CT88: 0.003 | CU88: 0.004 | CV88: 0 | CW88: 0 | CX88: 0 | CY88: 0.001 | CZ88: 0.002 | DA88: 0 | DB88: 0 | DC88: 0 | DD88: 0.016 | DE88: 0.003 | DF88: 0 | DG88: 0 | DH88: 0 | DI88: 0.002 | DJ88: 0.04 | DK88: 0 | DL88: 0 | DM88: 0.015 | DN88: 0 | DO88: 0.005 | DP88: 0 | DQ88: 0 | DR88: 0 | DS88: 0 | DT88: 0.005 | DU88: 0 | DV88: 0 | DW88: 0 | DX88: 0 | DY88: 0 | DZ88: 0
A89: Acylcarnitines | B89: AC(16:0-OH) | C89: 0 | D89: 0 | E89: 0 | F89: 0 | G89: 0 | H89: 0 | I89: 0 | J89: 0 | K89: 0 | L89: 0.0 | N89: 0.005 | O89: 0.001 | P89: 0.001 | Q89: 0.001 | R89: 0.001 | S89: 0.001 | T89: 0.001 | U89: 0.001 | V89: 0.001 | W89: 0.001 | X89: 0.001 | Y89: 0.004 | Z89: 0.004 | AA89: 0.003 | AB89: 0.004 | AC89: 0.005 | AD89: 0.004 | AE89: 0.005 | AF89: 0.004 | AG89: 0.005 | AH89: 0.004 | AI89: 0.004 | AJ89: 0.005 | AK89: 0.002 | AL89: 0.004 | AM89: 0.005 | AN89: 0.005 | AO89: 0.006 | AP89: 0.004 | AQ89: 0.005 | AR89: 0.003 | AS89: 0.004 | AT89: 0.004 | AU89: 0.004 | AV89: 0.004 | AW89: 0.003 | AX89: 0.004 | AY89: 0.004 | AZ89: 0.004 | BA89: 0.001 | BB89: 0.001 | BC89: 0.001 | BD89: 0.001 | BE89: 0.001 | BF89: 0.001 | BG89: 0.001 | BH89: 0.001 | BI89: 0.001 | BJ89: 0.002 | BK89: 0.003 | BL89: 0.004 | BM89: 0.005 | BN89: 0.003 | BO89: 0.005 | BP89: 0.004 | BQ89: 0.004 | BR89: 0.005 | BS89: 0.004 | BT89: 0.005 | BU89: 0.001 | BV89: 0.001 | BW89: 0.001 | BX89: 0.001 | BY89: 0.001 | BZ89: 0.001 | CA89: 0.001 | CB89: 0.001 | CC89: 0.001 | CD89: 0.001 | CE89: 0.001 | CF89: 0.002 | CG89: 0.001 | CH89: 0.001 | CI89: 0.001 | CJ89: 0.001 | CK89: 0.001 | CL89: 0.001 | CM89: 0.001 | CN89: 0.001 | CO89: 0.001 | CP89: 0.001 | CQ89: 0.001 | CR89: 0.001 | CS89: 0.001 | CT89: 0.001 | CU89: 0.001 | CV89: 0.001 | CW89: 0.001 | CX89: 0.001 | CY89: 0.001 | CZ89: 0.001 | DA89: 0.001 | DB89: 0.001 | DC89: 0.001 | DD89: 0.001 | DE89: 0.001 | DF89: 0.001 | DG89: 0.001 | DH89: 0.001 | DI89: 0.001 | DJ89: 0.001 | DK89: 0.001 | DL89: 0.001 | DM89: 0.001 | DN89: 0.001 | DO89: 0.001 | DP89: 0.001 | DQ89: 0.001 | DR89: 0.001 | DS89: 0.001 | DT89: 0.001 | DU89: 0.001 | DV89: 0.001 | DW89: 0.001 | DX89: 0.001 | DY89: 0.001 | DZ89: 0.001
A90: Acylcarnitines | B90: AC(16:1) | C90: 0 | D90: 0 | E90: 0 | F90: 0 | G90: 0 | H90: 0 | I90: 0 | J90: 0 | K90: 0 | L90: 0.0 | N90: 0.003 | O90: 0.001 | P90: 0.001 | Q90: 0.01 | R90: 0.002 | S90: 0.001 | T90: 0.001 | U90: 0.001 | V90: 0.004 | W90: 0.005 | X90: 0.001 | Y90: 0.003 | Z90: 0.003 | AA90: 0.002 | AB90: 0.003 | AC90: 0.003 | AD90: 0.003 | AE90: 0.004 | AF90: 0.003 | AG90: 0.003 | AH90: 0.003 | AI90: 0.003 | AJ90: 0.002 | AK90: 0.001 | AL90: 0.003 | AM90: 0.003 | AN90: 0.004 | AO90: 0.004 | AP90: 0.003 | AQ90: 0.003 | AR90: 0.003 | AS90: 0.003 | AT90: 0.003 | AU90: 0.003 | AV90: 0.003 | AW90: 0.002 | AX90: 0.003 | AY90: 0.003 | AZ90: 0.013 | BA90: 0.001 | BB90: 0.002 | BC90: 0.001 | BD90: 0.006 | BE90: 0.008 | BF90: 0.002 | BG90: 0.001 | BH90: 0.001 | BI90: 0.005 | BJ90: 0.002 | BK90: 0.003 | BL90: 0.003 | BM90: 0.004 | BN90: 0.002 | BO90: 0.003 | BP90: 0.003 | BQ90: 0.002 | BR90: 0.003 | BS90: 0.002 | BT90: 0.003 | BU90: 0.001 | BV90: 0.002 | BW90: 0.001 | BX90: 0.001 | BY90: 0.001 | BZ90: 0.001 | CA90: 0.001 | CB90: 0.001 | CC90: 0.001 | CD90: 0.001 | CE90: 0.009 | CF90: 0.002 | CG90: 0.001 | CH90: 0.001 | CI90: 0.002 | CJ90: 0.001 | CK90: 0.001 | CL90: 0.007 | CM90: 0.001 | CN90: 0.001 | CO90: 0.001 | CP90: 0.001 | CQ90: 0.001 | CR90: 0.001 | CS90: 0.001 | CT90: 0.004 | CU90: 0.001 | CV90: 0.001 | CW90: 0.001 | CX90: 0.001 | CY90: 0.001 | CZ90: 0.001 | DA90: 0.003 | DB90: 0.003 | DC90: 0.009 | DD90: 0.002 | DE90: 0.009 | DF90: 0.001 | DG90: 0.001 | DH90: 0.001 | DI90: 0.001 | DJ90: 0.001 | DK90: 0.001 | DL90: 0.001 | DM90: 0.001 | DN90: 0.002 | DO90: 0.001 | DP90: 0.001 | DQ90: 0.001 | DR90: 0.001 | DS90: 0.001 | DT90: 0.001 | DU90: 0.001 | DV90: 0.001 | DW90: 0.001 | DX90: 0.001 | DY90: 0.004 | DZ90: 0.001
A91: Acylcarnitines | B91: AC(16:1-OH) | C91: 0 | D91: 0 | E91: 0 | F91: 0 | G91: 0 | H91: 0 | I91: 0 | J91: 0 | K91: 0 | L91: 0.0 | N91: 0.011 | O91: 0.003 | P91: 0.004 | Q91: 0.005 | R91: 0.003 | S91: 0.004 | T91: 0.004 | U91: 0.005 | V91: 0.007 | W91: 0.003 | X91: 0.004 | Y91: 0.005 | Z91: 0.009 | AA91: 0.006 | AB91: 0.007 | AC91: 0.006 | AD91: 0.006 | AE91: 0.008 | AF91: 0.005 | AG91: 0.006 | AH91: 0.006 | AI91: 0.007 | AJ91: 0.006 | AK91: 0.004 | AL91: 0.006 | AM91: 0.007 | AN91: 0.281 | AO91: 0.007 | AP91: 0.006 | AQ91: 0.006 | AR91: 0.004 | AS91: 0.006 | AT91: 0.006 | AU91: 0.008 | AV91: 0.008 | AW91: 0.01 | AX91: 0.006 | AY91: 0.005 | AZ91: 0.012 | BA91: 0.005 | BB91: 0.005 | BC91: 0.005 | BD91: 0.006 | BE91: 0.006 | BF91: 0.004 | BG91: 0.004 | BH91: 0.004 | BI91: 0.005 | BJ91: 0.007 | BK91: 0.006 | BL91: 0.005 | BM91: 0.008 | BN91: 0.007 | BO91: 0.007 | BP91: 0.011 | BQ91: 0.006 | BR91: 0.008 | BS91: 0.013 | BT91: 0.008 | BU91: 0.003 | BV91: 0.005 | BW91: 0.005 | BX91: 0.003 | BY91: 0.004 | BZ91: 0.004 | CA91: 0.004 | CB91: 0.004 | CC91: 0.004 | CD91: 0.003 | CE91: 0.007 | CF91: 0.006 | CG91: 0.004 | CH91: 0.004 | CI91: 0.005 | CJ91: 0.003 | CK91: 0.013 | CL91: 0.007 | CM91: 0.004 | CN91: 0.005 | CO91: 0.004 | CP91: 0.004 | CQ91: 0.003 | CR91: 0.003 | CS91: 0.004 | CT91: 0.004 | CU91: 0.006 | CV91: 0.005 | CW91: 0.003 | CX91: 0.004 | CY91: 0.004 | CZ91: 0.004 | DA91: 0.004 | DB91: 0.005 | DC91: 0.007 | DD91: 0.003 | DE91: 0.005 | DF91: 0.004 | DG91: 0.004 | DH91: 0.003 | DI91: 0.003 | DJ91: 0.003 | DK91: 0.004 | DL91: 0.003 | DM91: 0.004 | DN91: 0.006 | DO91: 0.004 | DP91: 0.004 | DQ91: 0.004 | DR91: 0.004 | DS91: 0.003 | DT91: 0.003 | DU91: 0.003 | DV91: 0.003 | DW91: 0.003 | DX91: 0.003 | DY91: 0.004 | DZ91: 0.003
A92: Acylcarnitines | B92: AC(16:2) | C92: 6 | D92: 17 | E92: 4 | F92: 14 | G92: 10 | H92: 9 | I92: 9 | J92: 13 | K92: 82 | L92: 70.1 | N92: 0.002 | O92: 0 | P92: 0.003 | Q92: 0.003 | R92: 0 | S92: 0 | T92: 0 | U92: 0.007 | V92: 0 | W92: 0.007 | X92: 0 | Y92: 0 | Z92: 0.001 | AA92: 0.001 | AB92: 0.001 | AC92: 0.001 | AD92: 0.001 | AE92: 0.002 | AF92: 0.001 | AG92: 0 | AH92: 0.002 | AI92: 0.001 | AJ92: 0 | AK92: 0 | AL92: 0.001 | AM92: 0.001 | AN92: 0.002 | AO92: 0.001 | AP92: 0.001 | AQ92: 0 | AR92: 0.001 | AS92: 0 | AT92: 0.001 | AU92: 0.002 | AV92: 0.001 | AW92: 0 | AX92: 0.001 | AY92: 0.001 | AZ92: 0.004 | BA92: 0 | BB92: 0 | BC92: 0 | BD92: 0 | BE92: 0 | BF92: 0 | BG92: 0 | BH92: 0 | BI92: 0 | BJ92: 0 | BK92: 0 | BL92: 0.001 | BM92: 0.001 | BN92: 0 | BO92: 0.001 | BP92: 0.002 | BQ92: 0.001 | BR92: 0 | BS92: 0 | BT92: 0.001 | BU92: 0 | BV92: 0 | BW92: 0 | BX92: 0 | BY92: 0 | BZ92: 0 | CA92: 0 | CB92: 0.001 | CC92: 0 | CD92: 0 | CE92: 0 | CF92: 0 | CG92: 0 | CH92: 0 | CI92: 0 | CJ92: 0 | CK92: 0 | CL92: 0 | CM92: 0 | CN92: 0 | CO92: 0 | CP92: 0 | CQ92: 0 | CR92: 0 | CS92: 0 | CT92: 0 | CU92: 0 | CV92: 0 | CW92: 0.001 | CX92: 0 | CY92: 0 | CZ92: 0 | DA92: 0 | DB92: 0 | DC92: 0 | DD92: 0 | DE92: 0 | DF92: 0 | DG92: 0 | DH92: 0 | DI92: 0.005 | DJ92: 0 | DK92: 0 | DL92: 0 | DM92: 0 | DN92: 0 | DO92: 0 | DP92: 0 | DQ92: 0 | DR92: 0 | DS92: 0 | DT92: 0 | DU92: 0 | DV92: 0 | DW92: 0 | DX92: 0 | DY92: 0 | DZ92: 0
A93: Acylcarnitines | B93: AC(16:2-OH) | C93: 0 | D93: 0 | E93: 0 | F93: 0 | G93: 0 | H93: 0 | I93: 0 | J93: 0 | K93: 0 | L93: 0.0 | N93: 0.009 | O93: 0.005 | P93: 0.006 | Q93: 0.007 | R93: 0.004 | S93: 0.005 | T93: 0.006 | U93: 0.007 | V93: 0.008 | W93: 0.004 | X93: 0.006 | Y93: 0.007 | Z93: 0.006 | AA93: 0.006 | AB93: 0.008 | AC93: 0.008 | AD93: 0.007 | AE93: 0.011 | AF93: 0.007 | AG93: 0.01 | AH93: 0.008 | AI93: 0.012 | AJ93: 0.006 | AK93: 0.018 | AL93: 0.007 | AM93: 0.01 | AN93: 0.017 | AO93: 0.003 | AP93: 0.007 | AQ93: 0.006 | AR93: 0.008 | AS93: 0.007 | AT93: 0.007 | AU93: 0.009 | AV93: 0.008 | AW93: 0.005 | AX93: 0.009 | AY93: 0.005 | AZ93: 0.013 | BA93: 0.005 | BB93: 0.007 | BC93: 0.007 | BD93: 0.012 | BE93: 0.01 | BF93: 0.008 | BG93: 0.005 | BH93: 0.006 | BI93: 0.004 | BJ93: 0.006 | BK93: 0.006 | BL93: 0.007 | BM93: 0.009 | BN93: 0.005 | BO93: 0.006 | BP93: 0.009 | BQ93: 0.007 | BR93: 0.01 | BS93: 0.006 | BT93: 0.009 | BU93: 0.004 | BV93: 0.006 | BW93: 0.005 | BX93: 0.004 | BY93: 0.004 | BZ93: 0.005 | CA93: 0.007 | CB93: 0.005 | CC93: 0.004 | CD93: 0.004 | CE93: 0.012 | CF93: 0.003 | CG93: 0.004 | CH93: 0.005 | CI93: 0.006 | CJ93: 0.005 | CK93: 0.005 | CL93: 0.009 | CM93: 0.004 | CN93: 0.006 | CO93: 0.006 | CP93: 0.005 | CQ93: 0.004 | CR93: 0.004 | CS93: 0.003 | CT93: 0.003 | CU93: 0.005 | CV93: 0.003 | CW93: 0.005 | CX93: 0.006 | CY93: 0.006 | CZ93: 0.006 | DA93: 0.004 | DB93: 0.006 | DC93: 0.011 | DD93: 0.008 | DE93: 0.009 | DF93: 0.005 | DG93: 0.004 | DH93: 0.008 | DI93: 0.005 | DJ93: 0.008 | DK93: 0.009 | DL93: 0.003 | DM93: 0.006 | DN93: 0.008 | DO93: 0.007 | DP93: 0.009 | DQ93: 0.007 | DR93: 0.009 | DS93: 0.004 | DT93: 0.005 | DU93: 0.006 | DV93: 0.006 | DW93: 0.005 | DX93: 0.006 | DY93: 0.006 | DZ93: 0.005
A94: Acylcarnitines | B94: AC(17:0) | C94: 0 | D94: 0 | E94: 0 | F94: 0 | G94: 0 | H94: 0 | I94: 0 | J94: 0 | K94: 0 | L94: 0.0 | N94: 0.006 | O94: 0.001 | P94: 0.002 | Q94: 0.002 | R94: 0.002 | S94: 0.002 | T94: 0.001 | U94: 0.002 | V94: 0.004 | W94: 0.003 | X94: 0.002 | Y94: 0.005 | Z94: 0.007 | AA94: 0.008 | AB94: 0.007 | AC94: 0.006 | AD94: 0.006 | AE94: 0.01 | AF94: 0.006 | AG94: 0.007 | AH94: 0.008 | AI94: 0.007 | AJ94: 0.005 | AK94: 0.004 | AL94: 0.005 | AM94: 0.006 | AN94: 0.008 | AO94: 0.009 | AP94: 0.006 | AQ94: 0.006 | AR94: 0.005 | AS94: 0.006 | AT94: 0.005 | AU94: 0.007 | AV94: 0.006 | AW94: 0.004 | AX94: 0.006 | AY94: 0.005 | AZ94: 0.006 | BA94: 0.002 | BB94: 0.002 | BC94: 0.002 | BD94: 0.003 | BE94: 0.008 | BF94: 0.003 | BG94: 0.001 | BH94: 0.002 | BI94: 0.002 | BJ94: 0.004 | BK94: 0.005 | BL94: 0.006 | BM94: 0.009 | BN94: 0.006 | BO94: 0.007 | BP94: 0.006 | BQ94: 0.006 | BR94: 0.008 | BS94: 0.008 | BT94: 0.007 | BU94: 0.001 | BV94: 0.002 | BW94: 0.002 | BX94: 0.002 | BY94: 0.002 | BZ94: 0.001 | CA94: 0.002 | CB94: 0.001 | CC94: 0.002 | CD94: 0.001 | CE94: 0.003 | CF94: 0.003 | CG94: 0.002 | CH94: 0.002 | CI94: 0.002 | CJ94: 0.002 | CK94: 0.002 | CL94: 0.002 | CM94: 0.002 | CN94: 0.004 | CO94: 0.001 | CP94: 0.002 | CQ94: 0.001 | CR94: 0.001 | CS94: 0.002 | CT94: 0.003 | CU94: 0.002 | CV94: 0.002 | CW94: 0.002 | CX94: 0.002 | CY94: 0.002 | CZ94: 0.001 | DA94: 0.001 | DB94: 0.002 | DC94: 0.005 | DD94: 0.002 | DE94: 0.003 | DF94: 0.002 | DG94: 0.001 | DH94: 0.001 | DI94: 0.002 | DJ94: 0.001 | DK94: 0.002 | DL94: 0.001 | DM94: 0.002 | DN94: 0.003 | DO94: 0.002 | DP94: 0.002 | DQ94: 0.002 | DR94: 0.002 | DS94: 0.002 | DT94: 0.001 | DU94: 0.001 | DV94: 0.001 | DW94: 0.001 | DX94: 0.001 | DY94: 0.002 | DZ94: 0.001
A95: Acylcarnitines | B95: AC(18:0) | C95: 0 | D95: 1 | E95: 0 | F95: 1 | G95: 1 | H95: 2 | I95: 1 | J95: 4 | K95: 10 | L95: 8.5 | N95: 0.005 | O95: 0.003 | P95: 0.007 | Q95: 0.071 | R95: 0.003 | S95: 0.003 | T95: 0.001 | U95: 0.013 | V95: 0.004 | W95: 0.006 | X95: 0.002 | Y95: 0.003 | Z95: 0.004 | AA95: 0.004 | AB95: 0.003 | AC95: 0.004 | AD95: 0.004 | AE95: 0.005 | AF95: 0.004 | AG95: 0.005 | AH95: 0.003 | AI95: 0.005 | AJ95: 0.003 | AK95: 0.002 | AL95: 0.003 | AM95: 0.004 | AN95: 0.004 | AO95: 0.004 | AP95: 0.003 | AQ95: 0.004 | AR95: 0.003 | AS95: 0.003 | AT95: 0.004 | AU95: 0.004 | AV95: 0.004 | AW95: 0.003 | AX95: 0.003 | AY95: 0.003 | AZ95: 0.004 | BA95: 0.002 | BB95: 0.003 | BC95: 0.003 | BD95: 0.008 | BE95: 0.005 | BF95: 0 | BG95: 0.002 | BH95: 0.003 | BI95: 0.01 | BJ95: 0.003 | BK95: 0.003 | BL95: 0.003 | BM95: 0.005 | BN95: 0.003 | BO95: 0.004 | BP95: 0.007 | BQ95: 0.003 | BR95: 0.005 | BS95: 0.003 | BT95: 0.005 | BU95: 0 | BV95: 0.003 | BW95: 0.012 | BX95: 0.005 | BY95: 0.001 | BZ95: 0.004 | CA95: 0.005 | CB95: 0.001 | CC95: 0.003 | CD95: 0.002 | CE95: 0.003 | CF95: 0.004 | CG95: 0.004 | CH95: 0.003 | CI95: 0.004 | CJ95: 0 | CK95: 0.004 | CL95: 0.003 | CM95: 0.005 | CN95: 0.003 | CO95: 0.003 | CP95: 0.004 | CQ95: 0.003 | CR95: 0.005 | CS95: 0.003 | CT95: 0.003 | CU95: 0 | CV95: 0.003 | CW95: 0.001 | CX95: 0.003 | CY95: 0 | CZ95: 0.002 | DA95: 0.003 | DB95: 0.003 | DC95: 0.003 | DD95: 0.004 | DE95: 0.004 | DF95: 0.004 | DG95: 0 | DH95: 0.004 | DI95: 0.006 | DJ95: 0.015 | DK95: 0.003 | DL95: 0.003 | DM95: 0.006 | DN95: 0 | DO95: 0.005 | DP95: 0.005 | DQ95: 0 | DR95: 0.004 | DS95: 0.003 | DT95: 0 | DU95: 0.004 | DV95: 0.007 | DW95: 0.004 | DX95: 0.002 | DY95: 0.003 | DZ95: 0
A96: Acylcarnitines | B96: AC(18:1) | C96: 0 | D96: 0 | E96: 0 | F96: 0 | G96: 0 | H96: 0 | I96: 2 | J96: 4 | K96: 6 | L96: 5.1 | N96: 0.003 | O96: 0.001 | P96: 0.003 | Q96: 0.009 | R96: 0.002 | S96: 0.001 | T96: 0.001 | U96: 0.001 | V96: 0.005 | W96: 0.006 | X96: 0.002 | Y96: 0.002 | Z96: 0.002 | AA96: 0.003 | AB96: 0.002 | AC96: 0.002 | AD96: 0.002 | AE96: 0.003 | AF96: 0.002 | AG96: 0.002 | AH96: 0.003 | AI96: 0.002 | AJ96: 0.002 | AK96: 0.001 | AL96: 0.002 | AM96: 0.002 | AN96: 0.003 | AO96: 0.002 | AP96: 0.002 | AQ96: 0.002 | AR96: 0.001 | AS96: 0.002 | AT96: 0.002 | AU96: 0.003 | AV96: 0.002 | AW96: 0.001 | AX96: 0.002 | AY96: 0.002 | AZ96: 0.018 | BA96: 0.001 | BB96: 0.002 | BC96: 0.002 | BD96: 0.004 | BE96: 0.007 | BF96: 0.002 | BG96: 0.001 | BH96: 0.001 | BI96: 0.002 | BJ96: 0.003 | BK96: 0.002 | BL96: 0.002 | BM96: 0.003 | BN96: 0.002 | BO96: 0.002 | BP96: 0.002 | BQ96: 0.001 | BR96: 0.003 | BS96: 0.002 | BT96: 0.003 | BU96: 0.002 | BV96: 0.002 | BW96: 0.002 | BX96: 0.002 | BY96: 0.001 | BZ96: 0.001 | CA96: 0.002 | CB96: 0.001 | CC96: 0.002 | CD96: 0.002 | CE96: 0.005 | CF96: 0.002 | CG96: 0.001 | CH96: 0.001 | CI96: 0.003 | CJ96: 0.001 | CK96: 0.002 | CL96: 0.004 | CM96: 0.002 | CN96: 0.002 | CO96: 0.001 | CP96: 0.001 | CQ96: 0.001 | CR96: 0.001 | CS96: 0.001 | CT96: 0.003 | CU96: 0.001 | CV96: 0.002 | CW96: 0.001 | CX96: 0.001 | CY96: 0.002 | CZ96: 0.002 | DA96: 0.002 | DB96: 0.002 | DC96: 0.005 | DD96: 0.001 | DE96: 0.003 | DF96: 0.001 | DG96: 0 | DH96: 0.001 | DI96: 0.002 | DJ96: 0.001 | DK96: 0.002 | DL96: 0 | DM96: 0.001 | DN96: 0.002 | DO96: 0.002 | DP96: 0.001 | DQ96: 0 | DR96: 0 | DS96: 0.002 | DT96: 0.001 | DU96: 0.001 | DV96: 0 | DW96: 0.001 | DX96: 0.001 | DY96: 0 | DZ96: 0.001
A97: Acylcarnitines | B97: AC(18:1-OH) | C97: 0 | D97: 0 | E97: 0 | F97: 5 | G97: 2 | H97: 2 | I97: 1 | J97: 2 | K97: 12 | L97: 10.3 | N97: 0.006 | O97: 0.001 | P97: 0.002 | Q97: 0.003 | R97: 0.001 | S97: 0.002 | T97: 0.003 | U97: 0.005 | V97: 0.005 | W97: 0.002 | X97: 0.003 | Y97: 0.004 | Z97: 0.007 | AA97: 0.006 | AB97: 0.005 | AC97: 0.006 | AD97: 0.005 | AE97: 0.007 | AF97: 0.004 | AG97: 0.007 | AH97: 0.006 | AI97: 0.006 | AJ97: 0.005 | AK97: 0.003 | AL97: 0.005 | AM97: 0.003 | AN97: 0.006 | AO97: 0.007 | AP97: 0.005 | AQ97: 0.005 | AR97: 0.004 | AS97: 0.005 | AT97: 0.004 | AU97: 0.005 | AV97: 0.006 | AW97: 0.003 | AX97: 0.005 | AY97: 0.005 | AZ97: 0.005 | BA97: 0.002 | BB97: 0.003 | BC97: 0.004 | BD97: 0.004 | BE97: 0.004 | BF97: 0.003 | BG97: 0.001 | BH97: 0.002 | BI97: 0.003 | BJ97: 0.005 | BK97: 0.003 | BL97: 0.005 | BM97: 0.006 | BN97: 0.005 | BO97: 0.007 | BP97: 0.007 | BQ97: 0.005 | BR97: 0.006 | BS97: 0.005 | BT97: 0.006 | BU97: 0 | BV97: 0.003 | BW97: 0.002 | BX97: 0.002 | BY97: 0.002 | BZ97: 0 | CA97: 0 | CB97: 0.001 | CC97: 0.001 | CD97: 0.002 | CE97: 0.004 | CF97: 0.003 | CG97: 0 | CH97: 0 | CI97: 0.002 | CJ97: 0 | CK97: 0.002 | CL97: 0.005 | CM97: 0.002 | CN97: 0.003 | CO97: 0 | CP97: 0.001 | CQ97: 0.002 | CR97: 0.003 | CS97: 0.001 | CT97: 0.002 | CU97: 0.005 | CV97: 0.002 | CW97: 0 | CX97: 0 | CY97: 0.002 | CZ97: 0.002 | DA97: 0.002 | DB97: 0.003 | DC97: 0.002 | DD97: 0.001 | DE97: 0.003 | DF97: 0.002 | DG97: 0.001 | DH97: 0 | DI97: 0.003 | DJ97: 0.002 | DK97: 0.003 | DL97: 0.001 | DM97: 0.002 | DN97: 0.003 | DO97: 0 | DP97: 0.001 | DQ97: 0.002 | DR97: 0.002 | DS97: 0 | DT97: 0.002 | DU97: 0.004 | DV97: 0.003 | DW97: 0.003 | DX97: 0.001 | DY97: 0.001 | DZ97: 0.002
A98: Acylcarnitines | B98: AC(18:2) | C98: 0 | D98: 0 | E98: 0 | F98: 0 | G98: 0 | H98: 0 | I98: 0 | J98: 0 | K98: 0 | L98: 0.0 | N98: 0.017 | O98: 0.005 | P98: 0.005 | Q98: 0.006 | R98: 0.005 | S98: 0.005 | T98: 0.004 | U98: 0.007 | V98: 0.008 | W98: 0.006 | X98: 0.005 | Y98: 0.01 | Z98: 0.014 | AA98: 0.012 | AB98: 0.012 | AC98: 0.018 | AD98: 0.015 | AE98: 0.026 | AF98: 0.015 | AG98: 0.027 | AH98: 0.015 | AI98: 0.017 | AJ98: 0.012 | AK98: 0.006 | AL98: 0.012 | AM98: 0.023 | AN98: 0.014 | AO98: 0.045 | AP98: 0.015 | AQ98: 0.016 | AR98: 0.007 | AS98: 0.011 | AT98: 0.011 | AU98: 0.014 | AV98: 0.016 | AW98: 0.009 | AX98: 0.013 | AY98: 0.016 | AZ98: 0.013 | BA98: 0.006 | BB98: 0.007 | BC98: 0.006 | BD98: 0.009 | BE98: 0.009 | BF98: 0.007 | BG98: 0.004 | BH98: 0.006 | BI98: 0.005 | BJ98: 0.01 | BK98: 0.004 | BL98: 0.016 | BM98: 0.024 | BN98: 0.015 | BO98: 0.017 | BP98: 0.014 | BQ98: 0.016 | BR98: 0.024 | BS98: 0.016 | BT98: 0.013 | BU98: 0.005 | BV98: 0.007 | BW98: 0.008 | BX98: 0.005 | BY98: 0.005 | BZ98: 0.004 | CA98: 0.005 | CB98: 0.005 | CC98: 0.004 | CD98: 0.005 | CE98: 0.008 | CF98: 0.013 | CG98: 0.006 | CH98: 0.007 | CI98: 0.006 | CJ98: 0.005 | CK98: 0.005 | CL98: 0.007 | CM98: 0.006 | CN98: 0.005 | CO98: 0.005 | CP98: 0.004 | CQ98: 0.005 | CR98: 0.005 | CS98: 0.006 | CT98: 0.005 | CU98: 0.008 | CV98: 0.012 | CW98: 0.005 | CX98: 0.005 | CY98: 0.009 | CZ98: 0.006 | DA98: 0.005 | DB98: 0.005 | DC98: 0.009 | DD98: 0.007 | DE98: 0.011 | DF98: 0.007 | DG98: 0.007 | DH98: 0.007 | DI98: 0.005 | DJ98: 0.006 | DK98: 0.008 | DL98: 0.006 | DM98: 0.008 | DN98: 0.008 | DO98: 0.005 | DP98: 0.006 | DQ98: 0.01 | DR98: 0.006 | DS98: 0.006 | DT98: 0.007 | DU98: 0.006 | DV98: 0.008 | DW98: 0.006 | DX98: 0.006 | DY98: 0.006 | DZ98: 0.007
A99: Acylcarnitines | B99: AC(19:0) | C99: 0 | D99: 0 | E99: 0 | F99: 0 | G99: 0 | H99: 0 | I99: 0 | J99: 0 | K99: 0 | L99: 0.0 | N99: 0.005 | O99: 0.002 | P99: 0.002 | Q99: 0.002 | R99: 0.001 | S99: 0.002 | T99: 0.002 | U99: 0.002 | V99: 0.003 | W99: 0.002 | X99: 0.002 | Y99: 0.004 | Z99: 0.004 | AA99: 0.005 | AB99: 0.005 | AC99: 0.005 | AD99: 0.004 | AE99: 0.006 | AF99: 0.004 | AG99: 0.005 | AH99: 0.006 | AI99: 0.005 | AJ99: 0.005 | AK99: 0.003 | AL99: 0.005 | AM99: 0.005 | AN99: 0.006 | AO99: 0.006 | AP99: 0.004 | AQ99: 0.004 | AR99: 0.004 | AS99: 0.004 | AT99: 0.005 | AU99: 0.005 | AV99: 0.005 | AW99: 0.003 | AX99: 0.005 | AY99: 0.004 | AZ99: 0.004 | BA99: 0.002 | BB99: 0.002 | BC99: 0.002 | BD99: 0.003 | BE99: 0.003 | BF99: 0.002 | BG99: 0.002 | BH99: 0.002 | BI99: 0.002 | BJ99: 0.003 | BK99: 0.003 | BL99: 0.005 | BM99: 0.006 | BN99: 0.004 | BO99: 0.005 | BP99: 0.005 | BQ99: 0.004 | BR99: 0.005 | BS99: 0.005 | BT99: 0.006 | BU99: 0.001 | BV99: 0.002 | BW99: 0.002 | BX99: 0.002 | BY99: 0.002 | BZ99: 0.001 | CA99: 0.002 | CB99: 0.001 | CC99: 0.002 | CD99: 0.001 | CE99: 0.003 | CF99: 0.003 | CG99: 0.002 | CH99: 0.002 | CI99: 0.002 | CJ99: 0.002 | CK99: 0.002 | CL99: 0.003 | CM99: 0.002 | CN99: 0.002 | CO99: 0.002 | CP99: 0.002 | CQ99: 0.002 | CR99: 0.002 | CS99: 0.002 | CT99: 0.002 | CU99: 0.003 | CV99: 0.002 | CW99: 0.002 | CX99: 0.002 | CY99: 0.002 | CZ99: 0.002 | DA99: 0.002 | DB99: 0.002 | DC99: 0.003 | DD99: 0.002 | DE99: 0.003 | DF99: 0.002 | DG99: 0.002 | DH99: 0.002 | DI99: 0.002 | DJ99: 0.002 | DK99: 0.002 | DL99: 0.002 | DM99: 0.002 | DN99: 0.003 | DO99: 0.002 | DP99: 0.002 | DQ99: 0.003 | DR99: 0.002 | DS99: 0.002 | DT99: 0.002 | DU99: 0.002 | DV99: 0.002 | DW99: 0.001 | DX99: 0.002 | DY99: 0.002 | DZ99: 0.002
A100: Cholesterol Esters | B100: CE(16:0) | C100: 0 | D100: 28 | E100: 6 | F100: 0 | G100: 0 | H100: 0 | I100: 0 | J100: 0 | K100: 34 | L100: 29.1 | N100: 0.68 | O100: 0.343 | P100: 7.88 | Q100: 0.697 | R100: 0.403 | S100: 0.518 | T100: 0.384 | U100: 0.57 | V100: 0.898 | W100: 14.3 | X100: 0.358 | Y100: 0 | Z100: 0 | AA100: 0 | AB100: 0 | AC100: 0 | AD100: 0 | AE100: 0 | AF100: 0 | AG100: 0 | AH100: 0 | AI100: 0 | AJ100: 0 | AK100: 0 | AL100: 0 | AM100: 0 | AN100: 0 | AO100: 0 | AP100: 0 | AQ100: 0 | AR100: 0 | AS100: 0 | AT100: 0 | AU100: 0 | AV100: 0 | AW100: 0 | AX100: 0 | AY100: 0 | AZ100: 0 | BA100: 0.44 | BB100: 0.536 | BC100: 0.502 | BD100: 0.559 | BE100: 0.939 | BF100: 0.364 | BG100: 0.429 | BH100: 0.488 | BI100: 0.649 | BJ100: 1.01 | BK100: 0 | BL100: 1.1 | BM100: 0.351 | BN100: 0 | BO100: 0.114 | BP100: 0.287 | BQ100: 0 | BR100: 0 | BS100: 0 | BT100: 0 | BU100: 0.315 | BV100: 0.577 | BW100: 0.572 | BX100: 0.394 | BY100: 0.426 | BZ100: 0.355 | CA100: 0.566 | CB100: 0.405 | CC100: 0.298 | CD100: 0.252 | CE100: 0.914 | CF100: 0.677 | CG100: 0.514 | CH100: 0.322 | CI100: 0.374 | CJ100: 0.292 | CK100: 0.387 | CL100: 0.673 | CM100: 0.345 | CN100: 0.375 | CO100: 0.419 | CP100: 0.335 | CQ100: 0.357 | CR100: 0.412 | CS100: 0.422 | CT100: 0.387 | CU100: 0.354 | CV100: 0.271 | CW100: 0.426 | CX100: 0.242 | CY100: 0.273 | CZ100: 0.411 | DA100: 0.422 | DB100: 0.398 | DC100: 0.587 | DD100: 0.341 | DE100: 0.33 | DF100: 0.244 | DG100: 0.255 | DH100: 0.206 | DI100: 0.32 | DJ100: 0.294 | DK100: 0.241 | DL100: 0.208 | DM100: 0.27 | DN100: 0.363 | DO100: 0.304 | DP100: 0.28 | DQ100: 0.28 | DR100: 0.275 | DS100: 0.298 | DT100: 0.328 | DU100: 0.262 | DV100: 0.266 | DW100: 0.216 | DX100: 0.185 | DY100: 0.223 | DZ100: 0.258
A101: Cholesterol Esters | B101: CE(16:1) | C101: 2 | D101: 25 | E101: 5 | F101: 9 | G101: 5 | H101: 7 | I101: 6 | J101: 5 | K101: 64 | L101: 54.7 | N101: 4.02 | O101: 0.633 | P101: 9.59 | Q101: 3.57 | R101: 1.24 | S101: 0 | T101: 0.278 | U101: 0.171 | V101: 3.13 | W101: 10.2 | X101: 0 | Y101: 0 | Z101: 0 | AA101: 0 | AB101: 0.077 | AC101: 0.375 | AD101: 0.09 | AE101: 0 | AF101: 0 | AG101: 0 | AH101: 2.62 | AI101: 0 | AJ101: 0 | AK101: 0 | AL101: 0 | AM101: 0 | AN101: 0 | AO101: 0 | AP101: 0 | AQ101: 0 | AR101: 0.053 | AS101: 0 | AT101: 0 | AU101: 0 | AV101: 0.068 | AW101: 0 | AX101: 0 | AY101: 0 | AZ101: 0.059 | BA101: 0.138 | BB101: 0 | BC101: 0 | BD101: 0 | BE101: 3.53 | BF101: 0 | BG101: 0.714 | BH101: 0.191 | BI101: 0.115 | BJ101: 0.166 | BK101: 0.164 | BL101: 0.493 | BM101: 0.091 | BN101: 0 | BO101: 0.061 | BP101: 0.038 | BQ101: 0 | BR101: 0 | BS101: 0 | BT101: 0 | BU101: 0.439 | BV101: 0 | BW101: 0.299 | BX101: 0 | BY101: 0 | BZ101: 0.579 | CA101: 0 | CB101: 0 | CC101: 0 | CD101: 0 | CE101: 0.503 | CF101: 0 | CG101: 0.443 | CH101: 0.256 | CI101: 0 | CJ101: 0.674 | CK101: 0 | CL101: 0 | CM101: 0.316 | CN101: 0 | CO101: 0 | CP101: 0.772 | CQ101: 0.657 | CR101: 0.991 | CS101: 0 | CT101: 0 | CU101: 1.45 | CV101: 0 | CW101: 0 | CX101: 0 | CY101: 0.123 | CZ101: 0 | DA101: 0 | DB101: 0 | DC101: 0.324 | DD101: 1.7 | DE101: 0 | DF101: 0 | DG101: 0 | DH101: 0.24 | DI101: 0 | DJ101: 0 | DK101: 0 | DL101: 0.296 | DM101: 2.22 | DN101: 0 | DO101: 0.336 | DP101: 1.09 | DQ101: 0.34 | DR101: 0 | DS101: 0.675 | DT101: 0.593 | DU101: 0.173 | DV101: 0.177 | DW101: 0.19 | DX101: 0 | DY101: 0 | DZ101: 0
A102: Cholesterol Esters | B102: CE(17:0) | C102: 10 | D102: 19 | E102: 6 | F102: 12 | G102: 8 | H102: 9 | I102: 6 | J102: 6 | K102: 76 | L102: 65.0 | N102: 0.131 | O102: 0 | P102: 0 | Q102: 0 | R102: 0 | S102: 0 | T102: 0 | U102: 0 | V102: 0 | W102: 0 | X102: 0 | Y102: 0.067 | Z102: 0.051 | AA102: 0 | AB102: 0 | AC102: 0.13 | AD102: 0.109 | AE102: 0.236 | AF102: 0.081 | AG102: 14.5 | AH102: 0.088 | AI102: 0.076 | AJ102: 0.05 | AK102: 0.044 | AL102: 0.084 | AM102: 0.108 | AN102: 0.068 | AO102: 0.085 | AP102: 0 | AQ102: 0.13 | AR102: 0 | AS102: 0 | AT102: 0 | AU102: 0 | AV102: 0.089 | AW102: 0 | AX102: 0.11 | AY102: 0 | AZ102: 0.116 | BA102: 0 | BB102: 0 | BC102: 0 | BD102: 0 | BE102: 0 | BF102: 0 | BG102: 0 | BH102: 0 | BI102: 0 | BJ102: 0 | BK102: 0 | BL102: 0 | BM102: 0.073 | BN102: 0 | BO102: 0 | BP102: 0.138 | BQ102: 0 | BR102: 19.9 | BS102: 18.3 | BT102: 0 | BU102: 0.485 | BV102: 0 | BW102: 0 | BX102: 0 | BY102: 0 | BZ102: 0 | CA102: 0 | CB102: 0.367 | CC102: 0 | CD102: 0 | CE102: 0 | CF102: 0.925 | CG102: 0 | CH102: 0 | CI102: 0 | CJ102: 0.252 | CK102: 0 | CL102: 0 | CM102: 0 | CN102: 0 | CO102: 0 | CP102: 0 | CQ102: 0.644 | CR102: 0 | CS102: 0 | CT102: 0 | CU102: 0.46 | CV102: 0 | CW102: 0 | CX102: 0 | CY102: 0 | CZ102: 0 | DA102: 0 | DB102: 0 | DC102: 0 | DD102: 0 | DE102: 0 | DF102: 0.765 | DG102: 0 | DH102: 0.402 | DI102: 0 | DJ102: 0 | DK102: 0 | DL102: 0.44 | DM102: 0.604 | DN102: 1.06 | DO102: 0 | DP102: 0 | DQ102: 0.428 | DR102: 0 | DS102: 0 | DT102: 0 | DU102: 0.82 | DV102: 0.478 | DW102: 0.34 | DX102: 0 | DY102: 0.553 | DZ102: 0.38
A103: Cholesterol Esters | B103: CE(17:1) | C103: 2 | D103: 3 | E103: 0 | F103: 4 | G103: 4 | H103: 3 | I103: 3 | J103: 3 | K103: 22 | L103: 18.8 | N103: 1.26 | O103: 0.809 | P103: 0.101 | Q103: 0.181 | R103: 0.772 | S103: 0.079 | T103: 0 | U103: 0 | V103: 0.152 | W103: 0.841 | X103: 0.049 | Y103: 0.412 | Z103: 0.545 | AA103: 0.482 | AB103: 0.727 | AC103: 0.776 | AD103: 0.385 | AE103: 0.372 | AF103: 0.374 | AG103: 0.369 | AH103: 1.04 | AI103: 0.308 | AJ103: 0.588 | AK103: 0.746 | AL103: 0.428 | AM103: 0.45 | AN103: 0.215 | AO103: 0.603 | AP103: 0.269 | AQ103: 0.717 | AR103: 0.369 | AS103: 0.627 | AT103: 0.704 | AU103: 0.963 | AV103: 0.26 | AW103: 0.787 | AX103: 0.564 | AY103: 0.616 | AZ103: 1.02 | BA103: 0.04 | BB103: 0.072 | BC103: 0.071 | BD103: 0 | BE103: 0.113 | BF103: 0.057 | BG103: 0 | BH103: 0.083 | BI103: 0.052 | BJ103: 0 | BK103: 0.341 | BL103: 0.439 | BM103: 0.759 | BN103: 0.626 | BO103: 0.667 | BP103: 0.302 | BQ103: 0.658 | BR103: 0.462 | BS103: 0.51 | BT103: 0.28 | BU103: 1.09 | BV103: 0 | BW103: 0 | BX103: 0.05 | BY103: 0.1 | BZ103: 0.057 | CA103: 0.063 | CB103: 0.05 | CC103: 0.499 | CD103: 0.028 | CE103: 0 | CF103: 0.069 | CG103: 1.29 | CH103: 0 | CI103: 0.119 | CJ103: 0 | CK103: 0.058 | CL103: 0 | CM103: 0 | CN103: 0.048 | CO103: 0 | CP103: 0.117 | CQ103: 0.071 | CR103: 0.074 | CS103: 1.5 | CT103: 0 | CU103: 0.083 | CV103: 0 | CW103: 0.08 | CX103: 0 | CY103: 1.3 | CZ103: 0.07 | DA103: 0.068 | DB103: 0.072 | DC103: 0.154 | DD103: 0.064 | DE103: 0.084 | DF103: 1.27 | DG103: 0.058 | DH103: 0.648 | DI103: 0 | DJ103: 0 | DK103: 0 | DL103: 0.044 | DM103: 0.985 | DN103: 0.063 | DO103: 0 | DP103: 0.069 | DQ103: 0.659 | DR103: 0 | DS103: 1.08 | DT103: 0.05 | DU103: 1.02 | DV103: 0.745 | DW103: 0.037 | DX103: 0.03 | DY103: 0 | DZ103: 0.046
A104: Cholesterol Esters | B104: CE(17:2) | C104: 1 | D104: 1 | E104: 1 | F104: 2 | G104: 1 | H104: 2 | I104: 1 | J104: 6 | K104: 15 | L104: 12.8 | N104: 0.307 | O104: 0.094 | P104: 0.102 | Q104: 0 | R104: 0.043 | S104: 0.125 | T104: 0.096 | U104: 0.084 | V104: 0.116 | W104: 0.081 | X104: 0.093 | Y104: 0.169 | Z104: 0.102 | AA104: 0.094 | AB104: 0.286 | AC104: 0.168 | AD104: 0.067 | AE104: 0.203 | AF104: 0.075 | AG104: 0.124 | AH104: 0.215 | AI104: 0.167 | AJ104: 0.123 | AK104: 0.071 | AL104: 0.055 | AM104: 0.139 | AN104: 0.138 | AO104: 0.183 | AP104: 0.082 | AQ104: 0.154 | AR104: 0.075 | AS104: 0.298 | AT104: 0.127 | AU104: 0.088 | AV104: 0.066 | AW104: 0 | AX104: 0.211 | AY104: 0.193 | AZ104: 0.194 | BA104: 0.06 | BB104: 0.066 | BC104: 0.066 | BD104: 0.194 | BE104: 0.096 | BF104: 0.042 | BG104: 0.095 | BH104: 0.059 | BI104: 0.082 | BJ104: 0.151 | BK104: 0.074 | BL104: 0.117 | BM104: 0.215 | BN104: 0 | BO104: 0.14 | BP104: 0.077 | BQ104: 0.161 | BR104: 0.091 | BS104: 0.043 | BT104: 0.08 | BU104: 0.045 | BV104: 0.077 | BW104: 0.043 | BX104: 0.051 | BY104: 0.089 | BZ104: 0.075 | CA104: 0.063 | CB104: 0.026 | CC104: 0.047 | CD104: 0 | CE104: 0.248 | CF104: 0 | CG104: 0.074 | CH104: 0.045 | CI104: 0.058 | CJ104: 0.056 | CK104: 0.066 | CL104: 0.198 | CM104: 0.072 | CN104: 0 | CO104: 0.067 | CP104: 0.054 | CQ104: 0.085 | CR104: 0.072 | CS104: 0.038 | CT104: 0 | CU104: 0.079 | CV104: 0.093 | CW104: 0.173 | CX104: 0.049 | CY104: 0.081 | CZ104: 0.132 | DA104: 0.061 | DB104: 0 | DC104: 0.075 | DD104: 0.051 | DE104: 0.083 | DF104: 0.086 | DG104: 0.067 | DH104: 0.04 | DI104: 0.043 | DJ104: 0.044 | DK104: 0 | DL104: 0.056 | DM104: 0.046 | DN104: 0.055 | DO104: 0 | DP104: 0.069 | DQ104: 0 | DR104: 0.047 | DS104: 0.041 | DT104: 0 | DU104: 0.057 | DV104: 0.042 | DW104: 0.03 | DX104: 0 | DY104: 0 | DZ104: 0
A105: Cholesterol Esters | B105: CE(18:1) | C105: 0 | D105: 3 | E105: 0 | F105: 0 | G105: 0 | H105: 0 | I105: 0 | J105: 0 | K105: 3 | L105: 2.6 | N105: 13.4 | O105: 0.952 | P105: 20.3 | Q105: 9.74 | R105: 2.63 | S105: 0.746 | T105: 0.417 | U105: 1.13 | V105: 6.13 | W105: 27.6 | X105: 0.737 | Y105: 0.22 | Z105: 0.188 | AA105: 1.31 | AB105: 1.28 | AC105: 1.44 | AD105: 0.727 | AE105: 0.434 | AF105: 0.772 | AG105: 0.406 | AH105: 8.53 | AI105: 0.241 | AJ105: 0.659 | AK105: 0 | AL105: 1.37 | AM105: 0.308 | AN105: 0.217 | AO105: 0.419 | AP105: 0.229 | AQ105: 0.586 | AR105: 0.305 | AS105: 0.787 | AT105: 1.05 | AU105: 0.153 | AV105: 0.63 | AW105: 0 | AX105: 0 | AY105: 0.082 | AZ105: 0.287 | BA105: 3.77 | BB105: 1.33 | BC105: 0.686 | BD105: 1.82 | BE105: 12.4 | BF105: 0.738 | BG105: 1.28 | BH105: 1.22 | BI105: 6.63 | BJ105: 0.439 | BK105: 0.864 | BL105: 3.28 | BM105: 0.462 | BN105: 1.46 | BO105: 0.69 | BP105: 1.16 | BQ105: 0.859 | BR105: 1.38 | BS105: 0.958 | BT105: 0.681 | BU105: 1.05 | BV105: 0.387 | BW105: 0.871 | BX105: 0.423 | BY105: 0.354 | BZ105: 1.63 | CA105: 1.04 | CB105: 0.325 | CC105: 0.662 | CD105: 1.36 | CE105: 1.22 | CF105: 1.56 | CG105: 0.84 | CH105: 0.622 | CI105: 0.738 | CJ105: 1.59 | CK105: 1.4 | CL105: 0.758 | CM105: 0.87 | CN105: 0.266 | CO105: 0.634 | CP105: 3.59 | CQ105: 1.79 | CR105: 3.95 | CS105: 0.796 | CT105: 0.458 | CU105: 3.22 | CV105: 0.406 | CW105: 0.64 | CX105: 0.17 | CY105: 1.09 | CZ105: 0.674 | DA105: 0.887 | DB105: 0.493 | DC105: 0.612 | DD105: 4.68 | DE105: 0.197 | DF105: 1.93 | DG105: 0.428 | DH105: 0.719 | DI105: 0.8 | DJ105: 0.376 | DK105: 0.924 | DL105: 0.629 | DM105: 2.24 | DN105: 9.45 | DO105: 0.75 | DP105: 1.56 | DQ105: 0.41 | DR105: 0.453 | DS105: 1.97 | DT105: 1.91 | DU105: 0.528 | DV105: 0.452 | DW105: 0.419 | DX105: 0.578 | DY105: 0.485 | DZ105: 1.29
A106: Cholesterol Esters | B106: CE(18:2) | C106: 0 | D106: 0 | E106: 0 | F106: 0 | G106: 0 | H106: 0 | I106: 0 | J106: 0 | K106: 0 | L106: 0.0 | N106: 70.8 | O106: 4.88 | P106: 187 | Q106: 123 | R106: 21 | S106: 3.19 | T106: 7.97 | U106: 2.83 | V106: 72.5 | W106: 351 | X106: 2.41 | Y106: 0.289 | Z106: 0.308 | AA106: 2.07 | AB106: 4.58 | AC106: 10.9 | AD106: 9.75 | AE106: 0.734 | AF106: 1.14 | AG106: 0.419 | AH106: 44.1 | AI106: 0.381 | AJ106: 1.15 | AK106: 0.169 | AL106: 1.64 | AM106: 0.526 | AN106: 0.26 | AO106: 1.23 | AP106: 0.393 | AQ106: 1.24 | AR106: 0.308 | AS106: 3.37 | AT106: 1.47 | AU106: 0.502 | AV106: 4.03 | AW106: 0.177 | AX106: 0.273 | AY106: 0.314 | AZ106: 0.354 | BA106: 47.4 | BB106: 4.43 | BC106: 2.46 | BD106: 29.1 | BE106: 167 | BF106: 1.78 | BG106: 23.1 | BH106: 3.13 | BI106: 89.1 | BJ106: 4.7 | BK106: 3.98 | BL106: 33.1 | BM106: 3.52 | BN106: 1.6 | BO106: 3.89 | BP106: 1.9 | BQ106: 0.638 | BR106: 1.18 | BS106: 0.926 | BT106: 1.71 | BU106: 3.79 | BV106: 4.31 | BW106: 6.4 | BX106: 0.972 | BY106: 2.16 | BZ106: 6.16 | CA106: 10.5 | CB106: 3.75 | CC106: 2.64 | CD106: 3.93 | CE106: 13.4 | CF106: 10.8 | CG106: 3.15 | CH106: 24.9 | CI106: 3.05 | CJ106: 14.9 | CK106: 9.41 | CL106: 8.04 | CM106: 7.96 | CN106: 1.1 | CO106: 1.26 | CP106: 47.7 | CQ106: 21.2 | CR106: 65.8 | CS106: 8.86 | CT106: 1.38 | CU106: 11.7 | CV106: 3.17 | CW106: 8.83 | CX106: 0.579 | CY106: 3.27 | CZ106: 3.11 | DA106: 1.9 | DB106: 1.6 | DC106: 6.95 | DD106: 53.8 | DE106: 0.883 | DF106: 26 | DG106: 4.68 | DH106: 12.1 | DI106: 2.01 | DJ106: 2.79 | DK106: 2.61 | DL106: 3.07 | DM106: 13.7 | DN106: 126 | DO106: 5.51 | DP106: 13.5 | DQ106: 2.37 | DR106: 5.43 | DS106: 19 | DT106: 17.7 | DU106: 3.6 | DV106: 3.14 | DW106: 2.9 | DX106: 0.893 | DY106: 3.7 | DZ106: 1.44
A107: Cholesterol Esters | B107: CE(18:3) | C107: 6 | D107: 32 | E107: 7 | F107: 12 | G107: 6 | H107: 9 | I107: 7 | J107: 8 | K107: 87 | L107: 74.4 | N107: 4.77 | O107: 0.397 | P107: 11.7 | Q107: 1.38 | R107: 0 | S107: 0 | T107: 0 | U107: 0 | V107: 0 | W107: 12 | X107: 0 | Y107: 0 | Z107: 0 | AA107: 0 | AB107: 0.106 | AC107: 0.361 | AD107: 0 | AE107: 0 | AF107: 0 | AG107: 0 | AH107: 3.05 | AI107: 0 | AJ107: 0 | AK107: 0 | AL107: 0 | AM107: 0 | AN107: 0 | AO107: 0.08 | AP107: 0 | AQ107: 0.064 | AR107: 0 | AS107: 0 | AT107: 0 | AU107: 0 | AV107: 0 | AW107: 0 | AX107: 0 | AY107: 0 | AZ107: 0 | BA107: 1.9 | BB107: 0 | BC107: 0 | BD107: 0 | BE107: 0 | BF107: 0 | BG107: 0 | BH107: 0 | BI107: 0 | BJ107: 0 | BK107: 0 | BL107: 0.804 | BM107: 0.127 | BN107: 0 | BO107: 0.082 | BP107: 0 | BQ107: 0 | BR107: 0 | BS107: 0 | BT107: 0 | BU107: 0.432 | BV107: 0 | BW107: 0.328 | BX107: 0 | BY107: 0 | BZ107: 0 | CA107: 0 | CB107: 0 | CC107: 0 | CD107: 0 | CE107: 0 | CF107: 0 | CG107: 0 | CH107: 0.49 | CI107: 0 | CJ107: 0.592 | CK107: 0 | CL107: 0 | CM107: 0 | CN107: 0 | CO107: 0 | CP107: 0 | CQ107: 0.496 | CR107: 1.98 | CS107: 0.207 | CT107: 0 | CU107: 0.485 | CV107: 0 | CW107: 0 | CX107: 0 | CY107: 0 | CZ107: 0 | DA107: 0 | DB107: 0 | DC107: 0 | DD107: 1.13 | DE107: 0 | DF107: 1.16 | DG107: 0 | DH107: 0 | DI107: 0 | DJ107: 0 | DK107: 0 | DL107: 0 | DM107: 0.715 | DN107: 4.02 | DO107: 0 | DP107: 0.689 | DQ107: 0.154 | DR107: 0 | DS107: 0.835 | DT107: 0.475 | DU107: 0 | DV107: 0 | DW107: 0 | DX107: 0 | DY107: 0 | DZ107: 0
A108: Cholesterol Esters | B108: CE(20:4) | C108: 0 | D108: 1 | E108: 0 | F108: 0 | G108: 0 | H108: 0 | I108: 0 | J108: 0 | K108: 1 | L108: 0.9 | N108: 35.8 | O108: 3.25 | P108: 52.1 | Q108: 26.5 | R108: 11.1 | S108: 0.714 | T108: 5.06 | U108: 1.25 | V108: 18.6 | W108: 163 | X108: 0.597 | Y108: 0.595 | Z108: 0.832 | AA108: 1.2 | AB108: 3.01 | AC108: 5.49 | AD108: 4.86 | AE108: 0.184 | AF108: 1.42 | AG108: 0.95 | AH108: 22 | AI108: 0.64 | AJ108: 1.18 | AK108: 0 | AL108: 2.61 | AM108: 1.03 | AN108: 0.595 | AO108: 2.06 | AP108: 0.748 | AQ108: 1.4 | AR108: 0.792 | AS108: 4.21 | AT108: 2 | AU108: 0.914 | AV108: 2.66 | AW108: 0.809 | AX108: 1.03 | AY108: 0.866 | AZ108: 0.757 | BA108: 10.5 | BB108: 2.08 | BC108: 0.438 | BD108: 6.71 | BE108: 36.7 | BF108: 1.44 | BG108: 5.3 | BH108: 1.13 | BI108: 17.1 | BJ108: 1.38 | BK108: 2.71 | BL108: 12 | BM108: 2.38 | BN108: 2.21 | BO108: 3.7 | BP108: 2.09 | BQ108: 1.73 | BR108: 2.57 | BS108: 1.93 | BT108: 2.91 | BU108: 3.89 | BV108: 1.3 | BW108: 3.18 | BX108: 0.245 | BY108: 2.03 | BZ108: 4.14 | CA108: 3.97 | CB108: 2.99 | CC108: 1.23 | CD108: 2.04 | CE108: 2.49 | CF108: 4.21 | CG108: 2.3 | CH108: 6.45 | CI108: 1.86 | CJ108: 6.67 | CK108: 5.29 | CL108: 1.74 | CM108: 2.99 | CN108: 0.265 | CO108: 2.23 | CP108: 9.05 | CQ108: 7.52 | CR108: 15.6 | CS108: 5.09 | CT108: 0.266 | CU108: 5.84 | CV108: 2.17 | CW108: 2.2 | CX108: 0.655 | CY108: 1.84 | CZ108: 1.13 | DA108: 0.386 | DB108: 0.34 | DC108: 1.54 | DD108: 22.4 | DE108: 0.962 | DF108: 6.16 | DG108: 3.3 | DH108: 3.02 | DI108: 2.01 | DJ108: 1.84 | DK108: 2.04 | DL108: 3 | DM108: 6.36 | DN108: 30 | DO108: 3.34 | DP108: 4.46 | DQ108: 2.06 | DR108: 3.68 | DS108: 5.53 | DT108: 9.85 | DU108: 2.28 | DV108: 2.11 | DW108: 2.24 | DX108: 1.45 | DY108: 2.5 | DZ108: 1.47
A109: Cholesterol Esters | B109: CE(20:5) | C109: 0 | D109: 21 | E109: 7 | F109: 4 | G109: 1 | H109: 2 | I109: 4 | J109: 3 | K109: 42 | L109: 35.9 | N109: 22.6 | O109: 0.135 | P109: 27.3 | Q109: 19.3 | R109: 0.243 | S109: 0.166 | T109: 0.448 | U109: 0.375 | V109: 19.9 | W109: 32.9 | X109: 0.224 | Y109: 0 | Z109: 0 | AA109: 0 | AB109: 0.046 | AC109: 7.46 | AD109: 3.1 | AE109: 0 | AF109: 0 | AG109: 0 | AH109: 15.8 | AI109: 0 | AJ109: 2.43 | AK109: 0 | AL109: 0 | AM109: 0 | AN109: 0 | AO109: 0 | AP109: 0 | AQ109: 0 | AR109: 0 | AS109: 0 | AT109: 0 | AU109: 0 | AV109: 0.453 | AW109: 0 | AX109: 0 | AY109: 1.92 | AZ109: 0 | BA109: 3.83 | BB109: 0.233 | BC109: 6.24 | BD109: 0.286 | BE109: 12.2 | BF109: 0.113 | BG109: 2.97 | BH109: 0.447 | BI109: 5.09 | BJ109: 0.569 | BK109: 2.24 | BL109: 2.94 | BM109: 0 | BN109: 0 | BO109: 0 | BP109: 0 | BQ109: 0 | BR109: 0 | BS109: 0 | BT109: 2.42 | BU109: 0.15 | BV109: 0.554 | BW109: 0.403 | BX109: 0 | BY109: 0 | BZ109: 0.126 | CA109: 0.2 | CB109: 0.692 | CC109: 0 | CD109: 0 | CE109: 0.774 | CF109: 0.391 | CG109: 0.447 | CH109: 0.165 | CI109: 0.17 | CJ109: 0.4 | CK109: 0.181 | CL109: 0.606 | CM109: 0.222 | CN109: 0.793 | CO109: 0 | CP109: 1.85 | CQ109: 0.051 | CR109: 19.3 | CS109: 0.495 | CT109: 3.68 | CU109: 0.285 | CV109: 0 | CW109: 0.306 | CX109: 0.052 | CY109: 0.624 | CZ109: 0.15 | DA109: 0.106 | DB109: 0 | DC109: 0.543 | DD109: 16.8 | DE109: 0 | DF109: 0.049 | DG109: 0 | DH109: 0.639 | DI109: 0 | DJ109: 0 | DK109: 0.081 | DL109: 0.045 | DM109: 0.058 | DN109: 7.46 | DO109: 0.855 | DP109: 0.433 | DQ109: 0 | DR109: 0.124 | DS109: 0.584 | DT109: 0.302 | DU109: 0.211 | DV109: 0.033 | DW109: 0 | DX109: 0 | DY109: 0.117 | DZ109: 0.255
A110: Cholesterol Esters | B110: CE(22:5) | C110: 0 | D110: 0 | E110: 0 | F110: 1 | G110: 1 | H110: 1 | I110: 2 | J110: 3 | K110: 8 | L110: 6.8 | N110: 4.4 | O110: 0.07 | P110: 2.32 | Q110: 6.79 | R110: 4.67 | S110: 1.35 | T110: 2.63 | U110: 1.02 | V110: 2.78 | W110: 6.33 | X110: 2.97 | Y110: 2.84 | Z110: 2.74 | AA110: 1.35 | AB110: 3.55 | AC110: 3.02 | AD110: 2.7 | AE110: 2.99 | AF110: 2.05 | AG110: 2.79 | AH110: 2.83 | AI110: 1.83 | AJ110: 2.17 | AK110: 1.43 | AL110: 3.22 | AM110: 3.82 | AN110: 1.09 | AO110: 2.43 | AP110: 1.99 | AQ110: 3.12 | AR110: 1.62 | AS110: 3.94 | AT110: 2.92 | AU110: 2.28 | AV110: 3.11 | AW110: 2.22 | AX110: 2.87 | AY110: 1.79 | AZ110: 3.47 | BA110: 3.64 | BB110: 2.51 | BC110: 1.46 | BD110: 1.19 | BE110: 1.68 | BF110: 4.62 | BG110: 3.86 | BH110: 5.62 | BI110: 1.52 | BJ110: 1.94 | BK110: 2.99 | BL110: 3.24 | BM110: 3.51 | BN110: 3.06 | BO110: 3.33 | BP110: 3.9 | BQ110: 3.53 | BR110: 3.5 | BS110: 3.38 | BT110: 2.34 | BU110: 0 | BV110: 0.942 | BW110: 2.8 | BX110: 1.3 | BY110: 1.56 | BZ110: 1.85 | CA110: 1.66 | CB110: 0.377 | CC110: 1.39 | CD110: 1.72 | CE110: 0.967 | CF110: 0.295 | CG110: 2.54 | CH110: 0.056 | CI110: 1.05 | CJ110: 0.05 | CK110: 2.68 | CL110: 1.88 | CM110: 4.68 | CN110: 0.985 | CO110: 2.71 | CP110: 2.72 | CQ110: 0.132 | CR110: 0 | CS110: 0.262 | CT110: 0.875 | CU110: 0 | CV110: 3.83 | CW110: 2.31 | CX110: 3.8 | CY110: 4.12 | CZ110: 2.04 | DA110: 2.36 | DB110: 1.38 | DC110: 2.32 | DD110: 4.68 | DE110: 2.26 | DF110: 2.85 | DG110: 3.31 | DH110: 0 | DI110: 2.95 | DJ110: 2.02 | DK110: 2.84 | DL110: 0 | DM110: 0.076 | DN110: 3.42 | DO110: 3.56 | DP110: 3.45 | DQ110: 0 | DR110: 4.26 | DS110: 0.09 | DT110: 2.17 | DU110: 0.061 | DV110: 0 | DW110: 4.32 | DX110: 0 | DY110: 0.06 | DZ110: 0.133
A111: Cholesterol Esters | B111: CE(22:6) | C111: 1 | D111: 1 | E111: 0 | F111: 0 | G111: 0 | H111: 1 | I111: 0 | J111: 0 | K111: 3 | L111: 2.6 | N111: 10.8 | O111: 3.37 | P111: 22.9 | Q111: 12.4 | R111: 6.08 | S111: 3.55 | T111: 2.53 | U111: 3.82 | V111: 17.4 | W111: 27.7 | X111: 0 | Y111: 1.27 | Z111: 0.567 | AA111: 2.23 | AB111: 2.17 | AC111: 2.67 | AD111: 2.66 | AE111: 2.12 | AF111: 1.84 | AG111: 1.23 | AH111: 6.7 | AI111: 0 | AJ111: 1.03 | AK111: 0.867 | AL111: 2.28 | AM111: 2 | AN111: 1.11 | AO111: 0.934 | AP111: 0.661 | AQ111: 0.668 | AR111: 0.313 | AS111: 2.63 | AT111: 2.5 | AU111: 0.903 | AV111: 1.86 | AW111: 1.3 | AX111: 2.02 | AY111: 0.914 | AZ111: 2.31 | BA111: 3.49 | BB111: 1.02 | BC111: 6.33 | BD111: 6.05 | BE111: 14.5 | BF111: 1.2 | BG111: 3.66 | BH111: 0.409 | BI111: 4.65 | BJ111: 2.39 | BK111: 2.3 | BL111: 1.86 | BM111: 2.49 | BN111: 1.55 | BO111: 2.14 | BP111: 0.942 | BQ111: 2.2 | BR111: 1.7 | BS111: 2.44 | BT111: 2.28 | BU111: 2.8 | BV111: 4.61 | BW111: 4.65 | BX111: 3.35 | BY111: 2.76 | BZ111: 4.94 | CA111: 5.23 | CB111: 2.03 | CC111: 1.9 | CD111: 2.4 | CE111: 2.98 | CF111: 0.962 | CG111: 2.87 | CH111: 6.57 | CI111: 4.89 | CJ111: 3.45 | CK111: 5.21 | CL111: 5.93 | CM111: 4.31 | CN111: 2.83 | CO111: 3.83 | CP111: 4.07 | CQ111: 4.97 | CR111: 9.65 | CS111: 5.02 | CT111: 4.61 | CU111: 5.72 | CV111: 3.37 | CW111: 5.35 | CX111: 0 | CY111: 2.56 | CZ111: 2.83 | DA111: 2.89 | DB111: 6.98 | DC111: 8.12 | DD111: 13.3 | DE111: 5.05 | DF111: 3.05 | DG111: 3.2 | DH111: 3.72 | DI111: 3.07 | DJ111: 3.81 | DK111: 4.67 | DL111: 3.18 | DM111: 4.88 | DN111: 4.43 | DO111: 4.17 | DP111: 4.36 | DQ111: 2.81 | DR111: 6.63 | DS111: 4.71 | DT111: 7.22 | DU111: 3.17 | DV111: 3.39 | DW111: 3.16 | DX111: 2.17 | DY111: 3.17 | DZ111: 3.08
A112: Glycerides | B112: DG(32:1) | C112: 0 | D112: 0 | E112: 0 | F112: 0 | G112: 0 | H112: 0 | I112: 0 | J112: 0 | K112: 0 | L112: 0.0 | N112: 0.037 | O112: 0.052 | P112: 1.45 | Q112: 0.761 | R112: 0.306 | S112: 1.56 | T112: 0.57 | U112: 1.48 | V112: 2.71 | W112: 0.73 | X112: 2.12 | Y112: 0.044 | Z112: 0.037 | AA112: 0.035 | AB112: 0.038 | AC112: 0.031 | AD112: 0.03 | AE112: 0.052 | AF112: 0.038 | AG112: 0.034 | AH112: 0.035 | AI112: 0.05 | AJ112: 0.099 | AK112: 0.022 | AL112: 0.045 | AM112: 0.038 | AN112: 0.228 | AO112: 0.042 | AP112: 0.195 | AQ112: 0.037 | AR112: 0.025 | AS112: 0.04 | AT112: 0.314 | AU112: 0.034 | AV112: 0.031 | AW112: 0.025 | AX112: 0.035 | AY112: 0.027 | AZ112: 0.034 | BA112: 0.488 | BB112: 1.88 | BC112: 2.55 | BD112: 3.16 | BE112: 3.02 | BF112: 1.59 | BG112: 0.707 | BH112: 2.22 | BI112: 2.37 | BJ112: 2.16 | BK112: 0.141 | BL112: 0.028 | BM112: 0.1 | BN112: 0.272 | BO112: 0.037 | BP112: 0.036 | BQ112: 0.038 | BR112: 0.039 | BS112: 0.043 | BT112: 0.339 | BU112: 0.045 | BV112: 2.15 | BW112: 0.622 | BX112: 1.7 | BY112: 0.862 | BZ112: 0.574 | CA112: 0.781 | CB112: 0.081 | CC112: 0.051 | CD112: 0.341 | CE112: 3.35 | CF112: 0.672 | CG112: 0.051 | CH112: 0.448 | CI112: 1.65 | CJ112: 0.04 | CK112: 0.89 | CL112: 2.81 | CM112: 0.241 | CN112: 2.17 | CO112: 0.697 | CP112: 0.411 | CQ112: 0.05 | CR112: 0.664 | CS112: 0.436 | CT112: 2.42 | CU112: 0.267 | CV112: 0.478 | CW112: 1.83 | CX112: 0.583 | CY112: 0.065 | CZ112: 2 | DA112: 1.44 | DB112: 2.14 | DC112: 3.86 | DD112: 1 | DE112: 3.09 | DF112: 0.456 | DG112: 0.583 | DH112: 0.033 | DI112: 0.787 | DJ112: 0.886 | DK112: 1.25 | DL112: 0.052 | DM112: 0.051 | DN112: 1.02 | DO112: 0.537 | DP112: 0.898 | DQ112: 0.054 | DR112: 1.45 | DS112: 0.28 | DT112: 0.647 | DU112: 0.051 | DV112: 0.043 | DW112: 0.198 | DX112: 0.503 | DY112: 0.06 | DZ112: 0.045
A113: Glycerides | B113: DG(32:2) | C113: 1 | D113: 0 | E113: 0 | F113: 1 | G113: 1 | H113: 1 | I113: 3 | J113: 5 | K113: 12 | L113: 10.3 | N113: 0.017 | O113: 0 | P113: 2.49 | Q113: 0.884 | R113: 0.46 | S113: 0.29 | T113: 0.878 | U113: 0.28 | V113: 0.475 | W113: 0.728 | X113: 2.57 | Y113: 0.025 | Z113: 0.028 | AA113: 0.027 | AB113: 0.035 | AC113: 0.026 | AD113: 0.036 | AE113: 0.031 | AF113: 0.021 | AG113: 0.022 | AH113: 0.029 | AI113: 0.086 | AJ113: 0.028 | AK113: 0.014 | AL113: 0.029 | AM113: 0.025 | AN113: 0.026 | AO113: 0.039 | AP113: 0.028 | AQ113: 0.016 | AR113: 0.032 | AS113: 0.032 | AT113: 0.039 | AU113: 0.033 | AV113: 0.028 | AW113: 0.029 | AX113: 0.037 | AY113: 0.022 | AZ113: 0.034 | BA113: 0.762 | BB113: 0.293 | BC113: 0.421 | BD113: 0.473 | BE113: 0.61 | BF113: 2.58 | BG113: 0.983 | BH113: 2.65 | BI113: 0.413 | BJ113: 0.372 | BK113: 0.024 | BL113: 0.022 | BM113: 0.036 | BN113: 0.399 | BO113: 0.023 | BP113: 0.027 | BQ113: 0.03 | BR113: 0.063 | BS113: 0.053 | BT113: 0.038 | BU113: 0.03 | BV113: 0.367 | BW113: 0.828 | BX113: 2.86 | BY113: 0.882 | BZ113: 0.816 | CA113: 1.62 | CB113: 0.183 | CC113: 0.026 | CD113: 0.56 | CE113: 0.529 | CF113: 0.767 | CG113: 0 | CH113: 0.609 | CI113: 0.276 | CJ113: 0 | CK113: 0.742 | CL113: 0.484 | CM113: 0.729 | CN113: 0.352 | CO113: 1.13 | CP113: 0.742 | CQ113: 0.022 | CR113: 0.574 | CS113: 0.603 | CT113: 0.359 | CU113: 0.086 | CV113: 0.849 | CW113: 2.78 | CX113: 0.656 | CY113: 0 | CZ113: 0.27 | DA113: 2.35 | DB113: 0.318 | DC113: 0.6 | DD113: 1.65 | DE113: 0.449 | DF113: 0 | DG113: 0.589 | DH113: 0.08 | DI113: 0.643 | DJ113: 1.83 | DK113: 1.78 | DL113: 0 | DM113: 0 | DN113: 1.66 | DO113: 0.538 | DP113: 0.661 | DQ113: 0 | DR113: 1.39 | DS113: 0.025 | DT113: 0.84 | DU113: 0 | DV113: 0 | DW113: 0 | DX113: 0.136 | DY113: 0 | DZ113: 0.038
A114: Glycerides | B114: DG(34:1) | C114: 0 | D114: 0 | E114: 0 | F114: 0 | G114: 0 | H114: 0 | I114: 0 | J114: 0 | K114: 0 | L114: 0.0 | N114: 0.324 | O114: 0.235 | P114: 1.96 | Q114: 0.845 | R114: 0.317 | S114: 0.995 | T114: 0.522 | U114: 1.06 | V114: 2.61 | W114: 0.939 | X114: 1.08 | Y114: 0.189 | Z114: 0.189 | AA114: 0.031 | AB114: 0.276 | AC114: 0.219 | AD114: 0.065 | AE114: 0.215 | AF114: 0.299 | AG114: 0.367 | AH114: 0.373 | AI114: 0.328 | AJ114: 0.062 | AK114: 0.163 | AL114: 0.034 | AM114: 0.122 | AN114: 0.295 | AO114: 0.184 | AP114: 0.023 | AQ114: 0.168 | AR114: 0.165 | AS114: 0.211 | AT114: 0.367 | AU114: 0.079 | AV114: 0.22 | AW114: 0.207 | AX114: 0.034 | AY114: 0.086 | AZ114: 0.089 | BA114: 0.586 | BB114: 1.19 | BC114: 1.96 | BD114: 2.44 | BE114: 2.4 | BF114: 1.13 | BG114: 0.483 | BH114: 1.27 | BI114: 1.93 | BJ114: 1.85 | BK114: 0.257 | BL114: 0.145 | BM114: 0.105 | BN114: 0.267 | BO114: 0.256 | BP114: 0.14 | BQ114: 0.285 | BR114: 0.169 | BS114: 0.262 | BT114: 0.395 | BU114: 0.183 | BV114: 2.04 | BW114: 0.623 | BX114: 1.21 | BY114: 0.636 | BZ114: 0.655 | CA114: 0.725 | CB114: 0.267 | CC114: 0.297 | CD114: 0.257 | CE114: 2.73 | CF114: 0.438 | CG114: 0.237 | CH114: 0.285 | CI114: 1.51 | CJ114: 0.191 | CK114: 0.74 | CL114: 2.46 | CM114: 0.313 | CN114: 1.74 | CO114: 0.616 | CP114: 0.423 | CQ114: 0.217 | CR114: 0.8 | CS114: 0.31 | CT114: 1.63 | CU114: 0.308 | CV114: 0.343 | CW114: 1.18 | CX114: 0.531 | CY114: 0.229 | CZ114: 1.33 | DA114: 1.13 | DB114: 1.57 | DC114: 2.74 | DD114: 0.851 | DE114: 2.29 | DF114: 0.277 | DG114: 0.429 | DH114: 0.249 | DI114: 0.714 | DJ114: 0.682 | DK114: 0.808 | DL114: 0.22 | DM114: 0.228 | DN114: 0.576 | DO114: 0.523 | DP114: 0.71 | DQ114: 0.219 | DR114: 0.815 | DS114: 0.231 | DT114: 0.361 | DU114: 0.233 | DV114: 0.215 | DW114: 0.267 | DX114: 0.209 | DY114: 0.192 | DZ114: 0.214
A115: Glycerides | B115: DG(34:3) | C115: 0 | D115: 9 | E115: 4 | F115: 0 | G115: 0 | H115: 0 | I115: 0 | J115: 0 | K115: 13 | L115: 11.1 | N115: 0.01 | O115: 0.014 | P115: 1.85 | Q115: 0.734 | R115: 0.568 | S115: 2.09 | T115: 0.665 | U115: 2.5 | V115: 0.745 | W115: 0.661 | X115: 1.17 | Y115: 0.01 | Z115: 0 | AA115: 0.009 | AB115: 0 | AC115: 0 | AD115: 0.011 | AE115: 0 | AF115: 0 | AG115: 0.012 | AH115: 0.009 | AI115: 0 | AJ115: 0.007 | AK115: 0.012 | AL115: 0.011 | AM115: 0.013 | AN115: 0.012 | AO115: 0 | AP115: 0.011 | AQ115: 0.009 | AR115: 0.006 | AS115: 0.014 | AT115: 0 | AU115: 0.008 | AV115: 0.006 | AW115: 0.008 | AX115: 0.012 | AY115: 0.007 | AZ115: 0 | BA115: 0.717 | BB115: 2.46 | BC115: 2.7 | BD115: 0.647 | BE115: 0.82 | BF115: 1.03 | BG115: 0.742 | BH115: 1.21 | BI115: 2.81 | BJ115: 3.11 | BK115: 0 | BL115: 0.009 | BM115: 0 | BN115: 0.025 | BO115: 0.007 | BP115: 0.012 | BQ115: 0.007 | BR115: 0.006 | BS115: 0 | BT115: 0 | BU115: 0.011 | BV115: 2.66 | BW115: 1.02 | BX115: 1.57 | BY115: 0.8 | BZ115: 0.658 | CA115: 1.1 | CB115: 0.034 | CC115: 0.014 | CD115: 0.559 | CE115: 0.781 | CF115: 0.491 | CG115: 0.014 | CH115: 0.468 | CI115: 2.26 | CJ115: 0.012 | CK115: 0.666 | CL115: 0.681 | CM115: 0.022 | CN115: 2.66 | CO115: 0.69 | CP115: 0.572 | CQ115: 0.015 | CR115: 0.355 | CS115: 0.182 | CT115: 1.65 | CU115: 0.024 | CV115: 0.023 | CW115: 1.42 | CX115: 0.707 | CY115: 0.016 | CZ115: 1.92 | DA115: 2.02 | DB115: 1.94 | DC115: 0.747 | DD115: 0.827 | DE115: 2.48 | DF115: 0.063 | DG115: 0.798 | DH115: 0.017 | DI115: 0.683 | DJ115: 0.464 | DK115: 0.686 | DL115: 0.014 | DM115: 0.016 | DN115: 0.775 | DO115: 0.59 | DP115: 0.586 | DQ115: 0.016 | DR115: 0.621 | DS115: 0.019 | DT115: 0.593 | DU115: 0.015 | DV115: 0.013 | DW115: 0.014 | DX115: 0.011 | DY115: 0.013 | DZ115: 0.016
A116: Glycerides | B116: DG(36:2) | C116: 0 | D116: 0 | E116: 0 | F116: 0 | G116: 0 | H116: 0 | I116: 0 | J116: 0 | K116: 0 | L116: 0.0 | N116: 0.136 | O116: 0.109 | P116: 2.09 | Q116: 1.35 | R116: 0.479 | S116: 1.9 | T116: 0.871 | U116: 2.16 | V116: 3.87 | W116: 1.03 | X116: 1.57 | Y116: 0.064 | Z116: 0.083 | AA116: 0.049 | AB116: 0.084 | AC116: 0.052 | AD116: 0.11 | AE116: 0.069 | AF116: 0.075 | AG116: 0.06 | AH116: 0.092 | AI116: 0.077 | AJ116: 0.07 | AK116: 0.05 | AL116: 0.087 | AM116: 0.082 | AN116: 0.086 | AO116: 0.062 | AP116: 0.075 | AQ116: 0.076 | AR116: 0.067 | AS116: 0.062 | AT116: 0.082 | AU116: 0.101 | AV116: 0.092 | AW116: 0.044 | AX116: 0.08 | AY116: 0.045 | AZ116: 0.217 | BA116: 0.643 | BB116: 2.04 | BC116: 2.66 | BD116: 3.35 | BE116: 4.37 | BF116: 1.6 | BG116: 0.864 | BH116: 1.74 | BI116: 2.57 | BJ116: 2.51 | BK116: 0.067 | BL116: 0.066 | BM116: 0.05 | BN116: 0.086 | BO116: 0.082 | BP116: 0.086 | BQ116: 0.058 | BR116: 0.078 | BS116: 0.076 | BT116: 0.112 | BU116: 0.085 | BV116: 2.43 | BW116: 1.04 | BX116: 1.92 | BY116: 0.996 | BZ116: 0.772 | CA116: 1.12 | CB116: 0.174 | CC116: 0.127 | CD116: 0.344 | CE116: 3.18 | CF116: 0.487 | CG116: 0.12 | CH116: 0.357 | CI116: 2.15 | CJ116: 0.107 | CK116: 1.02 | CL116: 2.96 | CM116: 0.434 | CN116: 2.45 | CO116: 1.03 | CP116: 0.369 | CQ116: 0.153 | CR116: 0.69 | CS116: 0.236 | CT116: 2.37 | CU116: 0.239 | CV116: 0.488 | CW116: 1.76 | CX116: 0.662 | CY116: 0.152 | CZ116: 1.85 | DA116: 1.84 | DB116: 2.61 | DC116: 3.78 | DD116: 1.14 | DE116: 2.74 | DF116: 0.209 | DG116: 0.481 | DH116: 0.179 | DI116: 0.866 | DJ116: 1.06 | DK116: 1.22 | DL116: 0.102 | DM116: 0.097 | DN116: 0.924 | DO116: 0.685 | DP116: 0.923 | DQ116: 0.088 | DR116: 1.05 | DS116: 0.151 | DT116: 0.527 | DU116: 0.099 | DV116: 0.081 | DW116: 0.197 | DX116: 0.234 | DY116: 0.099 | DZ116: 0.081
A117: Glycerides | B117: DG(36:3) | C117: 0 | D117: 1 | E117: 3 | F117: 0 | G117: 0 | H117: 0 | I117: 0 | J117: 0 | K117: 4 | L117: 3.4 | N117: 0.112 | O117: 0.055 | P117: 1.95 | Q117: 1.15 | R117: 0.374 | S117: 1.73 | T117: 0.66 | U117: 2.05 | V117: 1.92 | W117: 0.992 | X117: 0.9 | Y117: 0.034 | Z117: 0.046 | AA117: 0.014 | AB117: 0.028 | AC117: 0.043 | AD117: 0.05 | AE117: 0.024 | AF117: 0.041 | AG117: 0.038 | AH117: 0.066 | AI117: 0.016 | AJ117: 0.035 | AK117: 0.009 | AL117: 0.032 | AM117: 0.032 | AN117: 0.031 | AO117: 0.019 | AP117: 0.031 | AQ117: 0.042 | AR117: 0.029 | AS117: 0.025 | AT117: 0.049 | AU117: 0.037 | AV117: 0.036 | AW117: 0.01 | AX117: 0.036 | AY117: 0 | AZ117: 0.026 | BA117: 0.577 | BB117: 1.61 | BC117: 2.1 | BD117: 2.87 | BE117: 2.09 | BF117: 1.04 | BG117: 0.654 | BH117: 1.05 | BI117: 2.17 | BJ117: 2.14 | BK117: 0.033 | BL117: 0 | BM117: 0 | BN117: 0.039 | BO117: 0.009 | BP117: 0.04 | BQ117: 0 | BR117: 0.04 | BS117: 0.034 | BT117: 0.064 | BU117: 0.039 | BV117: 1.98 | BW117: 0.81 | BX117: 1.59 | BY117: 0.902 | BZ117: 0.778 | CA117: 0.979 | CB117: 0.167 | CC117: 0.109 | CD117: 0.335 | CE117: 2.63 | CF117: 0.256 | CG117: 0.053 | CH117: 0.138 | CI117: 1.92 | CJ117: 0.053 | CK117: 0.843 | CL117: 2.62 | CM117: 0.409 | CN117: 2.11 | CO117: 0.861 | CP117: 0.223 | CQ117: 0.11 | CR117: 0.568 | CS117: 0.115 | CT117: 1.99 | CU117: 0.169 | CV117: 0.313 | CW117: 1.31 | CX117: 0.487 | CY117: 0.082 | CZ117: 1.32 | DA117: 1.46 | DB117: 2.02 | DC117: 1.61 | DD117: 0.811 | DE117: 1.86 | DF117: 0.067 | DG117: 0.405 | DH117: 0.292 | DI117: 0.593 | DJ117: 0.722 | DK117: 0.817 | DL117: 0.05 | DM117: 0.048 | DN117: 0.667 | DO117: 0.413 | DP117: 0.61 | DQ117: 0.044 | DR117: 0.589 | DS117: 0.074 | DT117: 0.305 | DU117: 0.048 | DV117: 0.04 | DW117: 0.095 | DX117: 0.112 | DY117: 0.045 | DZ117: 0.039
A118: Glycerides | B118: DG(36:4) | C118: 0 | D118: 11 | E118: 2 | F118: 0 | G118: 0 | H118: 0 | I118: 0 | J118: 0 | K118: 13 | L118: 11.1 | N118: 0.062 | O118: 0.008 | P118: 0.422 | Q118: 0.329 | R118: 0.079 | S118: 0.361 | T118: 0.156 | U118: 0.466 | V118: 0.728 | W118: 0.391 | X118: 0.222 | Y118: 0 | Z118: 0.005 | AA118: 0.008 | AB118: 0.015 | AC118: 0.013 | AD118: 0.028 | AE118: 0 | AF118: 0.009 | AG118: 0.005 | AH118: 0.046 | AI118: 0 | AJ118: 0 | AK118: 0 | AL118: 0.009 | AM118: 0 | AN118: 0.019 | AO118: 0.023 | AP118: 0 | AQ118: 0.016 | AR118: 0.007 | AS118: 0.005 | AT118: 0.031 | AU118: 0 | AV118: 0 | AW118: 0 | AX118: 0.024 | AY118: 0 | AZ118: 0.019 | BA118: 0.125 | BB118: 0.574 | BC118: 0.371 | BD118: 0.573 | BE118: 0.741 | BF118: 0.236 | BG118: 0.17 | BH118: 0.265 | BI118: 0.412 | BJ118: 0.366 | BK118: 0.007 | BL118: 0.009 | BM118: 0.021 | BN118: 0.01 | BO118: 0.03 | BP118: 0.028 | BQ118: 0.007 | BR118: 0 | BS118: 0 | BT118: 0.034 | BU118: 0.008 | BV118: 0.367 | BW118: 0.411 | BX118: 0.657 | BY118: 0.328 | BZ118: 0.338 | CA118: 0.36 | CB118: 0.047 | CC118: 0.058 | CD118: 0.055 | CE118: 0.476 | CF118: 0.072 | CG118: 0.011 | CH118: 0.046 | CI118: 0.337 | CJ118: 0.01 | CK118: 0.245 | CL118: 0.478 | CM118: 0.112 | CN118: 0.389 | CO118: 0.293 | CP118: 0.057 | CQ118: 0.039 | CR118: 0.15 | CS118: 0.047 | CT118: 0.341 | CU118: 0.184 | CV118: 0.086 | CW118: 0.412 | CX118: 0.091 | CY118: 0.011 | CZ118: 0.46 | DA118: 0.512 | DB118: 0.369 | DC118: 0.567 | DD118: 0.204 | DE118: 0.614 | DF118: 0.011 | DG118: 0.06 | DH118: 0.029 | DI118: 0.155 | DJ118: 0.091 | DK118: 0.16 | DL118: 0.012 | DM118: 0.009 | DN118: 0.082 | DO118: 0.092 | DP118: 0.087 | DQ118: 0.009 | DR118: 0.084 | DS118: 0.011 | DT118: 0.056 | DU118: 0.007 | DV118: 0.005 | DW118: 0.007 | DX118: 0.018 | DY118: 0.011 | DZ118: 0.008
A119: Glycerides | B119: DG(38:0) | C119: 0 | D119: 0 | E119: 0 | F119: 0 | G119: 0 | H119: 0 | I119: 0 | J119: 0 | K119: 0 | L119: 0.0 | N119: 0.032 | O119: 0.159 | P119: 0.034 | Q119: 0.033 | R119: 0.07 | S119: 0.527 | T119: 0.335 | U119: 0.566 | V119: 1.43 | W119: 0.028 | X119: 0.633 | Y119: 0.023 | Z119: 0.045 | AA119: 0.037 | AB119: 0.063 | AC119: 0.093 | AD119: 0.035 | AE119: 0.04 | AF119: 0.048 | AG119: 0.066 | AH119: 0.018 | AI119: 0.039 | AJ119: 0.051 | AK119: 0.02 | AL119: 0.04 | AM119: 0.089 | AN119: 0.035 | AO119: 0.118 | AP119: 0.031 | AQ119: 0.078 | AR119: 0.037 | AS119: 0.055 | AT119: 0.035 | AU119: 0.042 | AV119: 0.019 | AW119: 0.023 | AX119: 0.049 | AY119: 0.031 | AZ119: 0.067 | BA119: 0.241 | BB119: 0.549 | BC119: 0.685 | BD119: 0.701 | BE119: 1.3 | BF119: 0.613 | BG119: 0.378 | BH119: 0.662 | BI119: 0.613 | BJ119: 0.599 | BK119: 0.028 | BL119: 0.051 | BM119: 0.104 | BN119: 0.041 | BO119: 0.033 | BP119: 0.043 | BQ119: 0.046 | BR119: 0.123 | BS119: 0.053 | BT119: 0.06 | BU119: 0.157 | BV119: 0.629 | BW119: 0.354 | BX119: 0.462 | BY119: 0.314 | BZ119: 0.302 | CA119: 0.392 | CB119: 0.116 | CC119: 0.119 | CD119: 0.179 | CE119: 0.78 | CF119: 0.347 | CG119: 0.175 | CH119: 0.289 | CI119: 0.548 | CJ119: 0.033 | CK119: 0.36 | CL119: 0.678 | CM119: 0.273 | CN119: 0.541 | CO119: 0.321 | CP119: 0.033 | CQ119: 0.161 | CR119: 0.486 | CS119: 0.296 | CT119: 0.579 | CU119: 0.469 | CV119: 0.274 | CW119: 0.476 | CX119: 0.228 | CY119: 0.199 | CZ119: 0.504 | DA119: 0.437 | DB119: 0.574 | DC119: 0.901 | DD119: 0.715 | DE119: 0.795 | DF119: 0.21 | DG119: 0.245 | DH119: 0.218 | DI119: 0.306 | DJ119: 0.357 | DK119: 0.403 | DL119: 0.17 | DM119: 0.296 | DN119: 0.384 | DO119: 0.344 | DP119: 0.404 | DQ119: 0.179 | DR119: 0.493 | DS119: 0.215 | DT119: 0.445 | DU119: 0.178 | DV119: 0.204 | DW119: 0.233 | DX119: 0.23 | DY119: 0.222 | DZ119: 0.207
A120: Glycerides | B120: DG(38:5) | C120: 5 | D120: 24 | E120: 9 | F120: 8 | G120: 6 | H120: 7 | I120: 9 | J120: 13 | K120: 81 | L120: 69.2 | N120: 0 | O120: 0 | P120: 0.123 | Q120: 0.027 | R120: 0 | S120: 0.1 | T120: 0 | U120: 0.13 | V120: 0.122 | W120: 0.05 | X120: 0 | Y120: 0 | Z120: 0 | AA120: 0 | AB120: 0.004 | AC120: 0.006 | AD120: 0 | AE120: 0 | AF120: 0 | AG120: 0 | AH120: 0.009 | AI120: 0.008 | AJ120: 0 | AK120: 0 | AL120: 0.005 | AM120: 0.009 | AN120: 0 | AO120: 0.006 | AP120: 0 | AQ120: 0 | AR120: 0 | AS120: 0 | AT120: 0 | AU120: 0 | AV120: 0 | AW120: 0 | AX120: 0.009 | AY120: 0 | AZ120: 0 | BA120: 0 | BB120: 0.011 | BC120: 0.049 | BD120: 0.155 | BE120: 0.178 | BF120: 0 | BG120: 0 | BH120: 0 | BI120: 0.023 | BJ120: 0.133 | BK120: 0 | BL120: 0 | BM120: 0 | BN120: 0 | BO120: 0 | BP120: 0 | BQ120: 0.003 | BR120: 0 | BS120: 0 | BT120: 0 | BU120: 0.007 | BV120: 0.036 | BW120: 0.023 | BX120: 0.079 | BY120: 0 | BZ120: 0 | CA120: 0.007 | CB120: 0 | CC120: 0 | CD120: 0 | CE120: 0.128 | CF120: 0 | CG120: 0 | CH120: 0 | CI120: 0.075 | CJ120: 0 | CK120: 0 | CL120: 0.139 | CM120: 0 | CN120: 0.086 | CO120: 0.007 | CP120: 0 | CQ120: 0 | CR120: 0 | CS120: 0.008 | CT120: 0.088 | CU120: 0 | CV120: 0 | CW120: 0 | CX120: 0 | CY120: 0 | CZ120: 0.029 | DA120: 0 | DB120: 0 | DC120: 0.097 | DD120: 0.005 | DE120: 0 | DF120: 0 | DG120: 0 | DH120: 0 | DI120: 0 | DJ120: 0 | DK120: 0 | DL120: 0 | DM120: 0 | DN120: 0 | DO120: 0 | DP120: 0 | DQ120: 0 | DR120: 0 | DS120: 0 | DT120: 0 | DU120: 0 | DV120: 0 | DW120: 0 | DX120: 0 | DY120: 0 | DZ120: 0
A121: Glycerides | B121: DG(39:0) | C121: 0 | D121: 0 | E121: 0 | F121: 0 | G121: 0 | H121: 0 | I121: 0 | J121: 0 | K121: 0 | L121: 0.0 | N121: 0.167 | O121: 0.041 | P121: 0.914 | Q121: 0.448 | R121: 0.215 | S121: 0.59 | T121: 0.277 | U121: 0.589 | V121: 1.16 | W121: 0.59 | X121: 0.524 | Y121: 0.037 | Z121: 0.033 | AA121: 0.038 | AB121: 0.026 | AC121: 0.053 | AD121: 0.035 | AE121: 0.029 | AF121: 0.021 | AG121: 0.021 | AH121: 0.116 | AI121: 0.035 | AJ121: 0.028 | AK121: 0.024 | AL121: 0.034 | AM121: 0.024 | AN121: 0.041 | AO121: 0.028 | AP121: 0.029 | AQ121: 0.021 | AR121: 0.034 | AS121: 0.036 | AT121: 0.039 | AU121: 0.034 | AV121: 0.036 | AW121: 0.018 | AX121: 0.025 | AY121: 0.026 | AZ121: 0.031 | BA121: 0.222 | BB121: 0.498 | BC121: 0.708 | BD121: 0.818 | BE121: 0.964 | BF121: 0.49 | BG121: 0.248 | BH121: 0.498 | BI121: 0.67 | BJ121: 0.612 | BK121: 0.032 | BL121: 0.036 | BM121: 0.032 | BN121: 0.024 | BO121: 0.029 | BP121: 0.027 | BQ121: 0.028 | BR121: 0.027 | BS121: 0.023 | BT121: 0.032 | BU121: 0.018 | BV121: 0.681 | BW121: 0.293 | BX121: 0.493 | BY121: 0.279 | BZ121: 0.302 | CA121: 0.32 | CB121: 0.054 | CC121: 0.078 | CD121: 0.127 | CE121: 0.783 | CF121: 0.161 | CG121: 0.041 | CH121: 0.206 | CI121: 0.535 | CJ121: 0.074 | CK121: 0.285 | CL121: 0.695 | CM121: 0.158 | CN121: 0.605 | CO121: 0.28 | CP121: 0.118 | CQ121: 0.079 | CR121: 0.237 | CS121: 0.152 | CT121: 0.755 | CU121: 0.107 | CV121: 0.173 | CW121: 0.476 | CX121: 0.188 | CY121: 0.091 | CZ121: 0.47 | DA121: 0.416 | DB121: 0.649 | DC121: 0.958 | DD121: 0.411 | DE121: 0.699 | DF121: 0.089 | DG121: 0.163 | DH121: 0.086 | DI121: 0.242 | DJ121: 0.292 | DK121: 0.335 | DL121: 0.053 | DM121: 0.039 | DN121: 0.225 | DO121: 0.207 | DP121: 0.271 | DQ121: 0.019 | DR121: 0.348 | DS121: 0.12 | DT121: 0.217 | DU121: 0.062 | DV121: 0.06 | DW121: 0.084 | DX121: 0.1 | DY121: 0.057 | DZ121: 0.041
A122: Glycerides | B122: DG(41:1) | C122: 0 | D122: 0 | E122: 0 | F122: 0 | G122: 0 | H122: 0 | I122: 0 | J122: 0 | K122: 0 | L122: 0.0 | N122: 0.295 | O122: 0.072 | P122: 1.56 | Q122: 1.03 | R122: 0.373 | S122: 1.26 | T122: 0.654 | U122: 1.53 | V122: 2.68 | W122: 0.934 | X122: 1.54 | Y122: 0.098 | Z122: 0.175 | AA122: 0.045 | AB122: 0.06 | AC122: 0.064 | AD122: 0.089 | AE122: 0.037 | AF122: 0.033 | AG122: 0.029 | AH122: 0.164 | AI122: 0.036 | AJ122: 0.054 | AK122: 0.046 | AL122: 0.074 | AM122: 0.036 | AN122: 0.069 | AO122: 0.041 | AP122: 0.046 | AQ122: 0.035 | AR122: 0.092 | AS122: 0.045 | AT122: 0.095 | AU122: 0.083 | AV122: 0.12 | AW122: 0.024 | AX122: 0.102 | AY122: 0.039 | AZ122: 0.058 | BA122: 0.554 | BB122: 1.51 | BC122: 2.1 | BD122: 2.41 | BE122: 2.85 | BF122: 1.39 | BG122: 0.619 | BH122: 1.57 | BI122: 1.9 | BJ122: 1.88 | BK122: 0.076 | BL122: 0.039 | BM122: 0.048 | BN122: 0.046 | BO122: 0.029 | BP122: 0.046 | BQ122: 0.032 | BR122: 0.039 | BS122: 0.037 | BT122: 0.12 | BU122: 0.08 | BV122: 1.81 | BW122: 0.724 | BX122: 1.44 | BY122: 0.796 | BZ122: 0.561 | CA122: 0.781 | CB122: 0.139 | CC122: 0.134 | CD122: 0.344 | CE122: 2.59 | CF122: 0.637 | CG122: 0.095 | CH122: 0.421 | CI122: 1.57 | CJ122: 0.088 | CK122: 0.822 | CL122: 2.1 | CM122: 0.363 | CN122: 1.79 | CO122: 0.767 | CP122: 0.327 | CQ122: 0.161 | CR122: 0.643 | CS122: 0.36 | CT122: 1.69 | CU122: 0.229 | CV122: 0.523 | CW122: 1.39 | CX122: 0.623 | CY122: 0.237 | CZ122: 1.53 | DA122: 1.27 | DB122: 1.79 | DC122: 2.7 | DD122: 1.01 | DE122: 2.32 | DF122: 0.312 | DG122: 0.544 | DH122: 0.185 | DI122: 0.706 | DJ122: 0.867 | DK122: 1.08 | DL122: 0.127 | DM122: 0.093 | DN122: 0.885 | DO122: 0.687 | DP122: 0.72 | DQ122: 0.035 | DR122: 1.05 | DS122: 0.197 | DT122: 0.574 | DU122: 0.131 | DV122: 0.088 | DW122: 0.225 | DX122: 0.283 | DY122: 0.118 | DZ122: 0.067
A123: Glycerides | B123: DG(42:0) | C123: 0 | D123: 0 | E123: 0 | F123: 0 | G123: 0 | H123: 0 | I123: 0 | J123: 0 | K123: 0 | L123: 0.0 | N123: 0.004 | O123: 0.022 | P123: 0.137 | Q123: 0.101 | R123: 0.044 | S123: 0.143 | T123: 0.074 | U123: 0.141 | V123: 0.267 | W123: 0.09 | X123: 0.146 | Y123: 0.01 | Z123: 0.009 | AA123: 0.014 | AB123: 0.014 | AC123: 0.013 | AD123: 0.023 | AE123: 0.018 | AF123: 0.012 | AG123: 0.015 | AH123: 0.036 | AI123: 0.017 | AJ123: 0.012 | AK123: 0.009 | AL123: 0.017 | AM123: 0.014 | AN123: 0.011 | AO123: 0.018 | AP123: 0.016 | AQ123: 0.02 | AR123: 0.016 | AS123: 0.01 | AT123: 0.024 | AU123: 0.012 | AV123: 0.018 | AW123: 0.01 | AX123: 0.012 | AY123: 0.008 | AZ123: 0.011 | BA123: 0.069 | BB123: 0.167 | BC123: 0.264 | BD123: 0.227 | BE123: 0.329 | BF123: 0.152 | BG123: 0.047 | BH123: 0.152 | BI123: 0.259 | BJ123: 0.59 | BK123: 0.016 | BL123: 0.018 | BM123: 0.013 | BN123: 0.012 | BO123: 0.011 | BP123: 0.014 | BQ123: 0.011 | BR123: 0.016 | BS123: 0.013 | BT123: 0.009 | BU123: 0.006 | BV123: 0.23 | BW123: 0.108 | BX123: 0.216 | BY123: 0.078 | BZ123: 0.067 | CA123: 0.092 | CB123: 0.019 | CC123: 0.015 | CD123: 0.03 | CE123: 0.386 | CF123: 0.064 | CG123: 0.01 | CH123: 0.041 | CI123: 0.057 | CJ123: 0.006 | CK123: 0.086 | CL123: 0.187 | CM123: 0.046 | CN123: 0.248 | CO123: 0.063 | CP123: 0.03 | CQ123: 0.027 | CR123: 0.054 | CS123: 0.025 | CT123: 0.328 | CU123: 0.034 | CV123: 0.044 | CW123: 0.165 | CX123: 0.054 | CY123: 0.034 | CZ123: 0.171 | DA123: 0.155 | DB123: 0.18 | DC123: 0.346 | DD123: 0.116 | DE123: 0.275 | DF123: 0.026 | DG123: 0.054 | DH123: 0.02 | DI123: 0.076 | DJ123: 0.079 | DK123: 0.101 | DL123: 0.022 | DM123: 0.027 | DN123: 0.055 | DO123: 0.074 | DP123: 0.086 | DQ123: 0.042 | DR123: 0.105 | DS123: 0.024 | DT123: 0.042 | DU123: 0.018 | DV123: 0.014 | DW123: 0.027 | DX123: 0.037 | DY123: 0.026 | DZ123: 0.007
A124: Glycerides | B124: DG(42:1) | C124: 0 | D124: 0 | E124: 0 | F124: 0 | G124: 0 | H124: 0 | I124: 0 | J124: 0 | K124: 0 | L124: 0.0 | N124: 0.011 | O124: 0.029 | P124: 0.789 | Q124: 0.574 | R124: 0.159 | S124: 0.647 | T124: 0.306 | U124: 0.695 | V124: 1.22 | W124: 0.594 | X124: 0.668 | Y124: 0.036 | Z124: 0.052 | AA124: 0.028 | AB124: 0.051 | AC124: 0.004 | AD124: 0.004 | AE124: 0.022 | AF124: 0.019 | AG124: 0.028 | AH124: 0.006 | AI124: 0.041 | AJ124: 0.049 | AK124: 0.02 | AL124: 0.026 | AM124: 0.025 | AN124: 0.037 | AO124: 0.023 | AP124: 0.032 | AQ124: 0.028 | AR124: 0.034 | AS124: 0.029 | AT124: 0.004 | AU124: 0.047 | AV124: 0.032 | AW124: 0.016 | AX124: 0.027 | AY124: 0.037 | AZ124: 0.024 | BA124: 0.245 | BB124: 0.723 | BC124: 0.976 | BD124: 1.11 | BE124: 1.36 | BF124: 0.631 | BG124: 0.299 | BH124: 0.742 | BI124: 0.911 | BJ124: 0.789 | BK124: 0.035 | BL124: 0.027 | BM124: 0.025 | BN124: 0.028 | BO124: 0.019 | BP124: 0.036 | BQ124: 0.023 | BR124: 0.029 | BS124: 0.03 | BT124: 0.004 | BU124: 0.027 | BV124: 0.814 | BW124: 0.333 | BX124: 0.663 | BY124: 0.33 | BZ124: 0.248 | CA124: 0.378 | CB124: 0.046 | CC124: 0.053 | CD124: 0.14 | CE124: 1.13 | CF124: 0.27 | CG124: 0.035 | CH124: 0.191 | CI124: 0.721 | CJ124: 0.038 | CK124: 0.407 | CL124: 1.03 | CM124: 0.175 | CN124: 0.819 | CO124: 0.332 | CP124: 0.136 | CQ124: 0.066 | CR124: 0.276 | CS124: 0.141 | CT124: 0.774 | CU124: 0.103 | CV124: 0.203 | CW124: 0.621 | CX124: 0.263 | CY124: 0.088 | CZ124: 0.717 | DA124: 0.576 | DB124: 0.843 | DC124: 1.19 | DD124: 0.455 | DE124: 0.982 | DF124: 0.11 | DG124: 0.204 | DH124: 0.07 | DI124: 0.317 | DJ124: 0.375 | DK124: 0.461 | DL124: 0.041 | DM124: 0.022 | DN124: 0.355 | DO124: 0.301 | DP124: 0.317 | DQ124: 0.016 | DR124: 0.421 | DS124: 0.089 | DT124: 0.25 | DU124: 0.028 | DV124: 0.042 | DW124: 0.088 | DX124: 0.099 | DY124: 0.04 | DZ124: 0.017
A125: Glycerides | B125: DG(42:2) | C125: 0 | D125: 0 | E125: 0 | F125: 0 | G125: 0 | H125: 0 | I125: 0 | J125: 0 | K125: 0 | L125: 0.0 | N125: 0.065 | O125: 0.112 | P125: 2.38 | Q125: 1.73 | R125: 0.625 | S125: 2.62 | T125: 1.17 | U125: 3.06 | V125: 5.26 | W125: 1 | X125: 1.91 | Y125: 0.083 | Z125: 0.078 | AA125: 0.054 | AB125: 0.122 | AC125: 0.059 | AD125: 0.061 | AE125: 0.03 | AF125: 0.044 | AG125: 0.049 | AH125: 0.11 | AI125: 0.048 | AJ125: 0.073 | AK125: 0.04 | AL125: 0.132 | AM125: 0.052 | AN125: 0.067 | AO125: 0.037 | AP125: 0.069 | AQ125: 0.112 | AR125: 0.044 | AS125: 0.094 | AT125: 0.094 | AU125: 0.108 | AV125: 0.053 | AW125: 0.059 | AX125: 0.047 | AY125: 0.031 | AZ125: 0.041 | BA125: 0.942 | BB125: 2.65 | BC125: 3.39 | BD125: 4.44 | BE125: 5.62 | BF125: 1.95 | BG125: 1.08 | BH125: 2.19 | BI125: 3.3 | BJ125: 3.52 | BK125: 0.103 | BL125: 0.062 | BM125: 0.03 | BN125: 0.051 | BO125: 0.029 | BP125: 0.071 | BQ125: 0.047 | BR125: 0.097 | BS125: 0.068 | BT125: 0.068 | BU125: 0.052 | BV125: 3.12 | BW125: 1.4 | BX125: 2.52 | BY125: 1.38 | BZ125: 1.14 | CA125: 1.43 | CB125: 0.196 | CC125: 0.234 | CD125: 0.515 | CE125: 4.38 | CF125: 0.662 | CG125: 0.121 | CH125: 0.43 | CI125: 2.92 | CJ125: 0.096 | CK125: 1.33 | CL125: 3.75 | CM125: 0.626 | CN125: 3.3 | CO125: 1.36 | CP125: 0.506 | CQ125: 0.161 | CR125: 0.709 | CS125: 0.35 | CT125: 2.84 | CU125: 0.712 | CV125: 0.648 | CW125: 2.18 | CX125: 0.82 | CY125: 0.251 | CZ125: 2.28 | DA125: 2.15 | DB125: 3.03 | DC125: 4.43 | DD125: 1.35 | DE125: 3.29 | DF125: 0.281 | DG125: 0.67 | DH125: 0.309 | DI125: 1.01 | DJ125: 1.3 | DK125: 1.47 | DL125: 0.113 | DM125: 0.068 | DN125: 1.23 | DO125: 0.91 | DP125: 1.03 | DQ125: 0.044 | DR125: 1.2 | DS125: 0.203 | DT125: 0.613 | DU125: 0.086 | DV125: 0.068 | DW125: 0.249 | DX125: 0.237 | DY125: 0.101 | DZ125: 0.033
A126: Glycerides | B126: DG(44:3) | C126: 0 | D126: 19 | E126: 8 | F126: 0 | G126: 0 | H126: 0 | I126: 0 | J126: 1 | K126: 28 | L126: 23.9 | N126: 0.044 | O126: 0.112 | P126: 2.38 | Q126: 1.03 | R126: 0.581 | S126: 1.88 | T126: 0.798 | U126: 2.91 | V126: 0.492 | W126: 0.959 | X126: 0.851 | Y126: 0.005 | Z126: 0.008 | AA126: 0 | AB126: 0.004 | AC126: 0 | AD126: 0 | AE126: 0 | AF126: 0 | AG126: 0 | AH126: 0.108 | AI126: 0.008 | AJ126: 0 | AK126: 0.009 | AL126: 0 | AM126: 0.006 | AN126: 0 | AO126: 0.005 | AP126: 0 | AQ126: 0 | AR126: 0 | AS126: 0 | AT126: 0 | AU126: 0.007 | AV126: 0 | AW126: 0 | AX126: 0 | AY126: 0 | AZ126: 0 | BA126: 0.662 | BB126: 1.96 | BC126: 2.76 | BD126: 0.347 | BE126: 0.627 | BF126: 1.57 | BG126: 0.821 | BH126: 1.3 | BI126: 2.99 | BJ126: 0.141 | BK126: 0 | BL126: 0 | BM126: 0 | BN126: 0.091 | BO126: 0 | BP126: 0 | BQ126: 0 | BR126: 0 | BS126: 0 | BT126: 0.096 | BU126: 0.02 | BV126: 2.6 | BW126: 1.44 | BX126: 1.98 | BY126: 1.2 | BZ126: 1.04 | CA126: 1.69 | CB126: 0.118 | CC126: 0.16 | CD126: 0.292 | CE126: 0.613 | CF126: 0.276 | CG126: 0.096 | CH126: 0.214 | CI126: 3.33 | CJ126: 0.076 | CK126: 1.07 | CL126: 3.17 | CM126: 0.625 | CN126: 3.63 | CO126: 0.955 | CP126: 0.4 | CQ126: 0.124 | CR126: 0.425 | CS126: 0.19 | CT126: 2.37 | CU126: 0.048 | CV126: 0.285 | CW126: 1.6 | CX126: 0.489 | CY126: 0.097 | CZ126: 1.9 | DA126: 1.57 | DB126: 2.51 | DC126: 0.421 | DD126: 0.836 | DE126: 2.71 | DF126: 0.081 | DG126: 0.354 | DH126: 0.965 | DI126: 0.708 | DJ126: 1.02 | DK126: 0.808 | DL126: 0.063 | DM126: 0.009 | DN126: 0.667 | DO126: 0.533 | DP126: 0.617 | DQ126: 0.009 | DR126: 0.58 | DS126: 0.063 | DT126: 0.262 | DU126: 0.011 | DV126: 0 | DW126: 0.141 | DX126: 0.121 | DY126: 0.039 | DZ126: 0.008
A127: Glycerides | B127: DG-O(32:2) | C127: 0 | D127: 0 | E127: 0 | F127: 0 | G127: 0 | H127: 0 | I127: 0 | J127: 0 | K127: 0 | L127: 0.0 | N127: 0.028 | O127: 0.032 | P127: 2 | Q127: 1.08 | R127: 0.596 | S127: 2.4 | T127: 0.794 | U127: 2.57 | V127: 4.18 | W127: 0.777 | X127: 2.58 | Y127: 0.025 | Z127: 0.031 | AA127: 0.029 | AB127: 0.027 | AC127: 0.037 | AD127: 0.025 | AE127: 0.037 | AF127: 0.035 | AG127: 0.029 | AH127: 0.025 | AI127: 0.026 | AJ127: 0.031 | AK127: 0.023 | AL127: 0.026 | AM127: 0.031 | AN127: 0.028 | AO127: 0.03 | AP127: 0.022 | AQ127: 0.026 | AR127: 0.028 | AS127: 0.026 | AT127: 0.028 | AU127: 0.029 | AV127: 0.029 | AW127: 0.028 | AX127: 0.032 | AY127: 0.023 | AZ127: 0.025 | BA127: 0.78 | BB127: 2.62 | BC127: 3.8 | BD127: 0.347 | BE127: 0.351 | BF127: 2.09 | BG127: 0.707 | BH127: 2.41 | BI127: 3.27 | BJ127: 3.6 | BK127: 0.04 | BL127: 0.037 | BM127: 0.031 | BN127: 0.039 | BO127: 0.027 | BP127: 0.031 | BQ127: 0.025 | BR127: 0.032 | BS127: 0.029 | BT127: 0.028 | BU127: 0.029 | BV127: 3.28 | BW127: 0.836 | BX127: 2.57 | BY127: 0.933 | BZ127: 0.488 | CA127: 1.11 | CB127: 0.071 | CC127: 0.034 | CD127: 0.274 | CE127: 0.412 | CF127: 0.579 | CG127: 0.035 | CH127: 0.344 | CI127: 2.81 | CJ127: 0.027 | CK127: 1.28 | CL127: 4.22 | CM127: 0.651 | CN127: 3.22 | CO127: 1.02 | CP127: 0.627 | CQ127: 0.034 | CR127: 0.667 | CS127: 0.073 | CT127: 2.89 | CU127: 0.057 | CV127: 0.749 | CW127: 2.48 | CX127: 0.815 | CY127: 0.206 | CZ127: 3.03 | DA127: 2.02 | DB127: 2.97 | DC127: 0.389 | DD127: 1.51 | DE127: 4.32 | DF127: 0.042 | DG127: 0.862 | DH127: 0.067 | DI127: 1.07 | DJ127: 1.61 | DK127: 1.77 | DL127: 0.033 | DM127: 0.038 | DN127: 1.54 | DO127: 1.01 | DP127: 1.12 | DQ127: 0.039 | DR127: 1.98 | DS127: 0.041 | DT127: 0.562 | DU127: 0.041 | DV127: 0.037 | DW127: 0.084 | DX127: 0.703 | DY127: 0.04 | DZ127: 0.036
A128: Glycerides | B128: DG-O(34:1) | C128: 1 | D128: 0 | E128: 0 | F128: 6 | G128: 2 | H128: 2 | I128: 4 | J128: 7 | K128: 22 | L128: 18.8 | N128: 0.027 | O128: 0 | P128: 1.09 | Q128: 0.513 | R128: 0.054 | S128: 1.1 | T128: 0.57 | U128: 1.08 | V128: 2.34 | W128: 0.301 | X128: 1.03 | Y128: 0.026 | Z128: 0.017 | AA128: 0.025 | AB128: 0.026 | AC128: 0.02 | AD128: 0.018 | AE128: 0.024 | AF128: 0.019 | AG128: 0.029 | AH128: 0.022 | AI128: 0.022 | AJ128: 0.025 | AK128: 0.012 | AL128: 0.022 | AM128: 0.02 | AN128: 0.03 | AO128: 0.031 | AP128: 0.02 | AQ128: 0.023 | AR128: 0.023 | AS128: 0.022 | AT128: 0.025 | AU128: 0.021 | AV128: 0.021 | AW128: 0.016 | AX128: 0.025 | AY128: 0.018 | AZ128: 0.022 | BA128: 0.398 | BB128: 0.985 | BC128: 1.64 | BD128: 1.99 | BE128: 2.33 | BF128: 0.939 | BG128: 0.334 | BH128: 0.755 | BI128: 1.48 | BJ128: 1.48 | BK128: 0.02 | BL128: 0.019 | BM128: 0.028 | BN128: 0.023 | BO128: 0.029 | BP128: 0.02 | BQ128: 0.017 | BR128: 0.021 | BS128: 0.017 | BT128: 0.026 | BU128: 0 | BV128: 1.55 | BW128: 0.759 | BX128: 1.09 | BY128: 0.573 | BZ128: 0.423 | CA128: 0.679 | CB128: 0 | CC128: 0 | CD128: 0 | CE128: 2.67 | CF128: 0.054 | CG128: 0 | CH128: 0 | CI128: 1.2 | CJ128: 0 | CK128: 0.667 | CL128: 1.84 | CM128: 0.056 | CN128: 1.26 | CO128: 0.538 | CP128: 0.043 | CQ128: 0 | CR128: 0.349 | CS128: 0.039 | CT128: 1.39 | CU128: 0.053 | CV128: 0 | CW128: 0.89 | CX128: 0.21 | CY128: 0 | CZ128: 1.16 | DA128: 0.902 | DB128: 1.28 | DC128: 2.18 | DD128: 0.63 | DE128: 1.85 | DF128: 0 | DG128: 0.386 | DH128: 0 | DI128: 0.453 | DJ128: 0.62 | DK128: 0.82 | DL128: 0 | DM128: 0 | DN128: 0.77 | DO128: 0.163 | DP128: 0.463 | DQ128: 0 | DR128: 0.686 | DS128: 0 | DT128: 0.019 | DU128: 0 | DV128: 0 | DW128: 0.027 | DX128: 0 | DY128: 0 | DZ128: 0
A129: Glycerides | B129: DG-O(36:4) | C129: 2 | D129: 11 | E129: 4 | F129: 3 | G129: 1 | H129: 0 | I129: 2 | J129: 0 | K129: 23 | L129: 19.7 | N129: 0 | O129: 0 | P129: 1.19 | Q129: 0.695 | R129: 0.064 | S129: 1.59 | T129: 0.687 | U129: 1.74 | V129: 0.197 | W129: 0.752 | X129: 0.691 | Y129: 0.007 | Z129: 0.006 | AA129: 0.007 | AB129: 0.009 | AC129: 0.008 | AD129: 0.01 | AE129: 0.008 | AF129: 0.007 | AG129: 0.009 | AH129: 0 | AI129: 0.007 | AJ129: 0 | AK129: 0 | AL129: 0 | AM129: 0.005 | AN129: 0.007 | AO129: 0 | AP129: 0.006 | AQ129: 0.007 | AR129: 0.007 | AS129: 0 | AT129: 0 | AU129: 0 | AV129: 0 | AW129: 0.005 | AX129: 0.008 | AY129: 0 | AZ129: 0 | BA129: 0.695 | BB129: 1.24 | BC129: 2 | BD129: 0.187 | BE129: 0.185 | BF129: 0.689 | BG129: 0.569 | BH129: 0.83 | BI129: 1.93 | BJ129: 2.51 | BK129: 0.007 | BL129: 0 | BM129: 0.01 | BN129: 0 | BO129: 0.008 | BP129: 0 | BQ129: 0.005 | BR129: 0.006 | BS129: 0 | BT129: 0.009 | BU129: 0 | BV129: 1.69 | BW129: 1.08 | BX129: 1.64 | BY129: 0.755 | BZ129: 0.548 | CA129: 0.722 | CB129: 0.038 | CC129: 0.016 | CD129: 0 | CE129: 0.199 | CF129: 0.077 | CG129: 0.011 | CH129: 0 | CI129: 1.8 | CJ129: 0 | CK129: 0.858 | CL129: 0.177 | CM129: 0.588 | CN129: 2.05 | CO129: 0.687 | CP129: 0.114 | CQ129: 0.018 | CR129: 0.296 | CS129: 0.115 | CT129: 1.33 | CU129: 0.029 | CV129: 0.018 | CW129: 1.04 | CX129: 0.389 | CY129: 0.02 | CZ129: 1.23 | DA129: 0.907 | DB129: 1.59 | DC129: 0.16 | DD129: 0.69 | DE129: 1.69 | DF129: 0.018 | DG129: 0 | DH129: 0.026 | DI129: 0.678 | DJ129: 0.715 | DK129: 0.632 | DL129: 0.016 | DM129: 0 | DN129: 0.726 | DO129: 0.728 | DP129: 0.633 | DQ129: 0.012 | DR129: 0.604 | DS129: 0.03 | DT129: 0.032 | DU129: 0.014 | DV129: 0.013 | DW129: 0.016 | DX129: 0.012 | DY129: 0.013 | DZ129: 0.015
A130: Glycerides | B130: TG(44:1) | C130: 0 | D130: 3 | E130: 0 | F130: 0 | G130: 0 | H130: 0 | I130: 0 | J130: 0 | K130: 3 | L130: 2.6 | N130: 0.023 | O130: 0.066 | P130: 0.698 | Q130: 0.527 | R130: 0.264 | S130: 0.713 | T130: 0.318 | U130: 0.78 | V130: 1.21 | W130: 0.382 | X130: 0.654 | Y130: 0.008 | Z130: 0.016 | AA130: 0.017 | AB130: 0.026 | AC130: 0.014 | AD130: 0.029 | AE130: 0.022 | AF130: 0.019 | AG130: 0.028 | AH130: 0.023 | AI130: 0.042 | AJ130: 0 | AK130: 0.037 | AL130: 0 | AM130: 0.021 | AN130: 0.025 | AO130: 0.025 | AP130: 0.036 | AQ130: 0.012 | AR130: 0 | AS130: 0.012 | AT130: 0.036 | AU130: 0.018 | AV130: 0.016 | AW130: 0.011 | AX130: 0.05 | AY130: 0.019 | AZ130: 0.026 | BA130: 0.313 | BB130: 0.816 | BC130: 1.06 | BD130: 1.19 | BE130: 1.62 | BF130: 0.692 | BG130: 0.362 | BH130: 0.768 | BI130: 1.05 | BJ130: 1.45 | BK130: 0.011 | BL130: 0.023 | BM130: 0.022 | BN130: 0.033 | BO130: 0.017 | BP130: 0.035 | BQ130: 0.026 | BR130: 0.018 | BS130: 0.034 | BT130: 0.042 | BU130: 0.03 | BV130: 1.08 | BW130: 0.469 | BX130: 0.675 | BY130: 0.371 | BZ130: 0.327 | CA130: 0.421 | CB130: 0.067 | CC130: 0.086 | CD130: 0.196 | CE130: 1.15 | CF130: 0.243 | CG130: 0.046 | CH130: 0.194 | CI130: 0.848 | CJ130: 0.041 | CK130: 0.448 | CL130: 0.879 | CM130: 0.217 | CN130: 0.99 | CO130: 0.441 | CP130: 0.187 | CQ130: 0.088 | CR130: 0.44 | CS130: 0.164 | CT130: 0.982 | CU130: 0.118 | CV130: 0.261 | CW130: 0.749 | CX130: 0.319 | CY130: 0.123 | CZ130: 0.756 | DA130: 0.67 | DB130: 0.826 | DC130: 1.49 | DD130: 0.496 | DE130: 1.08 | DF130: 0.139 | DG130: 0.248 | DH130: 0.106 | DI130: 0.435 | DJ130: 0.448 | DK130: 0.469 | DL130: 0.048 | DM130: 0.03 | DN130: 0.376 | DO130: 0.309 | DP130: 0.366 | DQ130: 0.028 | DR130: 0.521 | DS130: 0.074 | DT130: 0.237 | DU130: 0.059 | DV130: 0.041 | DW130: 0.119 | DX130: 0.139 | DY130: 0.058 | DZ130: 0.031
A131: Glycerides | B131: TG(44:2) | C131: 0 | D131: 0 | E131: 0 | F131: 0 | G131: 0 | H131: 0 | I131: 0 | J131: 0 | K131: 0 | L131: 0.0 | N131: 0.043 | O131: 0.109 | P131: 1.26 | Q131: 0.813 | R131: 0.454 | S131: 1.44 | T131: 0.574 | U131: 1.82 | V131: 2.71 | W131: 0.576 | X131: 0.793 | Y131: 0.03 | Z131: 0.057 | AA131: 0.047 | AB131: 0.067 | AC131: 0.038 | AD131: 0.029 | AE131: 0.015 | AF131: 0.035 | AG131: 0.035 | AH131: 0.044 | AI131: 0.059 | AJ131: 0.053 | AK131: 0.013 | AL131: 0.041 | AM131: 0.043 | AN131: 0.048 | AO131: 0.036 | AP131: 0.044 | AQ131: 0.037 | AR131: 0.049 | AS131: 0.041 | AT131: 0.028 | AU131: 0.052 | AV131: 0.037 | AW131: 0.034 | AX131: 0.058 | AY131: 0.025 | AZ131: 0.022 | BA131: 0.624 | BB131: 1.42 | BC131: 1.67 | BD131: 2.29 | BE131: 1.17 | BF131: 1.12 | BG131: 0.464 | BH131: 0.978 | BI131: 2.05 | BJ131: 0.117 | BK131: 0.042 | BL131: 0.038 | BM131: 0.032 | BN131: 0.062 | BO131: 0.029 | BP131: 0.059 | BQ131: 0.037 | BR131: 0.036 | BS131: 0.042 | BT131: 0.039 | BU131: 0.036 | BV131: 1.79 | BW131: 0.93 | BX131: 1.35 | BY131: 0.913 | BZ131: 0.721 | CA131: 1.06 | CB131: 0.159 | CC131: 0.152 | CD131: 0.307 | CE131: 2.53 | CF131: 0.36 | CG131: 0.09 | CH131: 0.229 | CI131: 1.61 | CJ131: 0.078 | CK131: 0.747 | CL131: 2.05 | CM131: 0.479 | CN131: 1.85 | CO131: 0.777 | CP131: 0.293 | CQ131: 0.128 | CR131: 0.392 | CS131: 0.252 | CT131: 1.61 | CU131: 0.052 | CV131: 0.296 | CW131: 1.15 | CX131: 0.458 | CY131: 0.159 | CZ131: 1.29 | DA131: 1.21 | DB131: 1.52 | DC131: 2.87 | DD131: 0.726 | DE131: 1.69 | DF131: 0.125 | DG131: 0.317 | DH131: 0.253 | DI131: 0.502 | DJ131: 0.675 | DK131: 0.637 | DL131: 0.083 | DM131: 0.026 | DN131: 0.609 | DO131: 0.46 | DP131: 0.496 | DQ131: 0.019 | DR131: 0.57 | DS131: 0.099 | DT131: 0.275 | DU131: 0.051 | DV131: 0.03 | DW131: 0.151 | DX131: 0.169 | DY131: 0.052 | DZ131: 0.06
A132: Glycerides | B132: TG(44:4) | C132: 1 | D132: 8 | E132: 5 | F132: 0 | G132: 0 | H132: 0 | I132: 0 | J132: 0 | K132: =SUM(C132:J132) -> 14 | L132: 12.0 | N132: 0 | O132: 0.003 | P132: 0.35 | Q132: 0.202 | R132: 0.127 | S132: 0.005 | T132: 0.219 | U132: 0.597 | V132: 0.012 | W132: 0.132 | X132: 0.01 | Y132: 0.005 | Z132: 0 | AA132: 0.004 | AB132: 0.01 | AC132: 0.003 | AD132: 0.003 | AE132: 0.005 | AF132: 0.007 | AG132: 0.005 | AH132: 0 | AI132: 0.007 | AJ132: 0.006 | AK132: 0 | AL132: 0.009 | AM132: 0.003 | AN132: 0 | AO132: 0.005 | AP132: 0 | AQ132: 0 | AR132: 0.004 | AS132: 0.005 | AT132: 0.005 | AU132: 0.003 | AV132: 0.007 | AW132: 0 | AX132: 0 | AY132: 0.003 | AZ132: 0.004 | BA132: 0.194 | BB132: 0.497 | BC132: 0.514 | BD132: 0.01 | BE132: 0.008 | BF132: 0.253 | BG132: 0.142 | BH132: 0.176 | BI132: 0.141 | BJ132: 0.036 | BK132: 0 | BL132: 0 | BM132: 0.007 | BN132: 0 | BO132: 0 | BP132: 0.004 | BQ132: 0.004 | BR132: 0 | BS132: 0.004 | BT132: 0.006 | BU132: 0.003 | BV132: 0.28 | BW132: 0.304 | BX132: 0.354 | BY132: 0.079 | BZ132: 0.314 | CA132: 0.42 | CB132: 0.071 | CC132: 0.005 | CD132: 0.13 | CE132: 0.015 | CF132: 0.135 | CG132: 0.003 | CH132: 0.004 | CI132: 0.625 | CJ132: 0.021 | CK132: 0.267 | CL132: 0.306 | CM132: 0.011 | CN132: 0.275 | CO132: 0.013 | CP132: 0.049 | CQ132: 0.008 | CR132: 0.006 | CS132: 0.009 | CT132: 0.234 | CU132: 0.006 | CV132: 0.083 | CW132: 0.243 | CX132: 0.132 | CY132: 0.005 | CZ132: 0.383 | DA132: 0.295 | DB132: 0.238 | DC132: 0.018 | DD132: 0.029 | DE132: 0.335 | DF132: 0.003 | DG132: 0.005 | DH132: 0.004 | DI132: 0.006 | DJ132: 0.05 | DK132: 0.038 | DL132: 0.004 | DM132: 0.004 | DN132: 0.166 | DO132: 0.101 | DP132: 0.112 | DQ132: 0.003 | DR132: 0.156 | DS132: 0.004 | DT132: 0.005 | DU132: 0.003 | DV132: 0.003 | DW132: 0.126 | DX132: 0.035 | DY132: 0.024 | DZ132: 0.003
A133: Glycerides | B133: TG(46:2) | C133: =COUNTIF(N133:X133,0) -> 1 | D133: =COUNTIF(Y133:BJ133,0) -> 15 | E133: =COUNTIF(BK133:BT133,0) -> 4 | F133: =COUNTIF(BU133:CI133,0) -> 0 | G133: =COUNTIF(CJ133:CS133,"0") -> 0 | H133: =COUNTIF(CT133:DC133,0) -> 0 | I133: =COUNTIF(DD133:DM133,0) -> 0 | J133: =COUNTIF(DN133:DZ133,0) -> 0 | K133: 20 | L133: 17.1 | N133: 0 | O133: 0.061 | P133: 0.666 | Q133: 0.423 | R133: 0.233 | S133: 0.838 | T133: 0.358 | U133: 0.944 | V133: 1.34 | W133: 0.296 | X133: 0.404 | Y133: 0.012 | Z133: 0.01 | AA133: 0 | AB133: 0.01 | AC133: 0 | AD133: 0 | AE133: 0 | AF133: 0.011 | AG133: 0 | AH133: 0.011 | AI133: 0.005 | AJ133: 0 | AK133: 0 | AL133: 0 | AM133: 0.01 | AN133: 0.009 | AO133: 0 | AP133: 0 | AQ133: 0.007 | AR133: 0.008 | AS133: 0.015 | AT133: 0 | AU133: 0 | AV133: 0 | AW133: 0.007 | AX133: 0 | AY133: 0.008 | AZ133: 0 | BA133: 0.333 | BB133: 0.753 | BC133: 0.936 | BD133: 0.821 | BE133: 1.99 | BF133: 0.601 | BG133: 0.287 | BH133: 0.563 | BI133: 1.1 | BJ133: 0.054 | BK133: 0 | BL133: 0.01 | BM133: 0.011 | BN133: 0.009 | BO133: 0 | BP133: 0 | BQ133: 0.01 | BR133: 0.014 | BS133: 0 | BT133: 0.011 | BU133: 0.053 | BV133: 0.804 | BW133: 0.512 | BX133: 0.696 | BY133: 0.476 | BZ133: 0.443 | CA133: 0.521 | CB133: 0.09 | CC133: 0.105 | CD133: 0.217 | CE133: 1.64 | CF133: 0.167 | CG133: 0.077 | CH133: 0.146 | CI133: 0.847 | CJ133: 0.064 | CK133: 0.363 | CL133: 1.18 | CM133: 0.228 | CN133: 1.06 | CO133: 0.387 | CP133: 0.153 | CQ133: 0.045 | CR133: 0.265 | CS133: 0.103 | CT133: 0.872 | CU133: 0.054 | CV133: 0.219 | CW133: 0.574 | CX133: 0.247 | CY133: 0.124 | CZ133: 0.713 | DA133: 0.663 | DB133: 0.904 | DC133: 1.49 | DD133: 0.418 | DE133: 0.97 | DF133: 0.073 | DG133: 0.16 | DH133: 0.342 | DI133: 0.264 | DJ133: 0.377 | DK133: 0.375 | DL133: 0.007 | DM133: 0.005 | DN133: 0.262 | DO133: 0.238 | DP133: 0.234 | DQ133: 0.087 | DR133: 0.348 | DS133: 0.061 | DT133: 0.15 | DU133: 0.031 | DV133: 0.042 | DW133: 0.087 | DX133: 0.074 | DY133: 0.03 | DZ133: 0.012
A134: Glycerides | B134: TG(48:1) | C134: 0 | D134: 0 | E134: 0 | F134: 0 | G134: 0 | H134: 0 | I134: 0 | J134: 0 | K134: 0 | L134: 0.0 | N134: 0.132 | O134: 0.077 | P134: 0.826 | Q134: 0.401 | R134: 0.214 | S134: 0.569 | T134: 0.267 | U134: 0.636 | V134: 1.06 | W134: 0.376 | X134: 0.554 | Y134: 0.038 | Z134: 0.054 | AA134: 0.018 | AB134: 0.055 | AC134: 0.034 | AD134: 0.047 | AE134: 0.02 | AF134: 0.037 | AG134: 0.04 | AH134: 0.093 | AI134: 0.097 | AJ134: 0.029 | AK134: 0.022 | AL134: 0.034 | AM134: 0.03 | AN134: 0.045 | AO134: 0.053 | AP134: 0.04 | AQ134: 0.034 | AR134: 0.021 | AS134: 0.023 | AT134: 0.044 | AU134: 0.038 | AV134: 0.063 | AW134: 0.036 | AX134: 0.05 | AY134: 0.021 | AZ134: 0.039 | BA134: 0.298 | BB134: 0.61 | BC134: 0.796 | BD134: 0.954 | BE134: 1.35 | BF134: 0.57 | BG134: 0.328 | BH134: 0.612 | BI134: 0.843 | BJ134: 2 | BK134: 0.046 | BL134: 0.036 | BM134: 0.048 | BN134: 0.075 | BO134: 0.044 | BP134: 0.075 | BQ134: 0.051 | BR134: 0.042 | BS134: 0.048 | BT134: 0.064 | BU134: 0.047 | BV134: 0.844 | BW134: 0.358 | BX134: 0.569 | BY134: 0.295 | BZ134: 0.301 | CA134: 0.399 | CB134: 0.068 | CC134: 0.057 | CD134: 0.189 | CE134: 1.08 | CF134: 0.253 | CG134: 0.071 | CH134: 0.193 | CI134: 0.704 | CJ134: 0.046 | CK134: 0.38 | CL134: 0.776 | CM134: 0.202 | CN134: 0.75 | CO134: 0.387 | CP134: 0.189 | CQ134: 0.073 | CR134: 0.418 | CS134: 0.147 | CT134: 0.714 | CU134: 0.094 | CV134: 0.193 | CW134: 0.581 | CX134: 0.254 | CY134: 0.09 | CZ134: 0.635 | DA134: 0.532 | DB134: 0.674 | DC134: 1.13 | DD134: 0.501 | DE134: 0.874 | DF134: 0.096 | DG134: 0.233 | DH134: 0.144 | DI134: 0.309 | DJ134: 0.358 | DK134: 0.421 | DL134: 0.059 | DM134: 0.037 | DN134: 0.291 | DO134: 0.294 | DP134: 0.355 | DQ134: 0.028 | DR134: 0.39 | DS134: 0.085 | DT134: 0.234 | DU134: 0.081 | DV134: 0.031 | DW134: 0.098 | DX134: 0.118 | DY134: 0.03 | DZ134: 0.027
A135: Glycerides | B135: TG(48:2) | C135: 0 | D135: 0 | E135: 0 | F135: 0 | G135: 0 | H135: 0 | I135: 0 | J135: 0 | K135: 0 | L135: 0.0 | N135: 0.118 | O135: 0.111 | P135: 1.27 | Q135: 0.709 | R135: 0.33 | S135: 1.21 | T135: 0.457 | U135: 1.41 | V135: 1.66 | W135: 0.5 | X135: 0.646 | Y135: 0.031 | Z135: 0.01 | AA135: 0.019 | AB135: 0.048 | AC135: 0.032 | AD135: 0.048 | AE135: 0.026 | AF135: 0.04 | AG135: 0.025 | AH135: 0.075 | AI135: 0.095 | AJ135: 0.033 | AK135: 0.017 | AL135: 0.049 | AM135: 0.027 | AN135: 0.055 | AO135: 0.013 | AP135: 0.046 | AQ135: 0.039 | AR135: 0.031 | AS135: 0.011 | AT135: 0.056 | AU135: 0.039 | AV135: 0.073 | AW135: 0.041 | AX135: 0.036 | AY135: 0.017 | AZ135: 0.031 | BA135: 0.393 | BB135: 1 | BC135: 1.42 | BD135: 1.93 | BE135: 3.07 | BF135: 0.79 | BG135: 0.492 | BH135: 0.793 | BI135: 1.44 | BJ135: 0.155 | BK135: 0.044 | BL135: 0.022 | BM135: 0.027 | BN135: 0.065 | BO135: 0.044 | BP135: 0.057 | BQ135: 0.05 | BR135: 0.034 | BS135: 0.04 | BT135: 0.081 | BU135: 0.029 | BV135: 1.43 | BW135: 0.751 | BX135: 0.944 | BY135: 0.665 | BZ135: 0.548 | CA135: 0.734 | CB135: 0.111 | CC135: 0.126 | CD135: 0.217 | CE135: 2.21 | CF135: 0.285 | CG135: 0.066 | CH135: 0.207 | CI135: 1.28 | CJ135: 0.063 | CK135: 0.582 | CL135: 1.83 | CM135: 0.33 | CN135: 1.43 | CO135: 0.588 | CP135: 0.215 | CQ135: 0.106 | CR135: 0.387 | CS135: 0.139 | CT135: 1.18 | CU135: 0.074 | CV135: 0.241 | CW135: 0.96 | CX135: 0.408 | CY135: 0.095 | CZ135: 1.09 | DA135: 0.865 | DB135: 1.15 | DC135: 2.22 | DD135: 0.631 | DE135: 1.34 | DF135: 0.098 | DG135: 0.235 | DH135: 0.347 | DI135: 0.471 | DJ135: 0.552 | DK135: 0.506 | DL135: 0.043 | DM135: 0.019 | DN135: 0.482 | DO135: 0.398 | DP135: 0.474 | DQ135: 0.013 | DR135: 0.461 | DS135: 0.078 | DT135: 0.252 | DU135: 0.058 | DV135: 0.024 | DW135: 0.094 | DX135: 0.111 | DY135: 0.031 | DZ135: 0.013
A136: Glycerides | B136: TG(48:3) | C136: 0 | D136: 0 | E136: 0 | F136: 0 | G136: 0 | H136: 0 | I136: 0 | J136: 0 | K136: 0 | L136: =K136/117*100 -> 0.0 | N136: 0.094 | O136: 0.081 | P136: 0.88 | Q136: 0.477 | R136: 0.282 | S136: 0.982 | T136: 0.397 | U136: 1.34 | V136: 0.623 | W136: 0.413 | X136: 0.316 | Y136: 0.046 | Z136: 0.067 | AA136: 0.022 | AB136: 0.061 | AC136: 0.054 | AD136: 0.057 | AE136: 0.032 | AF136: 0.066 | AG136: 0.03 | AH136: 0.073 | AI136: 0.075 | AJ136: 0.063 | AK136: 0.019 | AL136: 0.057 | AM136: 0.152 | AN136: 0.072 | AO136: 0.032 | AP136: 0.051 | AQ136: 0.006 | AR136: 0.038 | AS136: 0.06 | AT136: 0.071 | AU136: 0.072 | AV136: 0.044 | AW136: 0.027 | AX136: 0.097 | AY136: 0.005 | AZ136: 0.035 | BA136: 0.394 | BB136: 0.917 | BC136: 1.35 | BD136: 0.548 | BE136: 1.64 | BF136: 0.425 | BG136: 0.282 | BH136: 0.459 | BI136: 1.36 | BJ136: 0.063 | BK136: 0.063 | BL136: 0.024 | BM136: 0.006 | BN136: 0.098 | BO136: 0.072 | BP136: 0.041 | BQ136: 0.127 | BR136: 0.054 | BS136: 0.039 | BT136: 0.09 | BU136: 0.047 | BV136: 1.14 | BW136: 0.628 | BX136: 0.726 | BY136: 0.487 | BZ136: 0.434 | CA136: 0.653 | CB136: 0.083 | CC136: 0.103 | CD136: 0.178 | CE136: 0.194 | CF136: 0.132 | CG136: 0.054 | CH136: 0.1 | CI136: 1.03 | CJ136: 0.051 | CK136: 0.497 | CL136: 1.04 | CM136: 0.271 | CN136: 1.51 | CO136: 0.52 | CP136: 0.157 | CQ136: 0.082 | CR136: 0.214 | CS136: 0.12 | CT136: 1.07 | CU136: 0.011 | CV136: 0.179 | CW136: 0.773 | CX136: 0.251 | CY136: 0.102 | CZ136: 0.703 | DA136: 0.824 | DB136: 0.985 | DC136: 1.93 | DD136: 0.411 | DE136: 1.1 | DF136: 0.062 | DG136: 0.146 | DH136: 0.435 | DI136: 0.269 | DJ136: 0.39 | DK136: 0.28 | DL136: 0.038 | DM136: 0.004 | DN136: 0.274 | DO136: 0.268 | DP136: 0.285 | DQ136: 0.004 | DR136: 0.235 | DS136: 0.049 | DT136: 0.095 | DU136: 0.026 | DV136: 0.004 | DW136: 0.063 | DX136: 0.052 | DY136: 0.008 | DZ136: 0.004
A137: Glycerides | B137: TG(49:1) | C137: 0 | D137: 1 | E137: 0 | F137: 0 | G137: 0 | H137: 0 | I137: 0 | J137: 0 | K137: 1 | L137: 0.9 | N137: 0.027 | O137: 0.112 | P137: 0.392 | Q137: 0.257 | R137: 0.152 | S137: 0.398 | T137: 0.224 | U137: 0.486 | V137: 0.645 | W137: 0.239 | X137: 0.318 | Y137: 0.019 | Z137: 0.024 | AA137: 0.009 | AB137: 0.029 | AC137: 0.016 | AD137: 0.266 | AE137: 0.024 | AF137: 0.015 | AG137: 0 | AH137: 0.021 | AI137: 0.037 | AJ137: 0.016 | AK137: 0.063 | AL137: 0.099 | AM137: 0.02 | AN137: 0.008 | AO137: 0.011 | AP137: 0.025 | AQ137: 0.023 | AR137: 0.016 | AS137: 0.014 | AT137: 0.154 | AU137: 0.018 | AV137: 0.04 | AW137: 0.008 | AX137: 0.059 | AY137: 0.075 | AZ137: 0.093 | BA137: 0.213 | BB137: 0.405 | BC137: 0.533 | BD137: 0.677 | BE137: 0.863 | BF137: 0.344 | BG137: 0.19 | BH137: 0.363 | BI137: 0.551 | BJ137: 1.29 | BK137: 0.018 | BL137: 0.023 | BM137: 0.087 | BN137: 0.121 | BO137: 0.017 | BP137: 0.105 | BQ137: 0.035 | BR137: 0.02 | BS137: 0.122 | BT137: 0.216 | BU137: 0.152 | BV137: 0.527 | BW137: 0.271 | BX137: 0.443 | BY137: 0.253 | BZ137: 0.21 | CA137: 0.266 | CB137: 0.153 | CC137: 0.169 | CD137: 0.136 | CE137: 0.719 | CF137: 0.235 | CG137: 0.136 | CH137: 0.167 | CI137: 0.498 | CJ137: 0.134 | CK137: 0.254 | CL137: 0.452 | CM137: 0.119 | CN137: 0.521 | CO137: 0.238 | CP137: 0.128 | CQ137: 0.156 | CR137: 0.221 | CS137: 0.186 | CT137: 0.471 | CU137: 0.189 | CV137: 0.175 | CW137: 0.381 | CX137: 0.205 | CY137: 0.189 | CZ137: 0.396 | DA137: 0.361 | DB137: 0.402 | DC137: 0.678 | DD137: 0.281 | DE137: 0.573 | DF137: 0.155 | DG137: 0.189 | DH137: 0.145 | DI137: 0.229 | DJ137: 0.246 | DK137: 0.26 | DL137: 0.142 | DM137: 0.109 | DN137: 0.295 | DO137: 0.236 | DP137: 0.207 | DQ137: 0.008 | DR137: 0.266 | DS137: 0.068 | DT137: 0.155 | DU137: 0.112 | DV137: 0.092 | DW137: 0.153 | DX137: 0.127 | DY137: 0.133 | DZ137: 0.008
A138: Glycerides | B138: TG(49:2) | C138: 0 | D138: 4 | E138: 0 | F138: 0 | G138: 0 | H138: 0 | I138: 0 | J138: 0 | K138: 4 | L138: 3.4 | N138: 0.185 | O138: 0.067 | P138: 0.588 | Q138: 0.35 | R138: 0.237 | S138: 0.703 | T138: 0.34 | U138: 0.91 | V138: 1.14 | W138: 0.244 | X138: 0.326 | Y138: 0.011 | Z138: 0.19 | AA138: 0.087 | AB138: 0.038 | AC138: 0 | AD138: 0.006 | AE138: 0.166 | AF138: 0.156 | AG138: 0.06 | AH138: 0.018 | AI138: 0.069 | AJ138: 0.03 | AK138: 0.024 | AL138: 0.152 | AM138: 0.015 | AN138: 0.114 | AO138: 0.016 | AP138: 0.065 | AQ138: 0.011 | AR138: 0 | AS138: 0.017 | AT138: 0.082 | AU138: 0 | AV138: 0.01 | AW138: 0.036 | AX138: 0.183 | AY138: 0 | AZ138: 0.027 | BA138: 0.336 | BB138: 0.613 | BC138: 0.9 | BD138: 0.965 | BE138: 1.49 | BF138: 0.675 | BG138: 0.318 | BH138: 0.469 | BI138: 0.908 | BJ138: 0.388 | BK138: 0.009 | BL138: 0.096 | BM138: 0.049 | BN138: 0.18 | BO138: 0.162 | BP138: 0.025 | BQ138: 0.04 | BR138: 0.008 | BS138: 0.141 | BT138: 0.093 | BU138: 0.079 | BV138: 0.924 | BW138: 0.438 | BX138: 0.599 | BY138: 0.534 | BZ138: 0.316 | CA138: 0.604 | CB138: 0.116 | CC138: 0.115 | CD138: 0.187 | CE138: 0.959 | CF138: 0.042 | CG138: 0.009 | CH138: 0.044 | CI138: 0.755 | CJ138: 0.04 | CK138: 0.354 | CL138: 1.06 | CM138: 0.171 | CN138: 0.937 | CO138: 0.386 | CP138: 0.023 | CQ138: 0.101 | CR138: 0.255 | CS138: 0.205 | CT138: 0.68 | CU138: 0.013 | CV138: 0.169 | CW138: 0.549 | CX138: 0.3 | CY138: 0.195 | CZ138: 0.615 | DA138: 0.584 | DB138: 0.78 | DC138: 1.36 | DD138: 0.375 | DE138: 0.935 | DF138: 0.062 | DG138: 0.203 | DH138: 0.186 | DI138: 0.287 | DJ138: 0.369 | DK138: 0.317 | DL138: 0.026 | DM138: 0.07 | DN138: 0.241 | DO138: 0.25 | DP138: 0.266 | DQ138: 0.086 | DR138: 0.341 | DS138: 0.075 | DT138: 0.201 | DU138: 0.068 | DV138: 0.052 | DW138: 0.05 | DX138: 0.12 | DY138: 0.041 | DZ138: 0.065
A139: Glycerides | B139: TG(50:1) | C139: 0 | D139: 0 | E139: 0 | F139: 0 | G139: 0 | H139: 0 | I139: 0 | J139: 0 | K139: 0 | L139: 0.0 | N139: 0.531 | O139: 0.121 | P139: 1.55 | Q139: 0.605 | R139: 0.25 | S139: 0.596 | T139: 0.3 | U139: 0.67 | V139: 1.27 | W139: 0.699 | X139: 0.577 | Y139: 0.071 | Z139: 0.094 | AA139: 0.058 | AB139: 0.11 | AC139: 0.1 | AD139: 0.156 | AE139: 0.068 | AF139: 0.08 | AG139: 0.087 | AH139: 0.321 | AI139: 0.134 | AJ139: 0.079 | AK139: 0.056 | AL139: 0.091 | AM139: 0.077 | AN139: 0.092 | AO139: 0.095 | AP139: 0.078 | AQ139: 0.065 | AR139: 0.081 | AS139: 0.088 | AT139: 0.077 | AU139: 0.09 | AV139: 0.096 | AW139: 0.065 | AX139: 0.099 | AY139: 0.077 | AZ139: 0.05 | BA139: 0.138 | BB139: 0.634 | BC139: 0.836 | BD139: 1.02 | BE139: 1.58 | BF139: 0.649 | BG139: 0.33 | BH139: 0.645 | BI139: 0.861 | BJ139: 1.79 | BK139: 0.086 | BL139: 0.089 | BM139: 0.096 | BN139: 0.134 | BO139: 0.135 | BP139: 0.104 | BQ139: 0.092 | BR139: 0.099 | BS139: 0.087 | BT139: 0.135 | BU139: 0.089 | BV139: 0.61 | BW139: 0.32 | BX139: 0.594 | BY139: 0.251 | BZ139: 0.274 | CA139: 0.347 | CB139: 0.135 | CC139: 0.093 | CD139: 0.159 | CE139: 1.05 | CF139: 0.277 | CG139: 0.078 | CH139: 0.216 | CI139: 0.844 | CJ139: 0.094 | CK139: 0.374 | CL139: 0.733 | CM139: 0.21 | CN139: 0.822 | CO139: 0.43 | CP139: 0.134 | CQ139: 0.111 | CR139: 0.693 | CS139: 0.172 | CT139: 0.749 | CU139: 0.14 | CV139: 0.234 | CW139: 0.641 | CX139: 0.272 | CY139: 0.106 | CZ139: 0.613 | DA139: 0.54 | DB139: 0.606 | DC139: 1.16 | DD139: 0.712 | DE139: 0.972 | DF139: 0.129 | DG139: 0.217 | DH139: 0.15 | DI139: 0.286 | DJ139: 0.371 | DK139: 0.413 | DL139: 0.076 | DM139: 0.077 | DN139: 0.349 | DO139: 0.304 | DP139: 0.587 | DQ139: 0.074 | DR139: 0.448 | DS139: 0.142 | DT139: 0.318 | DU139: 0.118 | DV139: 0.071 | DW139: 0.117 | DX139: 0.109 | DY139: 0.089 | DZ139: 0.068
A140: Glycerides | B140: TG(50:2) | C140: 0 | D140: 3 | E140: 0 | F140: 0 | G140: 0 | H140: 0 | I140: 0 | J140: 0 | K140: 3 | L140: 2.6 | N140: 0.681 | O140: 0.143 | P140: 2.7 | Q140: 1.05 | R140: 0.467 | S140: 1.16 | T140: 0.532 | U140: 1.47 | V140: 2.7 | W140: 1.43 | X140: 0.627 | Y140: 0 | Z140: 0.006 | AA140: 0.009 | AB140: 0.012 | AC140: 0.021 | AD140: 0.034 | AE140: 0.094 | AF140: 0.01 | AG140: 0 | AH140: 0.397 | AI140: 0.082 | AJ140: 0.005 | AK140: 0.058 | AL140: 0.008 | AM140: 0.018 | AN140: 0.009 | AO140: 0.021 | AP140: 0.073 | AQ140: 0.026 | AR140: 0.03 | AS140: 0.012 | AT140: 0.028 | AU140: 0 | AV140: 0.036 | AW140: 0.015 | AX140: 0.007 | AY140: 0.005 | AZ140: 0.01 | BA140: 0.987 | BB140: 1 | BC140: 1.46 | BD140: 2.08 | BE140: 3.02 | BF140: 0.839 | BG140: 0.494 | BH140: 0.827 | BI140: 1.45 | BJ140: 0.501 | BK140: 0.1 | BL140: 0.097 | BM140: 0.039 | BN140: 0.013 | BO140: 0.026 | BP140: 0.02 | BQ140: 0.009 | BR140: 0.01 | BS140: 0.013 | BT140: 0.019 | BU140: 0.056 | BV140: 1.42 | BW140: 0.666 | BX140: 1.12 | BY140: 0.681 | BZ140: 0.585 | CA140: 0.913 | CB140: 0.241 | CC140: 0.118 | CD140: 0.267 | CE140: 2.08 | CF140: 0.329 | CG140: 0.133 | CH140: 0.21 | CI140: 1.52 | CJ140: 0.128 | CK140: 0.72 | CL140: 1.55 | CM140: 0.386 | CN140: 1.46 | CO140: 0.75 | CP140: 0.348 | CQ140: 0.2 | CR140: 0.944 | CS140: 0.364 | CT140: 1.24 | CU140: 0.123 | CV140: 0.321 | CW140: 1.04 | CX140: 0.428 | CY140: 0.109 | CZ140: 0.95 | DA140: 0.922 | DB140: 1.23 | DC140: 2.24 | DD140: 1.13 | DE140: 1.28 | DF140: 0.138 | DG140: 0.338 | DH140: 0.619 | DI140: 0.444 | DJ140: 0.643 | DK140: 0.544 | DL140: 0.052 | DM140: 0.027 | DN140: 0.524 | DO140: 0.446 | DP140: 1.02 | DQ140: 0.026 | DR140: 0.469 | DS140: 0.173 | DT140: 0.422 | DU140: 0.154 | DV140: 0.025 | DW140: 0.184 | DX140: 0.15 | DY140: 0.069 | DZ140: 0.026
A141: Glycerides | B141: TG(50:3) | C141: 0 | D141: 2 | E141: 0 | F141: 0 | G141: 0 | H141: 0 | I141: 0 | J141: 0 | K141: 2 | L141: 1.7 | N141: 0.359 | O141: 0.132 | P141: 2.03 | Q141: 1.06 | R141: 0.448 | S141: 1.13 | T141: 0.423 | U141: 1.38 | V141: 1.01 | W141: 1.04 | X141: 0.415 | Y141: 0.052 | Z141: 0 | AA141: 0.039 | AB141: 0.039 | AC141: 0.026 | AD141: 0.04 | AE141: 0.021 | AF141: 0.016 | AG141: 0 | AH141: 0.169 | AI141: 0.053 | AJ141: 0.046 | AK141: 0.044 | AL141: 0.008 | AM141: 0.004 | AN141: 0.058 | AO141: 0.072 | AP141: 0.046 | AQ141: 0.032 | AR141: 0.04 | AS141: 0.024 | AT141: 0.045 | AU141: 0.017 | AV141: 0.056 | AW141: 0.043 | AX141: 0.034 | AY141: 0.035 | AZ141: 0.051 | BA141: 0.444 | BB141: 0.991 | BC141: 1.47 | BD141: 1.32 | BE141: 3.08 | BF141: 0.717 | BG141: 0.423 | BH141: 0.683 | BI141: 1.45 | BJ141: 0.157 | BK141: 0.039 | BL141: 0.019 | BM141: 0.013 | BN141: 0.035 | BO141: 0.026 | BP141: 0.017 | BQ141: 0.048 | BR141: 0.021 | BS141: 0.027 | BT141: 0.022 | BU141: 0.043 | BV141: 1.39 | BW141: 0.894 | BX141: 1.01 | BY141: 0.635 | BZ141: 0.604 | CA141: 0.766 | CB141: 0.162 | CC141: 0.117 | CD141: 0.208 | CE141: 2.72 | CF141: 0.177 | CG141: 0.084 | CH141: 0.173 | CI141: 1.42 | CJ141: 0.076 | CK141: 0.547 | CL141: 2.1 | CM141: 0.399 | CN141: 1.72 | CO141: 0.636 | CP141: 0.251 | CQ141: 0.156 | CR141: 0.641 | CS141: 0.099 | CT141: 1.25 | CU141: 0.049 | CV141: 0.145 | CW141: 0.792 | CX141: 0.323 | CY141: 0.072 | CZ141: 0.772 | DA141: 0.974 | DB141: 1.25 | DC141: 2.37 | DD141: 0.704 | DE141: 1.24 | DF141: 0.058 | DG141: 0.19 | DH141: 0.689 | DI141: 0.325 | DJ141: 0.445 | DK141: 0.409 | DL141: 0.028 | DM141: 0.009 | DN141: 0.371 | DO141: 0.256 | DP141: 0.597 | DQ141: 0.008 | DR141: 0.303 | DS141: 0.082 | DT141: 0.245 | DU141: 0.063 | DV141: 0.007 | DW141: 0.087 | DX141: 0.047 | DY141: 0.013 | DZ141: 0.008
A142: Glycerides | B142: TG(50:4) | C142: 1 | D142: 21 | E142: 8 | F142: 0 | G142: 0 | H142: 0 | I142: 0 | J142: 1 | K142: 31 | L142: 26.5 | N142: 0 | O142: 0.007 | P142: 0.011 | Q142: 0.012 | R142: 0.005 | S142: 0.013 | T142: 0.006 | U142: 0.01 | V142: 0.02 | W142: 0.006 | X142: 0.005 | Y142: 0 | Z142: 0 | AA142: 0 | AB142: 0 | AC142: 0.006 | AD142: 0.008 | AE142: 0 | AF142: 0 | AG142: 0 | AH142: 0 | AI142: 0 | AJ142: 0 | AK142: 0.004 | AL142: 0 | AM142: 0.008 | AN142: 0 | AO142: 0 | AP142: 0 | AQ142: 0 | AR142: 0.005 | AS142: 0 | AT142: 0 | AU142: 0 | AV142: 0.008 | AW142: 0.004 | AX142: 0 | AY142: 0 | AZ142: 0.006 | BA142: 0.004 | BB142: 0.01 | BC142: 0.009 | BD142: 0.02 | BE142: 0.008 | BF142: 0.01 | BG142: 0 | BH142: 0.009 | BI142: 0.01 | BJ142: 0.058 | BK142: 0 | BL142: 0 | BM142: 0 | BN142: 0 | BO142: 0 | BP142: 0 | BQ142: 0 | BR142: 0.009 | BS142: 0 | BT142: 0.009 | BU142: 0.004 | BV142: 0.013 | BW142: 0.01 | BX142: 0.004 | BY142: 0.006 | BZ142: 0.012 | CA142: 0.012 | CB142: 0.014 | CC142: 0.004 | CD142: 0.002 | CE142: 0.036 | CF142: 0.009 | CG142: 0.003 | CH142: 0.002 | CI142: 0.013 | CJ142: 0.004 | CK142: 0.01 | CL142: 0.013 | CM142: 0.005 | CN142: 0.008 | CO142: 0.012 | CP142: 0.005 | CQ142: 0.007 | CR142: 0.008 | CS142: 0.01 | CT142: 0.009 | CU142: 0.007 | CV142: 0.008 | CW142: 0.009 | CX142: 0.005 | CY142: 0.006 | CZ142: 0.006 | DA142: 0.004 | DB142: 0.011 | DC142: 0.015 | DD142: 0.004 | DE142: 0.008 | DF142: 0.006 | DG142: 0.004 | DH142: 0.003 | DI142: 0.004 | DJ142: 0.006 | DK142: 0.003 | DL142: 0.003 | DM142: 0.003 | DN142: 0 | DO142: 0.005 | DP142: 0.003 | DQ142: 0.008 | DR142: 0.008 | DS142: 0.007 | DT142: 0.003 | DU142: 0.002 | DV142: 0.003 | DW142: 0.002 | DX142: 0.003 | DY142: 0.005 | DZ142: 0.004
A143: Glycerides | B143: TG(51:1) | C143: 1 | D143: 3 | E143: 2 | F143: 0 | G143: 1 | H143: 0 | I143: 0 | J143: 0 | K143: 7 | L143: 6.0 | N143: 0 | O143: 0.007 | P143: 0.006 | Q143: 0.005 | R143: 0.021 | S143: 0.006 | T143: 0.004 | U143: 0.006 | V143: 0.008 | W143: 0.011 | X143: 0.006 | Y143: 0.012 | Z143: 0.013 | AA143: 0.007 | AB143: 0.009 | AC143: 0 | AD143: 0.012 | AE143: 0.017 | AF143: 0.012 | AG143: 0.015 | AH143: 0 | AI143: 0.014 | AJ143: 0.01 | AK143: 0.012 | AL143: 0.012 | AM143: 0 | AN143: 0.01 | AO143: 0.012 | AP143: 0.01 | AQ143: 0.015 | AR143: 0.009 | AS143: 0.011 | AT143: 0.013 | AU143: 0.011 | AV143: 0.013 | AW143: 0.009 | AX143: 0.015 | AY143: 0.009 | AZ143: 0.014 | BA143: 0.005 | BB143: 0.006 | BC143: 0.007 | BD143: 0.009 | BE143: 0.01 | BF143: 0.006 | BG143: 0.004 | BH143: 0.007 | BI143: 0.008 | BJ143: 0.018 | BK143: 0 | BL143: 0.007 | BM143: 0.01 | BN143: 0.012 | BO143: 0.013 | BP143: 0.014 | BQ143: 0.009 | BR143: 0 | BS143: 0.01 | BT143: 0.013 | BU143: 0.007 | BV143: 0.007 | BW143: 0.006 | BX143: 0.005 | BY143: 0.004 | BZ143: 0.029 | CA143: 0.005 | CB143: 0.016 | CC143: 0.01 | CD143: 0.008 | CE143: 0.008 | CF143: 0.023 | CG143: 0.009 | CH143: 0.008 | CI143: 0.007 | CJ143: 0.007 | CK143: 0.004 | CL143: 0.005 | CM143: 0.011 | CN143: 0.008 | CO143: 0.004 | CP143: 0 | CQ143: 0.012 | CR143: 0.005 | CS143: 0.015 | CT143: 0.007 | CU143: 0.01 | CV143: 0.01 | CW143: 0.007 | CX143: 0.01 | CY143: 0.01 | CZ143: 0.006 | DA143: 0.005 | DB143: 0.006 | DC143: 0.008 | DD143: 0.005 | DE143: 0.009 | DF143: 0.012 | DG143: 0.012 | DH143: 0.004 | DI143: 0.004 | DJ143: 0.006 | DK143: 0.005 | DL143: 0.009 | DM143: 0.011 | DN143: 0.004 | DO143: 0.004 | DP143: 0.005 | DQ143: 0.013 | DR143: 0.005 | DS143: 0.012 | DT143: 0.012 | DU143: 0.011 | DV143: 0.007 | DW143: 0.008 | DX143: 0.008 | DY143: 0.011 | DZ143: 0.011
A144: Glycerides | B144: TG(51:2) | C144: 0 | D144: 4 | E144: 1 | F144: 0 | G144: 0 | H144: 0 | I144: 0 | J144: 0 | K144: 5 | L144: 4.3 | N144: 0.019 | O144: 0.005 | P144: 0.874 | Q144: 0.581 | R144: 0.392 | S144: 1.02 | T144: 0.47 | U144: 1.15 | V144: 2.01 | W144: 0.475 | X144: 0.596 | Y144: 0.007 | Z144: 0.005 | AA144: 0.006 | AB144: 0.008 | AC144: 0.006 | AD144: 0.006 | AE144: 0.013 | AF144: 0.007 | AG144: 0.011 | AH144: 0.009 | AI144: 0.01 | AJ144: 0.01 | AK144: 0.006 | AL144: 0.01 | AM144: 0.01 | AN144: 0.007 | AO144: 0 | AP144: 0.004 | AQ144: 0.008 | AR144: 0.008 | AS144: 0 | AT144: 0.011 | AU144: 0.012 | AV144: 0.014 | AW144: 0 | AX144: 0.005 | AY144: 0.006 | AZ144: 0 | BA144: 0.399 | BB144: 0.91 | BC144: 1.11 | BD144: 1.59 | BE144: 2.57 | BF144: 0.806 | BG144: 0.394 | BH144: 0.772 | BI144: 1.28 | BJ144: 0.675 | BK144: 0.007 | BL144: 0.007 | BM144: 0.012 | BN144: 0.017 | BO144: 0.006 | BP144: 0 | BQ144: 0.01 | BR144: 0.008 | BS144: 0.009 | BT144: 0.014 | BU144: 0.005 | BV144: 1.21 | BW144: 0.654 | BX144: 0.856 | BY144: 0.663 | BZ144: 0.464 | CA144: 0.68 | CB144: 0.022 | CC144: 0.01 | CD144: 0.243 | CE144: 2 | CF144: 0.281 | CG144: 0.005 | CH144: 0.233 | CI144: 1.1 | CJ144: 0.005 | CK144: 0.545 | CL144: 1.16 | CM144: 0.389 | CN144: 1.21 | CO144: 0.538 | CP144: 0.249 | CQ144: 0.008 | CR144: 0.443 | CS144: 0.433 | CT144: 0.921 | CU144: 0.008 | CV144: 0.393 | CW144: 0.803 | CX144: 0.373 | CY144: 0.006 | CZ144: 0.84 | DA144: 0.707 | DB144: 0.965 | DC144: 1.74 | DD144: 0.487 | DE144: 1.1 | DF144: 0.172 | DG144: 0.285 | DH144: 0.404 | DI144: 0.369 | DJ144: 0.487 | DK144: 0.45 | DL144: 0.005 | DM144: 0.005 | DN144: 0.424 | DO144: 0.36 | DP144: 0.373 | DQ144: 0.005 | DR144: 0.494 | DS144: 0.005 | DT144: 0.262 | DU144: 0.006 | DV144: 0.004 | DW144: 0.005 | DX144: 0.005 | DY144: 0.004 | DZ144: 0.004
A145: Glycerides | B145: TG(51:3) | C145: 0 | D145: 3 | E145: 0 | F145: 0 | G145: 0 | H145: 0 | I145: 0 | J145: 0 | K145: 3 | L145: 2.6 | N145: 0.046 | O145: 0.059 | P145: 0.801 | Q145: 0.441 | R145: 0.251 | S145: 0.957 | T145: 0.305 | U145: 1.05 | V145: 1.48 | W145: 0.368 | X145: 0.303 | Y145: 0.058 | Z145: 0.023 | AA145: 0.01 | AB145: 0.03 | AC145: 0.009 | AD145: 0.033 | AE145: 0.017 | AF145: 0.007 | AG145: 0 | AH145: 0.032 | AI145: 0.028 | AJ145: 0.012 | AK145: 0.025 | AL145: 0.042 | AM145: 0.019 | AN145: 0.006 | AO145: 0.036 | AP145: 0.033 | AQ145: 0 | AR145: 0.05 | AS145: 0.01 | AT145: 0.058 | AU145: 0.05 | AV145: 0 | AW145: 0.022 | AX145: 0.004 | AY145: 0.025 | AZ145: 0.03 | BA145: 0.279 | BB145: 0.701 | BC145: 0.941 | BD145: 1.32 | BE145: 1.41 | BF145: 0.367 | BG145: 0.322 | BH145: 0.468 | BI145: 1.01 | BJ145: 0.371 | BK145: 0.02 | BL145: 0.023 | BM145: 0.011 | BN145: 0.033 | BO145: 0.025 | BP145: 0.031 | BQ145: 0.01 | BR145: 0.046 | BS145: 0.019 | BT145: 0.032 | BU145: 0.039 | BV145: 0.905 | BW145: 0.489 | BX145: 0.745 | BY145: 0.415 | BZ145: 0.372 | CA145: 0.539 | CB145: 0.08 | CC145: 0.083 | CD145: 0.141 | CE145: 1.08 | CF145: 0.138 | CG145: 0.061 | CH145: 0.095 | CI145: 0.915 | CJ145: 0.037 | CK145: 0.414 | CL145: 0.982 | CM145: 0.199 | CN145: 1.08 | CO145: 0.396 | CP145: 0.167 | CQ145: 0.062 | CR145: 0.186 | CS145: 0.088 | CT145: 0.814 | CU145: 0.018 | CV145: 0.149 | CW145: 0.597 | CX145: 0.182 | CY145: 0.047 | CZ145: 0.533 | DA145: 0.555 | DB145: 0.829 | DC145: 1.02 | DD145: 0.332 | DE145: 0.723 | DF145: 0.038 | DG145: 0.138 | DH145: 0.376 | DI145: 0.221 | DJ145: 0.305 | DK145: 0.28 | DL145: 0.03 | DM145: 0.01 | DN145: 0.286 | DO145: 0.184 | DP145: 0.191 | DQ145: 0.005 | DR145: 0.222 | DS145: 0.039 | DT145: 0.099 | DU145: 0.012 | DV145: 0.009 | DW145: 0.06 | DX145: 0.05 | DY145: 0.012 | DZ145: 0.007
A146: Glycerides | B146: TG(51:4) | C146: 0 | D146: 12 | E146: 4 | F146: 0 | G146: 1 | H146: 0 | I146: 0 | J146: 0 | K146: 17 | L146: 14.5 | N146: 0.018 | O146: 0.054 | P146: 0.329 | Q146: 0.145 | R146: 0.13 | S146: 0.005 | T146: 0.169 | U146: 0.499 | V146: 0.079 | W146: 0.217 | X146: 0.084 | Y146: 0.014 | Z146: 0 | AA146: 0.007 | AB146: 0.038 | AC146: 0.011 | AD146: 0.092 | AE146: 0.009 | AF146: 0 | AG146: 0 | AH146: 0.005 | AI146: 0.012 | AJ146: 0.017 | AK146: 0 | AL146: 0 | AM146: 0 | AN146: 0.06 | AO146: 0.014 | AP146: 0 | AQ146: 0.008 | AR146: 0.007 | AS146: 0 | AT146: 0 | AU146: 0 | AV146: 0 | AW146: 0 | AX146: 0.053 | AY146: 0.005 | AZ146: 0.034 | BA146: 0.172 | BB146: 0.242 | BC146: 0.26 | BD146: 0.103 | BE146: 0.237 | BF146: 0.133 | BG146: 0.138 | BH146: 0.154 | BI146: 0.752 | BJ146: 0.756 | BK146: 0.043 | BL146: 0 | BM146: 0.006 | BN146: 0 | BO146: 0 | BP146: 0.007 | BQ146: 0.006 | BR146: 0.006 | BS146: 0 | BT146: 0.005 | BU146: 0.028 | BV146: 0.291 | BW146: 0.241 | BX146: 0.203 | BY146: 0.12 | BZ146: 0.192 | CA146: 0.135 | CB146: 0.034 | CC146: 0.06 | CD146: 0.071 | CE146: 0.458 | CF146: 0.042 | CG146: 0.054 | CH146: 0.052 | CI146: 0.269 | CJ146: 0.038 | CK146: 0.193 | CL146: 0 | CM146: 0.118 | CN146: 0.541 | CO146: 0.17 | CP146: 0.101 | CQ146: 0.009 | CR146: 0.108 | CS146: 0.049 | CT146: 0.541 | CU146: 0.006 | CV146: 0.053 | CW146: 0.228 | CX146: 0.066 | CY146: 0.048 | CZ146: 0.236 | DA146: 0.225 | DB146: 0.355 | DC146: 0.678 | DD146: 0.172 | DE146: 0.343 | DF146: 0.044 | DG146: 0.058 | DH146: 0.087 | DI146: 0.105 | DJ146: 0.109 | DK146: 0.1 | DL146: 0.046 | DM146: 0.038 | DN146: 0.104 | DO146: 0.109 | DP146: 0.073 | DQ146: 0.003 | DR146: 0.085 | DS146: 0.03 | DT146: 0.06 | DU146: 0.016 | DV146: 0.004 | DW146: 0.036 | DX146: 0.041 | DY146: 0.003 | DZ146: 0.004
A147: Glycerides | B147: TG(51:5) | C147: 2 | D147: 22 | E147: 8 | F147: 4 | G147: 7 | H147: 7 | I147: 5 | J147: 9 | K147: 64 | L147: 54.7 | N147: 0.014 | O147: 0.007 | P147: 0.058 | Q147: 0.035 | R147: 0 | S147: 0.005 | T147: 0.005 | U147: 0.03 | V147: 0.092 | W147: 0.068 | X147: 0 | Y147: 0 | Z147: 0 | AA147: 0.005 | AB147: 0 | AC147: 0 | AD147: 0.005 | AE147: 0 | AF147: 0.012 | AG147: 0 | AH147: 0 | AI147: 0 | AJ147: 0 | AK147: 0.004 | AL147: 0 | AM147: 0 | AN147: 0 | AO147: 0.012 | AP147: 0.005 | AQ147: 0 | AR147: 0 | AS147: 0 | AT147: 0 | AU147: 0 | AV147: 0 | AW147: 0.006 | AX147: 0 | AY147: 0.007 | AZ147: 0.006 | BA147: 0.064 | BB147: 0.015 | BC147: 0 | BD147: 0.075 | BE147: 0.093 | BF147: 0.047 | BG147: 0.004 | BH147: 0 | BI147: 0 | BJ147: 0.109 | BK147: 0 | BL147: 0 | BM147: 0.005 | BN147: 0 | BO147: 0.007 | BP147: 0 | BQ147: 0 | BR147: 0 | BS147: 0 | BT147: 0 | BU147: 0.005 | BV147: 0.007 | BW147: 0.026 | BX147: 0.007 | BY147: 0.01 | BZ147: 0.004 | CA147: 0.008 | CB147: 0.046 | CC147: 0.005 | CD147: 0.035 | CE147: 0 | CF147: 0 | CG147: 0 | CH147: 0 | CI147: 0.025 | CJ147: 0 | CK147: 0 | CL147: 0 | CM147: 0.045 | CN147: 0.01 | CO147: 0 | CP147: 0.046 | CQ147: 0 | CR147: 0 | CS147: 0 | CT147: 0 | CU147: 0 | CV147: 0.032 | CW147: 0 | CX147: 0 | CY147: 0 | CZ147: 0 | DA147: 0.029 | DB147: 0 | DC147: 0.081 | DD147: 0 | DE147: 0 | DF147: 0.006 | DG147: 0 | DH147: 0.005 | DI147: 0.03 | DJ147: 0.024 | DK147: 0 | DL147: 0.02 | DM147: 0 | DN147: 0 | DO147: 0.082 | DP147: 0.02 | DQ147: 0 | DR147: 0 | DS147: 0 | DT147: 0 | DU147: 0 | DV147: 0 | DW147: 0.008 | DX147: 0.003 | DY147: 0 | DZ147: 0
A148: Glycerides | B148: TG(52:2) | C148: 0 | D148: 0 | E148: 0 | F148: 0 | G148: 0 | H148: 0 | I148: 0 | J148: 0 | K148: 0 | L148: 0.0 | N148: 1.63 | O148: 0.124 | P148: 4.84 | Q148: 1.33 | R148: 0.554 | S148: 0.536 | T148: 0.254 | U148: 0.608 | V148: 1.93 | W148: 3.11 | X148: 0.308 | Y148: 0.042 | Z148: 0.064 | AA148: 0.033 | AB148: 0.13 | AC148: 0.207 | AD148: 0.218 | AE148: 0.062 | AF148: 0.058 | AG148: 0.024 | AH148: 0.963 | AI148: 0.051 | AJ148: 0.061 | AK148: 0.006 | AL148: 0.052 | AM148: 0.041 | AN148: 0.075 | AO148: 0.04 | AP148: 0.033 | AQ148: 0.053 | AR148: 0.075 | AS148: 0.067 | AT148: 0.083 | AU148: 0.044 | AV148: 0.165 | AW148: 0.05 | AX148: 0.046 | AY148: 0.026 | AZ148: 0.033 | BA148: 1.82 | BB148: 0.359 | BC148: 0.613 | BD148: 0.354 | BE148: 4.74 | BF148: 0.367 | BG148: 1.33 | BH148: 0.324 | BI148: 2.8 | BJ148: 1.04 | BK148: 0.149 | BL148: 0.127 | BM148: 0.075 | BN148: 0.181 | BO148: 0.198 | BP148: 0.141 | BQ148: 0.054 | BR148: 0.036 | BS148: 0.055 | BT148: 0.085 | BU148: 0.092 | BV148: 0.681 | BW148: 0.389 | BX148: 0.457 | BY148: 0.247 | BZ148: 0.275 | CA148: 0.453 | CB148: 0.367 | CC148: 0.078 | CD148: 0.111 | CE148: 0.937 | CF148: 0.313 | CG148: 0.108 | CH148: 0.261 | CI148: 0.802 | CJ148: 0.209 | CK148: 0.295 | CL148: 0.788 | CM148: 0.351 | CN148: 0.598 | CO148: 0.398 | CP148: 0.665 | CQ148: 0.199 | CR148: 1.29 | CS148: 0.147 | CT148: 0.507 | CU148: 0.127 | CV148: 0.163 | CW148: 0.429 | CX148: 0.158 | CY148: 0.076 | CZ148: 0.345 | DA148: 0.396 | DB148: 0.488 | DC148: 1.03 | DD148: 1.06 | DE148: 0.676 | DF148: 0.074 | DG148: 0.115 | DH148: 0.655 | DI148: 0.195 | DJ148: 0.226 | DK148: 0.267 | DL148: 0.058 | DM148: 0.068 | DN148: 1.39 | DO148: 0.268 | DP148: 1.29 | DQ148: 0.059 | DR148: 0.261 | DS148: 0.201 | DT148: 0.471 | DU148: 0.196 | DV148: 0.05 | DW148: 0.066 | DX148: 0.06 | DY148: 0.054 | DZ148: 0.057
A149: Glycerides | B149: TG(52:3) | C149: 0 | D149: 0 | E149: 0 | F149: 0 | G149: 0 | H149: 0 | I149: 0 | J149: 0 | K149: 0 | L149: 0.0 | N149: 1.77 | O149: 0.113 | P149: 6.3 | Q149: 2.42 | R149: 0.652 | S149: 0.554 | T149: 1.25 | U149: 0.505 | V149: 2.46 | W149: 4.96 | X149: 0.132 | Y149: 0.013 | Z149: 0.022 | AA149: 0.018 | AB149: 0.121 | AC149: 0.24 | AD149: 0.235 | AE149: 0.018 | AF149: 0.045 | AG149: 0.013 | AH149: 1.14 | AI149: 0.037 | AJ149: 0.024 | AK149: 0.024 | AL149: 0.021 | AM149: 0.109 | AN149: 0.071 | AO149: 0.03 | AP149: 0.011 | AQ149: 0.026 | AR149: 0.143 | AS149: 0.045 | AT149: 0.037 | AU149: 0.025 | AV149: 0.12 | AW149: 0.01 | AX149: 0.026 | AY149: 0.011 | AZ149: 0.025 | BA149: 2.66 | BB149: 1.15 | BC149: 0.563 | BD149: 2.11 | BE149: 6.67 | BF149: 0.242 | BG149: 1.95 | BH149: 0.264 | BI149: 3.44 | BJ149: 1.17 | BK149: 0.063 | BL149: 0.247 | BM149: 0.06 | BN149: 0.23 | BO149: 0.111 | BP149: 0.473 | BQ149: 0.02 | BR149: 0.021 | BS149: 0.02 | BT149: 0.027 | BU149: 0.082 | BV149: 0.602 | BW149: 0.353 | BX149: 0.439 | BY149: 0.224 | BZ149: 0.301 | CA149: 0.581 | CB149: 0.532 | CC149: 0.084 | CD149: 0.09 | CE149: 0.849 | CF149: 1.54 | CG149: 0.035 | CH149: 0.387 | CI149: 0.868 | CJ149: 0.228 | CK149: 0.268 | CL149: 0.851 | CM149: 0.426 | CN149: 0.559 | CO149: 0.494 | CP149: 1.58 | CQ149: 0.324 | CR149: 1.83 | CS149: 0.336 | CT149: 0.512 | CU149: 0.074 | CV149: 0.113 | CW149: 0.503 | CX149: 0.137 | CY149: 0.129 | CZ149: 0.314 | DA149: 0.334 | DB149: 0.439 | DC149: 0.977 | DD149: 1.14 | DE149: 0.531 | DF149: 0.048 | DG149: 0.079 | DH149: 1.23 | DI149: 0.122 | DJ149: 0.204 | DK149: 0.209 | DL149: 0.04 | DM149: 0.033 | DN149: 1.76 | DO149: 0.187 | DP149: 1.11 | DQ149: 0.036 | DR149: 0.223 | DS149: 0.272 | DT149: 0.689 | DU149: 0.222 | DV149: 0.029 | DW149: 0.05 | DX149: 0.037 | DY149: 0.04 | DZ149: 0.027
A150: Glycerides | B150: TG(52:4) | C150: 0 | D150: 0 | E150: 0 | F150: 0 | G150: 0 | H150: 0 | I150: 0 | J150: 0 | K150: 0 | L150: 0.0 | N150: 1.09 | O150: 0.09 | P150: 3.65 | Q150: 1.86 | R150: 0.485 | S150: 0.282 | T150: 0.131 | U150: 0.588 | V150: 1.04 | W150: 2.99 | X150: 0.088 | Y150: 0.103 | Z150: 0.108 | AA150: 0.087 | AB150: 0.153 | AC150: 0.23 | AD150: 0.196 | AE150: 0.092 | AF150: 0.094 | AG150: 0.068 | AH150: 0.696 | AI150: 0.084 | AJ150: 0.071 | AK150: 0.047 | AL150: 0.07 | AM150: 0.097 | AN150: 0.092 | AO150: 0.071 | AP150: 0.089 | AQ150: 0.078 | AR150: 0.103 | AS150: 0.1 | AT150: 0.095 | AU150: 0.114 | AV150: 0.149 | AW150: 0.053 | AX150: 0.105 | AY150: 0.065 | AZ150: 0.061 | BA150: 1.54 | BB150: 1.06 | BC150: 0.336 | BD150: 1.22 | BE150: 3.85 | BF150: 0.149 | BG150: 1.16 | BH150: 0.138 | BI150: 1.99 | BJ150: 0.457 | BK150: 0.126 | BL150: 0.123 | BM150: 0.113 | BN150: 0.12 | BO150: 0.157 | BP150: 0.137 | BQ150: 0.102 | BR150: 0.074 | BS150: 0.107 | BT150: 0.11 | BU150: 0.077 | BV150: 0.379 | BW150: 0.229 | BX150: 0.271 | BY150: 0.186 | BZ150: 0.177 | CA150: 0.407 | CB150: 0.448 | CC150: 0.107 | CD150: 0.092 | CE150: 0.607 | CF150: 0.171 | CG150: 0.077 | CH150: 0.308 | CI150: 0.635 | CJ150: 0.132 | CK150: 0.202 | CL150: 0.461 | CM150: 0.205 | CN150: 0.282 | CO150: 0.167 | CP150: 0.798 | CQ150: 0.281 | CR150: 1.38 | CS150: 0.139 | CT150: 0.284 | CU150: 0.092 | CV150: 0.114 | CW150: 0.299 | CX150: 0.122 | CY150: 0.076 | CZ150: 0.188 | DA150: 0.271 | DB150: 0.224 | DC150: 0.794 | DD150: 0.711 | DE150: 0.282 | DF150: 0.075 | DG150: 0.088 | DH150: 0.697 | DI150: 0.131 | DJ150: 0.125 | DK150: 0.123 | DL150: 0.075 | DM150: 0.106 | DN150: 0.96 | DO150: 0.119 | DP150: 0.665 | DQ150: 0.078 | DR150: 0.136 | DS150: 0.209 | DT150: 0.432 | DU150: 0.164 | DV150: 0.051 | DW150: 0.075 | DX150: 0.067 | DY150: 0.074 | DZ150: 0.052
A151: Glycerides | B151: TG(52:5) | C151: 0 | D151: 22 | E151: 8 | F151: 1 | G151: 0 | H151: 1 | I151: 4 | J151: 4 | K151: 40 | L151: 34.2 | N151: 0.23 | O151: 0.078 | P151: 1.01 | Q151: 0.389 | R151: 0.03 | S151: 0.122 | T151: 0.006 | U151: 0.23 | V151: 0.019 | W151: 0.716 | X151: 0.011 | Y151: 0 | Z151: 0 | AA151: 0 | AB151: 0 | AC151: 0.034 | AD151: 0.011 | AE151: 0 | AF151: 0 | AG151: 0 | AH151: 0.127 | AI151: 0 | AJ151: 0.007 | AK151: 0.005 | AL151: 0 | AM151: 0.01 | AN151: 0 | AO151: 0 | AP151: 0 | AQ151: 0 | AR151: 0 | AS151: 0 | AT151: 0 | AU151: 0 | AV151: 0 | AW151: 0 | AX151: 0 | AY151: 0 | AZ151: 0 | BA151: 0.059 | BB151: 0.293 | BC151: 0.108 | BD151: 0.149 | BE151: 0.65 | BF151: 0.006 | BG151: 0.006 | BH151: 0.009 | BI151: 0.435 | BJ151: 0.099 | BK151: 0 | BL151: 0.06 | BM151: 0.007 | BN151: 0 | BO151: 0 | BP151: 0 | BQ151: 0 | BR151: 0 | BS151: 0 | BT151: 0 | BU151: 0.007 | BV151: 0.077 | BW151: 0.051 | BX151: 0.037 | BY151: 0.073 | BZ151: 0.026 | CA151: 0.073 | CB151: 0.058 | CC151: 0.024 | CD151: 0 | CE151: 0.266 | CF151: 0.02 | CG151: 0.023 | CH151: 0.019 | CI151: 0.142 | CJ151: 0.048 | CK151: 0.083 | CL151: 0.175 | CM151: 0.071 | CN151: 0.045 | CO151: 0.01 | CP151: 0.017 | CQ151: 0.063 | CR151: 0.347 | CS151: 0.023 | CT151: 0.247 | CU151: 0.007 | CV151: 0.058 | CW151: 0.099 | CX151: 0 | CY151: 0.04 | CZ151: 0.01 | DA151: 0.009 | DB151: 0.011 | DC151: 0.201 | DD151: 0.229 | DE151: 0.011 | DF151: 0 | DG151: 0 | DH151: 0.005 | DI151: 0.05 | DJ151: 0 | DK151: 0.006 | DL151: 0 | DM151: 0.01 | DN151: 0.25 | DO151: 0.009 | DP151: 0.15 | DQ151: 0.006 | DR151: 0 | DS151: 0.044 | DT151: 0.073 | DU151: 0.035 | DV151: 0 | DW151: 0 | DX151: 0 | DY151: 0.009 | DZ151: 0.004
A152: Glycerides | B152: TG(52:6) | C152: 1 | D152: 13 | E152: 6 | F152: 6 | G152: 0 | H152: 7 | I152: 5 | J152: 5 | K152: 43 | L152: 36.8 | N152: 0.074 | O152: 0.051 | P152: 0.162 | Q152: 0.027 | R152: 0.013 | S152: 0.011 | T152: 0.044 | U152: 0.023 | V152: 0 | W152: 0.131 | X152: 0.005 | Y152: 0.008 | Z152: 0.025 | AA152: 0 | AB152: 0.017 | AC152: 0.021 | AD152: 0.016 | AE152: 0 | AF152: 0.041 | AG152: 0 | AH152: 0.06 | AI152: 0.018 | AJ152: 0.009 | AK152: 0.043 | AL152: 0 | AM152: 0.041 | AN152: 0.006 | AO152: 0 | AP152: 0 | AQ152: 0.016 | AR152: 0.004 | AS152: 0 | AT152: 0.031 | AU152: 0.014 | AV152: 0.01 | AW152: 0 | AX152: 0 | AY152: 0.053 | AZ152: 0 | BA152: 0.105 | BB152: 0.031 | BC152: 0.006 | BD152: 0.035 | BE152: 0.184 | BF152: 0 | BG152: 0.038 | BH152: 0 | BI152: 0.076 | BJ152: 0 | BK152: 0.005 | BL152: 0 | BM152: 0.03 | BN152: 0 | BO152: 0.008 | BP152: 0 | BQ152: 0 | BR152: 0.022 | BS152: 0 | BT152: 0 | BU152: 0.033 | BV152: 0 | BW152: 0 | BX152: 0.023 | BY152: 0 | BZ152: 0.009 | CA152: 0.024 | CB152: 0.01 | CC152: 0.005 | CD152: 0 | CE152: 0.018 | CF152: 0.037 | CG152: 0 | CH152: 0 | CI152: 0.024 | CJ152: 0.046 | CK152: 0.008 | CL152: 0.012 | CM152: 0.023 | CN152: 0.008 | CO152: 0.007 | CP152: 0.039 | CQ152: 0.077 | CR152: 0.058 | CS152: 0.008 | CT152: 0 | CU152: 0 | CV152: 0 | CW152: 0 | CX152: 0.008 | CY152: 0 | CZ152: 0 | DA152: 0.007 | DB152: 0.009 | DC152: 0 | DD152: 0.028 | DE152: 0.01 | DF152: 0 | DG152: 0.004 | DH152: 0.018 | DI152: 0 | DJ152: 0 | DK152: 0 | DL152: 0 | DM152: 0.007 | DN152: 0.01 | DO152: 0.11 | DP152: 0.01 | DQ152: 0 | DR152: 0 | DS152: 0 | DT152: 0 | DU152: 0.006 | DV152: 0.003 | DW152: 0.004 | DX152: 0 | DY152: 0.005 | DZ152: 0.006
A153: Glycerides | B153: TG(52:7) | C153: 9 | D153: 33 | E153: 9 | F153: 11 | G153: 4 | H153: 5 | I153: 8 | J153: 7 | K153: 86 | L153: 73.5 | N153: 0 | O153: 0.004 | P153: 0 | Q153: 0 | R153: 0 | S153: 0 | T153: 0 | U153: 0.037 | V153: 0 | W153: 0 | X153: 0 | Y153: 0 | Z153: 0 | AA153: 0 | AB153: 0 | AC153: 0 | AD153: 0 | AE153: 0 | AF153: 0 | AG153: 0.018 | AH153: 0 | AI153: 0 | AJ153: 0 | AK153: 0 | AL153: 0 | AM153: 0 | AN153: 0 | AO153: 0 | AP153: 0 | AQ153: 0 | AR153: 0 | AS153: 0 | AT153: 0 | AU153: 0 | AV153: 0 | AW153: 0 | AX153: 0 | AY153: 0 | AZ153: 0 | BA153: 0 | BB153: 0.005 | BC153: 0 | BD153: 0 | BE153: 0.016 | BF153: 0 | BG153: 0 | BH153: 0 | BI153: 0.143 | BJ153: 0.098 | BK153: 0 | BL153: 0 | BM153: 0 | BN153: 0 | BO153: 0 | BP153: 0 | BQ153: 0.01 | BR153: 0 | BS153: 0 | BT153: 0 | BU153: 0 | BV153: 0 | BW153: 0.119 | BX153: 0 | BY153: 0.005 | BZ153: 0 | CA153: 0 | CB153: 0.037 | CC153: 0 | CD153: 0 | CE153: 0 | CF153: 0 | CG153: 0 | CH153: 0 | CI153: 0.026 | CJ153: 0.003 | CK153: 0 | CL153: 0.005 | CM153: 0.024 | CN153: 0.016 | CO153: 0 | CP153: 0.051 | CQ153: 0 | CR153: 0 | CS153: 0.004 | CT153: 0 | CU153: 0.004 | CV153: 0.005 | CW153: 0.007 | CX153: 0 | CY153: 0 | CZ153: 0.005 | DA153: 0 | DB153: 0.008 | DC153: 0 | DD153: 0 | DE153: 0 | DF153: 0.005 | DG153: 0.004 | DH153: 0 | DI153: 0 | DJ153: 0 | DK153: 0 | DL153: 0 | DM153: 0 | DN153: 0.006 | DO153: 0 | DP153: 0 | DQ153: 0 | DR153: 0.006 | DS153: 0 | DT153: 0 | DU153: 0 | DV153: 0 | DW153: 0.006 | DX153: 0.002 | DY153: 0.027 | DZ153: 0.014
A154: Glycerides | B154: TG(53:3) | C154: 0 | D154: 14 | E154: 5 | F154: 0 | G154: 0 | H154: 0 | I154: 0 | J154: 0 | K154: 19 | L154: 16.2 | N154: 0.005 | O154: 0.057 | P154: 0.997 | Q154: 0.416 | R154: 0.221 | S154: 1.12 | T154: 0.36 | U154: 1.12 | V154: 0.041 | W154: 0.425 | X154: 0.327 | Y154: 0.006 | Z154: 0 | AA154: 0 | AB154: 0 | AC154: 0.006 | AD154: 0.007 | AE154: 0 | AF154: 0.007 | AG154: 0 | AH154: 0.019 | AI154: 0 | AJ154: 0 | AK154: 0 | AL154: 0 | AM154: 0 | AN154: 0.01 | AO154: 0.013 | AP154: 0 | AQ154: 0.013 | AR154: 0 | AS154: 0 | AT154: 0.018 | AU154: 0.009 | AV154: 0.004 | AW154: 0 | AX154: 0.01 | AY154: 0.005 | AZ154: 0.005 | BA154: 0.316 | BB154: 0.828 | BC154: 1.05 | BD154: 1.66 | BE154: 0.053 | BF154: 0.463 | BG154: 0.379 | BH154: 0.409 | BI154: 1.16 | BJ154: 0.044 | BK154: 0.005 | BL154: 0.006 | BM154: 0 | BN154: 0.022 | BO154: 0.006 | BP154: 0 | BQ154: 0 | BR154: 0 | BS154: 0 | BT154: 0.008 | BU154: 0.005 | BV154: 1.04 | BW154: 0.519 | BX154: 0.855 | BY154: 0.468 | BZ154: 0.47 | CA154: 0.611 | CB154: 0.064 | CC154: 0.061 | CD154: 0.133 | CE154: 1.83 | CF154: 0.108 | CG154: 0.032 | CH154: 0.075 | CI154: 1.17 | CJ154: 0.019 | CK154: 0.48 | CL154: 1.17 | CM154: 0.209 | CN154: 1.23 | CO154: 0.403 | CP154: 0.211 | CQ154: 0.049 | CR154: 0.159 | CS154: 0.078 | CT154: 0.984 | CU154: 0.013 | CV154: 0.127 | CW154: 0.744 | CX154: 0.192 | CY154: 0.024 | CZ154: 0.654 | DA154: 0.686 | DB154: 0.842 | DC154: 1.73 | DD154: 0.345 | DE154: 0.882 | DF154: 0.018 | DG154: 0.116 | DH154: 0.176 | DI154: 0.263 | DJ154: 0.342 | DK154: 0.301 | DL154: 0.007 | DM154: 0.008 | DN154: 0.278 | DO154: 0.193 | DP154: 0.22 | DQ154: 0.006 | DR154: 0.21 | DS154: 0.009 | DT154: 0.084 | DU154: 0.006 | DV154: 0.004 | DW154: 0.063 | DX154: 0.03 | DY154: 0.006 | DZ154: 0.006
A155: Glycerides | B155: TG(53:4) | C155: 0 | D155: 4 | E155: 2 | F155: 0 | G155: 0 | H155: 0 | I155: 0 | J155: 0 | K155: 6 | L155: 5.1 | N155: 0.057 | O155: 0.041 | P155: 0.398 | Q155: 0.142 | R155: 0.129 | S155: 0.314 | T155: 0.142 | U155: 0.539 | V155: 0.533 | W155: 0.153 | X155: 0.1 | Y155: 0.029 | Z155: 0.042 | AA155: 0.048 | AB155: 0.032 | AC155: 0.013 | AD155: 0.006 | AE155: 0.036 | AF155: 0.009 | AG155: 0.012 | AH155: 0.061 | AI155: 0.016 | AJ155: 0 | AK155: 0 | AL155: 0.035 | AM155: 0 | AN155: 0.037 | AO155: 0.017 | AP155: 0.059 | AQ155: 0.028 | AR155: 0.028 | AS155: 0 | AT155: 0.011 | AU155: 0.105 | AV155: 0.03 | AW155: 0.024 | AX155: 0.009 | AY155: 0.01 | AZ155: 0.014 | BA155: 0.165 | BB155: 0.306 | BC155: 0.372 | BD155: 0.202 | BE155: 0.606 | BF155: 0.223 | BG155: 0.113 | BH155: 0.135 | BI155: 0.476 | BJ155: 0.659 | BK155: 0.045 | BL155: 0 | BM155: 0.023 | BN155: 0.103 | BO155: 0.012 | BP155: 0.117 | BQ155: 0.075 | BR155: 0.036 | BS155: 0.052 | BT155: 0 | BU155: 0.01 | BV155: 0.402 | BW155: 0.186 | BX155: 0.263 | BY155: 0.155 | BZ155: 0.196 | CA155: 0.243 | CB155: 0.036 | CC155: 0.07 | CD155: 0.068 | CE155: 0.658 | CF155: 0.069 | CG155: 0.023 | CH155: 0.059 | CI155: 0.42 | CJ155: 0.028 | CK155: 0.181 | CL155: 0.4 | CM155: 0.134 | CN155: 0.414 | CO155: 0.203 | CP155: 0.083 | CQ155: 0.098 | CR155: 0.1 | CS155: 0.088 | CT155: 0.392 | CU155: 0.023 | CV155: 0.057 | CW155: 0.192 | CX155: 0.072 | CY155: 0.058 | CZ155: 0.293 | DA155: 0.25 | DB155: 0.358 | DC155: 0.608 | DD155: 0.138 | DE155: 0.123 | DF155: 0.006 | DG155: 0.064 | DH155: 0.063 | DI155: 0.116 | DJ155: 0.118 | DK155: 0.113 | DL155: 0.01 | DM155: 0.007 | DN155: 0.095 | DO155: 0.077 | DP155: 0.076 | DQ155: 0.007 | DR155: 0.105 | DS155: 0.013 | DT155: 0.044 | DU155: 0.007 | DV155: 0.023 | DW155: 0.017 | DX155: 0.005 | DY155: 0.008 | DZ155: 0.005
A156: Glycerides | B156: TG(53:5) | C156: 2 | D156: 21 | E156: 4 | F156: 6 | G156: 5 | H156: 6 | I156: 5 | J156: 9 | K156: 58 | L156: 49.6 | N156: 0.074 | O156: 0.032 | P156: 0.075 | Q156: 0.084 | R156: 0.051 | S156: 0 | T156: 0.064 | U156: 0.146 | V156: 0.152 | W156: 0.112 | X156: 0 | Y156: 0 | Z156: 0.026 | AA156: 0 | AB156: 0 | AC156: 0 | AD156: 0 | AE156: 0.012 | AF156: 0.006 | AG156: 0.094 | AH156: 0 | AI156: 0 | AJ156: 0 | AK156: 0 | AL156: 0 | AM156: 0 | AN156: 0.012 | AO156: 0.018 | AP156: 0 | AQ156: 0.037 | AR156: 0.006 | AS156: 0 | AT156: 0.118 | AU156: 0.009 | AV156: 0.01 | AW156: 0 | AX156: 0 | AY156: 0 | AZ156: 0.009 | BA156: 0.093 | BB156: 0.143 | BC156: 0 | BD156: 0 | BE156: 0.052 | BF156: 0.051 | BG156: 0 | BH156: 0 | BI156: 0 | BJ156: 0.403 | BK156: 0.006 | BL156: 0.008 | BM156: 0 | BN156: 0 | BO156: 0.008 | BP156: 0 | BQ156: 0.013 | BR156: 0.01 | BS156: 0 | BT156: 0.01 | BU156: 0.02 | BV156: 0 | BW156: 0 | BX156: 0 | BY156: 0.049 | BZ156: 0 | CA156: 0.187 | CB156: 0.061 | CC156: 0.054 | CD156: 0.05 | CE156: 0 | CF156: 0.004 | CG156: 0.041 | CH156: 0 | CI156: 0.042 | CJ156: 0 | CK156: 0.071 | CL156: 0 | CM156: 0.072 | CN156: 0 | CO156: 0.108 | CP156: 0.047 | CQ156: 0 | CR156: 0.064 | CS156: 0 | CT156: 0.257 | CU156: 0.011 | CV156: 0 | CW156: 0 | CX156: 0.05 | CY156: 0 | CZ156: 0 | DA156: 0.128 | DB156: 0 | DC156: 0 | DD156: 0.048 | DE156: 0.099 | DF156: 0 | DG156: 0 | DH156: 0 | DI156: 0.045 | DJ156: 0.063 | DK156: 0.022 | DL156: 0 | DM156: 0 | DN156: 0.039 | DO156: 0.05 | DP156: 0.062 | DQ156: 0.005 | DR156: 0 | DS156: 0 | DT156: 0 | DU156: 0 | DV156: 0 | DW156: 0 | DX156: 0 | DY156: 0 | DZ156: 0
A157: Glycerides | B157: TG(53:6) | C157: 1 | D157: 18 | E157: 8 | F157: 0 | G157: 1 | H157: 0 | I157: 0 | J157: 1 | K157: 29 | L157: 24.8 | N157: 0.009 | O157: 0.005 | P157: 0.008 | Q157: 0.007 | R157: 0.006 | S157: 0.008 | T157: 0.005 | U157: 0.007 | V157: 0 | W157: 0.008 | X157: 0.008 | Y157: 0.008 | Z157: 0.014 | AA157: 0 | AB157: 0.031 | AC157: 0 | AD157: 0 | AE157: 0 | AF157: 0 | AG157: 0.007 | AH157: 0 | AI157: 0 | AJ157: 0 | AK157: 0 | AL157: 0 | AM157: 0 | AN157: 0 | AO157: 0 | AP157: 0.007 | AQ157: 0.01 | AR157: 0 | AS157: 0.027 | AT157: 0.016 | AU157: 0.015 | AV157: 0 | AW157: 0 | AX157: 0 | AY157: 0.007 | AZ157: 0 | BA157: 0.006 | BB157: 0.007 | BC157: 0.009 | BD157: 0.012 | BE157: 0.016 | BF157: 0.007 | BG157: 0.012 | BH157: 0.006 | BI157: 0.014 | BJ157: 0.025 | BK157: 0 | BL157: 0 | BM157: 0 | BN157: 0.014 | BO157: 0 | BP157: 0.008 | BQ157: 0 | BR157: 0 | BS157: 0 | BT157: 0 | BU157: 0.006 | BV157: 0.014 | BW157: 0.007 | BX157: 0.008 | BY157: 0.007 | BZ157: 0.01 | CA157: 0.008 | CB157: 0.006 | CC157: 0.021 | CD157: 0.005 | CE157: 0.024 | CF157: 0.008 | CG157: 0.006 | CH157: 0.01 | CI157: 0.009 | CJ157: 0.005 | CK157: 0.008 | CL157: 0.014 | CM157: 0 | CN157: 0.008 | CO157: 0.01 | CP157: 0.009 | CQ157: 0.006 | CR157: 0.007 | CS157: 0.006 | CT157: 0.009 | CU157: 0.006 | CV157: 0.008 | CW157: 0.016 | CX157: 0.007 | CY157: 0.006 | CZ157: 0.008 | DA157: 0.007 | DB157: 0.011 | DC157: 0.018 | DD157: 0.007 | DE157: 0.006 | DF157: 0.005 | DG157: 0.01 | DH157: 0.006 | DI157: 0.006 | DJ157: 0.007 | DK157: 0.007 | DL157: 0.004 | DM157: 0.008 | DN157: 0.008 | DO157: 0.009 | DP157: 0.006 | DQ157: 0.006 | DR157: 0.008 | DS157: 0.008 | DT157: 0.009 | DU157: 0 | DV157: 0.006 | DW157: 0.006 | DX157: 0.005 | DY157: 0.006 | DZ157: 0.004
A158: Glycerides | B158: TG(54:2) | C158: 0 | D158: 0 | E158: 0 | F158: 0 | G158: 0 | H158: 0 | I158: 0 | J158: 0 | K158: 0 | L158: 0.0 | N158: 1.5 | O158: 0.104 | P158: 1.2 | Q158: 0.607 | R158: 0.314 | S158: 0.968 | T158: 0.371 | U158: 0.945 | V158: 1.61 | W158: 0.724 | X158: 0.506 | Y158: 0.062 | Z158: 0.04 | AA158: 0.012 | AB158: 0.043 | AC158: 0.054 | AD158: 0.056 | AE158: 0.025 | AF158: 0.041 | AG158: 0.019 | AH158: 0.983 | AI158: 0.031 | AJ158: 0.044 | AK158: 0.004 | AL158: 0.025 | AM158: 0.029 | AN158: 0.042 | AO158: 0.028 | AP158: 0.033 | AQ158: 0.023 | AR158: 0.048 | AS158: 0.019 | AT158: 0.055 | AU158: 0.043 | AV158: 0.051 | AW158: 0.021 | AX158: 0.043 | AY158: 0.007 | AZ158: 0.031 | BA158: 0.35 | BB158: 0.802 | BC158: 1 | BD158: 1.34 | BE158: 2 | BF158: 0.684 | BG158: 0.381 | BH158: 0.644 | BI158: 1.06 | BJ158: 1.92 | BK158: 0.05 | BL158: 0.037 | BM158: 0.03 | BN158: 0.063 | BO158: 0.026 | BP158: 0.047 | BQ158: 0.057 | BR158: 0.024 | BS158: 0.037 | BT158: 0.635 | BU158: 0.052 | BV158: 0.981 | BW158: 0.509 | BX158: 0.734 | BY158: 0.45 | BZ158: 0.372 | CA158: 0.554 | CB158: 0.113 | CC158: 0.111 | CD158: 0.182 | CE158: 1.4 | CF158: 0.242 | CG158: 0.051 | CH158: 0.174 | CI158: 1.06 | CJ158: 0.083 | CK158: 0.554 | CL158: 0.934 | CM158: 0.257 | CN158: 1.06 | CO158: 0.449 | CP158: 0.259 | CQ158: 0.103 | CR158: 0.352 | CS158: 0.114 | CT158: 0.91 | CU158: 0.066 | CV158: 0.231 | CW158: 0.742 | CX158: 0.286 | CY158: 0.086 | CZ158: 0.747 | DA158: 0.601 | DB158: 0.768 | DC158: 1.4 | DD158: 0.518 | DE158: 1 | DF158: 0.08 | DG158: 0.19 | DH158: 0.163 | DI158: 0.336 | DJ158: 0.447 | DK158: 0.446 | DL158: 0.033 | DM158: 0.023 | DN158: 0.384 | DO158: 0.306 | DP158: 0.416 | DQ158: 0.019 | DR158: 0.386 | DS158: 0.091 | DT158: 0.221 | DU158: 0.048 | DV158: 0.019 | DW158: 0.097 | DX158: 0.089 | DY158: 0.047 | DZ158: 0.016
A159: Glycerides | B159: TG(54:3) | C159: 0 | D159: 5 | E159: 0 | F159: 0 | G159: 0 | H159: 0 | I159: 0 | J159: 0 | K159: 5 | L159: 4.3 | N159: 0.428 | O159: 0.07 | P159: 1.89 | Q159: 0.754 | R159: 0.432 | S159: 0.861 | T159: 0.33 | U159: 0.931 | V159: 1.78 | W159: 1.7 | X159: 0.29 | Y159: 0.041 | Z159: 0 | AA159: 0 | AB159: 0.098 | AC159: 0.055 | AD159: 0.127 | AE159: 0.023 | AF159: 0.039 | AG159: 0 | AH159: 0.254 | AI159: 0.025 | AJ159: 0.059 | AK159: 0 | AL159: 0.063 | AM159: 0.021 | AN159: 0.011 | AO159: 0.011 | AP159: 0.018 | AQ159: 0.079 | AR159: 0.039 | AS159: 0.041 | AT159: 0.015 | AU159: 0.039 | AV159: 0.053 | AW159: 0.057 | AX159: 0.047 | AY159: 0 | AZ159: 0.023 | BA159: 0.695 | BB159: 0.619 | BC159: 0.792 | BD159: 1.31 | BE159: 1.97 | BF159: 0.462 | BG159: 0.445 | BH159: 0.437 | BI159: 0.987 | BJ159: 0.493 | BK159: 0.084 | BL159: 0.067 | BM159: 0.04 | BN159: 0.091 | BO159: 0.041 | BP159: 0.082 | BQ159: 0.019 | BR159: 0.038 | BS159: 0.035 | BT159: 0.041 | BU159: 0.054 | BV159: 0.819 | BW159: 0.435 | BX159: 0.708 | BY159: 0.42 | BZ159: 0.42 | CA159: 0.56 | CB159: 0.131 | CC159: 0.061 | CD159: 0.125 | CE159: 1.33 | CF159: 0.256 | CG159: 0.052 | CH159: 0.166 | CI159: 0.966 | CJ159: 0.097 | CK159: 0.442 | CL159: 0.971 | CM159: 0.33 | CN159: 0.969 | CO159: 0.417 | CP159: 0.476 | CQ159: 0.262 | CR159: 0.533 | CS159: 0.092 | CT159: 0.873 | CU159: 0.044 | CV159: 0.114 | CW159: 0.665 | CX159: 0.169 | CY159: 0.052 | CZ159: 0.555 | DA159: 0.56 | DB159: 0.677 | DC159: 1.24 | DD159: 0.576 | DE159: 0.761 | DF159: 0.042 | DG159: 0.11 | DH159: 0.603 | DI159: 0.212 | DJ159: 0.306 | DK159: 0.3 | DL159: 0.032 | DM159: 0.026 | DN159: 0.269 | DO159: 0.165 | DP159: 0.534 | DQ159: 0.031 | DR159: 0.175 | DS159: 0.062 | DT159: 0.17 | DU159: 0.062 | DV159: 0.023 | DW159: 0.054 | DX159: 0.043 | DY159: 0.032 | DZ159: 0.026
A160: Glycerides | B160: TG(54:4) | C160: 0 | D160: 0 | E160: 0 | F160: 0 | G160: 0 | H160: 0 | I160: 0 | J160: 0 | K160: 0 | L160: 0.0 | N160: 0.531 | O160: 0.054 | P160: 2.16 | Q160: 0.902 | R160: 0.358 | S160: 0.555 | T160: 0.291 | U160: 0.528 | V160: 1.23 | W160: 2.24 | X160: 0.119 | Y160: 0.09 | Z160: 0.11 | AA160: 0.091 | AB160: 0.132 | AC160: 0.145 | AD160: 0.172 | AE160: 0.122 | AF160: 0.103 | AG160: 0.135 | AH160: 0.384 | AI160: 0.131 | AJ160: 0.099 | AK160: 0.064 | AL160: 0.09 | AM160: 0.123 | AN160: 0.121 | AO160: 0.136 | AP160: 0.096 | AQ160: 0.107 | AR160: 0.092 | AS160: 0.124 | AT160: 0.041 | AU160: 0.109 | AV160: 0.092 | AW160: 0.087 | AX160: 0.098 | AY160: 0.107 | AZ160: 0.06 | BA160: 0.931 | BB160: 0.481 | BC160: 0.426 | BD160: 0.709 | BE160: 2.39 | BF160: 0.166 | BG160: 0.727 | BH160: 0.173 | BI160: 1.28 | BJ160: 0.396 | BK160: 0.147 | BL160: 0.137 | BM160: 0.103 | BN160: 0.134 | BO160: 0.157 | BP160: 0.13 | BQ160: 0.104 | BR160: 0.127 | BS160: 0.098 | BT160: 0.119 | BU160: 0.061 | BV160: 0.572 | BW160: 0.201 | BX160: 0.296 | BY160: 0.162 | BZ160: 0.191 | CA160: 0.418 | CB160: 0.226 | CC160: 0.093 | CD160: 0.073 | CE160: 0.858 | CF160: 0.576 | CG160: 0.063 | CH160: 0.211 | CI160: 0.598 | CJ160: 0.139 | CK160: 0.24 | CL160: 0.747 | CM160: 0.204 | CN160: 0.523 | CO160: 0.21 | CP160: 0.598 | CQ160: 0.246 | CR160: 0.657 | CS160: 0.097 | CT160: 0.391 | CU160: 0.053 | CV160: 0.131 | CW160: 0.348 | CX160: 0.116 | CY160: 0.088 | CZ160: 0.252 | DA160: 0.26 | DB160: 0.298 | DC160: 0.798 | DD160: 0.468 | DE160: 0.417 | DF160: 0.044 | DG160: 0.069 | DH160: 0.318 | DI160: 0.126 | DJ160: 0.162 | DK160: 0.16 | DL160: 0.05 | DM160: 0.06 | DN160: 0.721 | DO160: 0.107 | DP160: 0.435 | DQ160: 0.06 | DR160: 0.139 | DS160: 0.086 | DT160: 0.223 | DU160: 0.111 | DV160: 0.058 | DW160: 0.058 | DX160: 0.058 | DY160: 0.059 | DZ160: 0.045
A161: Glycerides | B161: TG(54:5) | C161: 0 | D161: 13 | E161: 2 | F161: 0 | G161: 0 | H161: 0 | I161: 0 | J161: 0 | K161: 15 | L161: 12.8 | N161: 0.502 | O161: 0.126 | P161: 1.8 | Q161: 0.789 | R161: 0.21 | S161: 0.1 | T161: 0.193 | U161: 0.086 | V161: 1.17 | W161: 1.78 | X161: 0.016 | Y161: 0 | Z161: 0 | AA161: 0.038 | AB161: 0.074 | AC161: 0.064 | AD161: 0.098 | AE161: 0.01 | AF161: 0 | AG161: 0 | AH161: 0.276 | AI161: 0.014 | AJ161: 0 | AK161: 0.007 | AL161: 0.024 | AM161: 0.027 | AN161: 0 | AO161: 0.016 | AP161: 0.005 | AQ161: 0.009 | AR161: 0 | AS161: 0 | AT161: 0.007 | AU161: 0 | AV161: 0.085 | AW161: 0 | AX161: 0 | AY161: 0 | AZ161: 0 | BA161: 0.832 | BB161: 0.545 | BC161: 0.023 | BD161: 0.598 | BE161: 2.03 | BF161: 0.015 | BG161: 0.61 | BH161: 0.042 | BI161: 1.02 | BJ161: 0.272 | BK161: 0.074 | BL161: 0.019 | BM161: 0.028 | BN161: 0.067 | BO161: 0.045 | BP161: 0.118 | BQ161: 0 | BR161: 0 | BS161: 0.007 | BT161: 0.009 | BU161: 0.034 | BV161: 0.031 | BW161: 0.073 | BX161: 0.012 | BY161: 0.081 | BZ161: 0.051 | CA161: 0.15 | CB161: 0.158 | CC161: 0.028 | CD161: 0.008 | CE161: 0.134 | CF161: 0.486 | CG161: 0.013 | CH161: 0.143 | CI161: 0.307 | CJ161: 0.077 | CK161: 0.028 | CL161: 0.021 | CM161: 0.094 | CN161: 0.054 | CO161: 0.22 | CP161: 0.48 | CQ161: 0.149 | CR161: 0.592 | CS161: 0.069 | CT161: 0.027 | CU161: 0.02 | CV161: 0.008 | CW161: 0.044 | CX161: 0.009 | CY161: 0.053 | CZ161: 0.024 | DA161: 0.068 | DB161: 0.028 | DC161: 0.03 | DD161: 0.359 | DE161: 0.111 | DF161: 0.009 | DG161: 0.008 | DH161: 0.197 | DI161: 0.011 | DJ161: 0.011 | DK161: 0.009 | DL161: 0.02 | DM161: 0.023 | DN161: 0.53 | DO161: 0.027 | DP161: 0.261 | DQ161: 0.008 | DR161: 0.053 | DS161: 0.103 | DT161: 0.201 | DU161: 0.082 | DV161: 0.007 | DW161: 0.006 | DX161: 0.064 | DY161: 0.008 | DZ161: 0.007
A162: Glycerides | B162: TG(54:6) | C162: 0 | D162: 2 | E162: 0 | F162: 0 | G162: 0 | H162: 0 | I162: 0 | J162: 0 | K162: 2 | L162: 1.7 | N162: 0.431 | O162: 0.106 | P162: 1.14 | Q162: 0.44 | R162: 0.101 | S162: 0.138 | T162: 0.262 | U162: 0.172 | V162: 0.445 | W162: 0.917 | X162: 0.01 | Y162: 0.024 | Z162: 0.028 | AA162: 0.033 | AB162: 0.063 | AC162: 0.058 | AD162: 0.074 | AE162: 0.03 | AF162: 0.058 | AG162: 0.057 | AH162: 0.242 | AI162: 0.052 | AJ162: 0.022 | AK162: 0 | AL162: 0.048 | AM162: 0.071 | AN162: 0.063 | AO162: 0.054 | AP162: 0.049 | AQ162: 0.067 | AR162: 0.021 | AS162: 0.039 | AT162: 0.013 | AU162: 0.029 | AV162: 0.057 | AW162: 0 | AX162: 0.063 | AY162: 0.034 | AZ162: 0.035 | BA162: 0.557 | BB162: 0.334 | BC162: 0.01 | BD162: 0.429 | BE162: 1.31 | BF162: 0.009 | BG162: 0.421 | BH162: 0.011 | BI162: 0.619 | BJ162: 0.131 | BK162: 0.062 | BL162: 0.068 | BM162: 0.026 | BN162: 0.036 | BO162: 0.069 | BP162: 0.114 | BQ162: 0.042 | BR162: 0.047 | BS162: 0.029 | BT162: 0.017 | BU162: 0.025 | BV162: 0.037 | BW162: 0.049 | BX162: 0.024 | BY162: 0.006 | BZ162: 0.025 | CA162: 0.087 | CB162: 0.086 | CC162: 0.02 | CD162: 0.006 | CE162: 0.075 | CF162: 0.199 | CG162: 0.013 | CH162: 0.092 | CI162: 0.16 | CJ162: 0.057 | CK162: 0.014 | CL162: 0.026 | CM162: 0.086 | CN162: 0.013 | CO162: 0.027 | CP162: 0.248 | CQ162: 0.05 | CR162: 0.385 | CS162: 0.037 | CT162: 0.088 | CU162: 0.041 | CV162: 0.063 | CW162: 0.129 | CX162: 0.008 | CY162: 0.049 | CZ162: 0.008 | DA162: 0.007 | DB162: 0.008 | DC162: 0.017 | DD162: 0.197 | DE162: 0.009 | DF162: 0.007 | DG162: 0.008 | DH162: 0.21 | DI162: 0.009 | DJ162: 0.009 | DK162: 0.007 | DL162: 0.005 | DM162: 0.048 | DN162: 0.297 | DO162: 0.02 | DP162: 0.129 | DQ162: 0.027 | DR162: 0.023 | DS162: 0.075 | DT162: 0.108 | DU162: 0.063 | DV162: 0.085 | DW162: 0.004 | DX162: 0.014 | DY162: 0.01 | DZ162: 0.007
A163: Glycerides | B163: TG(54:7) | C163: 0 | D163: 8 | E163: 4 | F163: 3 | G163: 1 | H163: 3 | I163: 1 | J163: 1 | K163: 21 | L163: 17.9 | N163: 0.115 | O163: 0.09 | P163: 0.225 | Q163: 0.102 | R163: 0.077 | S163: 0.009 | T163: 0.068 | U163: 0.041 | V163: 0.059 | W163: 0.221 | X163: 0.003 | Y163: 0.011 | Z163: 0 | AA163: 0.041 | AB163: 0.036 | AC163: 0.045 | AD163: 0 | AE163: 0.01 | AF163: 0.043 | AG163: 0.013 | AH163: 0.051 | AI163: 0.033 | AJ163: 0.058 | AK163: 0.005 | AL163: 0.032 | AM163: 0.01 | AN163: 0 | AO163: 0.019 | AP163: 0.031 | AQ163: 0.011 | AR163: 0.028 | AS163: 0.038 | AT163: 0.008 | AU163: 0 | AV163: 0.043 | AW163: 0.005 | AX163: 0.011 | AY163: 0 | AZ163: 0 | BA163: 0.149 | BB163: 0.103 | BC163: 0 | BD163: 0.116 | BE163: 0.357 | BF163: 0.005 | BG163: 0.113 | BH163: 0.013 | BI163: 0.117 | BJ163: 0 | BK163: 0.038 | BL163: 0 | BM163: 0 | BN163: 0.007 | BO163: 0.006 | BP163: 0.04 | BQ163: 0.043 | BR163: 0 | BS163: 0.038 | BT163: 0 | BU163: 0.072 | BV163: 0 | BW163: 0.026 | BX163: 0.008 | BY163: 0.008 | BZ163: 0.012 | CA163: 0.015 | CB163: 0.06 | CC163: 0.038 | CD163: 0.019 | CE163: 0 | CF163: 0 | CG163: 0.111 | CH163: 0.058 | CI163: 0.071 | CJ163: 0.089 | CK163: 0.008 | CL163: 0.01 | CM163: 0.035 | CN163: 0.016 | CO163: 0 | CP163: 0.074 | CQ163: 0.071 | CR163: 0.115 | CS163: 0.066 | CT163: 0 | CU163: 0.085 | CV163: 0.056 | CW163: 0.014 | CX163: 0.005 | CY163: 0.084 | CZ163: 0 | DA163: 0 | DB163: 0.019 | DC163: 0.01 | DD163: 0.122 | DE163: 0 | DF163: 0.118 | DG163: 0.036 | DH163: 0.066 | DI163: 0.005 | DJ163: 0.004 | DK163: 0.003 | DL163: 0.071 | DM163: 0.065 | DN163: 0.067 | DO163: 0.008 | DP163: 0.037 | DQ163: 0.086 | DR163: 0 | DS163: 0.094 | DT163: 0.061 | DU163: 0.069 | DV163: 0.075 | DW163: 0.066 | DX163: 0.055 | DY163: 0.072 | DZ163: 0.093
A164: Glycerides | B164: TG(55:6) | C164: 2 | D164: 23 | E164: 1 | F164: 0 | G164: 2 | H164: 3 | I164: 3 | J164: 3 | K164: 37 | L164: 31.6 | N164: 0.009 | O164: 0 | P164: 0.054 | Q164: 0 | R164: 0.004 | S164: 0.007 | T164: 0.01 | U164: 0.01 | V164: 0.019 | W164: 0.048 | X164: 0.007 | Y164: 0 | Z164: 0 | AA164: 0.099 | AB164: 0 | AC164: 0.049 | AD164: 0 | AE164: 0 | AF164: 0 | AG164: 0 | AH164: 0 | AI164: 0.052 | AJ164: 0 | AK164: 0 | AL164: 0 | AM164: 0.045 | AN164: 0 | AO164: 0 | AP164: 0.031 | AQ164: 0.073 | AR164: 0 | AS164: 0 | AT164: 0 | AU164: 0.044 | AV164: 0 | AW164: 0 | AX164: 0 | AY164: 0 | AZ164: 0 | BA164: 0.006 | BB164: 0.007 | BC164: 0.007 | BD164: 0 | BE164: 0.018 | BF164: 0.007 | BG164: 0.008 | BH164: 0.007 | BI164: 0.006 | BJ164: 0 | BK164: 0.056 | BL164: 0.052 | BM164: 0.032 | BN164: 0 | BO164: 0.058 | BP164: 0.045 | BQ164: 0.004 | BR164: 0.07 | BS164: 0.007 | BT164: 0.067 | BU164: 0.006 | BV164: 0.01 | BW164: 0.007 | BX164: 0.04 | BY164: 0.007 | BZ164: 0.011 | CA164: 0.007 | CB164: 0.007 | CC164: 0.037 | CD164: 0.012 | CE164: 0.013 | CF164: 0.027 | CG164: 0.024 | CH164: 0.007 | CI164: 0.008 | CJ164: 0.027 | CK164: 0.006 | CL164: 0 | CM164: 0.008 | CN164: 0 | CO164: 0.007 | CP164: 0.07 | CQ164: 0.014 | CR164: 0.01 | CS164: 0.025 | CT164: 0 | CU164: 0.009 | CV164: 0.006 | CW164: 0.013 | CX164: 0 | CY164: 0 | CZ164: 0.01 | DA164: 0.007 | DB164: 0.009 | DC164: 0.02 | DD164: 0.008 | DE164: 0 | DF164: 0 | DG164: 0.008 | DH164: 0.038 | DI164: 0 | DJ164: 0.006 | DK164: 0.006 | DL164: 0.004 | DM164: 0.006 | DN164: 0.011 | DO164: 0.013 | DP164: 0.007 | DQ164: 0.008 | DR164: 0 | DS164: 0.005 | DT164: 0 | DU164: 0.025 | DV164: 0.004 | DW164: 0.017 | DX164: 0.005 | DY164: 0.008 | DZ164: 0
A165: Glycerides | B165: TG(55:7) | C165: 3 | D165: 18 | E165: 8 | F165: 2 | G165: 0 | H165: 6 | I165: 4 | J165: 4 | K165: 45 | L165: 38.5 | N165: 0 | O165: 0.005 | P165: 0.01 | Q165: 0.01 | R165: 0.003 | S165: 0 | T165: 0 | U165: 0.009 | V165: 0.014 | W165: 0.009 | X165: 0.01 | Y165: 0 | Z165: 0 | AA165: 0 | AB165: 0 | AC165: 0.017 | AD165: 0 | AE165: 0.012 | AF165: 0 | AG165: 0 | AH165: 0.02 | AI165: 0 | AJ165: 0.008 | AK165: 0 | AL165: 0.007 | AM165: 0 | AN165: 0.005 | AO165: 0 | AP165: 0 | AQ165: 0.009 | AR165: 0 | AS165: 0.007 | AT165: 0 | AU165: 0 | AV165: 0 | AW165: 0 | AX165: 0.01 | AY165: 0.006 | AZ165: 0 | BA165: 0.007 | BB165: 0.007 | BC165: 0.007 | BD165: 0.014 | BE165: 0.015 | BF165: 0.006 | BG165: 0.009 | BH165: 0.007 | BI165: 0.009 | BJ165: 0.161 | BK165: 0.018 | BL165: 0 | BM165: 0 | BN165: 0 | BO165: 0.004 | BP165: 0 | BQ165: 0 | BR165: 0 | BS165: 0 | BT165: 0 | BU165: 0.006 | BV165: 0.011 | BW165: 0.009 | BX165: 0.011 | BY165: 0 | BZ165: 0.007 | CA165: 0.01 | CB165: 0.006 | CC165: 0.003 | CD165: 0 | CE165: 0.019 | CF165: 0.007 | CG165: 0.007 | CH165: 0.005 | CI165: 0.007 | CJ165: 0.006 | CK165: 0.007 | CL165: 0.008 | CM165: 0.007 | CN165: 0.008 | CO165: 0.006 | CP165: 0.006 | CQ165: 0.008 | CR165: 0.008 | CS165: 0.01 | CT165: 0 | CU165: 0.009 | CV165: 0 | CW165: 0 | CX165: 0.007 | CY165: 0.005 | CZ165: 0 | DA165: 0 | DB165: 0.01 | DC165: 0 | DD165: 0.006 | DE165: 0.01 | DF165: 0.005 | DG165: 0.004 | DH165: 0.01 | DI165: 0 | DJ165: 0.006 | DK165: 0 | DL165: 0 | DM165: 0 | DN165: 0.008 | DO165: 0.004 | DP165: 0.005 | DQ165: 0.004 | DR165: 0 | DS165: 0.089 | DT165: 0 | DU165: 0.005 | DV165: 0.059 | DW165: 0.014 | DX165: 0.004 | DY165: 0 | DZ165: 0
A166: Glycerides | B166: TG(55:8) | C166: 0 | D166: 18 | E166: 6 | F166: 1 | G166: 0 | H166: 0 | I166: 0 | J166: 0 | K166: 25 | L166: 21.4 | N166: 0.015 | O166: 0.005 | P166: 0.01 | Q166: 0.009 | R166: 0.004 | S166: 0.007 | T166: 0.006 | U166: 0.008 | V166: 0.016 | W166: 0.009 | X166: 0.006 | Y166: 0.009 | Z166: 0 | AA166: 0.009 | AB166: 0 | AC166: 0 | AD166: 0 | AE166: 0 | AF166: 0 | AG166: 0 | AH166: 0.018 | AI166: 0 | AJ166: 0.02 | AK166: 0 | AL166: 0.01 | AM166: 0.012 | AN166: 0.016 | AO166: 0 | AP166: 0.01 | AQ166: 0 | AR166: 0.005 | AS166: 0 | AT166: 0 | AU166: 0 | AV166: 0 | AW166: 0 | AX166: 0.034 | AY166: 0 | AZ166: 0 | BA166: 0.007 | BB166: 0.01 | BC166: 0.008 | BD166: 0.015 | BE166: 0.013 | BF166: 0.007 | BG166: 0.006 | BH166: 0.007 | BI166: 0.012 | BJ166: 0.052 | BK166: 0.006 | BL166: 0 | BM166: 0 | BN166: 0 | BO166: 0 | BP166: 0.016 | BQ166: 0 | BR166: 0.012 | BS166: 0.015 | BT166: 0 | BU166: 0.006 | BV166: 0.012 | BW166: 0.01 | BX166: 0.009 | BY166: 0.008 | BZ166: 0.006 | CA166: 0.01 | CB166: 0.006 | CC166: 0.036 | CD166: 0.004 | CE166: 0.016 | CF166: 0 | CG166: 0.006 | CH166: 0.006 | CI166: 0.01 | CJ166: 0.007 | CK166: 0.005 | CL166: 0.013 | CM166: 0.006 | CN166: 0.009 | CO166: 0.007 | CP166: 0.006 | CQ166: 0.008 | CR166: 0.007 | CS166: 0.007 | CT166: 0.007 | CU166: 0.008 | CV166: 0.014 | CW166: 0.01 | CX166: 0.007 | CY166: 0.009 | CZ166: 0.015 | DA166: 0.007 | DB166: 0.009 | DC166: 0.016 | DD166: 0.01 | DE166: 0.012 | DF166: 0.009 | DG166: 0.006 | DH166: 0.008 | DI166: 0.006 | DJ166: 0.009 | DK166: 0.007 | DL166: 0.006 | DM166: 0.011 | DN166: 0.011 | DO166: 0.008 | DP166: 0.008 | DQ166: 0.007 | DR166: 0.01 | DS166: 0.006 | DT166: 0.008 | DU166: 0.008 | DV166: 0.004 | DW166: 0.006 | DX166: 0.009 | DY166: 0.006 | DZ166: 0.007
A167: Glycerides | B167: TG(55:9) | C167: 7 | D167: 13 | E167: 1 | F167: 11 | G167: 7 | H167: 8 | I167: 6 | J167: 9 | K167: 62 | L167: 53.0 | N167: 0 | O167: 0 | P167: 0.008 | Q167: 0.008 | R167: 0.005 | S167: 0 | T167: 0 | U167: 0 | V167: 0 | W167: 0.007 | X167: 0 | Y167: 0 | Z167: 0.018 | AA167: 0 | AB167: 0.169 | AC167: 0.043 | AD167: 0 | AE167: 0.208 | AF167: 0.046 | AG167: 0 | AH167: 0 | AI167: 0.182 | AJ167: 0.129 | AK167: 0 | AL167: 0.043 | AM167: 0.131 | AN167: 0.042 | AO167: 0.172 | AP167: 0.188 | AQ167: 0.048 | AR167: 0.166 | AS167: 0.054 | AT167: 0.046 | AU167: 0.15 | AV167: 0.144 | AW167: 0 | AX167: 0.062 | AY167: 0.058 | AZ167: 0 | BA167: 0 | BB167: 0.004 | BC167: 0 | BD167: 0 | BE167: 0.009 | BF167: 0.008 | BG167: 0 | BH167: 0.005 | BI167: 0.01 | BJ167: 0 | BK167: 0.06 | BL167: 0.04 | BM167: 0.154 | BN167: 0.171 | BO167: 0.15 | BP167: 0.133 | BQ167: 0.192 | BR167: 0 | BS167: 0.046 | BT167: 0.067 | BU167: 0 | BV167: 0.009 | BW167: 0 | BX167: 0 | BY167: 0 | BZ167: 0.007 | CA167: 0.012 | CB167: 0 | CC167: 0 | CD167: 0.003 | CE167: 0 | CF167: 0 | CG167: 0 | CH167: 0 | CI167: 0 | CJ167: 0 | CK167: 0 | CL167: 0.015 | CM167: 0 | CN167: 0 | CO167: 0 | CP167: 0.007 | CQ167: 0.006 | CR167: 0 | CS167: 0 | CT167: 0 | CU167: 0 | CV167: 0 | CW167: 0 | CX167: 0.01 | CY167: 0.008 | CZ167: 0 | DA167: 0 | DB167: 0 | DC167: 0 | DD167: 0 | DE167: 0.005 | DF167: 0.006 | DG167: 0.007 | DH167: 0.005 | DI167: 0 | DJ167: 0 | DK167: 0 | DL167: 0 | DM167: 0 | DN167: 0.009 | DO167: 0 | DP167: 0 | DQ167: 0 | DR167: 0.009 | DS167: 0 | DT167: 0 | DU167: 0 | DV167: 0 | DW167: 0 | DX167: 0.006 | DY167: 0 | DZ167: 0.007
A168: Glycerides | B168: TG(56:6) | C168: 1 | D168: 19 | E168: 5 | F168: 3 | G168: 1 | H168: 3 | I168: 6 | J168: 7 | K168: 45 | L168: 38.5 | N168: 0.116 | O168: 0.045 | P168: 0.393 | Q168: 0.088 | R168: 0.064 | S168: 0.026 | T168: 0.067 | U168: 0.054 | V168: 0.135 | W168: 0.306 | X168: 0 | Y168: 0.008 | Z168: 0 | AA168: 0 | AB168: 0.008 | AC168: 0.016 | AD168: 0 | AE168: 0 | AF168: 0.005 | AG168: 0 | AH168: 0.096 | AI168: 0 | AJ168: 0 | AK168: 0 | AL168: 0 | AM168: 0.012 | AN168: 0.008 | AO168: 0.045 | AP168: 0 | AQ168: 0 | AR168: 0 | AS168: 0 | AT168: 0.006 | AU168: 0 | AV168: 0 | AW168: 0 | AX168: 0 | AY168: 0 | AZ168: 0.009 | BA168: 0.02 | BB168: 0.1 | BC168: 0.011 | BD168: 0.031 | BE168: 0.36 | BF168: 0 | BG168: 0.103 | BH168: 0.004 | BI168: 0.171 | BJ168: 0.056 | BK168: 0.026 | BL168: 0.022 | BM168: 0.013 | BN168: 0 | BO168: 0 | BP168: 0.019 | BQ168: 0 | BR168: 0.007 | BS168: 0 | BT168: 0 | BU168: 0.006 | BV168: 0.027 | BW168: 0.017 | BX168: 0 | BY168: 0 | BZ168: 0.014 | CA168: 0.011 | CB168: 0.032 | CC168: 0.008 | CD168: 0.004 | CE168: 0.044 | CF168: 0.081 | CG168: 0 | CH168: 0.042 | CI168: 0.046 | CJ168: 0.04 | CK168: 0.007 | CL168: 0.023 | CM168: 0.031 | CN168: 0 | CO168: 0.074 | CP168: 0.08 | CQ168: 0.04 | CR168: 0.097 | CS168: 0.01 | CT168: 0.015 | CU168: 0.017 | CV168: 0.038 | CW168: 0.032 | CX168: 0 | CY168: 0.016 | CZ168: 0 | DA168: 0.007 | DB168: 0 | DC168: 0.015 | DD168: 0.032 | DE168: 0 | DF168: 0.006 | DG168: 0 | DH168: 0.042 | DI168: 0 | DJ168: 0 | DK168: 0 | DL168: 0.003 | DM168: 0 | DN168: 0.087 | DO168: 0 | DP168: 0.031 | DQ168: 0.005 | DR168: 0.046 | DS168: 0.032 | DT168: 0.036 | DU168: 0 | DV168: 0 | DW168: 0 | DX168: 0 | DY168: 0 | DZ168: 0
A169: Glycerides | B169: TG(56:7) | C169: 0 | D169: 19 | E169: 5 | F169: 1 | G169: 1 | H169: 5 | I169: 2 | J169: 1 | K169: 34 | L169: 29.1 | N169: 0.993 | O169: 0.188 | P169: 2.87 | Q169: 0.644 | R169: 0.323 | S169: 0.006 | T169: 0.526 | U169: 0.258 | V169: 0.765 | W169: 2.05 | X169: 0.007 | Y169: 0 | Z169: 0 | AA169: 0 | AB169: 0 | AC169: 0.119 | AD169: 0.009 | AE169: 0 | AF169: 0.008 | AG169: 0.007 | AH169: 0.467 | AI169: 0.006 | AJ169: 0 | AK169: 0 | AL169: 0 | AM169: 0.019 | AN169: 0 | AO169: 0 | AP169: 0.006 | AQ169: 0 | AR169: 0 | AS169: 0 | AT169: 0 | AU169: 0.008 | AV169: 0 | AW169: 0 | AX169: 0 | AY169: 0.007 | AZ169: 0 | BA169: 0.59 | BB169: 0.558 | BC169: 0.007 | BD169: 0.765 | BE169: 2.64 | BF169: 0 | BG169: 0.745 | BH169: 0.007 | BI169: 0.008 | BJ169: 0.285 | BK169: 0 | BL169: 0.088 | BM169: 0.009 | BN169: 0.007 | BO169: 0 | BP169: 0 | BQ169: 0 | BR169: 0.01 | BS169: 0 | BT169: 0.009 | BU169: 0.006 | BV169: 0.017 | BW169: 0.007 | BX169: 0 | BY169: 0.007 | BZ169: 0.006 | CA169: 0.012 | CB169: 0.167 | CC169: 0.007 | CD169: 0.003 | CE169: 0.115 | CF169: 0.525 | CG169: 0.004 | CH169: 0.013 | CI169: 0.145 | CJ169: 0.014 | CK169: 0.006 | CL169: 0.012 | CM169: 0.005 | CN169: 0.008 | CO169: 0 | CP169: 0.563 | CQ169: 0.011 | CR169: 0.293 | CS169: 0.004 | CT169: 0 | CU169: 0.008 | CV169: 0.011 | CW169: 0.01 | CX169: 0 | CY169: 0.012 | CZ169: 0.011 | DA169: 0 | DB169: 0 | DC169: 0 | DD169: 0.167 | DE169: 0.011 | DF169: 0 | DG169: 0 | DH169: 0.276 | DI169: 0.007 | DJ169: 0.007 | DK169: 0.006 | DL169: 0.006 | DM169: 0.006 | DN169: 0.51 | DO169: 0.008 | DP169: 0.014 | DQ169: 0.005 | DR169: 0.008 | DS169: 0.005 | DT169: 0.123 | DU169: 0.016 | DV169: 0.006 | DW169: 0 | DX169: 0.005 | DY169: 0.003 | DZ169: 0.005
A170: Glycerides | B170: TG(56:8) | C170: 1 | D170: 16 | E170: 3 | F170: 1 | G170: 1 | H170: 2 | I170: 1 | J170: 1 | K170: 26 | L170: 22.2 | N170: 0.249 | O170: 0.018 | P170: 0.422 | Q170: 0.112 | R170: 0.044 | S170: 0.01 | T170: 0.115 | U170: 0.065 | V170: 0.136 | W170: 0.338 | X170: 0 | Y170: 0 | Z170: 0.124 | AA170: 0.081 | AB170: 0.01 | AC170: 0.129 | AD170: 0.046 | AE170: 0.101 | AF170: 0 | AG170: 0.054 | AH170: 0.166 | AI170: 0.007 | AJ170: 0 | AK170: 0 | AL170: 0.037 | AM170: 0 | AN170: 0 | AO170: 0.128 | AP170: 0 | AQ170: 0 | AR170: 0.104 | AS170: 0 | AT170: 0 | AU170: 0 | AV170: 0.093 | AW170: 0.078 | AX170: 0 | AY170: 0 | AZ170: 0.067 | BA170: 0.226 | BB170: 0.112 | BC170: 0.009 | BD170: 0.149 | BE170: 0.521 | BF170: 0 | BG170: 0.126 | BH170: 0 | BI170: 0 | BJ170: 0.187 | BK170: 0.017 | BL170: 0.006 | BM170: 0.046 | BN170: 0 | BO170: 0.112 | BP170: 0 | BQ170: 0.049 | BR170: 0 | BS170: 0.025 | BT170: 0.071 | BU170: 0.056 | BV170: 0.011 | BW170: 0.02 | BX170: 0 | BY170: 0.01 | BZ170: 0.02 | CA170: 0.018 | CB170: 0.095 | CC170: 0.011 | CD170: 0.005 | CE170: 0.031 | CF170: 0.066 | CG170: 0.006 | CH170: 0.047 | CI170: 0.011 | CJ170: 0.069 | CK170: 0.011 | CL170: 0.011 | CM170: 0.006 | CN170: 0.01 | CO170: 0.011 | CP170: 0.098 | CQ170: 0.035 | CR170: 0.144 | CS170: 0 | CT170: 0.009 | CU170: 0.008 | CV170: 0.049 | CW170: 0.023 | CX170: 0.006 | CY170: 0.014 | CZ170: 0.012 | DA170: 0.007 | DB170: 0 | DC170: 0 | DD170: 0.039 | DE170: 0.012 | DF170: 0.007 | DG170: 0 | DH170: 0.027 | DI170: 0.005 | DJ170: 0.008 | DK170: 0.005 | DL170: 0.006 | DM170: 0.019 | DN170: 0.01 | DO170: 0.008 | DP170: 0.004 | DQ170: 0.02 | DR170: 0.007 | DS170: 0.042 | DT170: 0.028 | DU170: 0.079 | DV170: 0.02 | DW170: 0 | DX170: 0.04 | DY170: 0.051 | DZ170: 0.048
A171: Glycerides | B171: TG(56:9) | C171: 10 | D171: 27 | E171: 9 | F171: 14 | G171: 8 | H171: 10 | I171: 10 | J171: 12 | K171: 100 | L171: 85.5 | N171: 0.178 | O171: 0 | P171: 0 | Q171: 0 | R171: 0 | S171: 0 | T171: 0 | U171: 0 | V171: 0 | W171: 0 | X171: 0 | Y171: 0 | Z171: 0 | AA171: 0 | AB171: 0 | AC171: 0.119 | AD171: 0 | AE171: 0 | AF171: 0 | AG171: 0.103 | AH171: 0.204 | AI171: 0.135 | AJ171: 0 | AK171: 0 | AL171: 0.015 | AM171: 0 | AN171: 0 | AO171: 0 | AP171: 0.07 | AQ171: 0.054 | AR171: 0.106 | AS171: 0 | AT171: 0 | AU171: 0 | AV171: 0.021 | AW171: 0 | AX171: 0 | AY171: 0 | AZ171: 0 | BA171: 0 | BB171: 0 | BC171: 0 | BD171: 0 | BE171: 0 | BF171: 0 | BG171: 0.021 | BH171: 0 | BI171: 0.34 | BJ171: 0 | BK171: 0 | BL171: 0.041 | BM171: 0 | BN171: 0 | BO171: 0 | BP171: 0 | BQ171: 0 | BR171: 0 | BS171: 0 | BT171: 0 | BU171: 0 | BV171: 0 | BW171: 0 | BX171: 0 | BY171: 0 | BZ171: 0 | CA171: 0 | CB171: 0 | CC171: 0 | CD171: 0 | CE171: 0 | CF171: 0 | CG171: 0.005 | CH171: 0 | CI171: 0 | CJ171: 0 | CK171: 0 | CL171: 0 | CM171: 0 | CN171: 0 | CO171: 0 | CP171: 0 | CQ171: 0.005 | CR171: 0 | CS171: 0.015 | CT171: 0 | CU171: 0 | CV171: 0 | CW171: 0 | CX171: 0 | CY171: 0 | CZ171: 0 | DA171: 0 | DB171: 0 | DC171: 0 | DD171: 0 | DE171: 0 | DF171: 0 | DG171: 0 | DH171: 0 | DI171: 0 | DJ171: 0 | DK171: 0 | DL171: 0 | DM171: 0 | DN171: 0 | DO171: 0.006 | DP171: 0 | DQ171: 0 | DR171: 0 | DS171: 0 | DT171: 0 | DU171: 0 | DV171: 0 | DW171: 0 | DX171: 0 | DY171: 0 | DZ171: 0
A172: Glycerophospholipids | B172: LPC(12:0) | C172: 8 | D172: 7 | E172: 0 | F172: 6 | G172: 7 | H172: 5 | I172: 6 | J172: 11 | K172: 50 | L172: 42.7 | N172: 0.29 | O172: 0 | P172: 0 | Q172: 0 | R172: 0.169 | S172: 0 | T172: 0 | U172: 0 | V172: 0 | W172: 0 | X172: 0.497 | Y172: 0.23 | Z172: 0.281 | AA172: 0.286 | AB172: 0.272 | AC172: 0.271 | AD172: 0.231 | AE172: 0.285 | AF172: 0.191 | AG172: 0.347 | AH172: 0.262 | AI172: 0.238 | AJ172: 0.205 | AK172: 0.132 | AL172: 0.245 | AM172: 0.236 | AN172: 0.305 | AO172: 0.386 | AP172: 0.266 | AQ172: 0.318 | AR172: 0.258 | AS172: 0.265 | AT172: 0.249 | AU172: 0.329 | AV172: 0.231 | AW172: 0.113 | AX172: 0.289 | AY172: 0.25 | AZ172: 0.176 | BA172: 0.201 | BB172: 0 | BC172: 0 | BD172: 0 | BE172: 0 | BF172: 0 | BG172: 0.221 | BH172: 0 | BI172: 0 | BJ172: 0.303 | BK172: 0.201 | BL172: 0.208 | BM172: 0.309 | BN172: 0.26 | BO172: 0.296 | BP172: 0.282 | BQ172: 0.188 | BR172: 0.393 | BS172: 0.218 | BT172: 0.295 | BU172: 0.199 | BV172: 0 | BW172: 0.173 | BX172: 0.227 | BY172: 0 | BZ172: 0 | CA172: 0.159 | CB172: 0.452 | CC172: 0.171 | CD172: 0 | CE172: 0.223 | CF172: 0 | CG172: 0.183 | CH172: 0 | CI172: 0.145 | CJ172: 0 | CK172: 0.346 | CL172: 0.449 | CM172: 0 | CN172: 0 | CO172: 0 | CP172: 0 | CQ172: 0 | CR172: 0.051 | CS172: 0 | CT172: 0 | CU172: 0.141 | CV172: 0.236 | CW172: 0 | CX172: 0.421 | CY172: 0 | CZ172: 0.16 | DA172: 0 | DB172: 0.149 | DC172: 0 | DD172: 0.5 | DE172: 0 | DF172: 0 | DG172: 0.283 | DH172: 0 | DI172: 0 | DJ172: 0 | DK172: 0 | DL172: 0.163 | DM172: 0.408 | DN172: 0.539 | DO172: 0 | DP172: 0 | DQ172: 0 | DR172: 0 | DS172: 0 | DT172: 0 | DU172: 0 | DV172: 0 | DW172: 0.335 | DX172: 0 | DY172: 0 | DZ172: 0
A173: Glycerophospholipids | B173: LPC(14:0) | C173: 2 | D173: 7 | E173: 2 | F173: 1 | G173: 0 | H173: 1 | I173: 0 | J173: 2 | K173: 15 | L173: 12.8 | N173: 0 | O173: 0 | P173: 0.206 | Q173: 0.136 | R173: 0.345 | S173: 0.118 | T173: 0.125 | U173: 0.039 | V173: 0.141 | W173: 0.18 | X173: 0.214 | Y173: 0.984 | Z173: 1.15 | AA173: 0.955 | AB173: 0 | AC173: 1.2 | AD173: 0.796 | AE173: 1.43 | AF173: 0.454 | AG173: 0.67 | AH173: 0.43 | AI173: 0.907 | AJ173: 1.16 | AK173: 0 | AL173: 1.01 | AM173: 1.55 | AN173: 1.55 | AO173: 1.26 | AP173: 0 | AQ173: 0 | AR173: 0.895 | AS173: 1.03 | AT173: 0.987 | AU173: 0.861 | AV173: 0.952 | AW173: 0 | AX173: 0 | AY173: 0.496 | AZ173: 0 | BA173: 0.147 | BB173: 0.189 | BC173: 0.231 | BD173: 0.179 | BE173: 0.21 | BF173: 0.048 | BG173: 0.136 | BH173: 0.195 | BI173: 0.064 | BJ173: 0.231 | BK173: 0.944 | BL173: 0 | BM173: 1.2 | BN173: 1.03 | BO173: 0.452 | BP173: 1.25 | BQ173: 1.64 | BR173: 1.16 | BS173: 0 | BT173: 1.18 | BU173: 0.127 | BV173: 0.105 | BW173: 0.144 | BX173: 0.106 | BY173: 0.198 | BZ173: 0.274 | CA173: 0.184 | CB173: 0.038 | CC173: 0 | CD173: 0.191 | CE173: 0.051 | CF173: 0.313 | CG173: 0.028 | CH173: 0.132 | CI173: 0.109 | CJ173: 0.345 | CK173: 0.145 | CL173: 0.234 | CM173: 0.049 | CN173: 0.109 | CO173: 0.254 | CP173: 0.059 | CQ173: 0.212 | CR173: 0.217 | CS173: 0.151 | CT173: 0.207 | CU173: 0.21 | CV173: 0 | CW173: 0.196 | CX173: 0.052 | CY173: 0.345 | CZ173: 0.234 | DA173: 0.123 | DB173: 0.118 | DC173: 1.93 | DD173: 0.126 | DE173: 0.156 | DF173: 0.234 | DG173: 0.273 | DH173: 0.208 | DI173: 0.106 | DJ173: 0.242 | DK173: 0.339 | DL173: 0.233 | DM173: 0.044 | DN173: 3.25 | DO173: 0 | DP173: 0.03 | DQ173: 0.218 | DR173: 0.202 | DS173: 0.221 | DT173: 0.233 | DU173: 0.157 | DV173: 0.299 | DW173: 0.241 | DX173: 0.159 | DY173: 0.232 | DZ173: 0
A174: Glycerophospholipids | B174: LPC(15:0) | C174: 11 | D174: 38 | E174: 10 | F174: 15 | G174: 9 | H174: 10 | I174: 10 | J174: 10 | K174: 113 | L174: 96.6 | N174: 0 | O174: 0 | P174: 0 | Q174: 0 | R174: 0 | S174: 0 | T174: 0 | U174: 0 | V174: 0 | W174: 0 | X174: 0 | Y174: 0 | Z174: 0 | AA174: 0 | AB174: 0 | AC174: 0 | AD174: 0 | AE174: 0 | AF174: 0 | AG174: 0 | AH174: 0 | AI174: 0 | AJ174: 0 | AK174: 0 | AL174: 0 | AM174: 0 | AN174: 0 | AO174: 0 | AP174: 0 | AQ174: 0 | AR174: 0 | AS174: 0 | AT174: 0 | AU174: 0 | AV174: 0 | AW174: 0 | AX174: 0 | AY174: 0 | AZ174: 0 | BA174: 0 | BB174: 0 | BC174: 0 | BD174: 0 | BE174: 0 | BF174: 0 | BG174: 0 | BH174: 0 | BI174: 0 | BJ174: 0 | BK174: 0 | BL174: 0 | BM174: 0 | BN174: 0 | BO174: 0 | BP174: 0 | BQ174: 0 | BR174: 0 | BS174: 0 | BT174: 0 | BU174: 0 | BV174: 0 | BW174: 0 | BX174: 0 | BY174: 0 | BZ174: 0 | CA174: 0 | CB174: 0 | CC174: 0 | CD174: 0 | CE174: 0 | CF174: 0 | CG174: 0 | CH174: 0 | CI174: 0 | CJ174: 0 | CK174: 0 | CL174: 0 | CM174: 0 | CN174: 0 | CO174: 0 | CP174: 0.085 | CQ174: 0 | CR174: 0 | CS174: 0 | CT174: 0 | CU174: 0 | CV174: 0 | CW174: 0 | CX174: 0 | CY174: 0 | CZ174: 0 | DA174: 0 | DB174: 0 | DC174: 0 | DD174: 0 | DE174: 0 | DF174: 0 | DG174: 0 | DH174: 0 | DI174: 0 | DJ174: 0 | DK174: 0 | DL174: 0 | DM174: 0 | DN174: 1.92 | DO174: 0.445 | DP174: 0.733 | DQ174: 0 | DR174: 0 | DS174: 0 | DT174: 0 | DU174: 0 | DV174: 0 | DW174: 0 | DX174: 0 | DY174: 0 | DZ174: 0
A175: Glycerophospholipids | B175: LPC(16:0) | C175: 1 | D175: 24 | E175: 9 | F175: 4 | G175: 3 | H175: 4 | I175: 5 | J175: 7 | K175: 57 | L175: 48.7 | N175: 0.068 | O175: 0.164 | P175: 7.54 | Q175: 7.55 | R175: 0.089 | S175: 0.024 | T175: 0.099 | U175: 0.149 | V175: 0.162 | W175: 1.32 | X175: 0 | Y175: 0 | Z175: 0 | AA175: 0 | AB175: 0 | AC175: 0.107 | AD175: 0.271 | AE175: 0 | AF175: 0 | AG175: 0 | AH175: 0.02 | AI175: 0 | AJ175: 0 | AK175: 0 | AL175: 0 | AM175: 0 | AN175: 0 | AO175: 0 | AP175: 0.096 | AQ175: 0 | AR175: 0 | AS175: 0 | AT175: 0 | AU175: 0 | AV175: 0 | AW175: 0 | AX175: 0 | AY175: 0 | AZ175: 0 | BA175: 1.59 | BB175: 1.94 | BC175: 2.39 | BD175: 1.28 | BE175: 1.69 | BF175: 0.139 | BG175: 0.389 | BH175: 4 | BI175: 9.78 | BJ175: 0.923 | BK175: 0 | BL175: 0 | BM175: 0 | BN175: 0 | BO175: 0 | BP175: 0 | BQ175: 0 | BR175: 0 | BS175: 0 | BT175: 0.093 | BU175: 0 | BV175: 0.03 | BW175: 7.03 | BX175: 0 | BY175: 0.019 | BZ175: 0.065 | CA175: 0 | CB175: 0.077 | CC175: 0.061 | CD175: 0 | CE175: 0.185 | CF175: 0.187 | CG175: 0.201 | CH175: 0.018 | CI175: 0.933 | CJ175: 0.128 | CK175: 0 | CL175: 0.084 | CM175: 0.187 | CN175: 0 | CO175: 0 | CP175: 0.105 | CQ175: 0.068 | CR175: 5.04 | CS175: 0.675 | CT175: 0.02 | CU175: 0 | CV175: 0 | CW175: 0.233 | CX175: 0 | CY175: 0.498 | CZ175: 0.069 | DA175: 0 | DB175: 0.432 | DC175: 0.741 | DD175: 2.21 | DE175: 0 | DF175: 0 | DG175: 0.192 | DH175: 0.178 | DI175: 0 | DJ175: 0.371 | DK175: 0 | DL175: 0 | DM175: 0.019 | DN175: 0.267 | DO175: 0.374 | DP175: 0.14 | DQ175: 0 | DR175: 0 | DS175: 0.022 | DT175: 0 | DU175: 0.144 | DV175: 0.119 | DW175: 0 | DX175: 0 | DY175: 0 | DZ175: 0
A176: Glycerophospholipids | B176: LPC(16:1) | C176: 11 | D176: 35 | E176: 9 | F176: 15 | G176: 10 | H176: 10 | I176: 10 | J176: 13 | K176: 113 | L176: 96.6 | N176: 0 | O176: 0 | P176: 0 | Q176: 0 | R176: 0 | S176: 0 | T176: 0 | U176: 0 | V176: 0 | W176: 0 | X176: 0 | Y176: 0.3 | Z176: 0 | AA176: 0 | AB176: 0 | AC176: 0 | AD176: 0 | AE176: 0.344 | AF176: 0 | AG176: 0 | AH176: 0 | AI176: 0 | AJ176: 0 | AK176: 0 | AL176: 0 | AM176: 0 | AN176: 0 | AO176: 0 | AP176: 0 | AQ176: 0 | AR176: 0 | AS176: 0 | AT176: 0 | AU176: 0 | AV176: 0 | AW176: 0 | AX176: 0 | AY176: 0 | AZ176: 0 | BA176: 0 | BB176: 0 | BC176: 0 | BD176: 0 | BE176: 0 | BF176: 0 | BG176: 0 | BH176: 0 | BI176: 0 | BJ176: 0.512 | BK176: 0 | BL176: 0 | BM176: 0 | BN176: 0 | BO176: 0 | BP176: 0 | BQ176: 0 | BR176: 0 | BS176: 0 | BT176: 0.372 | BU176: 0 | BV176: 0 | BW176: 0 | BX176: 0 | BY176: 0 | BZ176: 0 | CA176: 0 | CB176: 0 | CC176: 0 | CD176: 0 | CE176: 0 | CF176: 0 | CG176: 0 | CH176: 0 | CI176: 0 | CJ176: 0 | CK176: 0 | CL176: 0 | CM176: 0 | CN176: 0 | CO176: 0 | CP176: 0 | CQ176: 0 | CR176: 0 | CS176: 0 | CT176: 0 | CU176: 0 | CV176: 0 | CW176: 0 | CX176: 0 | CY176: 0 | CZ176: 0 | DA176: 0 | DB176: 0 | DC176: 0 | DD176: 0 | DE176: 0 | DF176: 0 | DG176: 0 | DH176: 0 | DI176: 0 | DJ176: 0 | DK176: 0 | DL176: 0 | DM176: 0 | DN176: 0 | DO176: 0 | DP176: 0 | DQ176: 0 | DR176: 0 | DS176: 0 | DT176: 0 | DU176: 0 | DV176: 0 | DW176: 0 | DX176: 0 | DY176: 0 | DZ176: 0
A177: Glycerophospholipids | B177: LPC(17:0) | C177: 10 | D177: 36 | E177: 10 | F177: 14 | G177: 10 | H177: 10 | I177: 10 | J177: 13 | K177: 113 | L177: 96.6 | N177: 0 | O177: 0 | P177: 0.114 | Q177: 0 | R177: 0 | S177: 0 | T177: 0 | U177: 0 | V177: 0 | W177: 0 | X177: 0 | Y177: 0 | Z177: 0 | AA177: 0 | AB177: 0 | AC177: 0 | AD177: 0 | AE177: 0 | AF177: 0 | AG177: 0 | AH177: 0 | AI177: 0 | AJ177: 0 | AK177: 0 | AL177: 0 | AM177: 0 | AN177: 0 | AO177: 0 | AP177: 0 | AQ177: 0 | AR177: 0 | AS177: 0 | AT177: 0 | AU177: 0 | AV177: 0 | AW177: 0 | AX177: 0 | AY177: 0 | AZ177: 0 | BA177: 0 | BB177: 0 | BC177: 0 | BD177: 0 | BE177: 0.402 | BF177: 0 | BG177: 0 | BH177: 0.047 | BI177: 0 | BJ177: 0 | BK177: 0 | BL177: 0 | BM177: 0 | BN177: 0 | BO177: 0 | BP177: 0 | BQ177: 0 | BR177: 0 | BS177: 0 | BT177: 0 | BU177: 0 | BV177: 0 | BW177: 0.063 | BX177: 0 | BY177: 0 | BZ177: 0 | CA177: 0 | CB177: 0 | CC177: 0 | CD177: 0 | CE177: 0 | CF177: 0 | CG177: 0 | CH177: 0 | CI177: 0 | CJ177: 0 | CK177: 0 | CL177: 0 | CM177: 0 | CN177: 0 | CO177: 0 | CP177: 0 | CQ177: 0 | CR177: 0 | CS177: 0 | CT177: 0 | CU177: 0 | CV177: 0 | CW177: 0 | CX177: 0 | CY177: 0 | CZ177: 0 | DA177: 0 | DB177: 0 | DC177: 0 | DD177: 0 | DE177: 0 | DF177: 0 | DG177: 0 | DH177: 0 | DI177: 0 | DJ177: 0 | DK177: 0 | DL177: 0 | DM177: 0 | DN177: 0 | DO177: 0 | DP177: 0 | DQ177: 0 | DR177: 0 | DS177: 0 | DT177: 0 | DU177: 0 | DV177: 0 | DW177: 0 | DX177: 0 | DY177: 0 | DZ177: 0
